Workbook

Sheet MonthInstr
A1: Monthly Processing
A3: Input Current Period # in PARAMS
A5: For New Retirees
B6: Input ID, COLA, Sex, DOB, DOBB, DOR, BOY Balance, Death Benefit for new retirees
B7: Extend formulas down, add rows to NewRet
A9: For BOY Retirees and New Retirees from prior periods
B10: Input period for deaths to stop withdrawals
B11: Input period for death benefit payments (enter 0 for death benefit payments in last period of prior year) and death benefit amounts; any remainder will be transferred to the death benefit reserve
B12: If there is no death benefit payable, input same period for both stop withdrawals and death benefit payments, this will trigger transfer to the death forfeiture reserve
B13: Note that the periods for stopping withdrawals and for making a benefit payment can be adjusted to a later month, but not to a later year
B14: For joint lives where main beneficiary has died, treat the value of the new benefit to the joint beneficiary as a death benefit to the main beneficiary
C15: Set up the joint beneficiary as a new retiree with the appropriate annuity value and calculate the value of the benefit to the joint benificiary to input as a death benefit for the main beneficiary
A17: InvRet
B18: Input investment income amount in InvRet
A20: PeriodBal
B21: Input 'n' code and id number for new retirees
B22: Extend formulas down to include new retirees
A24: EOYRetirees
B25: Extend formulas down to include new retirees (can wait until end of year to do this)
B26: Input start period (set formula if first period of the year)

Sheet AnnualInstr
A1: Year-End Processing
A2: Copy base mortality 1 rates into mortality history
A3: Enter new mortality 2 rates in order to calculate new annuity amounts in EOYRetirees sheet
A4: Run AnnFactCopy macro to generate new factors including generational improvement
A5: Copy latest annuity information into new column for BOY retirees in Retiree history sheet
A6: Copy NewRetirees Information into history sheet, move annuity information into appropriate column
A7: Adjust ID column in Retiree history sheet as appropriate
A8: Save workbook and rename new workbook for new year
A10: Set Up for New Year
A11: Update new retiree data in EOYRetirees
A12: Copy formulas down for new retirees added to EOYRetirees
A13: Adjust any death benefits that are too large relative to the account balance
A14: Copy EOYRetirees data (data only) into BOYRetirees, paste values to avoid circular references; zero out start period for last year's new retirees now in BOYRetirees
A15: Copy formulas in BOYRetirees down
A16: Zero out death benefit elected data for those already died
A17: Adjust ID number in BOYRetirees for new
A18: Enter 0 for stop withdrawal period for those who have already died, including last year's new retirees
A19: Enter 0 for death benefit paid period those who have already died, including last year's new retirees
A20: Zero out death benefits paid amounts for those died in prior year
A21: Redefine BOYRet table to enable lookup function to work properly
A22: Delete all but one row of data in NewRetirees; zero out Balance and death benefit elected
A23: Copy values in AssetPool to AssetPoolHistory
A24: Copy AssetPool into AssetPoolHistory
A25: Enter prior year CPI into AssetPoolHistory and into Params worksheet
A26: Copy mortality 2 rates into mortality 1 to use as current year mortality
A27: Run AnnFactCopy macro to generate new factors including generational improvement
A28: Input new BOY in PARAMS
A29: Input 0 for current period in PARAMS
A30: Input new BONY (beginning of next year) in PARAMS
A31: Copy formulas for New retirees to bottom on list of retirees in EOY retirees (add at least 1 new record); set formula for start period to read from NewRetirees
A32: Adjust Sex, DOB, DOBB, DOR in EOYRetirees (if needed) for last years new retirees which are now in BOYRetirees sheet
A33: Change status code in Periodbal from n to b for new retirees from past year
A34: Change ID number if it is a simple count in Periodbal for new retirees from past year
A35: Input 0 into investment income cells in InvRet

Sheet GenMortInstr
A3: Input Mortality improvement factors into MortImpRate2M, MortImpRate2F (and 2M and 2F once they are added)
A4: Input Inflation, Interest Rate and Cost-of_Living Adjustment in AnnFactCalc
A5: Input the Low Balance and corresponding mortality adjustment and High Balance and corresponding mortality adjustment in PARAMS
A6: Mortality adjustment will be phased out above a certain age - adjust this in JointMOrtality1 and JointMortality2
A7: Run Macro AnnFactCopy which generates Q's and annuity factors based on generational mortality and copies them into the AnnFactGenImp sheet

Sheet Mortality History
A1: High Bal Factor | B1: 1 | C1: 1
A2: Low Bal Factor | B2: 1.5 | C2: 1.5
A3: Phase out Age | B3: 80 | C3: 80
B5: 2020 | D5: 2021
A6: Age | B6: qx-M | C6: qx-F | D6: qx-M | E6: qx-F
A7: 1
A8: =A7+1 -> 2
A9: =A8+1 -> 3
A10: 4
A11: 5
A12: 6
A13: 7
A14: 8
A15: 9
A16: 10
A17: 11
A18: 12
A19: 13
A20: 14
A21: 15
A22: 16
A23: 17
A24: 18
A25: 19
A26: 20 | B26: 0.000919
A27: 21 | B27: 0.000961
A28: 22 | B28: 0.000999
A29: 23 | B29: 0.001033 | C29: 0.000919
A30: 24 | B30: 0.001063 | C30: 0.000961
A31: 25 | B31: 0.00109 | C31: 0.000999
A32: 26 | B32: 0.001113 | C32: 0.001033
A33: 27 | B33: 0.001132 | C33: 0.001063
A34: 28 | B34: 0.001147 | C34: 0.00109
A35: 29 | B35: 0.001159 | C35: 0.001113
A36: 30 | B36: 0.001166 | C36: 0.001132
A37: 31 | B37: 0.00117 | C37: 0.001147
A38: 32 | B38: 0.00117 | C38: 0.001159
A39: 33 | B39: 0.001171 | C39: 0.001166
A40: 34 | B40: 0.001201 | C40: 0.00117
A41: 35 | B41: 0.001246 | C41: 0.00117
A42: 36 | B42: 0.001308 | C42: 0.001171
A43: 37 | B43: 0.001387 | C43: 0.001201
A44: 38 | B44: 0.001482 | C44: 0.001246
A45: 39 | B45: 0.001593 | C45: 0.001308
A46: 40 | B46: 0.001721 | C46: 0.001387
A47: 41 | B47: 0.001865 | C47: 0.001482
A48: 42 | B48: 0.002053 | C48: 0.001593
A49: 43 | B49: 0.002247 | C49: 0.001721
A50: 44 | B50: 0.002418 | C50: 0.001865
A51: 45 | B51: 0.002602 | C51: 0.002053
A52: 46 | B52: 0.002832 | C52: 0.002247
A53: 47 | B53: 0.00311 | C53: 0.002418
A54: 48 | B54: 0.003438 | C54: 0.002602
A55: 49 | B55: 0.003816 | C55: 0.002832
A56: 50 | B56: 0.004243 | C56: 0.00311
A57: 51 | B57: 0.004719 | C57: 0.003438
A58: 52 | B58: 0.005386 | C58: 0.003816
A59: 53 | B59: 0.006058 | C59: 0.004243
A60: 54 | B60: 0.00673 | C60: 0.004719
A61: 55 | B61: 0.0074 | C61: 0.005386
A62: 56 | B62: 0.008069 | C62: 0.006058
A63: 57 | B63: 0.00871 | C63: 0.00673
A64: 58 | B64: 0.009397 | C64: 0.0074
A65: 59 | B65: 0.01013 | C65: 0.008069
A66: 60 | B66: 0.010907 | C66: 0.00871
A67: 61 | B67: 0.011721 | C67: 0.009397
A68: 62 | B68: 0.01175 | C68: 0.01013
A69: 63 | B69: 0.01212 | C69: 0.010907
A70: 64 | B70: 0.012833 | C70: 0.011721
A71: 65 | B71: 0.013889 | C71: 0.01175
A72: 66 | B72: 0.015286 | C72: 0.01212
A73: =A72+1 -> 67 | B73: 0.017026 | C73: 0.012833
A74: 68 | B74: 0.019451 | C74: 0.013889
A75: 69 | B75: 0.021876 | C75: 0.015286
A76: 70 | B76: 0.024301 | C76: 0.017026
A77: 71 | B77: 0.02741 | C77: 0.019451
A78: 72 | B78: 0.030862 | C78: 0.021876
A79: 73 | B79: 0.034656 | C79: 0.024301
A80: 74 | B80: 0.038793 | C80: 0.02741
A81: 75 | B81: 0.043272 | C81: 0.030862
A82: 76 | B82: 0.048093 | C82: 0.034656
A83: 77 | B83: 0.053257 | C83: 0.038793
A84: 78 | B84: 0.058763 | C84: 0.043272
A85: 79 | B85: 0.064611 | C85: 0.048093
A86: 80 | B86: 0.070802 | C86: 0.053257
A87: 81 | B87: 0.077335 | C87: 0.058763
A88: 82 | B88: 0.08421 | C88: 0.064611
A89: 83 | B89: 0.091428 | C89: 0.070802
A90: 84 | B90: 0.098988 | C90: 0.077335
A91: 85 | B91: 0.106891 | C91: 0.08421
A92: 86 | B92: 0.115136 | C92: 0.091428
A93: 87 | B93: 0.123723 | C93: 0.098988
A94: 88 | B94: 0.132652 | C94: 0.106891
A95: 89 | B95: 0.141924 | C95: 0.115136
A96: 90 | B96: 0.151539 | C96: 0.123723
A97: 91 | B97: 0.161495 | C97: 0.132652
A98: 92 | B98: 0.171794 | C98: 0.141924
A99: 93 | B99: 0.182436 | C99: 0.151539
A100: 94 | B100: 0.193419 | C100: 0.161495
A101: 95 | B101: 0.204746 | C101: 0.171794
A102: 96 | B102: 0.216414 | C102: 0.182436
A103: 97 | B103: 0.228425 | C103: 0.193419
A104: 98 | B104: 0.240778 | C104: 0.204746
A105: 99 | B105: 0.253473 | C105: 0.216414
A106: 100 | B106: 0.266511 | C106: 0.228425
A107: 101 | B107: 0.279892 | C107: 0.240778
A108: 102 | B108: 0.293614 | C108: 0.253473
A109: 103 | B109: 0.307679 | C109: 0.266511
A110: 104 | B110: 0.322087 | C110: 0.279892
A111: 105 | B111: 0.336836 | C111: 0.293614
A112: 106 | B112: 0.351928 | C112: 0.307679
A113: 107 | B113: 0.367363 | C113: 0.322087
A114: 108 | B114: 0.383139 | C114: 0.336836
A115: 109 | B115: 0.399258 | C115: 0.351928
A116: 110 | B116: 0.41572 | C116: 0.367363
A117: 111 | B117: 0.432524 | C117: 0.383139
A118: 112 | B118: 0.44967 | C118: 0.399258
A119: 113 | B119: 0.467159 | C119: 0.41572
A120: 114 | B120: 0.484989 | C120: 0.432524
A121: 115 | B121: 0.503163 | C121: 0.44967
A122: 116 | B122: 0.521678 | C122: 0.467159
A123: 117 | B123: 0.521678 | C123: 0.484989
A124: 118 | B124: 0.521678 | C124: 0.503163
A125: 119 | B125: 0.521678 | C125: 0.521678
A126: 120 | B126: 1 | C126: 1

Sheet RetireeHistory
L8: 2020
A9: 1 | C9: 0 | D9: U | E9: 1950-06-01 | G9: 2018-11-01 | H9: 306731.5471 | I9: 275000 | J9: 69.58521561 | K9: 13.34884568 | L9: 1914.84
A10: 2 | C10: 0 | D10: F | E10: 1942-02-10 | G10: 2012-06-01 | H10: 148999.055 | I10: 100000 | J10: 77.88911704 | K10: 9.858940099 | L10: 1259.42
A11: 3 | C11: 0 | D11: M | E11: 1952-12-01 | G11: 2017-12-01 | H11: 0 | J11: 67.08281999 | K11: 8.770970042 | L11: 0
A12: 4 | C12: 0 | D12: jF | E12: 1956-10-15 | F12: 1953-10-15 | G12: 2017-12-01 | H12: 128923.0102 | I12: 100000 | J12: 63.21149897 | K12: 15.14806991 | L12: 709.24
A13: 5 | C13: 0 | D13: F | E13: 1950-07-25 | G13: 2018-03-01 | H13: 77290.59631 | I13: 25000 | J13: 69.43737166 | K13: 10.52638515 | L13: 611.88
A14: 6 | C14: 0 | D14: JF | E14: 1951-08-01 | F14: 1948-08-01 | G14: 2019-09-01 | H14: 258399.483 | J14: 68.41889117 | K14: 11.11572903 | L14: 1937.19
A15: 7 | C15: 0 | D15: M | E15: 1954-07-10 | G15: 2019-05-01 | H15: 186518.0895 | I15: 150000 | J15: 65.47843943 | K15: 13.36602774 | L15: 1162.89
A16: 8 | C16: 0 | D16: M | E16: 1955-09-06 | G16: 2019-03-01 | H16: 124724.7178 | I16: 50000 | J16: 64.32032854 | K16: 11.69853545 | L16: 888.46
A17: 9 | C17: 0 | D17: M | E17: 1956-04-16 | G17: 2019-07-01 | H17: 72865.82517 | I17: 30000 | J17: 63.70978782 | K17: 11.64797769 | L17: 521.31
A18: 10 | C18: 0 | D18: M | E18: 1958-05-04 | G18: 2019-11-01 | H18: 52286.94195 | I18: 40000 | J18: 61.66187543 | K18: 13.54659495 | L18: 321.65
A19: 11 | C19: 0 | D19: M | E19: 1959-03-02 | G19: 2019-11-01 | H19: 36662.54794 | I19: 30000 | J19: 60.83504449 | K19: 13.94583907 | L19: 219.08
A20: 1 | B20: 1 | C20: 1 | D20: JF | E20: 1959-05-08 | G20: 2020-01-01 | H20: 95000 | I20: 95000 | J20: 60.65160849 | K20: 18.00510314 | L20: 439.69
A21: 2 | B21: 4 | D21: M | E21: 1958-08-19 | G21: 2020-04-01 | H21: 135000 | I21: 60000 | J21: 61.61806982 | K21: 12.6291538 | L21: 890.8
A22: 3 | B22: 8 | D22: F | E22: 1960-09-01 | G22: 2020-08-01 | H22: 100000 | I22: 50000 | J22: 59.91512663 | K22: 13.66105413 | L22: 610.01
A23: 4 | B23: 11 | D23: M | E23: 1948-08-01 | G23: 2020-11-01 | H23: 91558.04 | I23: 91558.04 | J23: 72.25188227 | K23: 11.62588878 | L23: 656.28

Sheet AssetPoolHistory
E5: 2020
C6: BOP | E6: 1714008.483
B7: 1 | C7: New Retirees | E7: 380000
C8: Payments | E8: -10794.34
C9: Income | E9: 12000
C10: EOP | E10: 2095214.143
B11: =B7+1 -> 2 | C11: New Retirees | E11: 0
C12: Payments | E12: -10794.34
C13: Income | E13: 8000
C14: EOP | E14: 2092419.803
B15: =B11+1 -> 3 | C15: New Retirees | E15: 0
C16: Payments | E16: -10794.34
C17: Income | E17: -1000
C18: EOP | E18: 2080625.463
B19: =B15+1 -> 4 | C19: New Retirees | E19: 0
C20: Payments | E20: -10794.34
C21: Income | E21: 8000
C22: EOP | E22: 2077831.123
B23: =B19+1 -> 5 | C23: New Retirees | E23: 0
C24: Payments | E24: -10794.34
C25: Income | E25: 10000
C26: EOP | E26: 2077036.783
B27: =B23+1 -> 6 | C27: New Retirees | E27: 0
C28: Payments | E28: -10794.34
C29: Income | E29: -5000
C30: EOP | E30: 2061242.443
B31: =B27+1 -> 7 | C31: New Retirees | E31: 0
C32: Payments | E32: -10794.34
C33: Income | E33: 15000
C34: EOP | E34: 2065448.103
B35: =B31+1 -> 8 | C35: New Retirees | E35: 0
C36: Payments | E36: -10794.34
C37: Income | E37: 10000
C38: EOP | E38: 2064653.763
B39: =B35+1 -> 9 | C39: New Retirees | E39: 0
C40: Payments | E40: -10794.34
C41: Income | E41: 6000
C42: EOP | E42: 2059859.423
B43: =B39+1 -> 10 | C43: New Retirees | E43: 0
C44: Payments | E44: -10794.34
C45: Income | E45: 11000
C46: EOP | E46: 2060065.083
B47: =B43+1 -> 11 | C47: New Retirees | E47: 0
C48: Payments | E48: -10794.34
C49: Income | E49: 6200
C50: EOP | E50: 2055470.743
B51: =B47+1 -> 12 | C51: New Retirees | E51: 0
C52: Payments | E52: -10794.34
C53: Income | E53: 12000
C54: EOP | E54: 2056676.403
E56: Asset Pool 1
E57: 1714008.483
E58: 380000
E59: -129532.08
E60: 92200
E61: 2056676.403
E62: 0.0501293347
C64: Inflation

Sheet PARAMS
A2: Number of Periods | B2: 12
A3: Current Period | B3: 12
A4: Payment Timing | B4: BOP | E4: BOP
A5: BOY | B5: 2021-01-01 | E5: EOP
A6: BONY | B6: 2022-01-01
A7: Prior Year CPI | B7: 0
A8: Max Participants | B8: 100
B10: Amount | C10: Mort Adj
A11: Low Balance | B11: 50000 | C11: 1.5
A12: High Balance | B12: 250000 | C12: 1

Sheet BOYRetirees
A2: BOYB | B2: =SUM(OFFSET(H11,0,0,PARAMS!$B$8,1)) -> 1714008.483
M8: Deceased
C9: COLA | D9: Sex | E9: DOB | F9: DOBB | G9: DOR | H9: BOY Balance | I9: Death Benefit (Life Ins) | J9: AGE | K9: BOY AnnFactAdj | L9: Ann Amount | M9: stop withdrawal after period | N9: pay death benefit in period | O9: death benefit | P9: qx/(1-qx) | Q9: qx | U9: qlowbal | V9: qhighbal | W9: A | X9: LifeFact | Y9: Alowbal | Z9: Ahighbal | AA9: Lifelowbal | AB9: Lifehighbal | AC9: Low-High Inter | AE9: Position in Actuarial Table
A10: 1 | B10: =A10+1 -> 2 | C10: =B10+1 -> 3 | D10: =C10+1 -> 4 | E10: =D10+1 -> 5 | F10: =E10+1 -> 6 | G10: 7 | H10: 8 | I10: 9 | J10: =I10+1 -> 10 | K10: =J10+1 -> 11 | L10: =K10+1 -> 12 | M10: =L10+1 -> 13 | N10: =M10+1 -> 14 | O10: =N10+1 -> 15 | P10: =O10+1 -> 16 | Q10: =P10+1 -> 17
A11: 1 | D11: U | E11: 1950-06-01 | G11: 2018-11-01 | H11: 311518.1564 | I11: 275000 | J11: =(PARAMS!$B$5-E11)/365.25 -> 70.58726899 | K11: =IF(H11>0,W11/(1-X11*I11/H11),W11) -> 15.53411632 | L11: =ROUND(H11/(K11*NumPeriods),2) -> 1671.15 | P11: =(V11*(1-I11/MAX(H11,1)))/(1-V11) -> 0.002645034056 | Q11: =U11*(1-AC11)+V11*AC11 -> 0.02206558857 | U11: =(INT($J11)+1-$J11)*VLOOKUP($J11,AnnTableGenImpLowBal,AG11)+($J11-INT($J11))*VLOOKUP($J11+1,AnnTableGenImpLowBal,AG11) -> 0.03309838286 | V11: =(INT($J11)+1-$J11)*VLOOKUP($J11,AnnTableGenImpHighBal,AG11)+($J11-INT($J11))*VLOOKUP($J11+1,AnnTableGenImpHighBal,AG11) -> 0.02206558857 | W11: =(Y11*(1-AC11)+Z11*AC11) -> 9.3105317 | X11: =AA11*(1-AC11)+AB11*AC11 -> 0.4538420331 | Y11: =((INT($J11)+1-$J11)*VLOOKUP($J11,INDIRECT(OFFSET(AnnFactGenImpLowBal!$A$1,C11,0,1,1)),$AE11)+($J11-INT($J11))*VLOOKUP($J11+1,INDIRECT(OFFSET(AnnFactGenImpLowBal!$A$1,C11,0,1,1)),$AE11)) -> 8.172210788 | Z11: =((INT($J11)+1-$J11)*VLOOKUP($J11,INDIRECT(OFFSET(AnnFactGenImpHighBal!$A$1,C11,0,1,1)),$AE11)+($J11-INT($J11))*VLOOKUP($J11+1,INDIRECT(OFFSET(AnnFactGenImpHighBal!$A$1,C11,0,1,1)),$AE11)) -> 9.3105317 | AA11: =IF(H11=0,0,((INT($J11)+1-$J11)*VLOOKUP($J11,INDIRECT(OFFSET(AnnFactGenImpLowBal!$A$1,0,0,1,1)),$AF11)+($J11-INT($J11))*VLOOKUP($J11+1,INDIRECT(OFFSET(AnnFactGenImpLowBal!$A$1,0,0,1,1)),$AF11))) -> 0.5194850732 | AB11: =IF(H11=0,0,((INT($J11)+1-$J11)*VLOOKUP($J11,INDIRECT(OFFSET(AnnFactGenImpHighBal!$A$1,0,0,1,1)),$AF11)+($J11-INT($J11))*VLOOKUP($J11+1,INDIRECT(OFFSET(AnnFactGenImpHighBal!$A$1,0,0,1,1)),$AF11))) -> 0.4538420331 | AC11: =IFERROR((MIN(HighBal,MAX(H11,LowBal))-LowBal)/(HighBal-LowBal),0) -> 1 | AE11: =IF(UPPER(D11)="JM",10,IF(UPPER(D11)="JF",11,IF(UPPER(D11)="M",7,IF(UPPER(D11)="F",8,9)))) -> 9 | AF11: =IF(UPPER(D11)="JM",12,IF(UPPER(D11)="JF",13,IF(UPPER(D11)="M",12,IF(UPPER(D11)="F",13,14)))) -> 14 | AG11: =IF(UPPER(D11)="JM",5,IF(UPPER(D11)="JF",6,IF(UPPER(D11)="M",2,IF(UPPER(D11)="F",3,4)))) -> 4
A12: 2 | D12: F | E12: 1942-02-10 | G12: 2012-06-01 | H12: 185256.0037 | I12: 100000 | J12: =(PARAMS!$B$5-E12)/365.25 -> 78.89117043 | K12: =IF(H12>0,W12/(1-X12*I12/H12),W12) -> 10.29578356 | L12: 1499.45 | M12: 3 | N12: 4 | O12: 100000 | P12: =(Q12*(1-I12/MAX(H12,1)))/(1-Q12) -> 0.02663770863 | Q12: =U12*(1-AC12)+V12*AC12 -> 0.0547150651 | U12: 0.07063897398 | V12: 0.04709264932 | W12: =(Y12*(1-AC12)+Z12*AC12) -> 7.013270445 | X12: =AA12*(1-AC12)+AB12*AC12 -> 0.590635242 | Y12: =((INT($J12)+1-$J12)*VLOOKUP($J12,INDIRECT(OFFSET(AnnFactGenImpLowBal!$A$1,C12,0,1,1)),$AE12)+($J12-INT($J12))*VLOOKUP($J12+1,INDIRECT(OFFSET(AnnFactGenImpLowBal!$A$1,C12,0,1,1)),$AE12)) -> 6.356744278 | Z12: =((INT($J12)+1-$J12)*VLOOKUP($J12,INDIRECT(OFFSET(AnnFactGenImpHighBal!$A$1,C12,0,1,1)),$AE12)+($J12-INT($J12))*VLOOKUP($J12+1,INDIRECT(OFFSET(AnnFactGenImpHighBal!$A$1,C12,0,1,1)),$AE12)) -> 7.327534703 | AA12: =IF(H12=0,0,((INT($J12)+1-$J12)*VLOOKUP($J12,INDIRECT(OFFSET(AnnFactGenImpLowBal!$A$1,0,0,1,1)),$AF12)+($J12-INT($J12))*VLOOKUP($J12+1,INDIRECT(OFFSET(AnnFactGenImpLowBal!$A$1,0,0,1,1)),$AF12))) -> 0.6337344148 | AB12: =IF(H12=0,0,((INT($J12)+1-$J12)*VLOOKUP($J12,INDIRECT(OFFSET(AnnFactGenImpHighBal!$A$1,0,0,1,1)),$AF12)+($J12-INT($J12))*VLOOKUP($J12+1,INDIRECT(OFFSET(AnnFactGenImpHighBal!$A$1,0,0,1,1)),$AF12))) -> 0.5700046407 | AC12: 0.6762800187 | AE12: =IF(UPPER(D12)="JM",10,IF(UPPER(D12)="JF",11,IF(UPPER(D12)="M",7,IF(UPPER(D12)="F",8,9)))) -> 8 | AF12: =IF(UPPER(D12)="JM",12,IF(UPPER(D12)="JF",13,IF(UPPER(D12)="M",12,IF(UPPER(D12)="F",13,14)))) -> 13 | AG12: =IF(UPPER(D12)="JM",5,IF(UPPER(D12)="JF",6,IF(UPPER(D12)="M",2,IF(UPPER(D12)="F",3,4)))) -> 3
A13: 3 | D13: M | E13: 1952-12-01 | G13: 2017-12-01 | H13: 0 | I13: 0 | J13: =(PARAMS!$B$5-E13)/365.25 -> 68.08487337 | K13: 8.490524836 | L13: 0 | M13: 0 | N13: 0 | O13: 0 | P13: 0.03006807294 | Q13: 0.02919037463 | U13: 0.02919037463 | V13: 0.01946024975 | W13: 8.490524836 | X13: =AA13*(1-AC13)+AB13*AC13 -> 0 | Y13: =((INT($J13)+1-$J13)*VLOOKUP($J13,INDIRECT(OFFSET(AnnFactGenImpLowBal!$A$1,C13,0,1,1)),$AE13)+($J13-INT($J13))*VLOOKUP($J13+1,INDIRECT(OFFSET(AnnFactGenImpLowBal!$A$1,C13,0,1,1)),$AE13)) -> 8.490524836 | Z13: =((INT($J13)+1-$J13)*VLOOKUP($J13,INDIRECT(OFFSET(AnnFactGenImpHighBal!$A$1,C13,0,1,1)),$AE13)+($J13-INT($J13))*VLOOKUP($J13+1,INDIRECT(OFFSET(AnnFactGenImpHighBal!$A$1,C13,0,1,1)),$AE13)) -> 9.648100965 | AA13: =IF(H13=0,0,((INT($J13)+1-$J13)*VLOOKUP($J13,INDIRECT(OFFSET(AnnFactGenImpLowBal!$A$1,0,0,1,1)),$AF13)+($J13-INT($J13))*VLOOKUP($J13+1,INDIRECT(OFFSET(AnnFactGenImpLowBal!$A$1,0,0,1,1)),$AF13))) -> 0 | AB13: =IF(H13=0,0,((INT($J13)+1-$J13)*VLOOKUP($J13,INDIRECT(OFFSET(AnnFactGenImpHighBal!$A$1,0,0,1,1)),$AF13)+($J13-INT($J13))*VLOOKUP($J13+1,INDIRECT(OFFSET(AnnFactGenImpHighBal!$A$1,0,0,1,1)),$AF13))) -> 0 | AC13: 0 | AE13: 7 | AF13: 12 | AG13: 2
A14: 4 | D14: jF | E14: 1956-10-15 | F14: 1953-10-15 | G14: 2017-12-01 | H14: 131973.6079 | I14: 100000 | J14: =(PARAMS!$B$5-E14)/365.25 -> 64.21355236 | K14: 16.12746598 | L14: 681.93 | P14: =(Q14*(1-I14/MAX(H14,1)))/(1-Q14) -> 0.002275518874 | Q14: 0.009304988974 | U14: 0.01098879208 | V14: 0.006880633012 | W14: 11.67978574 | X14: 0.3639607168 | Y14: =((INT($J14)+1-$J14)*VLOOKUP($J14,INDIRECT(OFFSET(AnnFactGenImpLowBal!$A$1,C14,0,1,1)),$AE14)+($J14-INT($J14))*VLOOKUP($J14+1,INDIRECT(OFFSET(AnnFactGenImpLowBal!$A$1,C14,0,1,1)),$AE14)) -> 11.25786519 | Z14: =((INT($J14)+1-$J14)*VLOOKUP($J14,INDIRECT(OFFSET(AnnFactGenImpHighBal!$A$1,C14,0,1,1)),$AE14)+($J14-INT($J14))*VLOOKUP($J14+1,INDIRECT(OFFSET(AnnFactGenImpHighBal!$A$1,C14,0,1,1)),$AE14)) -> 12.28727103 | AA14: =IF(H14=0,0,((INT($J14)+1-$J14)*VLOOKUP($J14,INDIRECT(OFFSET(AnnFactGenImpLowBal!$A$1,0,0,1,1)),$AF14)+($J14-INT($J14))*VLOOKUP($J14+1,INDIRECT(OFFSET(AnnFactGenImpLowBal!$A$1,0,0,1,1)),$AF14))) -> 0.3876103149 | AB14: =IF(H14=0,0,((INT($J14)+1-$J14)*VLOOKUP($J14,INDIRECT(OFFSET(AnnFactGenImpHighBal!$A$1,0,0,1,1)),$AF14)+($J14-INT($J14))*VLOOKUP($J14+1,INDIRECT(OFFSET(AnnFactGenImpHighBal!$A$1,0,0,1,1)),$AF14))) -> 0.3299097969 | AC14: 0.4098680395 | AE14: 11 | AF14: 13 | AG14: 6
A15: 5 | D15: F | E15: 1950-07-25 | G15: 2018-03-01 | H15: 0 | I15: 0 | J15: =(PARAMS!$B$5-E15)/365.25 -> 70.43942505 | K15: 8.729406665 | L15: 0 | M15: 0 | N15: 0 | O15: 0 | P15: =(Q15*(1-I15/MAX(H15,1)))/(1-Q15) -> 0.02760774517 | Q15: 0.02686603454 | U15: 0.02686603454 | V15: 0.01791068969 | W15: 8.729406665 | X15: 0 | Y15: =((INT($J15)+1-$J15)*VLOOKUP($J15,INDIRECT(OFFSET(AnnFactGenImpLowBal!$A$1,C15,0,1,1)),$AE15)+($J15-INT($J15))*VLOOKUP($J15+1,INDIRECT(OFFSET(AnnFactGenImpLowBal!$A$1,C15,0,1,1)),$AE15)) -> 8.729406665 | Z15: =((INT($J15)+1-$J15)*VLOOKUP($J15,INDIRECT(OFFSET(AnnFactGenImpHighBal!$A$1,C15,0,1,1)),$AE15)+($J15-INT($J15))*VLOOKUP($J15+1,INDIRECT(OFFSET(AnnFactGenImpHighBal!$A$1,C15,0,1,1)),$AE15)) -> 9.815255648 | AA15: =IF(H15=0,0,((INT($J15)+1-$J15)*VLOOKUP($J15,INDIRECT(OFFSET(AnnFactGenImpLowBal!$A$1,0,0,1,1)),$AF15)+($J15-INT($J15))*VLOOKUP($J15+1,INDIRECT(OFFSET(AnnFactGenImpLowBal!$A$1,0,0,1,1)),$AF15))) -> 0 | AB15: =IF(H15=0,0,((INT($J15)+1-$J15)*VLOOKUP($J15,INDIRECT(OFFSET(AnnFactGenImpHighBal!$A$1,0,0,1,1)),$AF15)+($J15-INT($J15))*VLOOKUP($J15+1,INDIRECT(OFFSET(AnnFactGenImpHighBal!$A$1,0,0,1,1)),$AF15))) -> 0 | AC15: 0 | AE15: 8 | AF15: 13 | AG15: 3
A16: 6 | D16: JF | E16: 1951-08-01 | F16: 1948-08-01 | G16: 2019-09-01 | H16: 286720.9572 | I16: 0 | J16: =(PARAMS!$B$5-E16)/365.25 -> 69.42094456 | K16: 10.84141601 | L16: 2203.9 | P16: =(Q16*(1-I16/MAX(H16,1)))/(1-Q16) -> 0.01009553782 | Q16: 0.009994636585 | U16: 0.01616787094 | V16: 0.009994636585 | W16: 10.84141601 | X16: 0.4074291722 | Y16: =((INT($J16)+1-$J16)*VLOOKUP($J16,INDIRECT(OFFSET(AnnFactGenImpLowBal!$A$1,C16,0,1,1)),$AE16)+($J16-INT($J16))*VLOOKUP($J16+1,INDIRECT(OFFSET(AnnFactGenImpLowBal!$A$1,C16,0,1,1)),$AE16)) -> 9.666425369 | Z16: =((INT($J16)+1-$J16)*VLOOKUP($J16,INDIRECT(OFFSET(AnnFactGenImpHighBal!$A$1,C16,0,1,1)),$AE16)+($J16-INT($J16))*VLOOKUP($J16+1,INDIRECT(OFFSET(AnnFactGenImpHighBal!$A$1,C16,0,1,1)),$AE16)) -> 10.84141601 | AA16: =IF(H16=0,0,((INT($J16)+1-$J16)*VLOOKUP($J16,INDIRECT(OFFSET(AnnFactGenImpLowBal!$A$1,0,0,1,1)),$AF16)+($J16-INT($J16))*VLOOKUP($J16+1,INDIRECT(OFFSET(AnnFactGenImpLowBal!$A$1,0,0,1,1)),$AF16))) -> 0.4692382354 | AB16: =IF(H16=0,0,((INT($J16)+1-$J16)*VLOOKUP($J16,INDIRECT(OFFSET(AnnFactGenImpHighBal!$A$1,0,0,1,1)),$AF16)+($J16-INT($J16))*VLOOKUP($J16+1,INDIRECT(OFFSET(AnnFactGenImpHighBal!$A$1,0,0,1,1)),$AF16))) -> 0.4074291722 | AC16: 1 | AE16: 11 | AF16: 13 | AG16: 6
A17: 7 | D17: M | E17: 1954-07-10 | G17: 2019-05-01 | H17: 193185.3661 | I17: 150000 | J17: =(PARAMS!$B$5-E17)/365.25 -> 66.48049281 | K17: 14.6388636 | L17: 1099.73 | P17: 0.004150375144 | Q17: 0.01822785968 | U17: 0.02394125538 | V17: 0.01596083692 | W17: 9.802154276 | X17: 0.4255254997 | Y17: =((INT($J17)+1-$J17)*VLOOKUP($J17,INDIRECT(OFFSET(AnnFactGenImpLowBal!$A$1,C17,0,1,1)),$AE17)+($J17-INT($J17))*VLOOKUP($J17+1,INDIRECT(OFFSET(AnnFactGenImpLowBal!$A$1,C17,0,1,1)),$AE17)) -> 8.989306275 | Z17: =((INT($J17)+1-$J17)*VLOOKUP($J17,INDIRECT(OFFSET(AnnFactGenImpHighBal!$A$1,C17,0,1,1)),$AE17)+($J17-INT($J17))*VLOOKUP($J17+1,INDIRECT(OFFSET(AnnFactGenImpHighBal!$A$1,C17,0,1,1)),$AE17)) -> 10.12468487 | AA17: =IF(H17=0,0,((INT($J17)+1-$J17)*VLOOKUP($J17,INDIRECT(OFFSET(AnnFactGenImpLowBal!$A$1,0,0,1,1)),$AF17)+($J17-INT($J17))*VLOOKUP($J17+1,INDIRECT(OFFSET(AnnFactGenImpLowBal!$A$1,0,0,1,1)),$AF17))) -> 0.471364906 | AB17: =IF(H17=0,0,((INT($J17)+1-$J17)*VLOOKUP($J17,INDIRECT(OFFSET(AnnFactGenImpHighBal!$A$1,0,0,1,1)),$AF17)+($J17-INT($J17))*VLOOKUP($J17+1,INDIRECT(OFFSET(AnnFactGenImpHighBal!$A$1,0,0,1,1)),$AF17))) -> 0.4073368456 | AC17: 0.7159268307 | AE17: 7 | AF17: 12 | AG17: 2
A18: 8 | D18: M | E18: 1955-09-06 | G18: 2019-03-01 | H18: 0 | I18: 0 | J18: =(PARAMS!$B$5-E18)/365.25 -> 65.32238193 | K18: 9.349685717 | L18: 0 | M18: 0 | N18: 0 | O18: 0 | P18: 0.02175725904 | Q18: 0.02129396082 | U18: 0.02129396082 | V18: 0.01419597388 | W18: 9.349685717 | X18: 0 | Y18: =((INT($J18)+1-$J18)*VLOOKUP($J18,INDIRECT(OFFSET(AnnFactGenImpLowBal!$A$1,C18,0,1,1)),$AE18)+($J18-INT($J18))*VLOOKUP($J18+1,INDIRECT(OFFSET(AnnFactGenImpLowBal!$A$1,C18,0,1,1)),$AE18)) -> 9.349685717 | Z18: =((INT($J18)+1-$J18)*VLOOKUP($J18,INDIRECT(OFFSET(AnnFactGenImpHighBal!$A$1,C18,0,1,1)),$AE18)+($J18-INT($J18))*VLOOKUP($J18+1,INDIRECT(OFFSET(AnnFactGenImpHighBal!$A$1,C18,0,1,1)),$AE18)) -> 10.46457097 | AA18: =IF(H18=0,0,((INT($J18)+1-$J18)*VLOOKUP($J18,INDIRECT(OFFSET(AnnFactGenImpLowBal!$A$1,0,0,1,1)),$AF18)+($J18-INT($J18))*VLOOKUP($J18+1,INDIRECT(OFFSET(AnnFactGenImpLowBal!$A$1,0,0,1,1)),$AF18))) -> 0 | AB18: =IF(H18=0,0,((INT($J18)+1-$J18)*VLOOKUP($J18,INDIRECT(OFFSET(AnnFactGenImpHighBal!$A$1,0,0,1,1)),$AF18)+($J18-INT($J18))*VLOOKUP($J18+1,INDIRECT(OFFSET(AnnFactGenImpHighBal!$A$1,0,0,1,1)),$AF18))) -> 0 | AC18: 0 | AE18: 7 | AF18: 12 | AG18: 2
A19: 9 | D19: M | E19: 1956-04-16 | G19: 2019-07-01 | H19: 83215.9926 | I19: 30000 | J19: =(PARAMS!$B$5-E19)/365.25 -> 64.7118412 | K19: 11.50605076 | L19: 602.7 | P19: 0.01242322507 | Q19: 0.01905649304 | U19: 0.0201732859 | V19: 0.01344885727 | W19: 9.72016055 | X19: 0.4305405029 | Y19: =((INT($J19)+1-$J19)*VLOOKUP($J19,INDIRECT(OFFSET(AnnFactGenImpLowBal!$A$1,C19,0,1,1)),$AE19)+($J19-INT($J19))*VLOOKUP($J19+1,INDIRECT(OFFSET(AnnFactGenImpLowBal!$A$1,C19,0,1,1)),$AE19)) -> 9.536939633 | Z19: =((INT($J19)+1-$J19)*VLOOKUP($J19,INDIRECT(OFFSET(AnnFactGenImpHighBal!$A$1,C19,0,1,1)),$AE19)+($J19-INT($J19))*VLOOKUP($J19+1,INDIRECT(OFFSET(AnnFactGenImpHighBal!$A$1,C19,0,1,1)),$AE19)) -> 10.64014868 | AA19: =IF(H19=0,0,((INT($J19)+1-$J19)*VLOOKUP($J19,INDIRECT(OFFSET(AnnFactGenImpLowBal!$A$1,0,0,1,1)),$AF19)+($J19-INT($J19))*VLOOKUP($J19+1,INDIRECT(OFFSET(AnnFactGenImpLowBal!$A$1,0,0,1,1)),$AF19))) -> 0.4408694262 | AB19: =IF(H19=0,0,((INT($J19)+1-$J19)*VLOOKUP($J19,INDIRECT(OFFSET(AnnFactGenImpHighBal!$A$1,0,0,1,1)),$AF19)+($J19-INT($J19))*VLOOKUP($J19+1,INDIRECT(OFFSET(AnnFactGenImpHighBal!$A$1,0,0,1,1)),$AF19))) -> 0.378676955 | AC19: 0.166079963 | AE19: 7 | AF19: 12 | AG19: 2
A20: 10 | D20: M | E20: 1958-05-04 | G20: 2019-11-01 | H20: 54895.49104 | I20: 40000 | J20: =(PARAMS!$B$5-E20)/365.25 -> 62.66392882 | K20: 14.45383381 | L20: 316.5 | M20: 12 | N20: 12 | O20: 40000 | P20: 0.004880365075 | Q20: 0.01766820227 | U20: 0.01781354569 | V20: 0.01187569713 | W20: 10.16749658 | X20: 0.4069864616 | Y20: =((INT($J20)+1-$J20)*VLOOKUP($J20,INDIRECT(OFFSET(AnnFactGenImpLowBal!$A$1,C20,0,1,1)),$AE20)+($J20-INT($J20))*VLOOKUP($J20+1,INDIRECT(OFFSET(AnnFactGenImpLowBal!$A$1,C20,0,1,1)),$AE20)) -> 10.14149688 | Z20: =((INT($J20)+1-$J20)*VLOOKUP($J20,INDIRECT(OFFSET(AnnFactGenImpHighBal!$A$1,C20,0,1,1)),$AE20)+($J20-INT($J20))*VLOOKUP($J20+1,INDIRECT(OFFSET(AnnFactGenImpHighBal!$A$1,C20,0,1,1)),$AE20)) -> 11.20368621 | AA20: =IF(H20=0,0,((INT($J20)+1-$J20)*VLOOKUP($J20,INDIRECT(OFFSET(AnnFactGenImpLowBal!$A$1,0,0,1,1)),$AF20)+($J20-INT($J20))*VLOOKUP($J20+1,INDIRECT(OFFSET(AnnFactGenImpLowBal!$A$1,0,0,1,1)),$AF20))) -> 0.4084618969 | AB20: =IF(H20=0,0,((INT($J20)+1-$J20)*VLOOKUP($J20,INDIRECT(OFFSET(AnnFactGenImpHighBal!$A$1,0,0,1,1)),$AF20)+($J20-INT($J20))*VLOOKUP($J20+1,INDIRECT(OFFSET(AnnFactGenImpHighBal!$A$1,0,0,1,1)),$AF20))) -> 0.348184582 | AC20: 0.02447745519 | AE20: 7 | AF20: 12 | AG20: 2
A21: 11 | D21: M | E21: 1959-03-02 | G21: 2019-11-01 | H21: 38003.68435 | I21: 30000 | J21: =(PARAMS!$B$5-E21)/365.25 -> 61.83709788 | K21: 15.09786035 | L21: 209.76 | P21: 0.003738484733 | Q21: 0.01744173462 | U21: 0.01744173462 | V21: 0.01162782308 | W21: 10.37162451 | X21: 0.3965559158 | Y21: =((INT($J21)+1-$J21)*VLOOKUP($J21,INDIRECT(OFFSET(AnnFactGenImpLowBal!$A$1,C21,0,1,1)),$AE21)+($J21-INT($J21))*VLOOKUP($J21+1,INDIRECT(OFFSET(AnnFactGenImpLowBal!$A$1,C21,0,1,1)),$AE21)) -> 10.37162451 | Z21: =((INT($J21)+1-$J21)*VLOOKUP($J21,INDIRECT(OFFSET(AnnFactGenImpHighBal!$A$1,C21,0,1,1)),$AE21)+($J21-INT($J21))*VLOOKUP($J21+1,INDIRECT(OFFSET(AnnFactGenImpHighBal!$A$1,C21,0,1,1)),$AE21)) -> 11.41765747 | AA21: =IF(H21=0,0,((INT($J21)+1-$J21)*VLOOKUP($J21,INDIRECT(OFFSET(AnnFactGenImpLowBal!$A$1,0,0,1,1)),$AF21)+($J21-INT($J21))*VLOOKUP($J21+1,INDIRECT(OFFSET(AnnFactGenImpLowBal!$A$1,0,0,1,1)),$AF21))) -> 0.3965559158 | AB21: =IF(H21=0,0,((INT($J21)+1-$J21)*VLOOKUP($J21,INDIRECT(OFFSET(AnnFactGenImpHighBal!$A$1,0,0,1,1)),$AF21)+($J21-INT($J21))*VLOOKUP($J21+1,INDIRECT(OFFSET(AnnFactGenImpHighBal!$A$1,0,0,1,1)),$AF21))) -> 0.3368975173 | AC21: 0 | AE21: 7 | AF21: 12 | AG21: 2
A22: 12 | C22: 1 | D22: JF | E22: 1959-05-08 | G22: 2020-01-01 | H22: 95260.25 | I22: 95000 | J22: =(PARAMS!$B$5-E22)/365.25 -> 61.65366188 | K22: 20.07816818 | L22: 395.37 | P22: =(Q22*(1-I22/MAX(H22,1)))/(1-Q22) -> 2.254539929e-05 | Q22: =U22*(1-AC22)+V22*AC22 -> 0.008184829872 | U22: 0.008930882716 | V22: 0.005634158355 | W22: =(Y22*(1-AC22)+Z22*AC22) -> 13.251891 | X22: =AA22*(1-AC22)+AB22*AC22 -> 0.3409164384 | Y22: =((INT($J22)+1-$J22)*VLOOKUP($J22,INDIRECT(OFFSET(AnnFactGenImpLowBal!$A$1,C22,0,1,1)),$AE22)+($J22-INT($J22))*VLOOKUP($J22+1,INDIRECT(OFFSET(AnnFactGenImpLowBal!$A$1,C22,0,1,1)),$AE22)) -> 12.98477247 | Z22: =((INT($J22)+1-$J22)*VLOOKUP($J22,INDIRECT(OFFSET(AnnFactGenImpHighBal!$A$1,C22,0,1,1)),$AE22)+($J22-INT($J22))*VLOOKUP($J22+1,INDIRECT(OFFSET(AnnFactGenImpHighBal!$A$1,C22,0,1,1)),$AE22)) -> 14.16513948 | AA22: =IF(H22=0,0,((INT($J22)+1-$J22)*VLOOKUP($J22,INDIRECT(OFFSET(AnnFactGenImpLowBal!$A$1,0,0,1,1)),$AF22)+($J22-INT($J22))*VLOOKUP($J22+1,INDIRECT(OFFSET(AnnFactGenImpLowBal!$A$1,0,0,1,1)),$AF22))) -> 0.3534975043 | AB22: =IF(H22=0,0,((INT($J22)+1-$J22)*VLOOKUP($J22,INDIRECT(OFFSET(AnnFactGenImpHighBal!$A$1,0,0,1,1)),$AF22)+($J22-INT($J22))*VLOOKUP($J22+1,INDIRECT(OFFSET(AnnFactGenImpHighBal!$A$1,0,0,1,1)),$AF22))) -> 0.2979031764 | AC22: =IFERROR((MIN(HighBal,MAX(H22,LowBal))-LowBal)/(HighBal-LowBal),0) -> 0.22630125 | AE22: =IF(UPPER(D22)="JM",10,IF(UPPER(D22)="JF",11,IF(UPPER(D22)="M",7,IF(UPPER(D22)="F",8,9)))) -> 11 | AF22: =IF(UPPER(D22)="JM",12,IF(UPPER(D22)="JF",13,IF(UPPER(D22)="M",12,IF(UPPER(D22)="F",13,14)))) -> 13 | AG22: =IF(UPPER(D22)="JM",5,IF(UPPER(D22)="JF",6,IF(UPPER(D22)="M",2,IF(UPPER(D22)="F",3,4)))) -> 6
A23: 13 | D23: M | E23: 1958-08-19 | G23: 2020-04-01 | H23: 141860.0528 | I23: 60000 | J23: =(PARAMS!$B$5-E23)/365.25 -> 62.37097878 | K23: 12.73807255 | L23: 928.06 | P23: 0.008757779315 | Q23: 0.01494997208 | U23: 0.01765258429 | V23: 0.01176838953 | W23: 10.7091504 | X23: 0.3765915168 | Y23: =((INT($J23)+1-$J23)*VLOOKUP($J23,INDIRECT(OFFSET(AnnFactGenImpLowBal!$A$1,C23,0,1,1)),$AE23)+($J23-INT($J23))*VLOOKUP($J23+1,INDIRECT(OFFSET(AnnFactGenImpLowBal!$A$1,C23,0,1,1)),$AE23)) -> 10.22395378 | Z23: =((INT($J23)+1-$J23)*VLOOKUP($J23,INDIRECT(OFFSET(AnnFactGenImpHighBal!$A$1,C23,0,1,1)),$AE23)+($J23-INT($J23))*VLOOKUP($J23+1,INDIRECT(OFFSET(AnnFactGenImpHighBal!$A$1,C23,0,1,1)),$AE23)) -> 11.28033597 | AA23: =IF(H23=0,0,((INT($J23)+1-$J23)*VLOOKUP($J23,INDIRECT(OFFSET(AnnFactGenImpLowBal!$A$1,0,0,1,1)),$AF23)+($J23-INT($J23))*VLOOKUP($J23+1,INDIRECT(OFFSET(AnnFactGenImpLowBal!$A$1,0,0,1,1)),$AF23))) -> 0.4041708738 | AB23: =IF(H23=0,0,((INT($J23)+1-$J23)*VLOOKUP($J23,INDIRECT(OFFSET(AnnFactGenImpHighBal!$A$1,0,0,1,1)),$AF23)+($J23-INT($J23))*VLOOKUP($J23+1,INDIRECT(OFFSET(AnnFactGenImpHighBal!$A$1,0,0,1,1)),$AF23))) -> 0.3441244094 | AC23: 0.4593002641 | AE23: 7 | AF23: 12 | AG23: 2
A24: 14 | D24: F | E24: 1960-09-01 | G24: 2020-08-01 | H24: 100904.5704 | I24: 50000 | J24: =(PARAMS!$B$5-E24)/365.25 -> 60.3340178 | K24: 13.94691516 | L24: 602.91 | P24: 0.006204249282 | Q24: 0.01214884005 | U24: 0.01327511329 | V24: 0.008850075524 | W24: 11.71651025 | X24: 0.3227352371 | Y24: =((INT($J24)+1-$J24)*VLOOKUP($J24,INDIRECT(OFFSET(AnnFactGenImpLowBal!$A$1,C24,0,1,1)),$AE24)+($J24-INT($J24))*VLOOKUP($J24+1,INDIRECT(OFFSET(AnnFactGenImpLowBal!$A$1,C24,0,1,1)),$AE24)) -> 11.47849617 | Z24: =((INT($J24)+1-$J24)*VLOOKUP($J24,INDIRECT(OFFSET(AnnFactGenImpHighBal!$A$1,C24,0,1,1)),$AE24)+($J24-INT($J24))*VLOOKUP($J24+1,INDIRECT(OFFSET(AnnFactGenImpHighBal!$A$1,C24,0,1,1)),$AE24)) -> 12.41363455 | AA24: =IF(H24=0,0,((INT($J24)+1-$J24)*VLOOKUP($J24,INDIRECT(OFFSET(AnnFactGenImpLowBal!$A$1,0,0,1,1)),$AF24)+($J24-INT($J24))*VLOOKUP($J24+1,INDIRECT(OFFSET(AnnFactGenImpLowBal!$A$1,0,0,1,1)),$AF24))) -> 0.3365551128 | AB24: =IF(H24=0,0,((INT($J24)+1-$J24)*VLOOKUP($J24,INDIRECT(OFFSET(AnnFactGenImpHighBal!$A$1,0,0,1,1)),$AF24)+($J24-INT($J24))*VLOOKUP($J24+1,INDIRECT(OFFSET(AnnFactGenImpHighBal!$A$1,0,0,1,1)),$AF24))) -> 0.2822579224 | AC24: 0.254522852 | AE24: 8 | AF24: 13 | AG24: 3
A25: 15 | D25: M | E25: 1948-08-01 | G25: 2020-11-01 | H25: 91214.35 | I25: 91558.04 | J25: =(PARAMS!$B$5-E25)/365.25 -> 72.41889117 | K25: 17.09906193 | L25: 444.54 | P25: -0.0001770508212 | Q25: 0.04487993169 | U25: 0.04819014055 | V25: 0.03212676037 | W25: 7.41955167 | X25: 0.563959322 | Y25: =((INT($J25)+1-$J25)*VLOOKUP($J25,INDIRECT(OFFSET(AnnFactGenImpLowBal!$A$1,C25,0,1,1)),$AE25)+($J25-INT($J25))*VLOOKUP($J25+1,INDIRECT(OFFSET(AnnFactGenImpLowBal!$A$1,C25,0,1,1)),$AE25)) -> 7.178146006 | Z25: =((INT($J25)+1-$J25)*VLOOKUP($J25,INDIRECT(OFFSET(AnnFactGenImpHighBal!$A$1,C25,0,1,1)),$AE25)+($J25-INT($J25))*VLOOKUP($J25+1,INDIRECT(OFFSET(AnnFactGenImpHighBal!$A$1,C25,0,1,1)),$AE25)) -> 8.34961014 | AA25: =IF(H25=0,0,((INT($J25)+1-$J25)*VLOOKUP($J25,INDIRECT(OFFSET(AnnFactGenImpLowBal!$A$1,0,0,1,1)),$AF25)+($J25-INT($J25))*VLOOKUP($J25+1,INDIRECT(OFFSET(AnnFactGenImpLowBal!$A$1,0,0,1,1)),$AF25))) -> 0.5780453116 | AB25: =IF(H25=0,0,((INT($J25)+1-$J25)*VLOOKUP($J25,INDIRECT(OFFSET(AnnFactGenImpHighBal!$A$1,0,0,1,1)),$AF25)+($J25-INT($J25))*VLOOKUP($J25+1,INDIRECT(OFFSET(AnnFactGenImpHighBal!$A$1,0,0,1,1)),$AF25))) -> 0.5096905296 | AC25: 0.20607175 | AE25: 7 | AF25: 12 | AG25: 2

Sheet NewRetirees
M8: Deceased
B9: start period | C9: =BOYRetirees!C9 -> COLA | D9: =BOYRetirees!D9 -> Sex | E9: =BOYRetirees!E9 -> DOB | F9: =BOYRetirees!F9 -> DOBB | G9: =BOYRetirees!G9 -> DOR | H9: =BOYRetirees!H9 -> BOY Balance | I9: =BOYRetirees!I9 -> Death Benefit (Life Ins) | J9: =BOYRetirees!J9 -> AGE | K9: =BOYRetirees!K9 -> BOY AnnFactAdj | L9: =BOYRetirees!L9 -> Ann Amount | M9: =BOYRetirees!M9 -> stop withdrawal after period | N9: =BOYRetirees!N9 -> pay death benefit in period | O9: death benefit | P9: qx/(1-qx) | Q9: qx (prorate) | U9: =BOYRetirees!U9 -> qlowbal | V9: =BOYRetirees!V9 -> qhighbal | W9: =BOYRetirees!W9 -> A | X9: =BOYRetirees!X9 -> LifeFact | Y9: =BOYRetirees!Y9 -> Alowbal | Z9: =BOYRetirees!Z9 -> Ahighbal | AA9: =BOYRetirees!AA9 -> Lifelowbal | AB9: =BOYRetirees!AB9 -> Lifehighbal | AC9: =BOYRetirees!AC9 -> Low-High Inter
A10: 1 | B10: 2 | C10: =A10+2 -> 3 | D10: =C10+1 -> 4 | E10: =D10+1 -> 5 | F10: 6 | G10: 7 | H10: 8 | I10: 9 | J10: =I10+1 -> 10 | K10: =J10+1 -> 11 | L10: =K10+1 -> 12 | M10: =L10+1 -> 13 | N10: =M10+1 -> 14 | O10: =N10+1 -> 15 | P10: =O10+1 -> 16 | Q10: =P10+1 -> 17 | AE10: Position in Actuarial Table
A11: 1 | B11: =INT((MONTH(G11)-1)/(12/PARAMS!$B$2))+1 -> 1 | D11: F | E11: 1961-06-25 | G11: 2021-01-01 | H11: 175000 | I11: 0 | J11: =(G11-E11)/365.25 -> 59.52087611 | K11: =IF(H11>0,W11/(1-X11*I11/H11),W11) -> 12.23616171 | L11: =ROUND(H11/(K11*NumPeriods),2) -> 1191.82 | P11: =(Q11*(1-I11/MAX(H11,1)))/(1-Q11) -> 0.01103902378 | Q11: =(V11*(1-AC11)+U11*AC11)*(PARAMS!$B$2-B11+1)/PARAMS!$B$2 -> 0.01091849426 | U11: =(INT($J11)+1-$J11)*VLOOKUP($J11,AnnTableGenImpLowBal,AG11)+($J11-INT($J11))*VLOOKUP($J11+1,AnnTableGenImpLowBal,AG11) -> 0.01247827916 | V11: =(INT($J11)+1-$J11)*VLOOKUP($J11,AnnTableGenImpHighBal,AG11)+($J11-INT($J11))*VLOOKUP($J11+1,AnnTableGenImpHighBal,AG11) -> 0.008318852772 | W11: =(Y11*(1-AC11)+Z11*AC11) -> 12.23616171 | X11: =AA11*(1-AC11)+AB11*AC11 -> 0.2929577224 | Y11: =((INT($J11)+1-$J11)*VLOOKUP($J11,INDIRECT(OFFSET(AnnFactGenImpLowBal!$A$1,C11,0,1,1)),$AE11)+($J11-INT($J11))*VLOOKUP($J11+1,INDIRECT(OFFSET(AnnFactGenImpLowBal!$A$1,C11,0,1,1)),$AE11)) -> 11.66057215 | Z11: =((INT($J11)+1-$J11)*VLOOKUP($J11,INDIRECT(OFFSET(AnnFactGenImpHighBal!$A$1,C11,0,1,1)),$AE11)+($J11-INT($J11))*VLOOKUP($J11+1,INDIRECT(OFFSET(AnnFactGenImpHighBal!$A$1,C11,0,1,1)),$AE11)) -> 12.58151545 | AA11: =IF(H11=0,0,((INT($J11)+1-$J11)*VLOOKUP($J11,INDIRECT(OFFSET(AnnFactGenImpLowBal!$A$1,0,0,1,1)),$AF11)+($J11-INT($J11))*VLOOKUP($J11+1,INDIRECT(OFFSET(AnnFactGenImpLowBal!$A$1,0,0,1,1)),$AF11))) -> 0.3263596151 | AB11: =IF(H11=0,0,((INT($J11)+1-$J11)*VLOOKUP($J11,INDIRECT(OFFSET(AnnFactGenImpHighBal!$A$1,0,0,1,1)),$AF11)+($J11-INT($J11))*VLOOKUP($J11+1,INDIRECT(OFFSET(AnnFactGenImpHighBal!$A$1,0,0,1,1)),$AF11))) -> 0.2729165867 | AC11: =IFERROR((MIN(HighBal,MAX(H11,LowBal))-LowBal)/(HighBal-LowBal),0) -> 0.625 | AE11: =IF(UPPER(D11)="JM",10,IF(UPPER(D11)="JF",11,IF(UPPER(D11)="M",7,IF(UPPER(D11)="F",8,9)))) -> 8 | AF11: =IF(UPPER(D11)="JM",12,IF(UPPER(D11)="JF",13,IF(UPPER(D11)="M",12,IF(UPPER(D11)="F",13,14)))) -> 13 | AG11: =IF(UPPER(D11)="JM",5,IF(UPPER(D11)="JF",6,IF(UPPER(D11)="M",2,IF(UPPER(D11)="F",3,4)))) -> 3
A12: 2 | B12: =INT((MONTH(G12)-1)/(12/PARAMS!$B$2))+1 -> 1 | D12: M | E12: 1955-03-25 | G12: 2021-01-01 | H12: 105000 | I12: 40000 | J12: =(G12-E12)/365.25 -> 65.77412731 | K12: =IF(H12>0,W12/(1-X12*I12/H12),W12) -> 11.44366084 | L12: =ROUND(H12/(K12*NumPeriods),2) -> 764.62 | P12: =(Q12*(1-I12/MAX(H12,1)))/(1-Q12) -> 0.01061523712 | Q12: =(V12*(1-AC12)+U12*AC12)*(PARAMS!$B$2-B12+1)/PARAMS!$B$2 -> 0.0168586046 | U12: =(INT($J12)+1-$J12)*VLOOKUP($J12,AnnTableGenImpLowBal,AG12)+($J12-INT($J12))*VLOOKUP($J12+1,AnnTableGenImpLowBal,AG12) -> 0.02223112694 | V12: =(INT($J12)+1-$J12)*VLOOKUP($J12,AnnTableGenImpHighBal,AG12)+($J12-INT($J12))*VLOOKUP($J12+1,AnnTableGenImpHighBal,AG12) -> 0.01482075129 | W12: =(Y12*(1-AC12)+Z12*AC12) -> 9.518676339 | X12: =AA12*(1-AC12)+AB12*AC12 -> 0.4415618731 | Y12: =((INT($J12)+1-$J12)*VLOOKUP($J12,INDIRECT(OFFSET(AnnFactGenImpLowBal!$A$1,C12,0,1,1)),$AE12)+($J12-INT($J12))*VLOOKUP($J12+1,INDIRECT(OFFSET(AnnFactGenImpLowBal!$A$1,C12,0,1,1)),$AE12)) -> 9.20978185 | Z12: =((INT($J12)+1-$J12)*VLOOKUP($J12,INDIRECT(OFFSET(AnnFactGenImpHighBal!$A$1,C12,0,1,1)),$AE12)+($J12-INT($J12))*VLOOKUP($J12+1,INDIRECT(OFFSET(AnnFactGenImpHighBal!$A$1,C12,0,1,1)),$AE12)) -> 10.33303454 | AA12: =IF(H12=0,0,((INT($J12)+1-$J12)*VLOOKUP($J12,INDIRECT(OFFSET(AnnFactGenImpLowBal!$A$1,0,0,1,1)),$AF12)+($J12-INT($J12))*VLOOKUP($J12+1,INDIRECT(OFFSET(AnnFactGenImpLowBal!$A$1,0,0,1,1)),$AF12))) -> 0.4589678594 | AB12: =IF(H12=0,0,((INT($J12)+1-$J12)*VLOOKUP($J12,INDIRECT(OFFSET(AnnFactGenImpHighBal!$A$1,0,0,1,1)),$AF12)+($J12-INT($J12))*VLOOKUP($J12+1,INDIRECT(OFFSET(AnnFactGenImpHighBal!$A$1,0,0,1,1)),$AF12))) -> 0.3956733638 | AC12: =IFERROR((MIN(HighBal,MAX(H12,LowBal))-LowBal)/(HighBal-LowBal),0) -> 0.275 | AE12: =IF(UPPER(D12)="JM",10,IF(UPPER(D12)="JF",11,IF(UPPER(D12)="M",7,IF(UPPER(D12)="F",8,9)))) -> 7 | AF12: =IF(UPPER(D12)="JM",12,IF(UPPER(D12)="JF",13,IF(UPPER(D12)="M",12,IF(UPPER(D12)="F",13,14)))) -> 12 | AG12: =IF(UPPER(D12)="JM",5,IF(UPPER(D12)="JF",6,IF(UPPER(D12)="M",2,IF(UPPER(D12)="F",3,4)))) -> 2
A13: 3 | B13: 2 | D13: JM | E13: 1957-08-06 | G13: 2021-02-01 | H13: 310000 | I13: 0 | J13: =(G13-E13)/365.25 -> 63.49075975 | K13: 12.16514652 | L13: =ROUND(H13/(K13*NumPeriods),2) -> 2123.55 | P13: =(Q13*(1-I13/MAX(H13,1)))/(1-Q13) -> 0.01009752333 | Q13: =(V13*(1-AC13)+U13*AC13)*(PARAMS!$B$2-B13+1)/PARAMS!$B$2 -> 0.009996582608 | U13: =(INT($J13)+1-$J13)*VLOOKUP($J13,AnnTableGenImpLowBal,AG13)+($J13-INT($J13))*VLOOKUP($J13+1,AnnTableGenImpLowBal,AG13) -> 0.01090536284 | V13: =(INT($J13)+1-$J13)*VLOOKUP($J13,AnnTableGenImpHighBal,AG13)+($J13-INT($J13))*VLOOKUP($J13+1,AnnTableGenImpHighBal,AG13) -> 0.006945558408 | W13: =(Y13*(1-AC13)+Z13*AC13) -> 12.16514652 | X13: =AA13*(1-AC13)+AB13*AC13 -> 0.3600919284 | Y13: =((INT($J13)+1-$J13)*VLOOKUP($J13,INDIRECT(OFFSET(AnnFactGenImpLowBal!$A$1,C13,0,1,1)),$AE13)+($J13-INT($J13))*VLOOKUP($J13+1,INDIRECT(OFFSET(AnnFactGenImpLowBal!$A$1,C13,0,1,1)),$AE13)) -> 11.13751199 | Z13: =((INT($J13)+1-$J13)*VLOOKUP($J13,INDIRECT(OFFSET(AnnFactGenImpHighBal!$A$1,C13,0,1,1)),$AE13)+($J13-INT($J13))*VLOOKUP($J13+1,INDIRECT(OFFSET(AnnFactGenImpHighBal!$A$1,C13,0,1,1)),$AE13)) -> 12.16514652 | AA13: =IF(H13=0,0,((INT($J13)+1-$J13)*VLOOKUP($J13,INDIRECT(OFFSET(AnnFactGenImpLowBal!$A$1,0,0,1,1)),$AF13)+($J13-INT($J13))*VLOOKUP($J13+1,INDIRECT(OFFSET(AnnFactGenImpLowBal!$A$1,0,0,1,1)),$AF13))) -> 0.4210899381 | AB13: =IF(H13=0,0,((INT($J13)+1-$J13)*VLOOKUP($J13,INDIRECT(OFFSET(AnnFactGenImpHighBal!$A$1,0,0,1,1)),$AF13)+($J13-INT($J13))*VLOOKUP($J13+1,INDIRECT(OFFSET(AnnFactGenImpHighBal!$A$1,0,0,1,1)),$AF13))) -> 0.3600919284 | AC13: =IFERROR((MIN(HighBal,MAX(H13,LowBal))-LowBal)/(HighBal-LowBal),0) -> 1 | AE13: =IF(UPPER(D13)="JM",10,IF(UPPER(D13)="JF",11,IF(UPPER(D13)="M",7,IF(UPPER(D13)="F",8,9)))) -> 10 | AF13: =IF(UPPER(D13)="JM",12,IF(UPPER(D13)="JF",13,IF(UPPER(D13)="M",12,IF(UPPER(D13)="F",13,14)))) -> 12 | AG13: =IF(UPPER(D13)="JM",5,IF(UPPER(D13)="JF",6,IF(UPPER(D13)="M",2,IF(UPPER(D13)="F",3,4)))) -> 5
A14: 4 | B14: 3 | D14: F | E14: 1952-11-04 | G14: 2021-03-01 | H14: 35000 | I14: 35000 | J14: 68.32032854 | K14: 17.0627586 | L14: =ROUND(H14/(K14*NumPeriods),2) -> 170.94 | P14: 0 | Q14: =(V14*(1-AC14)+U14*AC14)*(PARAMS!$B$2-B14+1)/PARAMS!$B$2 -> 0.01182761165 | U14: =(INT($J14)+1-$J14)*VLOOKUP($J14,AnnTableGenImpLowBal,AG14)+($J14-INT($J14))*VLOOKUP($J14+1,AnnTableGenImpLowBal,AG14) -> 0.02128970098 | V14: =(INT($J14)+1-$J14)*VLOOKUP($J14,AnnTableGenImpHighBal,AG14)+($J14-INT($J14))*VLOOKUP($J14+1,AnnTableGenImpHighBal,AG14) -> 0.01419313398 | W14: 9.380987885 | X14: 0.4502068448 | Y14: =((INT($J14)+1-$J14)*VLOOKUP($J14,INDIRECT(OFFSET(AnnFactGenImpLowBal!$A$1,C14,0,1,1)),$AE14)+($J14-INT($J14))*VLOOKUP($J14+1,INDIRECT(OFFSET(AnnFactGenImpLowBal!$A$1,C14,0,1,1)),$AE14)) -> 9.380987885 | Z14: =((INT($J14)+1-$J14)*VLOOKUP($J14,INDIRECT(OFFSET(AnnFactGenImpHighBal!$A$1,C14,0,1,1)),$AE14)+($J14-INT($J14))*VLOOKUP($J14+1,INDIRECT(OFFSET(AnnFactGenImpHighBal!$A$1,C14,0,1,1)),$AE14)) -> 10.44130533 | AA14: =IF(H14=0,0,((INT($J14)+1-$J14)*VLOOKUP($J14,INDIRECT(OFFSET(AnnFactGenImpLowBal!$A$1,0,0,1,1)),$AF14)+($J14-INT($J14))*VLOOKUP($J14+1,INDIRECT(OFFSET(AnnFactGenImpLowBal!$A$1,0,0,1,1)),$AF14))) -> 0.4502068448 | AB14: =IF(H14=0,0,((INT($J14)+1-$J14)*VLOOKUP($J14,INDIRECT(OFFSET(AnnFactGenImpHighBal!$A$1,0,0,1,1)),$AF14)+($J14-INT($J14))*VLOOKUP($J14+1,INDIRECT(OFFSET(AnnFactGenImpHighBal!$A$1,0,0,1,1)),$AF14))) -> 0.389403875 | AC14: =IFERROR((MIN(HighBal,MAX(H14,LowBal))-LowBal)/(HighBal-LowBal),0) -> 0 | AE14: 8 | AF14: 13 | AG14: 3
A15: 5 | B15: 12 | D15: M | E15: 1955-08-02 | G15: 2021-12-01 | H15: 127000 | I15: 20000 | J15: 66.33264887 | K15: =IF(H15>0,W15/(1-X15*I15/H15),W15) -> 10.18413765 | L15: =ROUND(H15/(K15*NumPeriods),2) -> 1039.2 | P15: =(Q15*(1-I15/MAX(H15,1)))/(1-Q15) -> 0.001317060176 | Q15: =(V15*(1-AC15)+U15*AC15)*(PARAMS!$B$2-B15+1)/PARAMS!$B$2 -> 0.001560799744 | U15: =(INT($J15)+1-$J15)*VLOOKUP($J15,AnnTableGenImpLowBal,AG15)+($J15-INT($J15))*VLOOKUP($J15+1,AnnTableGenImpLowBal,AG15) -> 0.02355924142 | V15: =(INT($J15)+1-$J15)*VLOOKUP($J15,AnnTableGenImpHighBal,AG15)+($J15-INT($J15))*VLOOKUP($J15+1,AnnTableGenImpHighBal,AG15) -> 0.01570616094 | W15: =(Y15*(1-AC15)+Z15*AC15) -> 9.471801157 | X15: =AA15*(1-AC15)+AB15*AC15 -> 0.4441551039 | Y15: =((INT($J15)+1-$J15)*VLOOKUP($J15,INDIRECT(OFFSET(AnnFactGenImpLowBal!$A$1,C15,0,1,1)),$AE15)+($J15-INT($J15))*VLOOKUP($J15+1,INDIRECT(OFFSET(AnnFactGenImpLowBal!$A$1,C15,0,1,1)),$AE15)) -> 9.035621241 | Z15: =((INT($J15)+1-$J15)*VLOOKUP($J15,INDIRECT(OFFSET(AnnFactGenImpHighBal!$A$1,C15,0,1,1)),$AE15)+($J15-INT($J15))*VLOOKUP($J15+1,INDIRECT(OFFSET(AnnFactGenImpHighBal!$A$1,C15,0,1,1)),$AE15)) -> 10.16855609 | AA15: =IF(H15=0,0,((INT($J15)+1-$J15)*VLOOKUP($J15,INDIRECT(OFFSET(AnnFactGenImpLowBal!$A$1,0,0,1,1)),$AF15)+($J15-INT($J15))*VLOOKUP($J15+1,INDIRECT(OFFSET(AnnFactGenImpLowBal!$A$1,0,0,1,1)),$AF15))) -> 0.4687470045 | AB15: =IF(H15=0,0,((INT($J15)+1-$J15)*VLOOKUP($J15,INDIRECT(OFFSET(AnnFactGenImpHighBal!$A$1,0,0,1,1)),$AF15)+($J15-INT($J15))*VLOOKUP($J15+1,INDIRECT(OFFSET(AnnFactGenImpHighBal!$A$1,0,0,1,1)),$AF15))) -> 0.404871938 | AC15: =IFERROR((MIN(HighBal,MAX(H15,LowBal))-LowBal)/(HighBal-LowBal),0) -> 0.385 | AE15: =IF(UPPER(D15)="JM",10,IF(UPPER(D15)="JF",11,IF(UPPER(D15)="M",7,IF(UPPER(D15)="F",8,9)))) -> 7 | AF15: =IF(UPPER(D15)="JM",12,IF(UPPER(D15)="JF",13,IF(UPPER(D15)="M",12,IF(UPPER(D15)="F",13,14)))) -> 12 | AG15: =IF(UPPER(D15)="JM",5,IF(UPPER(D15)="JF",6,IF(UPPER(D15)="M",2,IF(UPPER(D15)="F",3,4)))) -> 2

Sheet EOYRetirees
A2: BONYB | B2: =SUM(OFFSET(H11,0,0,PARAMS!$B$8,1)) -> 1760467.863 | T2: NewRet
T3: BOYRet
N8: Increase from BOY Annuity Due to
C9: =BOYRetirees!C9 -> COLA | D9: =BOYRetirees!D9 -> Sex | E9: =BOYRetirees!E9 -> DOB | F9: =BOYRetirees!F9 -> DOBB | G9: =BOYRetirees!G9 -> DOR | H9: BONY Balance | I9: =BOYRetirees!I9 -> Death Benefit (Life Ins) | J9: =BOYRetirees!J9 -> AGE | K9: BONY AnnFactAdj | L9: BONY Ann Amount | N9: Longevity Gain | O9: Investment Gain | P9: Assumption change | Q9: Assumption change | S9: port of year | T9: qBOY | U9: ABOY | V9: LIfeBOY | W9: =BOYRetirees!W9 -> A | X9: =BOYRetirees!X9 -> LifeFact | Y9: =BOYRetirees!Y9 -> Alowbal | Z9: =BOYRetirees!Z9 -> Ahighbal | AA9: =BOYRetirees!AA9 -> Lifelowbal | AB9: =BOYRetirees!AB9 -> Lifehighbal | AC9: =BOYRetirees!AC9 -> Low-High Inter
A10: 1 | B10: =A10+1 -> 2 | C10: =B10+1 -> 3 | D10: =C10+1 -> 4 | E10: =D10+1 -> 5 | F10: =E10+1 -> 6 | G10: 7 | H10: 8 | I10: 9 | J10: 10 | K10: 11 | L10: 12 | P10: annuity | Q10: life
A11: =BOYRetirees!A11 -> 1 | C11: =IF(VLOOKUP($A11,INDIRECT(IF($B11>0,$T$2,$T$3)),C$10)<>"",VLOOKUP($A11,INDIRECT(IF($B11>0,$T$2,$T$3)),C$10),0) -> 0 | D11: =VLOOKUP($A11,INDIRECT(IF($B11>0,$T$2,$T$3)),D$10) -> U | E11: =VLOOKUP($A11,INDIRECT(IF($B11>0,$T$2,$T$3)),E$10) -> 1950-06-01 | F11: =IF(VLOOKUP($A11,INDIRECT(IF($B11>0,$T$2,$T$3)),F$10)<>"",VLOOKUP($A11,INDIRECT(IF($B11>0,$T$2,$T$3)),F$10),"") ->  | G11: =VLOOKUP($A11,INDIRECT(IF($B11>0,$T$2,$T$3)),G$10) -> 2018-11-01 | H11: =PeriodBal!CG11 -> 307983.2515 | I11: =VLOOKUP($A11,INDIRECT(IF($B11>0,$T$2,$T$3)),I$10) -> 275000 | J11: =(PARAMS!$B$6-E11)/365.25 -> 71.58658453 | K11: =IF(H11>0,W11/(1-X11*I11/H11),W11) -> 15.56551055 | L11: =ROUND(H11/(K11*NumPeriods),2) -> 1648.86 | M11: =BOYRetirees!L11+SUM(N11:Q11) -> 1646.68205 | N11: =PeriodBal!CK11/(W11*NumPeriods) -> 48.29252523 | O11: =IF(H11>0,PeriodBal!CL11/(W11*NumPeriods),0) -> -73.09818392 | P11: =IF(H11>0, L11- H11/((((U11-(1-S11*T11)/(1+(infl_rate+rf_rate)*S11/2))*(1+(infl_rate+rf_rate)*S11))/(1-T11*S11))/(1-X11*I11/H11)*NumPeriods),0) -> 4.38303318 | Q11: =IF(I11>0,L11-H11/(IF(H11>0,W11/ (1-((V11-T11*S11)*(1+(infl_rate+rf_rate)*S11)/(1-T11*S11))*I11/H11),1)*NumPeriods),0) -> -4.045324459 | S11: =MIN((PARAMS!$B$2-B11+1)/PARAMS!$B$2,1) -> 1 | T11: =VLOOKUP(A11,INDIRECT(IF($B11>0,$T$2,$T$3)),17) -> 0.02206558857 | U11: =VLOOKUP($A11,INDIRECT(IF($B11>0,$T$2,$T$3)),25)*(1-VLOOKUP($A11,INDIRECT(IF($B11>0,$T$2,$T$3)),29))+VLOOKUP($A11,INDIRECT(IF($B11>0,$T$2,$T$3)),26)*VLOOKUP($A11,INDIRECT(IF($B11>0,$T$2,$T$3)),29) -> 9.3105317 | V11: =VLOOKUP($A11,INDIRECT(IF($B11>0,$T$2,$T$3)),27)*(1-VLOOKUP($A11,INDIRECT(IF($B11>0,$T$2,$T$3)),29))+VLOOKUP($A11,INDIRECT(IF($B11>0,$T$2,$T$3)),28)*VLOOKUP($A11,INDIRECT(IF($B11>0,$T$2,$T$3)),29) -> 0.4538420331 | W11: =(Y11*(1-AC11)+Z11*AC11) -> 9.038656242 | X11: =AA11*(1-AC11)+AB11*AC11 -> 0.4696074242 | Y11: =((INT($J11)+1-$J11)*VLOOKUP($J11,INDIRECT(OFFSET(AnnFactGenImpLowBal!$A$1,C11,0,1,1)),$AE11)+($J11-INT($J11))*VLOOKUP($J11+1,INDIRECT(OFFSET(AnnFactGenImpLowBal!$A$1,C11,0,1,1)),$AE11)) -> 7.900346258 | Z11: =((INT($J11)+1-$J11)*VLOOKUP($J11,INDIRECT(OFFSET(AnnFactGenImpHighBal!$A$1,C11,0,1,1)),$AE11)+($J11-INT($J11))*VLOOKUP($J11+1,INDIRECT(OFFSET(AnnFactGenImpHighBal!$A$1,C11,0,1,1)),$AE11)) -> 9.038656242 | AA11: =IF(H11=0,0,((INT($J11)+1-$J11)*VLOOKUP($J11,INDIRECT(OFFSET(AnnFactGenImpLowBal!$A$1,0,0,1,1)),$AF11)+($J11-INT($J11))*VLOOKUP($J11+1,INDIRECT(OFFSET(AnnFactGenImpLowBal!$A$1,0,0,1,1)),$AF11))) -> 0.5357809254 | AB11: =IF(H11=0,0,((INT($J11)+1-$J11)*VLOOKUP($J11,INDIRECT(OFFSET(AnnFactGenImpHighBal!$A$1,0,0,1,1)),$AF11)+($J11-INT($J11))*VLOOKUP($J11+1,INDIRECT(OFFSET(AnnFactGenImpHighBal!$A$1,0,0,1,1)),$AF11))) -> 0.4696074242 | AC11: =IFERROR((MIN(HighBal,MAX(H11,LowBal))-LowBal)/(HighBal-LowBal),0) -> 1 | AE11: =IF(UPPER(D11)="JM",23,IF(UPPER(D11)="JF",24,IF(UPPER(D11)="M",20,IF(UPPER(D11)="F",21,22)))) -> 22 | AF11: =IF(UPPER(D11)="JM",25,IF(UPPER(D11)="JF",26,IF(UPPER(D11)="M",25,IF(UPPER(D11)="F",26,27)))) -> 27
A12: =BOYRetirees!A12 -> 2 | C12: =IF(VLOOKUP($A12,INDIRECT(IF($B12>0,$T$2,$T$3)),C$10)<>"",VLOOKUP($A12,INDIRECT(IF($B12>0,$T$2,$T$3)),C$10),0) -> 0 | D12: =VLOOKUP($A12,INDIRECT(IF($B12>0,$T$2,$T$3)),D$10) -> F | E12: 1942-02-10 | F12: =IF(VLOOKUP($A12,INDIRECT(IF($B12>0,$T$2,$T$3)),F$10)<>"",VLOOKUP($A12,INDIRECT(IF($B12>0,$T$2,$T$3)),F$10),"") ->  | G12: =VLOOKUP($A12,INDIRECT(IF($B12>0,$T$2,$T$3)),G$10) -> 2012-06-01 | H12: =PeriodBal!CG12 -> 0 | I12: =VLOOKUP($A12,INDIRECT(IF($B12>0,$T$2,$T$3)),I$10) -> 100000 | J12: =(PARAMS!$B$6-E12)/365.25 -> 79.89048597 | K12: =IF(H12>0,W12/(1-X12*I12/H12),W12) -> 6.159591996 | L12: 0 | M12: =BOYRetirees!L12+SUM(N12:Q12) -> 1499.45 | N12: =PeriodBal!CK12/(W12*NumPeriods) -> 0 | O12: =IF(H12>0,PeriodBal!CL12/(W12*NumPeriods),0) -> 0 | P12: 0 | Q12: 0 | S12: =MIN((PARAMS!$B$2-B12+1)/PARAMS!$B$2,1) -> 1 | T12: 0.0547150651 | U12: 7.013270445 | V12: 0.590635242 | W12: =(Y12*(1-AC12)+Z12*AC12) -> 6.159591996 | X12: =AA12*(1-AC12)+AB12*AC12 -> 0 | Y12: =((INT($J12)+1-$J12)*VLOOKUP($J12,INDIRECT(OFFSET(AnnFactGenImpLowBal!$A$1,C12,0,1,1)),$AE12)+($J12-INT($J12))*VLOOKUP($J12+1,INDIRECT(OFFSET(AnnFactGenImpLowBal!$A$1,C12,0,1,1)),$AE12)) -> 6.159591996 | Z12: =((INT($J12)+1-$J12)*VLOOKUP($J12,INDIRECT(OFFSET(AnnFactGenImpHighBal!$A$1,C12,0,1,1)),$AE12)+($J12-INT($J12))*VLOOKUP($J12+1,INDIRECT(OFFSET(AnnFactGenImpHighBal!$A$1,C12,0,1,1)),$AE12)) -> 7.077836633 | AA12: =IF(H12=0,0,((INT($J12)+1-$J12)*VLOOKUP($J12,INDIRECT(OFFSET(AnnFactGenImpLowBal!$A$1,0,0,1,1)),$AF12)+($J12-INT($J12))*VLOOKUP($J12+1,INDIRECT(OFFSET(AnnFactGenImpLowBal!$A$1,0,0,1,1)),$AF12))) -> 0 | AB12: =IF(H12=0,0,((INT($J12)+1-$J12)*VLOOKUP($J12,INDIRECT(OFFSET(AnnFactGenImpHighBal!$A$1,0,0,1,1)),$AF12)+($J12-INT($J12))*VLOOKUP($J12+1,INDIRECT(OFFSET(AnnFactGenImpHighBal!$A$1,0,0,1,1)),$AF12))) -> 0 | AC12: 0 | AE12: =IF(UPPER(D12)="JM",23,IF(UPPER(D12)="JF",24,IF(UPPER(D12)="M",20,IF(UPPER(D12)="F",21,22)))) -> 21 | AF12: =IF(UPPER(D12)="JM",25,IF(UPPER(D12)="JF",26,IF(UPPER(D12)="M",25,IF(UPPER(D12)="F",26,27)))) -> 26
A13: =BOYRetirees!A13 -> 3 | C13: 0 | D13: M | E13: 1952-12-01 | G13: =VLOOKUP($A13,INDIRECT(IF($B13>0,$T$2,$T$3)),G$10) -> 2017-12-01 | H13: =PeriodBal!CG13 -> 0 | I13: 0 | J13: =(PARAMS!$B$6-E13)/365.25 -> 69.08418891 | K13: 8.212680774 | L13: 0 | M13: =BOYRetirees!L13+SUM(N13:Q13) -> 0 | N13: =PeriodBal!CK13/(W13*NumPeriods) -> 0 | O13: =IF(H13>0,PeriodBal!CL13/(W13*NumPeriods),0) -> 0 | P13: 0 | Q13: 0 | S13: =MIN((PARAMS!$B$2-B13+1)/PARAMS!$B$2,1) -> 1 | T13: 0.02919037463 | U13: 8.490524836 | V13: 0 | W13: 8.212680774 | X13: =AA13*(1-AC13)+AB13*AC13 -> 0 | Y13: =((INT($J13)+1-$J13)*VLOOKUP($J13,INDIRECT(OFFSET(AnnFactGenImpLowBal!$A$1,C13,0,1,1)),$AE13)+($J13-INT($J13))*VLOOKUP($J13+1,INDIRECT(OFFSET(AnnFactGenImpLowBal!$A$1,C13,0,1,1)),$AE13)) -> 8.212680774 | Z13: =((INT($J13)+1-$J13)*VLOOKUP($J13,INDIRECT(OFFSET(AnnFactGenImpHighBal!$A$1,C13,0,1,1)),$AE13)+($J13-INT($J13))*VLOOKUP($J13+1,INDIRECT(OFFSET(AnnFactGenImpHighBal!$A$1,C13,0,1,1)),$AE13)) -> 9.376992413 | AA13: =IF(H13=0,0,((INT($J13)+1-$J13)*VLOOKUP($J13,INDIRECT(OFFSET(AnnFactGenImpLowBal!$A$1,0,0,1,1)),$AF13)+($J13-INT($J13))*VLOOKUP($J13+1,INDIRECT(OFFSET(AnnFactGenImpLowBal!$A$1,0,0,1,1)),$AF13))) -> 0 | AB13: =IF(H13=0,0,((INT($J13)+1-$J13)*VLOOKUP($J13,INDIRECT(OFFSET(AnnFactGenImpHighBal!$A$1,0,0,1,1)),$AF13)+($J13-INT($J13))*VLOOKUP($J13+1,INDIRECT(OFFSET(AnnFactGenImpHighBal!$A$1,0,0,1,1)),$AF13))) -> 0 | AC13: 0 | AE13: 20 | AF13: 25
A14: =BOYRetirees!A14 -> 4 | C14: 0 | D14: jF | E14: 1956-10-15 | F14: 1953-10-15 | G14: 2017-12-01 | H14: =PeriodBal!CG14 -> 130439.3154 | I14: 100000 | J14: =(PARAMS!$B$6-E14)/365.25 -> 65.2128679 | K14: 16.05374106 | L14: 677.1 | M14: =BOYRetirees!L14+SUM(N14:Q14) -> 676.3329005 | N14: =PeriodBal!CK14/(W14*NumPeriods) -> 13.9446453 | O14: =IF(H14>0,PeriodBal!CL14/(W14*NumPeriods),0) -> -24.53055738 | P14: 2.677083858 | Q14: 2.311728694 | S14: =MIN((PARAMS!$B$2-B14+1)/PARAMS!$B$2,1) -> 1 | T14: 0.009304988974 | U14: 11.67978574 | V14: 0.3639607168 | W14: 11.42243667 | X14: 0.3763011823 | Y14: =((INT($J14)+1-$J14)*VLOOKUP($J14,INDIRECT(OFFSET(AnnFactGenImpLowBal!$A$1,C14,0,1,1)),$AE14)+($J14-INT($J14))*VLOOKUP($J14+1,INDIRECT(OFFSET(AnnFactGenImpLowBal!$A$1,C14,0,1,1)),$AE14)) -> 10.99844777 | Z14: =((INT($J14)+1-$J14)*VLOOKUP($J14,INDIRECT(OFFSET(AnnFactGenImpHighBal!$A$1,C14,0,1,1)),$AE14)+($J14-INT($J14))*VLOOKUP($J14+1,INDIRECT(OFFSET(AnnFactGenImpHighBal!$A$1,C14,0,1,1)),$AE14)) -> 12.05263104 | AA14: =IF(H14=0,0,((INT($J14)+1-$J14)*VLOOKUP($J14,INDIRECT(OFFSET(AnnFactGenImpLowBal!$A$1,0,0,1,1)),$AF14)+($J14-INT($J14))*VLOOKUP($J14+1,INDIRECT(OFFSET(AnnFactGenImpLowBal!$A$1,0,0,1,1)),$AF14))) -> 0.3996448492 | AB14: =IF(H14=0,0,((INT($J14)+1-$J14)*VLOOKUP($J14,INDIRECT(OFFSET(AnnFactGenImpHighBal!$A$1,0,0,1,1)),$AF14)+($J14-INT($J14))*VLOOKUP($J14+1,INDIRECT(OFFSET(AnnFactGenImpHighBal!$A$1,0,0,1,1)),$AF14))) -> 0.3416044078 | AC14: 0.4021965769 | AE14: 24 | AF14: 26
A15: =BOYRetirees!A15 -> 5 | C15: 0 | D15: F | E15: 1950-07-25 | G15: 2018-03-01 | H15: =PeriodBal!CG15 -> 0 | I15: 0 | J15: =(PARAMS!$B$6-E15)/365.25 -> 71.43874059 | K15: 8.454292116 | L15: 0 | M15: =BOYRetirees!L15+SUM(N15:Q15) -> 0 | N15: =PeriodBal!CK15/(W15*NumPeriods) -> 0 | O15: =IF(H15>0,PeriodBal!CL15/(W15*NumPeriods),0) -> 0 | P15: 0 | Q15: 0 | S15: =MIN((PARAMS!$B$2-B15+1)/PARAMS!$B$2,1) -> 1 | T15: 0.02686603454 | U15: 8.729406665 | V15: 0 | W15: 8.454292116 | X15: 0 | Y15: =((INT($J15)+1-$J15)*VLOOKUP($J15,INDIRECT(OFFSET(AnnFactGenImpLowBal!$A$1,C15,0,1,1)),$AE15)+($J15-INT($J15))*VLOOKUP($J15+1,INDIRECT(OFFSET(AnnFactGenImpLowBal!$A$1,C15,0,1,1)),$AE15)) -> 8.454292116 | Z15: =((INT($J15)+1-$J15)*VLOOKUP($J15,INDIRECT(OFFSET(AnnFactGenImpHighBal!$A$1,C15,0,1,1)),$AE15)+($J15-INT($J15))*VLOOKUP($J15+1,INDIRECT(OFFSET(AnnFactGenImpHighBal!$A$1,C15,0,1,1)),$AE15)) -> 9.543145343 | AA15: =IF(H15=0,0,((INT($J15)+1-$J15)*VLOOKUP($J15,INDIRECT(OFFSET(AnnFactGenImpLowBal!$A$1,0,0,1,1)),$AF15)+($J15-INT($J15))*VLOOKUP($J15+1,INDIRECT(OFFSET(AnnFactGenImpLowBal!$A$1,0,0,1,1)),$AF15))) -> 0 | AB15: =IF(H15=0,0,((INT($J15)+1-$J15)*VLOOKUP($J15,INDIRECT(OFFSET(AnnFactGenImpHighBal!$A$1,0,0,1,1)),$AF15)+($J15-INT($J15))*VLOOKUP($J15+1,INDIRECT(OFFSET(AnnFactGenImpHighBal!$A$1,0,0,1,1)),$AF15))) -> 0 | AC15: 0 | AE15: 21 | AF15: 26
A16: =A15+1 -> 6 | C16: 0 | D16: JF | E16: 1951-08-01 | F16: 1948-08-01 | G16: 2019-09-01 | H16: =PeriodBal!CG16 -> 290702.5844 | I16: 0 | J16: =(PARAMS!$B$6-E16)/365.25 -> 70.4202601 | K16: 10.55370246 | L16: 2295.42 | M16: =BOYRetirees!L16+SUM(N16:Q16) -> 2295.639656 | N16: =PeriodBal!CK16/(W16*NumPeriods) -> 143.210385 | O16: =IF(H16>0,PeriodBal!CL16/(W16*NumPeriods),0) -> -56.91129568 | P16: 5.44056677 | Q16: 0 | S16: =MIN((PARAMS!$B$2-B16+1)/PARAMS!$B$2,1) -> 1 | T16: 0.009994636585 | U16: 10.84141601 | V16: 0.4074291722 | W16: 10.55370246 | X16: 0.4228561614 | Y16: =((INT($J16)+1-$J16)*VLOOKUP($J16,INDIRECT(OFFSET(AnnFactGenImpLowBal!$A$1,C16,0,1,1)),$AE16)+($J16-INT($J16))*VLOOKUP($J16+1,INDIRECT(OFFSET(AnnFactGenImpLowBal!$A$1,C16,0,1,1)),$AE16)) -> 9.358850261 | Z16: =((INT($J16)+1-$J16)*VLOOKUP($J16,INDIRECT(OFFSET(AnnFactGenImpHighBal!$A$1,C16,0,1,1)),$AE16)+($J16-INT($J16))*VLOOKUP($J16+1,INDIRECT(OFFSET(AnnFactGenImpHighBal!$A$1,C16,0,1,1)),$AE16)) -> 10.55370246 | AA16: =IF(H16=0,0,((INT($J16)+1-$J16)*VLOOKUP($J16,INDIRECT(OFFSET(AnnFactGenImpLowBal!$A$1,0,0,1,1)),$AF16)+($J16-INT($J16))*VLOOKUP($J16+1,INDIRECT(OFFSET(AnnFactGenImpLowBal!$A$1,0,0,1,1)),$AF16))) -> 0.4854167639 | AB16: =IF(H16=0,0,((INT($J16)+1-$J16)*VLOOKUP($J16,INDIRECT(OFFSET(AnnFactGenImpHighBal!$A$1,0,0,1,1)),$AF16)+($J16-INT($J16))*VLOOKUP($J16+1,INDIRECT(OFFSET(AnnFactGenImpHighBal!$A$1,0,0,1,1)),$AF16))) -> 0.4228561614 | AC16: 1 | AE16: 24 | AF16: 26
A17: =A16+1 -> 7 | C17: 0 | D17: M | E17: 1954-07-10 | G17: 2019-05-01 | H17: =PeriodBal!CG17 -> 192341.0817 | I17: 150000 | J17: =(PARAMS!$B$6-E17)/365.25 -> 67.47980835 | K17: 14.5247173 | L17: 1103.53 | M17: =BOYRetirees!L17+SUM(N17:Q17) -> 1102.507673 | N17: =PeriodBal!CK17/(W17*NumPeriods) -> 44.50513361 | O17: =IF(H17>0,PeriodBal!CL17/(W17*NumPeriods),0) -> -42.94420664 | P17: 3.425694312 | Q17: -2.208948341 | S17: =MIN((PARAMS!$B$2-B17+1)/PARAMS!$B$2,1) -> 1 | T17: 0.01822785968 | U17: 9.802154276 | V17: 0.4255254997 | W17: 9.524429992 | X17: 0.4414363232 | Y17: =((INT($J17)+1-$J17)*VLOOKUP($J17,INDIRECT(OFFSET(AnnFactGenImpLowBal!$A$1,C17,0,1,1)),$AE17)+($J17-INT($J17))*VLOOKUP($J17+1,INDIRECT(OFFSET(AnnFactGenImpLowBal!$A$1,C17,0,1,1)),$AE17)) -> 8.707868178 | Z17: =((INT($J17)+1-$J17)*VLOOKUP($J17,INDIRECT(OFFSET(AnnFactGenImpHighBal!$A$1,C17,0,1,1)),$AE17)+($J17-INT($J17))*VLOOKUP($J17+1,INDIRECT(OFFSET(AnnFactGenImpHighBal!$A$1,C17,0,1,1)),$AE17)) -> 9.855199369 | AA17: =IF(H17=0,0,((INT($J17)+1-$J17)*VLOOKUP($J17,INDIRECT(OFFSET(AnnFactGenImpLowBal!$A$1,0,0,1,1)),$AF17)+($J17-INT($J17))*VLOOKUP($J17+1,INDIRECT(OFFSET(AnnFactGenImpLowBal!$A$1,0,0,1,1)),$AF17))) -> 0.4876733282 | AB17: =IF(H17=0,0,((INT($J17)+1-$J17)*VLOOKUP($J17,INDIRECT(OFFSET(AnnFactGenImpHighBal!$A$1,0,0,1,1)),$AF17)+($J17-INT($J17))*VLOOKUP($J17+1,INDIRECT(OFFSET(AnnFactGenImpHighBal!$A$1,0,0,1,1)),$AF17))) -> 0.4227068345 | AC17: 0.7117054086 | AE17: 20 | AF17: 25
A18: 8 | C18: 0 | D18: M | E18: 1955-09-06 | G18: 2019-03-01 | H18: =PeriodBal!CG18 -> 0 | I18: 0 | J18: =(PARAMS!$B$6-E18)/365.25 -> 66.32169747 | K18: 9.068656932 | L18: 0 | M18: =BOYRetirees!L18+SUM(N18:Q18) -> 0 | N18: =PeriodBal!CK18/(W18*NumPeriods) -> 0 | O18: =IF(H18>0,PeriodBal!CL18/(W18*NumPeriods),0) -> 0 | P18: 0 | Q18: 0 | S18: =MIN((PARAMS!$B$2-B18+1)/PARAMS!$B$2,1) -> 1 | T18: 0.02129396082 | U18: 9.349685717 | V18: 0 | W18: 9.068656932 | X18: 0 | Y18: =((INT($J18)+1-$J18)*VLOOKUP($J18,INDIRECT(OFFSET(AnnFactGenImpLowBal!$A$1,C18,0,1,1)),$AE18)+($J18-INT($J18))*VLOOKUP($J18+1,INDIRECT(OFFSET(AnnFactGenImpLowBal!$A$1,C18,0,1,1)),$AE18)) -> 9.068656932 | Z18: =((INT($J18)+1-$J18)*VLOOKUP($J18,INDIRECT(OFFSET(AnnFactGenImpHighBal!$A$1,C18,0,1,1)),$AE18)+($J18-INT($J18))*VLOOKUP($J18+1,INDIRECT(OFFSET(AnnFactGenImpHighBal!$A$1,C18,0,1,1)),$AE18)) -> 10.19850515 | AA18: =IF(H18=0,0,((INT($J18)+1-$J18)*VLOOKUP($J18,INDIRECT(OFFSET(AnnFactGenImpLowBal!$A$1,0,0,1,1)),$AF18)+($J18-INT($J18))*VLOOKUP($J18+1,INDIRECT(OFFSET(AnnFactGenImpLowBal!$A$1,0,0,1,1)),$AF18))) -> 0 | AB18: =IF(H18=0,0,((INT($J18)+1-$J18)*VLOOKUP($J18,INDIRECT(OFFSET(AnnFactGenImpHighBal!$A$1,0,0,1,1)),$AF18)+($J18-INT($J18))*VLOOKUP($J18+1,INDIRECT(OFFSET(AnnFactGenImpHighBal!$A$1,0,0,1,1)),$AF18))) -> 0 | AC18: 0 | AE18: 20 | AF18: 25
A19: =A18+1 -> 9 | C19: 0 | D19: M | E19: 1956-04-16 | G19: 2019-07-01 | H19: =PeriodBal!CG19 -> 86245.87463 | I19: 30000 | J19: =(PARAMS!$B$6-E19)/365.25 -> 65.71115674 | K19: 11.19338905 | L19: 642.09 | M19: =BOYRetirees!L19+SUM(N19:Q19) -> 642.275179 | N19: =PeriodBal!CK19/(W19*NumPeriods) -> 57.21114701 | O19: =IF(H19>0,PeriodBal!CL19/(W19*NumPeriods),0) -> -18.46826834 | P19: 0.8774164122 | Q19: -0.04511612054 | S19: =MIN((PARAMS!$B$2-B19+1)/PARAMS!$B$2,1) -> 1 | T19: 0.01905649304 | U19: 9.72016055 | V19: 0.4305405029 | W19: 9.461466809 | X19: 0.4448195512 | Y19: =((INT($J19)+1-$J19)*VLOOKUP($J19,INDIRECT(OFFSET(AnnFactGenImpLowBal!$A$1,C19,0,1,1)),$AE19)+($J19-INT($J19))*VLOOKUP($J19+1,INDIRECT(OFFSET(AnnFactGenImpLowBal!$A$1,C19,0,1,1)),$AE19)) -> 9.258649849 | Z19: =((INT($J19)+1-$J19)*VLOOKUP($J19,INDIRECT(OFFSET(AnnFactGenImpHighBal!$A$1,C19,0,1,1)),$AE19)+($J19-INT($J19))*VLOOKUP($J19+1,INDIRECT(OFFSET(AnnFactGenImpHighBal!$A$1,C19,0,1,1)),$AE19)) -> 10.37776733 | AA19: =IF(H19=0,0,((INT($J19)+1-$J19)*VLOOKUP($J19,INDIRECT(OFFSET(AnnFactGenImpLowBal!$A$1,0,0,1,1)),$AF19)+($J19-INT($J19))*VLOOKUP($J19+1,INDIRECT(OFFSET(AnnFactGenImpLowBal!$A$1,0,0,1,1)),$AF19))) -> 0.4562534299 | AB19: =IF(H19=0,0,((INT($J19)+1-$J19)*VLOOKUP($J19,INDIRECT(OFFSET(AnnFactGenImpHighBal!$A$1,0,0,1,1)),$AF19)+($J19-INT($J19))*VLOOKUP($J19+1,INDIRECT(OFFSET(AnnFactGenImpHighBal!$A$1,0,0,1,1)),$AF19))) -> 0.393162781 | AC19: 0.1812293732 | AE19: 20 | AF19: 25
A20: =A19+1 -> 10 | C20: 0 | D20: M | E20: =VLOOKUP($A20,INDIRECT(IF($B20>0,$T$2,$T$3)),E$10) -> 1958-05-04 | G20: 2019-11-01 | H20: =PeriodBal!CG20 -> 0 | I20: 40000 | J20: =(PARAMS!$B$6-E20)/365.25 -> 63.66324435 | K20: 9.880354912 | L20: 0 | M20: =BOYRetirees!L20+SUM(N20:Q20) -> 316.5 | N20: =PeriodBal!CK20/(W20*NumPeriods) -> 0 | O20: =IF(H20>0,PeriodBal!CL20/(W20*NumPeriods),0) -> 0 | P20: 0 | Q20: 0 | S20: =MIN((PARAMS!$B$2-B20+1)/PARAMS!$B$2,1) -> 1 | T20: 0.01766820227 | U20: 10.16749658 | V20: 0.4069864616 | W20: 9.880354912 | X20: 0 | Y20: =((INT($J20)+1-$J20)*VLOOKUP($J20,INDIRECT(OFFSET(AnnFactGenImpLowBal!$A$1,C20,0,1,1)),$AE20)+($J20-INT($J20))*VLOOKUP($J20+1,INDIRECT(OFFSET(AnnFactGenImpLowBal!$A$1,C20,0,1,1)),$AE20)) -> 9.880354912 | Z20: =((INT($J20)+1-$J20)*VLOOKUP($J20,INDIRECT(OFFSET(AnnFactGenImpHighBal!$A$1,C20,0,1,1)),$AE20)+($J20-INT($J20))*VLOOKUP($J20+1,INDIRECT(OFFSET(AnnFactGenImpHighBal!$A$1,C20,0,1,1)),$AE20)) -> 10.95948283 | AA20: =IF(H20=0,0,((INT($J20)+1-$J20)*VLOOKUP($J20,INDIRECT(OFFSET(AnnFactGenImpLowBal!$A$1,0,0,1,1)),$AF20)+($J20-INT($J20))*VLOOKUP($J20+1,INDIRECT(OFFSET(AnnFactGenImpLowBal!$A$1,0,0,1,1)),$AF20))) -> 0 | AB20: =IF(H20=0,0,((INT($J20)+1-$J20)*VLOOKUP($J20,INDIRECT(OFFSET(AnnFactGenImpHighBal!$A$1,0,0,1,1)),$AF20)+($J20-INT($J20))*VLOOKUP($J20+1,INDIRECT(OFFSET(AnnFactGenImpHighBal!$A$1,0,0,1,1)),$AF20))) -> 0 | AC20: 0 | AE20: 20 | AF20: 25
A21: 11 | C21: 0 | D21: M | E21: 1959-03-02 | G21: 2019-11-01 | H21: =PeriodBal!CG21 -> 37804.5212 | I21: 30000 | J21: =(PARAMS!$B$6-E21)/365.25 -> 62.83641342 | K21: 14.99174412 | L21: 210.14 | M21: =BOYRetirees!L21+SUM(N21:Q21) -> 209.931903 | N21: =PeriodBal!CK21/(W21*NumPeriods) -> 7.42933177 | O21: =IF(H21>0,PeriodBal!CL21/(W21*NumPeriods),0) -> -7.957262577 | P21: 0.8042861036 | Q21: -0.1044522889 | S21: =MIN((PARAMS!$B$2-B21+1)/PARAMS!$B$2,1) -> 1 | T21: 0.01744173462 | U21: 10.37162451 | V21: 0.3965559158 | W21: 10.12102923 | X21: 0.4094143253 | Y21: =((INT($J21)+1-$J21)*VLOOKUP($J21,INDIRECT(OFFSET(AnnFactGenImpLowBal!$A$1,C21,0,1,1)),$AE21)+($J21-INT($J21))*VLOOKUP($J21+1,INDIRECT(OFFSET(AnnFactGenImpLowBal!$A$1,C21,0,1,1)),$AE21)) -> 10.12102923 | Z21: =((INT($J21)+1-$J21)*VLOOKUP($J21,INDIRECT(OFFSET(AnnFactGenImpHighBal!$A$1,C21,0,1,1)),$AE21)+($J21-INT($J21))*VLOOKUP($J21+1,INDIRECT(OFFSET(AnnFactGenImpHighBal!$A$1,C21,0,1,1)),$AE21)) -> 11.18339959 | AA21: =IF(H21=0,0,((INT($J21)+1-$J21)*VLOOKUP($J21,INDIRECT(OFFSET(AnnFactGenImpLowBal!$A$1,0,0,1,1)),$AF21)+($J21-INT($J21))*VLOOKUP($J21+1,INDIRECT(OFFSET(AnnFactGenImpLowBal!$A$1,0,0,1,1)),$AF21))) -> 0.4094143253 | AB21: =IF(H21=0,0,((INT($J21)+1-$J21)*VLOOKUP($J21,INDIRECT(OFFSET(AnnFactGenImpHighBal!$A$1,0,0,1,1)),$AF21)+($J21-INT($J21))*VLOOKUP($J21+1,INDIRECT(OFFSET(AnnFactGenImpHighBal!$A$1,0,0,1,1)),$AF21))) -> 0.3491644503 | AC21: 0 | AE21: 20 | AF21: 25
A22: 12 | C22: 1 | D22: JF | E22: 1959-05-08 | G22: 2020-01-01 | H22: =PeriodBal!CG22 -> 93759.92512 | I22: 95000 | J22: =(PARAMS!$B$6-E22)/365.25 -> 62.65297741 | K22: 20.18366962 | L22: 387.11 | M22: =BOYRetirees!L22+SUM(N22:Q22) -> 386.3551297 | N22: =PeriodBal!CK22/(W22*NumPeriods) -> 0.08839055863 | O22: =IF(H22>0,PeriodBal!CL22/(W22*NumPeriods),0) -> -15.67993121 | P22: 4.879291768 | Q22: 1.697378596 | S22: =MIN((PARAMS!$B$2-B22+1)/PARAMS!$B$2,1) -> 1 | T22: =VLOOKUP(A22,INDIRECT(IF($B22>0,$T$2,$T$3)),17) -> 0.008184829872 | U22: =VLOOKUP($A22,INDIRECT(IF($B22>0,$T$2,$T$3)),25)*(1-VLOOKUP($A22,INDIRECT(IF($B22>0,$T$2,$T$3)),29))+VLOOKUP($A22,INDIRECT(IF($B22>0,$T$2,$T$3)),26)*VLOOKUP($A22,INDIRECT(IF($B22>0,$T$2,$T$3)),29) -> 13.251891 | V22: =VLOOKUP($A22,INDIRECT(IF($B22>0,$T$2,$T$3)),27)*(1-VLOOKUP($A22,INDIRECT(IF($B22>0,$T$2,$T$3)),29))+VLOOKUP($A22,INDIRECT(IF($B22>0,$T$2,$T$3)),28)*VLOOKUP($A22,INDIRECT(IF($B22>0,$T$2,$T$3)),29) -> 0.3409164384 | W22: 12.96821124 | X22: =AA22*(1-AC22)+AB22*AC22 -> 0.3528234508 | Y22: =((INT($J22)+1-$J22)*VLOOKUP($J22,INDIRECT(OFFSET(AnnFactGenImpLowBal!$A$1,C22,0,1,1)),$AE22)+($J22-INT($J22))*VLOOKUP($J22+1,INDIRECT(OFFSET(AnnFactGenImpLowBal!$A$1,C22,0,1,1)),$AE22)) -> 12.70521343 | Z22: =((INT($J22)+1-$J22)*VLOOKUP($J22,INDIRECT(OFFSET(AnnFactGenImpHighBal!$A$1,C22,0,1,1)),$AE22)+($J22-INT($J22))*VLOOKUP($J22+1,INDIRECT(OFFSET(AnnFactGenImpHighBal!$A$1,C22,0,1,1)),$AE22)) -> 13.90721646 | AA22: =IF(H22=0,0,((INT($J22)+1-$J22)*VLOOKUP($J22,INDIRECT(OFFSET(AnnFactGenImpLowBal!$A$1,0,0,1,1)),$AF22)+($J22-INT($J22))*VLOOKUP($J22+1,INDIRECT(OFFSET(AnnFactGenImpLowBal!$A$1,0,0,1,1)),$AF22))) -> 0.3651373989 | AB22: =IF(H22=0,0,((INT($J22)+1-$J22)*VLOOKUP($J22,INDIRECT(OFFSET(AnnFactGenImpHighBal!$A$1,0,0,1,1)),$AF22)+($J22-INT($J22))*VLOOKUP($J22+1,INDIRECT(OFFSET(AnnFactGenImpHighBal!$A$1,0,0,1,1)),$AF22))) -> 0.3088578322 | AC22: =IFERROR((MIN(HighBal,MAX(H22,LowBal))-LowBal)/(HighBal-LowBal),0) -> 0.2187996256 | AE22: =IF(UPPER(D22)="JM",23,IF(UPPER(D22)="JF",24,IF(UPPER(D22)="M",20,IF(UPPER(D22)="F",21,22)))) -> 24 | AF22: =IF(UPPER(D22)="JM",25,IF(UPPER(D22)="JF",26,IF(UPPER(D22)="M",25,IF(UPPER(D22)="F",26,27)))) -> 26
A23: 13 | C23: 0 | D23: M | E23: 1958-08-19 | G23: 2020-04-01 | H23: =PeriodBal!CG23 -> 144507.0065 | I23: 60000 | J23: =(PARAMS!$B$6-E23)/365.25 -> 63.37029432 | K23: 12.49043195 | L23: 964.12 | M23: =BOYRetirees!L23+SUM(N23:Q23) -> 963.9775416 | N23: =PeriodBal!CK23/(W23*NumPeriods) -> 62.38214812 | O23: =IF(H23>0,PeriodBal!CL23/(W23*NumPeriods),0) -> -28.54784818 | P23: 1.967399691 | Q23: 0.1158419696 | S23: =MIN((PARAMS!$B$2-B23+1)/PARAMS!$B$2,1) -> 1 | T23: 0.01494997208 | U23: 10.7091504 | V23: 0.3765915168 | W23: 10.47346194 | X23: 0.3889194286 | Y23: =((INT($J23)+1-$J23)*VLOOKUP($J23,INDIRECT(OFFSET(AnnFactGenImpLowBal!$A$1,C23,0,1,1)),$AE23)+($J23-INT($J23))*VLOOKUP($J23+1,INDIRECT(OFFSET(AnnFactGenImpLowBal!$A$1,C23,0,1,1)),$AE23)) -> 9.966353884 | Z23: =((INT($J23)+1-$J23)*VLOOKUP($J23,INDIRECT(OFFSET(AnnFactGenImpHighBal!$A$1,C23,0,1,1)),$AE23)+($J23-INT($J23))*VLOOKUP($J23+1,INDIRECT(OFFSET(AnnFactGenImpHighBal!$A$1,C23,0,1,1)),$AE23)) -> 11.03951887 | AA23: =IF(H23=0,0,((INT($J23)+1-$J23)*VLOOKUP($J23,INDIRECT(OFFSET(AnnFactGenImpLowBal!$A$1,0,0,1,1)),$AF23)+($J23-INT($J23))*VLOOKUP($J23+1,INDIRECT(OFFSET(AnnFactGenImpLowBal!$A$1,0,0,1,1)),$AF23))) -> 0.4176154586 | AB23: =IF(H23=0,0,((INT($J23)+1-$J23)*VLOOKUP($J23,INDIRECT(OFFSET(AnnFactGenImpHighBal!$A$1,0,0,1,1)),$AF23)+($J23-INT($J23))*VLOOKUP($J23+1,INDIRECT(OFFSET(AnnFactGenImpHighBal!$A$1,0,0,1,1)),$AF23))) -> 0.3568876225 | AC23: 0.4725350327 | AE23: 20 | AF23: 25
A24: 14 | C24: 0 | D24: F | E24: 1960-09-01 | G24: 2020-08-01 | H24: =PeriodBal!CG24 -> 101625.3692 | I24: 50000 | J24: =(PARAMS!$B$6-E24)/365.25 -> 61.33333333 | K24: 13.78262736 | L24: 614.45 | M24: =BOYRetirees!L24+SUM(N24:Q24) -> 614.1526382 | N24: =PeriodBal!CK24/(W24*NumPeriods) -> 28.67935072 | O24: =IF(H24>0,PeriodBal!CL24/(W24*NumPeriods),0) -> -18.51705782 | P24: 1.219443242 | Q24: -0.1390979723 | S24: =MIN((PARAMS!$B$2-B24+1)/PARAMS!$B$2,1) -> 1 | T24: 0.01214884005 | U24: 11.71651025 | V24: 0.3227352371 | W24: 11.52014248 | X24: 0.3336459095 | Y24: =((INT($J24)+1-$J24)*VLOOKUP($J24,INDIRECT(OFFSET(AnnFactGenImpLowBal!$A$1,C24,0,1,1)),$AE24)+($J24-INT($J24))*VLOOKUP($J24+1,INDIRECT(OFFSET(AnnFactGenImpLowBal!$A$1,C24,0,1,1)),$AE24)) -> 11.27551956 | Z24: =((INT($J24)+1-$J24)*VLOOKUP($J24,INDIRECT(OFFSET(AnnFactGenImpHighBal!$A$1,C24,0,1,1)),$AE24)+($J24-INT($J24))*VLOOKUP($J24+1,INDIRECT(OFFSET(AnnFactGenImpHighBal!$A$1,C24,0,1,1)),$AE24)) -> 12.22320445 | AA24: =IF(H24=0,0,((INT($J24)+1-$J24)*VLOOKUP($J24,INDIRECT(OFFSET(AnnFactGenImpLowBal!$A$1,0,0,1,1)),$AF24)+($J24-INT($J24))*VLOOKUP($J24+1,INDIRECT(OFFSET(AnnFactGenImpLowBal!$A$1,0,0,1,1)),$AF24))) -> 0.3478606956 | AB24: =IF(H24=0,0,((INT($J24)+1-$J24)*VLOOKUP($J24,INDIRECT(OFFSET(AnnFactGenImpHighBal!$A$1,0,0,1,1)),$AF24)+($J24-INT($J24))*VLOOKUP($J24+1,INDIRECT(OFFSET(AnnFactGenImpHighBal!$A$1,0,0,1,1)),$AF24))) -> 0.2927917 | AC24: 0.2581268459 | AE24: 21 | AF24: 26
A25: 15 | C25: 0 | D25: M | E25: 1948-08-01 | G25: 2020-11-01 | H25: =PeriodBal!CG25 -> 88836.89114 | I25: 91558.04 | J25: =(PARAMS!$B$6-E25)/365.25 -> 73.41820671 | K25: 17.79921503 | L25: 415.92 | M25: =BOYRetirees!L25+SUM(N25:Q25) -> 414.6554065 | N25: =PeriodBal!CK25/(W25*NumPeriods) -> -1.200270806 | O25: =IF(H25>0,PeriodBal!CL25/(W25*NumPeriods),0) -> -27.13008088 | P25: 3.219393518 | Q25: -4.773635316 | S25: =MIN((PARAMS!$B$2-B25+1)/PARAMS!$B$2,1) -> 1 | T25: 0.04487993169 | U25: 7.41955167 | V25: 0.563959322 | W25: 7.149357649 | X25: 0.5805502375 | Y25: =((INT($J25)+1-$J25)*VLOOKUP($J25,INDIRECT(OFFSET(AnnFactGenImpLowBal!$A$1,C25,0,1,1)),$AE25)+($J25-INT($J25))*VLOOKUP($J25+1,INDIRECT(OFFSET(AnnFactGenImpLowBal!$A$1,C25,0,1,1)),$AE25)) -> 6.923957308 | Z25: =((INT($J25)+1-$J25)*VLOOKUP($J25,INDIRECT(OFFSET(AnnFactGenImpHighBal!$A$1,C25,0,1,1)),$AE25)+($J25-INT($J25))*VLOOKUP($J25+1,INDIRECT(OFFSET(AnnFactGenImpHighBal!$A$1,C25,0,1,1)),$AE25)) -> 8.084711088 | AA25: =IF(H25=0,0,((INT($J25)+1-$J25)*VLOOKUP($J25,INDIRECT(OFFSET(AnnFactGenImpLowBal!$A$1,0,0,1,1)),$AF25)+($J25-INT($J25))*VLOOKUP($J25+1,INDIRECT(OFFSET(AnnFactGenImpLowBal!$A$1,0,0,1,1)),$AF25))) -> 0.5938543774 | AB25: =IF(H25=0,0,((INT($J25)+1-$J25)*VLOOKUP($J25,INDIRECT(OFFSET(AnnFactGenImpHighBal!$A$1,0,0,1,1)),$AF25)+($J25-INT($J25))*VLOOKUP($J25+1,INDIRECT(OFFSET(AnnFactGenImpHighBal!$A$1,0,0,1,1)),$AF25))) -> 0.5253414789 | AC25: 0.1941844557 | AE25: 20 | AF25: 25
A26: 1 | B26: =NewRetirees!B11 -> 1 | C26: 0 | D26: F | E26: 1961-06-25 | G26: 2021-01-01 | H26: =PeriodBal!CG26 -> 179468.6543 | I26: 0 | J26: =(PARAMS!$B$6-E26)/365.25 -> 60.52019165 | K26: 12.06645226 | L26: 1239.45 | M26: =BOYRetirees!L26+SUM(N26:Q26) -> 54.3233414 | N26: =PeriodBal!CK26/(W26*NumPeriods) -> 77.4263717 | O26: =IF(H26>0,PeriodBal!CL26/(W26*NumPeriods),0) -> -24.94588779 | P26: 1.842857491 | Q26: 0 | S26: =MIN((PARAMS!$B$2-B26+1)/PARAMS!$B$2,1) -> 1 | T26: 0.01091849426 | U26: 12.23616171 | V26: 0.2929577224 | W26: 12.06645226 | X26: 0.3023322215 | Y26: =((INT($J26)+1-$J26)*VLOOKUP($J26,INDIRECT(OFFSET(AnnFactGenImpLowBal!$A$1,C26,0,1,1)),$AE26)+($J26-INT($J26))*VLOOKUP($J26+1,INDIRECT(OFFSET(AnnFactGenImpLowBal!$A$1,C26,0,1,1)),$AE26)) -> 11.46162684 | Z26: =((INT($J26)+1-$J26)*VLOOKUP($J26,INDIRECT(OFFSET(AnnFactGenImpHighBal!$A$1,C26,0,1,1)),$AE26)+($J26-INT($J26))*VLOOKUP($J26+1,INDIRECT(OFFSET(AnnFactGenImpHighBal!$A$1,C26,0,1,1)),$AE26)) -> 12.39594631 | AA26: =IF(H26=0,0,((INT($J26)+1-$J26)*VLOOKUP($J26,INDIRECT(OFFSET(AnnFactGenImpLowBal!$A$1,0,0,1,1)),$AF26)+($J26-INT($J26))*VLOOKUP($J26+1,INDIRECT(OFFSET(AnnFactGenImpLowBal!$A$1,0,0,1,1)),$AF26))) -> 0.3374586481 | AB26: =IF(H26=0,0,((INT($J26)+1-$J26)*VLOOKUP($J26,INDIRECT(OFFSET(AnnFactGenImpHighBal!$A$1,0,0,1,1)),$AF26)+($J26-INT($J26))*VLOOKUP($J26+1,INDIRECT(OFFSET(AnnFactGenImpHighBal!$A$1,0,0,1,1)),$AF26))) -> 0.2831962063 | AC26: 0.6473432714 | AE26: 21 | AF26: 26
A27: 2 | B27: =NewRetirees!B12 -> 1 | C27: 0 | D27: M | E27: 1955-03-25 | G27: 2021-01-01 | H27: =PeriodBal!CG27 -> 106753.3877 | I27: 40000 | J27: =(PARAMS!$B$6-E27)/365.25 -> 66.77344285 | K27: 11.15964707 | L27: 797.17 | M27: =BOYRetirees!L27+SUM(N27:Q27) -> 37.65551101 | N27: =PeriodBal!CK27/(W27*NumPeriods) -> 58.087861 | O27: =IF(H27>0,PeriodBal!CL27/(W27*NumPeriods),0) -> -19.46446087 | P27: -1.410890683 | Q27: 0.443001561 | S27: =MIN((PARAMS!$B$2-B27+1)/PARAMS!$B$2,1) -> 1 | T27: =VLOOKUP(A27,INDIRECT(IF($B27>0,$T$2,$T$3)),17) -> 0.0168586046 | U27: 9.518676339 | V27: 0.4415618731 | W27: 9.250050904 | X27: =AA27*(1-AC27)+AB27*AC27 -> 0.4566807955 | Y27: =((INT($J27)+1-$J27)*VLOOKUP($J27,INDIRECT(OFFSET(AnnFactGenImpLowBal!$A$1,C27,0,1,1)),$AE27)+($J27-INT($J27))*VLOOKUP($J27+1,INDIRECT(OFFSET(AnnFactGenImpLowBal!$A$1,C27,0,1,1)),$AE27)) -> 8.927304746 | Z27: =((INT($J27)+1-$J27)*VLOOKUP($J27,INDIRECT(OFFSET(AnnFactGenImpHighBal!$A$1,C27,0,1,1)),$AE27)+($J27-INT($J27))*VLOOKUP($J27+1,INDIRECT(OFFSET(AnnFactGenImpHighBal!$A$1,C27,0,1,1)),$AE27)) -> 10.06466824 | AA27: =IF(H27=0,0,((INT($J27)+1-$J27)*VLOOKUP($J27,INDIRECT(OFFSET(AnnFactGenImpLowBal!$A$1,0,0,1,1)),$AF27)+($J27-INT($J27))*VLOOKUP($J27+1,INDIRECT(OFFSET(AnnFactGenImpLowBal!$A$1,0,0,1,1)),$AF27))) -> 0.4748991249 | AB27: =IF(H27=0,0,((INT($J27)+1-$J27)*VLOOKUP($J27,INDIRECT(OFFSET(AnnFactGenImpHighBal!$A$1,0,0,1,1)),$AF27)+($J27-INT($J27))*VLOOKUP($J27+1,INDIRECT(OFFSET(AnnFactGenImpHighBal!$A$1,0,0,1,1)),$AF27))) -> 0.4106973911 | AC27: =IFERROR((MIN(HighBal,MAX(H27,LowBal))-LowBal)/(HighBal-LowBal),0) -> 0.2837669387 | AE27: =IF(UPPER(D27)="JM",23,IF(UPPER(D27)="JF",24,IF(UPPER(D27)="M",20,IF(UPPER(D27)="F",21,22)))) -> 20 | AF27: =IF(UPPER(D27)="JM",25,IF(UPPER(D27)="JF",26,IF(UPPER(D27)="M",25,IF(UPPER(D27)="F",26,27)))) -> 25

Sheet PeriodBal
C2: NewRet
C3: BOYRet | CH3: 100 people with $1 coins
CH4: 75% probability of heads, continue
CH5: 25% probability of tails, forfeit
CH6: Expected gain of those who flip heads and continue = 25% / 75%
A8: =BW8 -> 2236246.658 | C8: BOP | D8: New Bal | E8: Death Ben | F8: Withdrawal | G8: Interest | H8: Forfeiture | I8: EOP | BW8: =BW9+BW10 -> 2236246.658 | CC8: =CC10/CE10 -> 0.03370233341 | CF8: =CF10/CE10 -> 0.04528846611 | CL8: 0.06
A9: Longevity Fund -> | C9: 0 | G9: =VLOOKUP(G$10,InvRetMonth,3)*C9 -> 0 | H9: =-SUM(H11:H974) -> 0 | I9: =C9+G9+H9 -> 0 | M9: =VLOOKUP(M$10,InvRetMonth,3)*I9 -> 0 | N9: =-SUM(N11:N974) -> 0 | O9: =I9+M9+N9 -> 0 | S9: =VLOOKUP(S$10,InvRetMonth,3)*O9 -> 0 | T9: =-SUM(T11:T974) -> 0 | U9: =O9+S9+T9 -> 0 | Y9: =VLOOKUP(Y$10,InvRetMonth,3)*U9 -> 0 | Z9: =-SUM(Z11:Z974) -> 81941.79374 | AA9: =U9+Y9+Z9 -> 81941.79374 | AE9: =VLOOKUP(AE$10,InvRetMonth,3)*AA9 -> 187.1724728 | AF9: =-SUM(AF11:AF974) -> 0 | AG9: =AA9+AE9+AF9 -> 82128.96621 | AK9: =VLOOKUP(AK$10,InvRetMonth,3)*AG9 -> 564.9700337 | AL9: =-SUM(AL11:AL974) -> 0 | AM9: =AG9+AK9+AL9 -> 82693.93624 | AQ9: =VLOOKUP(AQ$10,InvRetMonth,3)*AM9 -> 272.8518446 | AR9: =-SUM(AR11:AR974) -> 0 | AS9: =AM9+AQ9+AR9 -> 82966.78809 | AW9: =VLOOKUP(AW$10,InvRetMonth,3)*AS9 -> 305.0367704 | AX9: =-SUM(AX11:AX974) -> 0 | AY9: =AS9+AW9+AX9 -> 83271.82486 | BC9: =VLOOKUP(BC$10,InvRetMonth,3)*AY9 -> 191.8256361 | BD9: =-SUM(BD11:BD974) -> 0 | BE9: =AY9+BC9+BD9 -> 83463.65049 | BI9: =VLOOKUP(BI$10,InvRetMonth,3)*BE9 -> -77.20606915 | BJ9: =-SUM(BJ11:BJ974) -> 0 | BK9: =BE9+BI9+BJ9 -> 83386.44443 | BO9: =VLOOKUP(BO$10,InvRetMonth,3)*BK9 -> 466.1296242 | BP9: =-SUM(BP11:BP974) -> 0 | BQ9: =BK9+BO9+BP9 -> 83852.57405 | BU9: =VLOOKUP(BU$10,InvRetMonth,3)*BQ9 -> 187.905214 | BV9: =-SUM(BV11:BV974) -> 12847.78104 | BW9: =BQ9+BU9+BV9 -> 96888.2603 | BY9: BOYB | BZ9: New Ret | CA9: Death Benefits | CB9: Payments | CC9: Invest Return | CD9: Forfeiture to Longevity Fund | CE9: Prelim EOYB | CF9: Longevity Credit | CG9: EOYB | CH9: qx/(1-qx) | CI9: Exp Long Credit | CJ9: Avg Acct Bal | CK9: Longevity Gain | CL9: Investment Gain
C10: 1 | D10: 1 | E10: 1 | F10: 1 | G10: 1 | H10: 1 | I10: =C10+1 -> 2 | J10: =D10+1 -> 2 | K10: =E10+1 -> 2 | L10: =F10+1 -> 2 | M10: =G10+1 -> 2 | N10: 2 | O10: =I10+1 -> 3 | P10: =J10+1 -> 3 | Q10: =K10+1 -> 3 | R10: =L10+1 -> 3 | S10: =M10+1 -> 3 | T10: =N10+1 -> 3 | U10: =O10+1 -> 4 | V10: =P10+1 -> 4 | W10: =Q10+1 -> 4 | X10: =R10+1 -> 4 | Y10: =S10+1 -> 4 | Z10: =T10+1 -> 4 | AA10: =U10+1 -> 5 | AB10: =V10+1 -> 5 | AC10: =W10+1 -> 5 | AD10: =X10+1 -> 5 | AE10: =Y10+1 -> 5 | AF10: =Z10+1 -> 5 | AG10: =AA10+1 -> 6 | AH10: =AB10+1 -> 6 | AI10: =AC10+1 -> 6 | AJ10: =AD10+1 -> 6 | AK10: =AE10+1 -> 6 | AL10: =AF10+1 -> 6 | AM10: =AG10+1 -> 7 | AN10: =AH10+1 -> 7 | AO10: =AI10+1 -> 7 | AP10: =AJ10+1 -> 7 | AQ10: =AK10+1 -> 7 | AR10: =AL10+1 -> 7 | AS10: =AM10+1 -> 8 | AT10: =AN10+1 -> 8 | AU10: =AO10+1 -> 8 | AV10: =AP10+1 -> 8 | AW10: =AQ10+1 -> 8 | AX10: =AR10+1 -> 8 | AY10: =AS10+1 -> 9 | AZ10: =AT10+1 -> 9 | BA10: =AU10+1 -> 9 | BB10: =AV10+1 -> 9 | BC10: =AW10+1 -> 9 | BD10: =AX10+1 -> 9 | BE10: =AY10+1 -> 10 | BF10: =AZ10+1 -> 10 | BG10: =BA10+1 -> 10 | BH10: =BB10+1 -> 10 | BI10: =BC10+1 -> 10 | BJ10: =BD10+1 -> 10 | BK10: =BE10+1 -> 11 | BL10: =BF10+1 -> 11 | BM10: =BG10+1 -> 11 | BN10: =BH10+1 -> 11 | BO10: =BI10+1 -> 11 | BP10: =BJ10+1 -> 11 | BQ10: =BK10+1 -> 12 | BR10: =BL10+1 -> 12 | BS10: =BM10+1 -> 12 | BT10: =BN10+1 -> 12 | BU10: =BO10+1 -> 12 | BV10: =BP10+1 -> 12 | BW10: =SUM(OFFSET(BW11,0,0,PARAMS!$B$8,1)) -> 2139358.398 | BX10: Total | BY10: =SUM(OFFSET(BY11,0,0,PARAMS!$B$8,1)) -> 1714008.483 | BZ10: =SUM(OFFSET(BZ11,0,0,PARAMS!$B$8,1)) -> 752000 | CA10: =SUM(OFFSET(CA11,0,0,PARAMS!$B$8,1)) -> -140000 | CB10: =SUM(OFFSET(CB11,0,0,PARAMS!$B$8,1)) -> -163961.88 | CC10: =SUM(OFFSET(CC11,0,0,PARAMS!$B$8,1)) -> 72101.37 | CD10: =SUM(OFFSET(CD11,0,0,PARAMS!$B$8,1)) -> -94789.57478 | CE10: =SUM(OFFSET(CE11,0,0,PARAMS!$B$8,1)) -> 2139358.398 | CF10: =SUM(OFFSET(CF11,0,0,PARAMS!$B$8,1)) -> 96888.2603 | CG10: =SUM(OFFSET(CG11,0,0,PARAMS!$B$8,1)) -> 2236246.658 | CH10: =SUM(OFFSET(CH11,0,0,PARAMS!$B$8,1)) -> 0.08320454328 | CI10: =SUM(OFFSET(CI11,0,0,PARAMS!$B$8,1)) -> 12990.97091
A11: b | B11: 1 | C11: =IF(UPPER($A11)="B",VLOOKUP($B11,BOYRet,BOYRetirees!$H$10),0) -> 311518.1564 | D11: =IF(D$10<=PARAMS!$B$3,IF(UPPER($A11)="B",0,IF(VLOOKUP($B11,NewRet,NewRetirees!$B$10)=D$10,VLOOKUP($B11,NewRet,NewRetirees!$H$10),0)),0) -> 0 | E11: =IF(E$10<=PARAMS!$B$3,IF(VLOOKUP($B11,INDIRECT(IF(UPPER($A11)="N",$C$2,$C$3)),BOYRetirees!$N$10)=E$10,-VLOOKUP($B11,INDIRECT(IF(UPPER($A11)="N",$C$2,$C$3)),BOYRetirees!$O$10),0),0) -> 0 | F11: =IF(F$10<=PARAMS!$B$3,-IF(UPPER($A11)="B",IF(OR(VLOOKUP($B11,BOYRet,BOYRetirees!$M$10)="",F$10<=VLOOKUP($B11,BOYRet,BOYRetirees!$M$10)),VLOOKUP($B11,BOYRet,BOYRetirees!$L$10),0),IF(AND(VLOOKUP($B11,NewRet,NewRetirees!$B$10)<=E$10,OR(VLOOKUP($B11,NewRet,NewRetirees!$M$10)="",F$10<=(VLOOKUP($B11,NewRet,NewRetirees!$M$10)))),VLOOKUP($B11,NewRet,NewRetirees!$L$10),0)),0) -> -1671.15 | G11: =ROUND(VLOOKUP(G$10,InvRetMonth,3)*(C11+D11+E11+F11),2) -> 1094.65 | H11: =IF(H$10<=PARAMS!$B$3, IF(VLOOKUP($B11,INDIRECT(IF(UPPER($A11)="N",$C$2,$C$3)),BOYRetirees!$N$10)=H$10,-SUM(C11:G11),0),0) -> 0 | I11: =SUM(C11:H11) -> 310941.6564 | J11: =IF(J$10<=PARAMS!$B$3,IF(UPPER($A11)="B",0,IF(VLOOKUP($B11,NewRet,NewRetirees!$B$10)=J$10,VLOOKUP($B11,NewRet,NewRetirees!$H$10),0)),0) -> 0 | K11: =IF(K$10<=PARAMS!$B$3,IF(VLOOKUP($B11,INDIRECT(IF(UPPER($A11)="N",$C$2,$C$3)),BOYRetirees!$N$10)=K$10,-VLOOKUP($B11,INDIRECT(IF(UPPER($A11)="N",$C$2,$C$3)),BOYRetirees!$O$10),0),0) -> 0 | L11: =IF(L$10<=PARAMS!$B$3,-IF(UPPER($A11)="B",IF(OR(VLOOKUP($B11,BOYRet,BOYRetirees!$M$10)="",L$10<=VLOOKUP($B11,BOYRet,BOYRetirees!$M$10)),VLOOKUP($B11,BOYRet,BOYRetirees!$L$10),0),IF(AND(VLOOKUP($B11,NewRet,NewRetirees!$B$10)<=K$10,OR(VLOOKUP($B11,NewRet,NewRetirees!$M$10)="",L$10<=(VLOOKUP($B11,NewRet,NewRetirees!$M$10)))),VLOOKUP($B11,NewRet,NewRetirees!$L$10),0)),0) -> -1671.15 | M11: =ROUND(VLOOKUP(M$10,InvRetMonth,3)*(I11+J11+K11+L11),2) -> 541.71 | N11: =IF(N$10<=PARAMS!$B$3, IF(VLOOKUP($B11,INDIRECT(IF(UPPER($A11)="N",$C$2,$C$3)),BOYRetirees!$N$10)=N$10,-SUM(I11:M11),0),0) -> 0 | O11: =SUM(I11:N11) -> 309812.2164 | P11: =IF(P$10<=PARAMS!$B$3,IF(UPPER($A11)="B",0,IF(VLOOKUP($B11,NewRet,NewRetirees!$B$10)=P$10,VLOOKUP($B11,NewRet,NewRetirees!$H$10),0)),0) -> 0 | Q11: =IF(Q$10<=PARAMS!$B$3,IF(VLOOKUP($B11,INDIRECT(IF(UPPER($A11)="N",$C$2,$C$3)),BOYRetirees!$N$10)=Q$10,-VLOOKUP($B11,INDIRECT(IF(UPPER($A11)="N",$C$2,$C$3)),BOYRetirees!$O$10),0),0) -> 0 | R11: =IF(R$10<=PARAMS!$B$3,-IF(UPPER($A11)="B",IF(OR(VLOOKUP($B11,BOYRet,BOYRetirees!$M$10)="",R$10<=VLOOKUP($B11,BOYRet,BOYRetirees!$M$10)),VLOOKUP($B11,BOYRet,BOYRetirees!$L$10),0),IF(AND(VLOOKUP($B11,NewRet,NewRetirees!$B$10)<=Q$10,OR(VLOOKUP($B11,NewRet,NewRetirees!$M$10)="",R$10<=(VLOOKUP($B11,NewRet,NewRetirees!$M$10)))),VLOOKUP($B11,NewRet,NewRetirees!$L$10),0)),0) -> -1671.15 | S11: =ROUND(VLOOKUP(S$10,InvRetMonth,3)*(O11+P11+Q11+R11),2) -> -267.05 | T11: =IF(T$10<=PARAMS!$B$3, IF(VLOOKUP($B11,INDIRECT(IF(UPPER($A11)="N",$C$2,$C$3)),BOYRetirees!$N$10)=T$10,-SUM(O11:S11),0),0) -> 0 | U11: =SUM(O11:T11) -> 307874.0164 | V11: =IF(V$10<=PARAMS!$B$3,IF(UPPER($A11)="B",0,IF(VLOOKUP($B11,NewRet,NewRetirees!$B$10)=V$10,VLOOKUP($B11,NewRet,NewRetirees!$H$10),0)),0) -> 0 | W11: =IF(W$10<=PARAMS!$B$3,IF(VLOOKUP($B11,INDIRECT(IF(UPPER($A11)="N",$C$2,$C$3)),BOYRetirees!$N$10)=W$10,-VLOOKUP($B11,INDIRECT(IF(UPPER($A11)="N",$C$2,$C$3)),BOYRetirees!$O$10),0),0) -> 0 | X11: =IF(X$10<=PARAMS!$B$3,-IF(UPPER($A11)="B",IF(OR(VLOOKUP($B11,BOYRet,BOYRetirees!$M$10)="",X$10<=VLOOKUP($B11,BOYRet,BOYRetirees!$M$10)),VLOOKUP($B11,BOYRet,BOYRetirees!$L$10),0),IF(AND(VLOOKUP($B11,NewRet,NewRetirees!$B$10)<=W$10,OR(VLOOKUP($B11,NewRet,NewRetirees!$M$10)="",X$10<=(VLOOKUP($B11,NewRet,NewRetirees!$M$10)))),VLOOKUP($B11,NewRet,NewRetirees!$L$10),0)),0) -> -1671.15 | Y11: =ROUND(VLOOKUP(Y$10,InvRetMonth,3)*(U11+V11+W11+X11),2) -> 1396.69 | Z11: =IF(Z$10<=PARAMS!$B$3, IF(VLOOKUP($B11,INDIRECT(IF(UPPER($A11)="N",$C$2,$C$3)),BOYRetirees!$N$10)=Z$10,-SUM(U11:Y11),0),0) -> 0 | AA11: =SUM(U11:Z11) -> 307599.5564 | AB11: =IF(AB$10<=PARAMS!$B$3,IF(UPPER($A11)="B",0,IF(VLOOKUP($B11,NewRet,NewRetirees!$B$10)=AB$10,VLOOKUP($B11,NewRet,NewRetirees!$H$10),0)),0) -> 0 | AC11: =IF(AC$10<=PARAMS!$B$3,IF(VLOOKUP($B11,INDIRECT(IF(UPPER($A11)="N",$C$2,$C$3)),BOYRetirees!$N$10)=AC$10,-VLOOKUP($B11,INDIRECT(IF(UPPER($A11)="N",$C$2,$C$3)),BOYRetirees!$O$10),0),0) -> 0 | AD11: =IF(AD$10<=PARAMS!$B$3,-IF(UPPER($A11)="B",IF(OR(VLOOKUP($B11,BOYRet,BOYRetirees!$M$10)="",AD$10<=VLOOKUP($B11,BOYRet,BOYRetirees!$M$10)),VLOOKUP($B11,BOYRet,BOYRetirees!$L$10),0),IF(AND(VLOOKUP($B11,NewRet,NewRetirees!$B$10)<=AC$10,OR(VLOOKUP($B11,NewRet,NewRetirees!$M$10)="",AD$10<=(VLOOKUP($B11,NewRet,NewRetirees!$M$10)))),VLOOKUP($B11,NewRet,NewRetirees!$L$10),0)),0) -> -1671.15 | AE11: =ROUND(VLOOKUP(AE$10,InvRetMonth,3)*(AA11+AB11+AC11+AD11),2) -> 698.81 | AF11: =IF(AF$10<=PARAMS!$B$3,IF(UPPER($A11)="B",IF(VLOOKUP($B11,BOYRet,BOYRetirees!$N$10)=AF$10,-SUM(AA11:AE11),0),IF(VLOOKUP($B11,NewRet,NewRetirees!$N$10)=AF$10,-SUM(AA11:AE11),0)),0) -> 0 | AG11: =SUM(AA11:AF11) -> 306627.2164 | AH11: =IF(AH$10<=PARAMS!$B$3,IF(UPPER($A11)="B",0,IF(VLOOKUP($B11,NewRet,NewRetirees!$B$10)=AH$10,VLOOKUP($B11,NewRet,NewRetirees!$H$10),0)),0) -> 0 | AI11: =IF(AI$10<=PARAMS!$B$3,IF(VLOOKUP($B11,INDIRECT(IF(UPPER($A11)="N",$C$2,$C$3)),BOYRetirees!$N$10)=AI$10,-VLOOKUP($B11,INDIRECT(IF(UPPER($A11)="N",$C$2,$C$3)),BOYRetirees!$O$10),0),0) -> 0 | AJ11: =IF(AJ$10<=PARAMS!$B$3,-IF(UPPER($A11)="B",IF(OR(VLOOKUP($B11,BOYRet,BOYRetirees!$M$10)="",AJ$10<=VLOOKUP($B11,BOYRet,BOYRetirees!$M$10)),VLOOKUP($B11,BOYRet,BOYRetirees!$L$10),0),IF(AND(VLOOKUP($B11,NewRet,NewRetirees!$B$10)<=AI$10,OR(VLOOKUP($B11,NewRet,NewRetirees!$M$10)="",AJ$10<=(VLOOKUP($B11,NewRet,NewRetirees!$M$10)))),VLOOKUP($B11,NewRet,NewRetirees!$L$10),0)),0) -> -1671.15 | AK11: =ROUND(VLOOKUP(AK$10,InvRetMonth,3)*(AG11+AH11+AI11+AJ11),2) -> 2097.81 | AL11: =IF(AL$10<=PARAMS!$B$3, IF(VLOOKUP($B11,INDIRECT(IF(UPPER($A11)="N",$C$2,$C$3)),BOYRetirees!$N$10)=AL$10,-SUM(AG11:AK11),0),0) -> 0 | AM11: =SUM(AG11:AL11) -> 307053.8764 | AN11: =IF(AN$10<=PARAMS!$B$3,IF(UPPER($A11)="B",0,IF(VLOOKUP($B11,NewRet,NewRetirees!$B$10)=AN$10,VLOOKUP($B11,NewRet,NewRetirees!$H$10),0)),0) -> 0 | AO11: =IF(AO$10<=PARAMS!$B$3,IF(VLOOKUP($B11,INDIRECT(IF(UPPER($A11)="N",$C$2,$C$3)),BOYRetirees!$N$10)=AO$10,-VLOOKUP($B11,INDIRECT(IF(UPPER($A11)="N",$C$2,$C$3)),BOYRetirees!$O$10),0),0) -> 0 | AP11: =IF(AP$10<=PARAMS!$B$3,-IF(UPPER($A11)="B",IF(OR(VLOOKUP($B11,BOYRet,BOYRetirees!$M$10)="",AP$10<=VLOOKUP($B11,BOYRet,BOYRetirees!$M$10)),VLOOKUP($B11,BOYRet,BOYRetirees!$L$10),0),IF(AND(VLOOKUP($B11,NewRet,NewRetirees!$B$10)<=AO$10,OR(VLOOKUP($B11,NewRet,NewRetirees!$M$10)="",AP$10<=(VLOOKUP($B11,NewRet,NewRetirees!$M$10)))),VLOOKUP($B11,NewRet,NewRetirees!$L$10),0)),0) -> -1671.15 | AQ11: =ROUND(VLOOKUP(AQ$10,InvRetMonth,3)*(AM11+AN11+AO11+AP11),2) -> 1007.62 | AR11: =IF(AR$10<=PARAMS!$B$3, IF(VLOOKUP($B11,INDIRECT(IF(UPPER($A11)="N",$C$2,$C$3)),BOYRetirees!$N$10)=AR$10,-SUM(AM11:AQ11),0),0) -> 0 | AS11: =SUM(AM11:AR11) -> 306390.3464 | AT11: =IF(AT$10<=PARAMS!$B$3,IF(UPPER($A11)="B",0,IF(VLOOKUP($B11,NewRet,NewRetirees!$B$10)=AT$10,VLOOKUP($B11,NewRet,NewRetirees!$H$10),0)),0) -> 0 | AU11: =IF(AU$10<=PARAMS!$B$3,IF(VLOOKUP($B11,INDIRECT(IF(UPPER($A11)="N",$C$2,$C$3)),BOYRetirees!$N$10)=AU$10,-VLOOKUP($B11,INDIRECT(IF(UPPER($A11)="N",$C$2,$C$3)),BOYRetirees!$O$10),0),0) -> 0 | AV11: =IF(AV$10<=PARAMS!$B$3,-IF(UPPER($A11)="B",IF(OR(VLOOKUP($B11,BOYRet,BOYRetirees!$M$10)="",AV$10<=VLOOKUP($B11,BOYRet,BOYRetirees!$M$10)),VLOOKUP($B11,BOYRet,BOYRetirees!$L$10),0),IF(AND(VLOOKUP($B11,NewRet,NewRetirees!$B$10)<=AU$10,OR(VLOOKUP($B11,NewRet,NewRetirees!$M$10)="",AV$10<=(VLOOKUP($B11,NewRet,NewRetirees!$M$10)))),VLOOKUP($B11,NewRet,NewRetirees!$L$10),0)),0) -> -1671.15 | AW11: =ROUND(VLOOKUP(AW$10,InvRetMonth,3)*(AS11+AT11+AU11+AV11),2) -> 1120.33 | AX11: =IF(AX$10<=PARAMS!$B$3, IF(VLOOKUP($B11,INDIRECT(IF(UPPER($A11)="N",$C$2,$C$3)),BOYRetirees!$N$10)=AX$10,-SUM(AS11:AW11),0),0) -> 0 | AY11: =SUM(AS11:AX11) -> 305839.5264 | AZ11: =IF(AZ$10<=PARAMS!$B$3,IF(UPPER($A11)="B",0,IF(VLOOKUP($B11,NewRet,NewRetirees!$B$10)=AZ$10,VLOOKUP($B11,NewRet,NewRetirees!$H$10),0)),0) -> 0 | BA11: =IF(BA$10<=PARAMS!$B$3,IF(VLOOKUP($B11,INDIRECT(IF(UPPER($A11)="N",$C$2,$C$3)),BOYRetirees!$N$10)=BA$10,-VLOOKUP($B11,INDIRECT(IF(UPPER($A11)="N",$C$2,$C$3)),BOYRetirees!$O$10),0),0) -> 0 | BB11: =IF(BB$10<=PARAMS!$B$3,-IF(UPPER($A11)="B",IF(OR(VLOOKUP($B11,BOYRet,BOYRetirees!$M$10)="",BB$10<=VLOOKUP($B11,BOYRet,BOYRetirees!$M$10)),VLOOKUP($B11,BOYRet,BOYRetirees!$L$10),0),IF(AND(VLOOKUP($B11,NewRet,NewRetirees!$B$10)<=BA$10,OR(VLOOKUP($B11,NewRet,NewRetirees!$M$10)="",BB$10<=(VLOOKUP($B11,NewRet,NewRetirees!$M$10)))),VLOOKUP($B11,NewRet,NewRetirees!$L$10),0)),0) -> -1671.15 | BC11: =ROUND(VLOOKUP(BC$10,InvRetMonth,3)*(AY11+AZ11+BA11+BB11),2) -> 700.68 | BD11: =IF(BD$10<=PARAMS!$B$3, IF(VLOOKUP($B11,INDIRECT(IF(UPPER($A11)="N",$C$2,$C$3)),BOYRetirees!$N$10)=BD$10,-SUM(AY11:BC11),0),0) -> 0 | BE11: =SUM(AY11:BD11) -> 304869.0564 | BF11: =IF(BF$10<=PARAMS!$B$3,IF(UPPER($A11)="B",0,IF(VLOOKUP($B11,NewRet,NewRetirees!$B$10)=BF$10,VLOOKUP($B11,NewRet,NewRetirees!$H$10),0)),0) -> 0 | BG11: =IF(BG$10<=PARAMS!$B$3,IF(VLOOKUP($B11,INDIRECT(IF(UPPER($A11)="N",$C$2,$C$3)),BOYRetirees!$N$10)=BG$10,-VLOOKUP($B11,INDIRECT(IF(UPPER($A11)="N",$C$2,$C$3)),BOYRetirees!$O$10),0),0) -> 0 | BH11: =IF(BH$10<=PARAMS!$B$3,-IF(UPPER($A11)="B",IF(OR(VLOOKUP($B11,BOYRet,BOYRetirees!$M$10)="",BH$10<=VLOOKUP($B11,BOYRet,BOYRetirees!$M$10)),VLOOKUP($B11,BOYRet,BOYRetirees!$L$10),0),IF(AND(VLOOKUP($B11,NewRet,NewRetirees!$B$10)<=BG$10,OR(VLOOKUP($B11,NewRet,NewRetirees!$M$10)="",BH$10<=(VLOOKUP($B11,NewRet,NewRetirees!$M$10)))),VLOOKUP($B11,NewRet,NewRetirees!$L$10),0)),0) -> -1671.15 | BI11: =ROUND(VLOOKUP(BI$10,InvRetMonth,3)*(BE11+BF11+BG11+BH11),2) -> -280.47 | BJ11: =IF(BJ$10<=PARAMS!$B$3, IF(VLOOKUP($B11,INDIRECT(IF(UPPER($A11)="N",$C$2,$C$3)),BOYRetirees!$N$10)=BJ$10,-SUM(BE11:BI11),0),0) -> 0 | BK11: =SUM(BE11:BJ11) -> 302917.4364 | BL11: =IF(BL$10<=PARAMS!$B$3,IF(UPPER($A11)="B",0,IF(VLOOKUP($B11,NewRet,NewRetirees!$B$10)=BL$10,VLOOKUP($B11,NewRet,NewRetirees!$H$10),0)),0) -> 0 | BM11: =IF(BM$10<=PARAMS!$B$3,IF(VLOOKUP($B11,INDIRECT(IF(UPPER($A11)="N",$C$2,$C$3)),BOYRetirees!$N$10)=BM$10,-VLOOKUP($B11,INDIRECT(IF(UPPER($A11)="N",$C$2,$C$3)),BOYRetirees!$O$10),0),0) -> 0 | BN11: =IF(BN$10<=PARAMS!$B$3,-IF(UPPER($A11)="B",IF(OR(VLOOKUP($B11,BOYRet,BOYRetirees!$M$10)="",BN$10<=VLOOKUP($B11,BOYRet,BOYRetirees!$M$10)),VLOOKUP($B11,BOYRet,BOYRetirees!$L$10),0),IF(AND(VLOOKUP($B11,NewRet,NewRetirees!$B$10)<=BM$10,OR(VLOOKUP($B11,NewRet,NewRetirees!$M$10)="",BN$10<=(VLOOKUP($B11,NewRet,NewRetirees!$M$10)))),VLOOKUP($B11,NewRet,NewRetirees!$L$10),0)),0) -> -1671.15 | BO11: =ROUND(VLOOKUP(BO$10,InvRetMonth,3)*(BK11+BL11+BM11+BN11),2) -> 1683.96 | BP11: =IF(BP$10<=PARAMS!$B$3, IF(VLOOKUP($B11,INDIRECT(IF(UPPER($A11)="N",$C$2,$C$3)),BOYRetirees!$N$10)=BP$10,-SUM(BK11:BO11),0),0) -> 0 | BQ11: =SUM(BK11:BP11) -> 302930.2464 | BR11: =IF(BR$10<=PARAMS!$B$3,IF(UPPER($A11)="B",0,IF(VLOOKUP($B11,NewRet,NewRetirees!$B$10)=BR$10,VLOOKUP($B11,NewRet,NewRetirees!$H$10),0)),0) -> 0 | BS11: =IF(BS$10<=PARAMS!$B$3,IF(VLOOKUP($B11,INDIRECT(IF(UPPER($A11)="N",$C$2,$C$3)),BOYRetirees!$N$10)=BS$10,-VLOOKUP($B11,INDIRECT(IF(UPPER($A11)="N",$C$2,$C$3)),BOYRetirees!$O$10),0),0) -> 0 | BT11: =IF(BT$10<=PARAMS!$B$3,-IF(UPPER($A11)="B",IF(OR(VLOOKUP($B11,BOYRet,BOYRetirees!$M$10)="",BT$10<=VLOOKUP($B11,BOYRet,BOYRetirees!$M$10)),VLOOKUP($B11,BOYRet,BOYRetirees!$L$10),0),IF(AND(VLOOKUP($B11,NewRet,NewRetirees!$B$10)<=BS$10,OR(VLOOKUP($B11,NewRet,NewRetirees!$M$10)="",BT$10<=(VLOOKUP($B11,NewRet,NewRetirees!$M$10)))),VLOOKUP($B11,NewRet,NewRetirees!$L$10),0)),0) -> -1671.15 | BU11: =ROUND(VLOOKUP(BU$10,InvRetMonth,3)*(BQ11+BR11+BS11+BT11),2) -> 675.09 | BV11: =IF(BV$10<=PARAMS!$B$3, IF(VLOOKUP($B11,INDIRECT(IF(UPPER($A11)="N",$C$2,$C$3)),BOYRetirees!$N$10)=BV$10,-SUM(BQ11:BU11),0),0) -> 0 | BW11: =SUM(BQ11:BV11) -> 301934.1864 | BX11: =UPPER(A11)&TEXT(B11,"00000") -> B00001 | BY11: =C11 -> 311518.1564 | BZ11: =SUM(D11+J11+P11+V11+AB11+AH11+AN11+AT11+AZ11+BF11+BL11+BR11) -> 0 | CA11: =SUM(E11+K11+Q11+W11+AC11+AI11+AO11+AU11+BA11+BG11+BM11+BS11) -> 0 | CB11: =SUM(F11+L11+R11+X11+AD11+AJ11+AP11+AV11+BB11+BH11+BN11+BT11) -> -20053.8 | CC11: =SUM(G11+M11+S11+Y11+AE11+AK11+AQ11+AW11+BC11+BI11+BO11+BU11) -> 10469.83 | CD11: =SUM(H11+N11+T11+Z11+AF11+AL11+AR11+AX11+BD11+BJ11+BP11+BV11) -> 0 | CE11: =SUM(BY11:CD11) -> 301934.1864 | CF11: =CI11/CI$10*BW$9 -> 6049.065113 | CG11: =CE11+CF11 -> 307983.2515 | CH11: =IF(BW11>0,VLOOKUP(B11,INDIRECT(IF(UPPER(A11)="N",$C$2,$C$3)),BOYRetirees!$P$10),0) -> 0.002645034056 | CI11: =CH11*CJ11 -> 811.0706981 | CJ11: =(C11+I11+O11+U11+AA11+AG11+AM11+AS11+AY11+BE11+BK11+BQ11+BW11)/(PARAMS!$B$2+1) -> 306639.0379 | CK11: =CF11-CI11 -> 5237.994415 | CL11: =CC11-CL$8*CJ11 -> -7928.512275
A12: b | B12: =B11+1 -> 2 | C12: =IF(UPPER($A12)="B",VLOOKUP($B12,BOYRet,BOYRetirees!$H$10),0) -> 185256.0037 | D12: =IF(D$10<=PARAMS!$B$3,IF(UPPER($A12)="B",0,IF(VLOOKUP($B12,NewRet,NewRetirees!$B$10)=D$10,VLOOKUP($B12,NewRet,NewRetirees!$H$10),0)),0) -> 0 | E12: =IF(E$10<=PARAMS!$B$3,IF(VLOOKUP($B12,INDIRECT(IF(UPPER($A12)="N",$C$2,$C$3)),BOYRetirees!$N$10)=E$10,-VLOOKUP($B12,INDIRECT(IF(UPPER($A12)="N",$C$2,$C$3)),BOYRetirees!$O$10),0),0) -> 0 | F12: =IF(F$10<=PARAMS!$B$3,-IF(UPPER($A12)="B",IF(OR(VLOOKUP($B12,BOYRet,BOYRetirees!$M$10)="",F$10<=VLOOKUP($B12,BOYRet,BOYRetirees!$M$10)),VLOOKUP($B12,BOYRet,BOYRetirees!$L$10),0),IF(AND(VLOOKUP($B12,NewRet,NewRetirees!$B$10)<=E$10,OR(VLOOKUP($B12,NewRet,NewRetirees!$M$10)="",F$10<=(VLOOKUP($B12,NewRet,NewRetirees!$M$10)))),VLOOKUP($B12,NewRet,NewRetirees!$L$10),0)),0) -> -1499.45 | G12: =ROUND(VLOOKUP(G$10,InvRetMonth,3)*(C12+D12+E12+F12),2) -> 649.19 | H12: =IF(H$10<=PARAMS!$B$3, IF(VLOOKUP($B12,INDIRECT(IF(UPPER($A12)="N",$C$2,$C$3)),BOYRetirees!$N$10)=H$10,-SUM(C12:G12),0),0) -> 0 | I12: =SUM(C12:H12) -> 184405.7437 | J12: =IF(J$10<=PARAMS!$B$3,IF(UPPER($A12)="B",0,IF(VLOOKUP($B12,NewRet,NewRetirees!$B$10)=J$10,VLOOKUP($B12,NewRet,NewRetirees!$H$10),0)),0) -> 0 | K12: =IF(K$10<=PARAMS!$B$3,IF(VLOOKUP($B12,INDIRECT(IF(UPPER($A12)="N",$C$2,$C$3)),BOYRetirees!$N$10)=K$10,-VLOOKUP($B12,INDIRECT(IF(UPPER($A12)="N",$C$2,$C$3)),BOYRetirees!$O$10),0),0) -> 0 | L12: =IF(L$10<=PARAMS!$B$3,-IF(UPPER($A12)="B",IF(OR(VLOOKUP($B12,BOYRet,BOYRetirees!$M$10)="",L$10<=VLOOKUP($B12,BOYRet,BOYRetirees!$M$10)),VLOOKUP($B12,BOYRet,BOYRetirees!$L$10),0),IF(AND(VLOOKUP($B12,NewRet,NewRetirees!$B$10)<=K$10,OR(VLOOKUP($B12,NewRet,NewRetirees!$M$10)="",L$10<=(VLOOKUP($B12,NewRet,NewRetirees!$M$10)))),VLOOKUP($B12,NewRet,NewRetirees!$L$10),0)),0) -> -1499.45 | M12: =ROUND(VLOOKUP(M$10,InvRetMonth,3)*(I12+J12+K12+L12),2) -> 320.37 | N12: =IF(N$10<=PARAMS!$B$3, IF(VLOOKUP($B12,INDIRECT(IF(UPPER($A12)="N",$C$2,$C$3)),BOYRetirees!$N$10)=N$10,-SUM(I12:M12),0),0) -> 0 | O12: =SUM(I12:N12) -> 183226.6637 | P12: =IF(P$10<=PARAMS!$B$3,IF(UPPER($A12)="B",0,IF(VLOOKUP($B12,NewRet,NewRetirees!$B$10)=P$10,VLOOKUP($B12,NewRet,NewRetirees!$H$10),0)),0) -> 0 | Q12: =IF(Q$10<=PARAMS!$B$3,IF(VLOOKUP($B12,INDIRECT(IF(UPPER($A12)="N",$C$2,$C$3)),BOYRetirees!$N$10)=Q$10,-VLOOKUP($B12,INDIRECT(IF(UPPER($A12)="N",$C$2,$C$3)),BOYRetirees!$O$10),0),0) -> 0 | R12: =IF(R$10<=PARAMS!$B$3,-IF(UPPER($A12)="B",IF(OR(VLOOKUP($B12,BOYRet,BOYRetirees!$M$10)="",R$10<=VLOOKUP($B12,BOYRet,BOYRetirees!$M$10)),VLOOKUP($B12,BOYRet,BOYRetirees!$L$10),0),IF(AND(VLOOKUP($B12,NewRet,NewRetirees!$B$10)<=Q$10,OR(VLOOKUP($B12,NewRet,NewRetirees!$M$10)="",R$10<=(VLOOKUP($B12,NewRet,NewRetirees!$M$10)))),VLOOKUP($B12,NewRet,NewRetirees!$L$10),0)),0) -> -1499.45 | S12: -157.49 | T12: =IF(T$10<=PARAMS!$B$3, IF(VLOOKUP($B12,INDIRECT(IF(UPPER($A12)="N",$C$2,$C$3)),BOYRetirees!$N$10)=T$10,-SUM(O12:S12),0),0) -> 0 | U12: =SUM(O12:T12) -> 181569.7237 | V12: =IF(V$10<=PARAMS!$B$3,IF(UPPER($A12)="B",0,IF(VLOOKUP($B12,NewRet,NewRetirees!$B$10)=V$10,VLOOKUP($B12,NewRet,NewRetirees!$H$10),0)),0) -> 0 | W12: =IF(W$10<=PARAMS!$B$3,IF(VLOOKUP($B12,INDIRECT(IF(UPPER($A12)="N",$C$2,$C$3)),BOYRetirees!$N$10)=W$10,-VLOOKUP($B12,INDIRECT(IF(UPPER($A12)="N",$C$2,$C$3)),BOYRetirees!$O$10),0),0) -> -100000 | X12: =IF(X$10<=PARAMS!$B$3,-IF(UPPER($A12)="B",IF(OR(VLOOKUP($B12,BOYRet,BOYRetirees!$M$10)="",X$10<=VLOOKUP($B12,BOYRet,BOYRetirees!$M$10)),VLOOKUP($B12,BOYRet,BOYRetirees!$L$10),0),IF(AND(VLOOKUP($B12,NewRet,NewRetirees!$B$10)<=W$10,OR(VLOOKUP($B12,NewRet,NewRetirees!$M$10)="",X$10<=(VLOOKUP($B12,NewRet,NewRetirees!$M$10)))),VLOOKUP($B12,NewRet,NewRetirees!$L$10),0)),0) -> 0 | Y12: 372.07 | Z12: =IF(Z$10<=PARAMS!$B$3, IF(VLOOKUP($B12,INDIRECT(IF(UPPER($A12)="N",$C$2,$C$3)),BOYRetirees!$N$10)=Z$10,-SUM(U12:Y12),0),0) -> -81941.79374 | AA12: =SUM(U12:Z12) -> 0 | AB12: =IF(AB$10<=PARAMS!$B$3,IF(UPPER($A12)="B",0,IF(VLOOKUP($B12,NewRet,NewRetirees!$B$10)=AB$10,VLOOKUP($B12,NewRet,NewRetirees!$H$10),0)),0) -> 0 | AC12: =IF(AC$10<=PARAMS!$B$3,IF(VLOOKUP($B12,INDIRECT(IF(UPPER($A12)="N",$C$2,$C$3)),BOYRetirees!$N$10)=AC$10,-VLOOKUP($B12,INDIRECT(IF(UPPER($A12)="N",$C$2,$C$3)),BOYRetirees!$O$10),0),0) -> 0 | AD12: =IF(AD$10<=PARAMS!$B$3,-IF(UPPER($A12)="B",IF(OR(VLOOKUP($B12,BOYRet,BOYRetirees!$M$10)="",AD$10<=VLOOKUP($B12,BOYRet,BOYRetirees!$M$10)),VLOOKUP($B12,BOYRet,BOYRetirees!$L$10),0),IF(AND(VLOOKUP($B12,NewRet,NewRetirees!$B$10)<=AC$10,OR(VLOOKUP($B12,NewRet,NewRetirees!$M$10)="",AD$10<=(VLOOKUP($B12,NewRet,NewRetirees!$M$10)))),VLOOKUP($B12,NewRet,NewRetirees!$L$10),0)),0) -> 0 | AE12: 0 | AF12: =IF(AF$10<=PARAMS!$B$3,IF(UPPER($A12)="B",IF(VLOOKUP($B12,BOYRet,BOYRetirees!$N$10)=AF$10,-SUM(AA12:AE12),0),IF(VLOOKUP($B12,NewRet,NewRetirees!$N$10)=AF$10,-SUM(AA12:AE12),0)),0) -> 0 | AG12: =SUM(AA12:AF12) -> 0 | AH12: =IF(AH$10<=PARAMS!$B$3,IF(UPPER($A12)="B",0,IF(VLOOKUP($B12,NewRet,NewRetirees!$B$10)=AH$10,VLOOKUP($B12,NewRet,NewRetirees!$H$10),0)),0) -> 0 | AI12: =IF(AI$10<=PARAMS!$B$3,IF(VLOOKUP($B12,INDIRECT(IF(UPPER($A12)="N",$C$2,$C$3)),BOYRetirees!$N$10)=AI$10,-VLOOKUP($B12,INDIRECT(IF(UPPER($A12)="N",$C$2,$C$3)),BOYRetirees!$O$10),0),0) -> 0 | AJ12: =IF(AJ$10<=PARAMS!$B$3,-IF(UPPER($A12)="B",IF(OR(VLOOKUP($B12,BOYRet,BOYRetirees!$M$10)="",AJ$10<=VLOOKUP($B12,BOYRet,BOYRetirees!$M$10)),VLOOKUP($B12,BOYRet,BOYRetirees!$L$10),0),IF(AND(VLOOKUP($B12,NewRet,NewRetirees!$B$10)<=AI$10,OR(VLOOKUP($B12,NewRet,NewRetirees!$M$10)="",AJ$10<=(VLOOKUP($B12,NewRet,NewRetirees!$M$10)))),VLOOKUP($B12,NewRet,NewRetirees!$L$10),0)),0) -> 0 | AK12: 0 | AL12: =IF(AL$10<=PARAMS!$B$3, IF(VLOOKUP($B12,INDIRECT(IF(UPPER($A12)="N",$C$2,$C$3)),BOYRetirees!$N$10)=AL$10,-SUM(AG12:AK12),0),0) -> 0 | AM12: =SUM(AG12:AL12) -> 0 | AN12: =IF(AN$10<=PARAMS!$B$3,IF(UPPER($A12)="B",0,IF(VLOOKUP($B12,NewRet,NewRetirees!$B$10)=AN$10,VLOOKUP($B12,NewRet,NewRetirees!$H$10),0)),0) -> 0 | AO12: =IF(AO$10<=PARAMS!$B$3,IF(VLOOKUP($B12,INDIRECT(IF(UPPER($A12)="N",$C$2,$C$3)),BOYRetirees!$N$10)=AO$10,-VLOOKUP($B12,INDIRECT(IF(UPPER($A12)="N",$C$2,$C$3)),BOYRetirees!$O$10),0),0) -> 0 | AP12: =IF(AP$10<=PARAMS!$B$3,-IF(UPPER($A12)="B",IF(OR(VLOOKUP($B12,BOYRet,BOYRetirees!$M$10)="",AP$10<=VLOOKUP($B12,BOYRet,BOYRetirees!$M$10)),VLOOKUP($B12,BOYRet,BOYRetirees!$L$10),0),IF(AND(VLOOKUP($B12,NewRet,NewRetirees!$B$10)<=AO$10,OR(VLOOKUP($B12,NewRet,NewRetirees!$M$10)="",AP$10<=(VLOOKUP($B12,NewRet,NewRetirees!$M$10)))),VLOOKUP($B12,NewRet,NewRetirees!$L$10),0)),0) -> 0 | AQ12: 0 | AR12: =IF(AR$10<=PARAMS!$B$3, IF(VLOOKUP($B12,INDIRECT(IF(UPPER($A12)="N",$C$2,$C$3)),BOYRetirees!$N$10)=AR$10,-SUM(AM12:AQ12),0),0) -> 0 | AS12: =SUM(AM12:AR12) -> 0 | AT12: =IF(AT$10<=PARAMS!$B$3,IF(UPPER($A12)="B",0,IF(VLOOKUP($B12,NewRet,NewRetirees!$B$10)=AT$10,VLOOKUP($B12,NewRet,NewRetirees!$H$10),0)),0) -> 0 | AU12: =IF(AU$10<=PARAMS!$B$3,IF(VLOOKUP($B12,INDIRECT(IF(UPPER($A12)="N",$C$2,$C$3)),BOYRetirees!$N$10)=AU$10,-VLOOKUP($B12,INDIRECT(IF(UPPER($A12)="N",$C$2,$C$3)),BOYRetirees!$O$10),0),0) -> 0 | AV12: =IF(AV$10<=PARAMS!$B$3,-IF(UPPER($A12)="B",IF(OR(VLOOKUP($B12,BOYRet,BOYRetirees!$M$10)="",AV$10<=VLOOKUP($B12,BOYRet,BOYRetirees!$M$10)),VLOOKUP($B12,BOYRet,BOYRetirees!$L$10),0),IF(AND(VLOOKUP($B12,NewRet,NewRetirees!$B$10)<=AU$10,OR(VLOOKUP($B12,NewRet,NewRetirees!$M$10)="",AV$10<=(VLOOKUP($B12,NewRet,NewRetirees!$M$10)))),VLOOKUP($B12,NewRet,NewRetirees!$L$10),0)),0) -> 0 | AW12: 0 | AX12: =IF(AX$10<=PARAMS!$B$3, IF(VLOOKUP($B12,INDIRECT(IF(UPPER($A12)="N",$C$2,$C$3)),BOYRetirees!$N$10)=AX$10,-SUM(AS12:AW12),0),0) -> 0 | AY12: =SUM(AS12:AX12) -> 0 | AZ12: =IF(AZ$10<=PARAMS!$B$3,IF(UPPER($A12)="B",0,IF(VLOOKUP($B12,NewRet,NewRetirees!$B$10)=AZ$10,VLOOKUP($B12,NewRet,NewRetirees!$H$10),0)),0) -> 0 | BA12: =IF(BA$10<=PARAMS!$B$3,IF(VLOOKUP($B12,INDIRECT(IF(UPPER($A12)="N",$C$2,$C$3)),BOYRetirees!$N$10)=BA$10,-VLOOKUP($B12,INDIRECT(IF(UPPER($A12)="N",$C$2,$C$3)),BOYRetirees!$O$10),0),0) -> 0 | BB12: =IF(BB$10<=PARAMS!$B$3,-IF(UPPER($A12)="B",IF(OR(VLOOKUP($B12,BOYRet,BOYRetirees!$M$10)="",BB$10<=VLOOKUP($B12,BOYRet,BOYRetirees!$M$10)),VLOOKUP($B12,BOYRet,BOYRetirees!$L$10),0),IF(AND(VLOOKUP($B12,NewRet,NewRetirees!$B$10)<=BA$10,OR(VLOOKUP($B12,NewRet,NewRetirees!$M$10)="",BB$10<=(VLOOKUP($B12,NewRet,NewRetirees!$M$10)))),VLOOKUP($B12,NewRet,NewRetirees!$L$10),0)),0) -> 0 | BC12: 0 | BD12: =IF(BD$10<=PARAMS!$B$3, IF(VLOOKUP($B12,INDIRECT(IF(UPPER($A12)="N",$C$2,$C$3)),BOYRetirees!$N$10)=BD$10,-SUM(AY12:BC12),0),0) -> 0 | BE12: =SUM(AY12:BD12) -> 0 | BF12: =IF(BF$10<=PARAMS!$B$3,IF(UPPER($A12)="B",0,IF(VLOOKUP($B12,NewRet,NewRetirees!$B$10)=BF$10,VLOOKUP($B12,NewRet,NewRetirees!$H$10),0)),0) -> 0 | BG12: =IF(BG$10<=PARAMS!$B$3,IF(VLOOKUP($B12,INDIRECT(IF(UPPER($A12)="N",$C$2,$C$3)),BOYRetirees!$N$10)=BG$10,-VLOOKUP($B12,INDIRECT(IF(UPPER($A12)="N",$C$2,$C$3)),BOYRetirees!$O$10),0),0) -> 0 | BH12: =IF(BH$10<=PARAMS!$B$3,-IF(UPPER($A12)="B",IF(OR(VLOOKUP($B12,BOYRet,BOYRetirees!$M$10)="",BH$10<=VLOOKUP($B12,BOYRet,BOYRetirees!$M$10)),VLOOKUP($B12,BOYRet,BOYRetirees!$L$10),0),IF(AND(VLOOKUP($B12,NewRet,NewRetirees!$B$10)<=BG$10,OR(VLOOKUP($B12,NewRet,NewRetirees!$M$10)="",BH$10<=(VLOOKUP($B12,NewRet,NewRetirees!$M$10)))),VLOOKUP($B12,NewRet,NewRetirees!$L$10),0)),0) -> 0 | BI12: 0 | BJ12: =IF(BJ$10<=PARAMS!$B$3, IF(VLOOKUP($B12,INDIRECT(IF(UPPER($A12)="N",$C$2,$C$3)),BOYRetirees!$N$10)=BJ$10,-SUM(BE12:BI12),0),0) -> 0 | BK12: =SUM(BE12:BJ12) -> 0 | BL12: =IF(BL$10<=PARAMS!$B$3,IF(UPPER($A12)="B",0,IF(VLOOKUP($B12,NewRet,NewRetirees!$B$10)=BL$10,VLOOKUP($B12,NewRet,NewRetirees!$H$10),0)),0) -> 0 | BM12: =IF(BM$10<=PARAMS!$B$3,IF(VLOOKUP($B12,INDIRECT(IF(UPPER($A12)="N",$C$2,$C$3)),BOYRetirees!$N$10)=BM$10,-VLOOKUP($B12,INDIRECT(IF(UPPER($A12)="N",$C$2,$C$3)),BOYRetirees!$O$10),0),0) -> 0 | BN12: =IF(BN$10<=PARAMS!$B$3,-IF(UPPER($A12)="B",IF(OR(VLOOKUP($B12,BOYRet,BOYRetirees!$M$10)="",BN$10<=VLOOKUP($B12,BOYRet,BOYRetirees!$M$10)),VLOOKUP($B12,BOYRet,BOYRetirees!$L$10),0),IF(AND(VLOOKUP($B12,NewRet,NewRetirees!$B$10)<=BM$10,OR(VLOOKUP($B12,NewRet,NewRetirees!$M$10)="",BN$10<=(VLOOKUP($B12,NewRet,NewRetirees!$M$10)))),VLOOKUP($B12,NewRet,NewRetirees!$L$10),0)),0) -> 0 | BO12: 0 | BP12: =IF(BP$10<=PARAMS!$B$3, IF(VLOOKUP($B12,INDIRECT(IF(UPPER($A12)="N",$C$2,$C$3)),BOYRetirees!$N$10)=BP$10,-SUM(BK12:BO12),0),0) -> 0 | BQ12: =SUM(BK12:BP12) -> 0 | BR12: =IF(BR$10<=PARAMS!$B$3,IF(UPPER($A12)="B",0,IF(VLOOKUP($B12,NewRet,NewRetirees!$B$10)=BR$10,VLOOKUP($B12,NewRet,NewRetirees!$H$10),0)),0) -> 0 | BS12: =IF(BS$10<=PARAMS!$B$3,IF(VLOOKUP($B12,INDIRECT(IF(UPPER($A12)="N",$C$2,$C$3)),BOYRetirees!$N$10)=BS$10,-VLOOKUP($B12,INDIRECT(IF(UPPER($A12)="N",$C$2,$C$3)),BOYRetirees!$O$10),0),0) -> 0 | BT12: =IF(BT$10<=PARAMS!$B$3,-IF(UPPER($A12)="B",IF(OR(VLOOKUP($B12,BOYRet,BOYRetirees!$M$10)="",BT$10<=VLOOKUP($B12,BOYRet,BOYRetirees!$M$10)),VLOOKUP($B12,BOYRet,BOYRetirees!$L$10),0),IF(AND(VLOOKUP($B12,NewRet,NewRetirees!$B$10)<=BS$10,OR(VLOOKUP($B12,NewRet,NewRetirees!$M$10)="",BT$10<=(VLOOKUP($B12,NewRet,NewRetirees!$M$10)))),VLOOKUP($B12,NewRet,NewRetirees!$L$10),0)),0) -> 0 | BU12: 0 | BV12: =IF(BV$10<=PARAMS!$B$3, IF(VLOOKUP($B12,INDIRECT(IF(UPPER($A12)="N",$C$2,$C$3)),BOYRetirees!$N$10)=BV$10,-SUM(BQ12:BU12),0),0) -> 0 | BW12: =SUM(BQ12:BV12) -> 0 | BX12: =UPPER(A12)&TEXT(B12,"00000") -> B00002 | BY12: =C12 -> 185256.0037 | BZ12: =SUM(D12+J12+P12+V12+AB12+AH12+AN12+AT12+AZ12+BF12+BL12+BR12) -> 0 | CA12: =SUM(E12+K12+Q12+W12+AC12+AI12+AO12+AU12+BA12+BG12+BM12+BS12) -> -100000 | CB12: =SUM(F12+L12+R12+X12+AD12+AJ12+AP12+AV12+BB12+BH12+BN12+BT12) -> -4498.35 | CC12: =SUM(G12+M12+S12+Y12+AE12+AK12+AQ12+AW12+BC12+BI12+BO12+BU12) -> 1184.14 | CD12: -81941.79374 | CE12: =SUM(BY12:CD12) -> 0 | CF12: =CI12/CI$10*BW$9 -> 0 | CG12: =CE12+CF12 -> 0 | CH12: =IF(BW12>0,VLOOKUP(B12,INDIRECT(IF(UPPER(A12)="N",$C$2,$C$3)),BOYRetirees!$P$10),0) -> 0 | CI12: =CH12*CJ12 -> 0 | CJ12: =(C12+I12+O12+U12+AA12+AG12+AM12+AS12+AY12+BE12+BK12+BQ12+BW12)/(PARAMS!$B$2+1) -> 56496.77961 | CK12: =CF12-CI12 -> 0 | CL12: =CC12-CL$8*CJ12 -> -2205.666777
A13: b | B13: =B12+1 -> 3 | C13: =IF(UPPER($A13)="B",VLOOKUP($B13,BOYRet,BOYRetirees!$H$10),0) -> 0 | D13: =IF(D$10<=PARAMS!$B$3,IF(UPPER($A13)="B",0,IF(VLOOKUP($B13,NewRet,NewRetirees!$B$10)=D$10,VLOOKUP($B13,NewRet,NewRetirees!$H$10),0)),0) -> 0 | E13: =IF(E$10<=PARAMS!$B$3,IF(VLOOKUP($B13,INDIRECT(IF(UPPER($A13)="N",$C$2,$C$3)),BOYRetirees!$N$10)=E$10,-VLOOKUP($B13,INDIRECT(IF(UPPER($A13)="N",$C$2,$C$3)),BOYRetirees!$O$10),0),0) -> 0 | F13: =IF(F$10<=PARAMS!$B$3,-IF(UPPER($A13)="B",IF(OR(VLOOKUP($B13,BOYRet,BOYRetirees!$M$10)="",F$10<=VLOOKUP($B13,BOYRet,BOYRetirees!$M$10)),VLOOKUP($B13,BOYRet,BOYRetirees!$L$10),0),IF(AND(VLOOKUP($B13,NewRet,NewRetirees!$B$10)<=E$10,OR(VLOOKUP($B13,NewRet,NewRetirees!$M$10)="",F$10<=(VLOOKUP($B13,NewRet,NewRetirees!$M$10)))),VLOOKUP($B13,NewRet,NewRetirees!$L$10),0)),0) -> 0 | G13: 0 | H13: =IF(H$10<=PARAMS!$B$3, IF(VLOOKUP($B13,INDIRECT(IF(UPPER($A13)="N",$C$2,$C$3)),BOYRetirees!$N$10)=H$10,-SUM(C13:G13),0),0) -> 0 | I13: 0 | J13: =IF(J$10<=PARAMS!$B$3,IF(UPPER($A13)="B",0,IF(VLOOKUP($B13,NewRet,NewRetirees!$B$10)=J$10,VLOOKUP($B13,NewRet,NewRetirees!$H$10),0)),0) -> 0 | K13: =IF(K$10<=PARAMS!$B$3,IF(VLOOKUP($B13,INDIRECT(IF(UPPER($A13)="N",$C$2,$C$3)),BOYRetirees!$N$10)=K$10,-VLOOKUP($B13,INDIRECT(IF(UPPER($A13)="N",$C$2,$C$3)),BOYRetirees!$O$10),0),0) -> 0 | L13: =IF(L$10<=PARAMS!$B$3,-IF(UPPER($A13)="B",IF(OR(VLOOKUP($B13,BOYRet,BOYRetirees!$M$10)="",L$10<=VLOOKUP($B13,BOYRet,BOYRetirees!$M$10)),VLOOKUP($B13,BOYRet,BOYRetirees!$L$10),0),IF(AND(VLOOKUP($B13,NewRet,NewRetirees!$B$10)<=K$10,OR(VLOOKUP($B13,NewRet,NewRetirees!$M$10)="",L$10<=(VLOOKUP($B13,NewRet,NewRetirees!$M$10)))),VLOOKUP($B13,NewRet,NewRetirees!$L$10),0)),0) -> 0 | M13: 0 | N13: =IF(N$10<=PARAMS!$B$3, IF(VLOOKUP($B13,INDIRECT(IF(UPPER($A13)="N",$C$2,$C$3)),BOYRetirees!$N$10)=N$10,-SUM(I13:M13),0),0) -> 0 | O13: 0 | P13: =IF(P$10<=PARAMS!$B$3,IF(UPPER($A13)="B",0,IF(VLOOKUP($B13,NewRet,NewRetirees!$B$10)=P$10,VLOOKUP($B13,NewRet,NewRetirees!$H$10),0)),0) -> 0 | Q13: =IF(Q$10<=PARAMS!$B$3,IF(VLOOKUP($B13,INDIRECT(IF(UPPER($A13)="N",$C$2,$C$3)),BOYRetirees!$N$10)=Q$10,-VLOOKUP($B13,INDIRECT(IF(UPPER($A13)="N",$C$2,$C$3)),BOYRetirees!$O$10),0),0) -> 0 | R13: =IF(R$10<=PARAMS!$B$3,-IF(UPPER($A13)="B",IF(OR(VLOOKUP($B13,BOYRet,BOYRetirees!$M$10)="",R$10<=VLOOKUP($B13,BOYRet,BOYRetirees!$M$10)),VLOOKUP($B13,BOYRet,BOYRetirees!$L$10),0),IF(AND(VLOOKUP($B13,NewRet,NewRetirees!$B$10)<=Q$10,OR(VLOOKUP($B13,NewRet,NewRetirees!$M$10)="",R$10<=(VLOOKUP($B13,NewRet,NewRetirees!$M$10)))),VLOOKUP($B13,NewRet,NewRetirees!$L$10),0)),0) -> 0 | S13: 0 | T13: =IF(T$10<=PARAMS!$B$3, IF(VLOOKUP($B13,INDIRECT(IF(UPPER($A13)="N",$C$2,$C$3)),BOYRetirees!$N$10)=T$10,-SUM(O13:S13),0),0) -> 0 | U13: 0 | V13: =IF(V$10<=PARAMS!$B$3,IF(UPPER($A13)="B",0,IF(VLOOKUP($B13,NewRet,NewRetirees!$B$10)=V$10,VLOOKUP($B13,NewRet,NewRetirees!$H$10),0)),0) -> 0 | W13: =IF(W$10<=PARAMS!$B$3,IF(VLOOKUP($B13,INDIRECT(IF(UPPER($A13)="N",$C$2,$C$3)),BOYRetirees!$N$10)=W$10,-VLOOKUP($B13,INDIRECT(IF(UPPER($A13)="N",$C$2,$C$3)),BOYRetirees!$O$10),0),0) -> 0 | X13: =IF(X$10<=PARAMS!$B$3,-IF(UPPER($A13)="B",IF(OR(VLOOKUP($B13,BOYRet,BOYRetirees!$M$10)="",X$10<=VLOOKUP($B13,BOYRet,BOYRetirees!$M$10)),VLOOKUP($B13,BOYRet,BOYRetirees!$L$10),0),IF(AND(VLOOKUP($B13,NewRet,NewRetirees!$B$10)<=W$10,OR(VLOOKUP($B13,NewRet,NewRetirees!$M$10)="",X$10<=(VLOOKUP($B13,NewRet,NewRetirees!$M$10)))),VLOOKUP($B13,NewRet,NewRetirees!$L$10),0)),0) -> 0 | Y13: 0 | Z13: =IF(Z$10<=PARAMS!$B$3, IF(VLOOKUP($B13,INDIRECT(IF(UPPER($A13)="N",$C$2,$C$3)),BOYRetirees!$N$10)=Z$10,-SUM(U13:Y13),0),0) -> 0 | AA13: 0 | AB13: =IF(AB$10<=PARAMS!$B$3,IF(UPPER($A13)="B",0,IF(VLOOKUP($B13,NewRet,NewRetirees!$B$10)=AB$10,VLOOKUP($B13,NewRet,NewRetirees!$H$10),0)),0) -> 0 | AC13: =IF(AC$10<=PARAMS!$B$3,IF(VLOOKUP($B13,INDIRECT(IF(UPPER($A13)="N",$C$2,$C$3)),BOYRetirees!$N$10)=AC$10,-VLOOKUP($B13,INDIRECT(IF(UPPER($A13)="N",$C$2,$C$3)),BOYRetirees!$O$10),0),0) -> 0 | AD13: =IF(AD$10<=PARAMS!$B$3,-IF(UPPER($A13)="B",IF(OR(VLOOKUP($B13,BOYRet,BOYRetirees!$M$10)="",AD$10<=VLOOKUP($B13,BOYRet,BOYRetirees!$M$10)),VLOOKUP($B13,BOYRet,BOYRetirees!$L$10),0),IF(AND(VLOOKUP($B13,NewRet,NewRetirees!$B$10)<=AC$10,OR(VLOOKUP($B13,NewRet,NewRetirees!$M$10)="",AD$10<=(VLOOKUP($B13,NewRet,NewRetirees!$M$10)))),VLOOKUP($B13,NewRet,NewRetirees!$L$10),0)),0) -> 0 | AE13: 0 | AF13: =IF(AF$10<=PARAMS!$B$3,IF(UPPER($A13)="B",IF(VLOOKUP($B13,BOYRet,BOYRetirees!$N$10)=AF$10,-SUM(AA13:AE13),0),IF(VLOOKUP($B13,NewRet,NewRetirees!$N$10)=AF$10,-SUM(AA13:AE13),0)),0) -> 0 | AG13: 0 | AH13: =IF(AH$10<=PARAMS!$B$3,IF(UPPER($A13)="B",0,IF(VLOOKUP($B13,NewRet,NewRetirees!$B$10)=AH$10,VLOOKUP($B13,NewRet,NewRetirees!$H$10),0)),0) -> 0 | AI13: =IF(AI$10<=PARAMS!$B$3,IF(VLOOKUP($B13,INDIRECT(IF(UPPER($A13)="N",$C$2,$C$3)),BOYRetirees!$N$10)=AI$10,-VLOOKUP($B13,INDIRECT(IF(UPPER($A13)="N",$C$2,$C$3)),BOYRetirees!$O$10),0),0) -> 0 | AJ13: =IF(AJ$10<=PARAMS!$B$3,-IF(UPPER($A13)="B",IF(OR(VLOOKUP($B13,BOYRet,BOYRetirees!$M$10)="",AJ$10<=VLOOKUP($B13,BOYRet,BOYRetirees!$M$10)),VLOOKUP($B13,BOYRet,BOYRetirees!$L$10),0),IF(AND(VLOOKUP($B13,NewRet,NewRetirees!$B$10)<=AI$10,OR(VLOOKUP($B13,NewRet,NewRetirees!$M$10)="",AJ$10<=(VLOOKUP($B13,NewRet,NewRetirees!$M$10)))),VLOOKUP($B13,NewRet,NewRetirees!$L$10),0)),0) -> 0 | AK13: 0 | AL13: =IF(AL$10<=PARAMS!$B$3, IF(VLOOKUP($B13,INDIRECT(IF(UPPER($A13)="N",$C$2,$C$3)),BOYRetirees!$N$10)=AL$10,-SUM(AG13:AK13),0),0) -> 0 | AM13: 0 | AN13: =IF(AN$10<=PARAMS!$B$3,IF(UPPER($A13)="B",0,IF(VLOOKUP($B13,NewRet,NewRetirees!$B$10)=AN$10,VLOOKUP($B13,NewRet,NewRetirees!$H$10),0)),0) -> 0 | AO13: =IF(AO$10<=PARAMS!$B$3,IF(VLOOKUP($B13,INDIRECT(IF(UPPER($A13)="N",$C$2,$C$3)),BOYRetirees!$N$10)=AO$10,-VLOOKUP($B13,INDIRECT(IF(UPPER($A13)="N",$C$2,$C$3)),BOYRetirees!$O$10),0),0) -> 0 | AP13: =IF(AP$10<=PARAMS!$B$3,-IF(UPPER($A13)="B",IF(OR(VLOOKUP($B13,BOYRet,BOYRetirees!$M$10)="",AP$10<=VLOOKUP($B13,BOYRet,BOYRetirees!$M$10)),VLOOKUP($B13,BOYRet,BOYRetirees!$L$10),0),IF(AND(VLOOKUP($B13,NewRet,NewRetirees!$B$10)<=AO$10,OR(VLOOKUP($B13,NewRet,NewRetirees!$M$10)="",AP$10<=(VLOOKUP($B13,NewRet,NewRetirees!$M$10)))),VLOOKUP($B13,NewRet,NewRetirees!$L$10),0)),0) -> 0 | AQ13: 0 | AR13: =IF(AR$10<=PARAMS!$B$3, IF(VLOOKUP($B13,INDIRECT(IF(UPPER($A13)="N",$C$2,$C$3)),BOYRetirees!$N$10)=AR$10,-SUM(AM13:AQ13),0),0) -> 0 | AS13: 0 | AT13: =IF(AT$10<=PARAMS!$B$3,IF(UPPER($A13)="B",0,IF(VLOOKUP($B13,NewRet,NewRetirees!$B$10)=AT$10,VLOOKUP($B13,NewRet,NewRetirees!$H$10),0)),0) -> 0 | AU13: =IF(AU$10<=PARAMS!$B$3,IF(VLOOKUP($B13,INDIRECT(IF(UPPER($A13)="N",$C$2,$C$3)),BOYRetirees!$N$10)=AU$10,-VLOOKUP($B13,INDIRECT(IF(UPPER($A13)="N",$C$2,$C$3)),BOYRetirees!$O$10),0),0) -> 0 | AV13: =IF(AV$10<=PARAMS!$B$3,-IF(UPPER($A13)="B",IF(OR(VLOOKUP($B13,BOYRet,BOYRetirees!$M$10)="",AV$10<=VLOOKUP($B13,BOYRet,BOYRetirees!$M$10)),VLOOKUP($B13,BOYRet,BOYRetirees!$L$10),0),IF(AND(VLOOKUP($B13,NewRet,NewRetirees!$B$10)<=AU$10,OR(VLOOKUP($B13,NewRet,NewRetirees!$M$10)="",AV$10<=(VLOOKUP($B13,NewRet,NewRetirees!$M$10)))),VLOOKUP($B13,NewRet,NewRetirees!$L$10),0)),0) -> 0 | AW13: 0 | AX13: =IF(AX$10<=PARAMS!$B$3, IF(VLOOKUP($B13,INDIRECT(IF(UPPER($A13)="N",$C$2,$C$3)),BOYRetirees!$N$10)=AX$10,-SUM(AS13:AW13),0),0) -> 0 | AY13: 0 | AZ13: =IF(AZ$10<=PARAMS!$B$3,IF(UPPER($A13)="B",0,IF(VLOOKUP($B13,NewRet,NewRetirees!$B$10)=AZ$10,VLOOKUP($B13,NewRet,NewRetirees!$H$10),0)),0) -> 0 | BA13: =IF(BA$10<=PARAMS!$B$3,IF(VLOOKUP($B13,INDIRECT(IF(UPPER($A13)="N",$C$2,$C$3)),BOYRetirees!$N$10)=BA$10,-VLOOKUP($B13,INDIRECT(IF(UPPER($A13)="N",$C$2,$C$3)),BOYRetirees!$O$10),0),0) -> 0 | BB13: =IF(BB$10<=PARAMS!$B$3,-IF(UPPER($A13)="B",IF(OR(VLOOKUP($B13,BOYRet,BOYRetirees!$M$10)="",BB$10<=VLOOKUP($B13,BOYRet,BOYRetirees!$M$10)),VLOOKUP($B13,BOYRet,BOYRetirees!$L$10),0),IF(AND(VLOOKUP($B13,NewRet,NewRetirees!$B$10)<=BA$10,OR(VLOOKUP($B13,NewRet,NewRetirees!$M$10)="",BB$10<=(VLOOKUP($B13,NewRet,NewRetirees!$M$10)))),VLOOKUP($B13,NewRet,NewRetirees!$L$10),0)),0) -> 0 | BC13: 0 | BD13: =IF(BD$10<=PARAMS!$B$3, IF(VLOOKUP($B13,INDIRECT(IF(UPPER($A13)="N",$C$2,$C$3)),BOYRetirees!$N$10)=BD$10,-SUM(AY13:BC13),0),0) -> 0 | BE13: 0 | BF13: =IF(BF$10<=PARAMS!$B$3,IF(UPPER($A13)="B",0,IF(VLOOKUP($B13,NewRet,NewRetirees!$B$10)=BF$10,VLOOKUP($B13,NewRet,NewRetirees!$H$10),0)),0) -> 0 | BG13: =IF(BG$10<=PARAMS!$B$3,IF(VLOOKUP($B13,INDIRECT(IF(UPPER($A13)="N",$C$2,$C$3)),BOYRetirees!$N$10)=BG$10,-VLOOKUP($B13,INDIRECT(IF(UPPER($A13)="N",$C$2,$C$3)),BOYRetirees!$O$10),0),0) -> 0 | BH13: =IF(BH$10<=PARAMS!$B$3,-IF(UPPER($A13)="B",IF(OR(VLOOKUP($B13,BOYRet,BOYRetirees!$M$10)="",BH$10<=VLOOKUP($B13,BOYRet,BOYRetirees!$M$10)),VLOOKUP($B13,BOYRet,BOYRetirees!$L$10),0),IF(AND(VLOOKUP($B13,NewRet,NewRetirees!$B$10)<=BG$10,OR(VLOOKUP($B13,NewRet,NewRetirees!$M$10)="",BH$10<=(VLOOKUP($B13,NewRet,NewRetirees!$M$10)))),VLOOKUP($B13,NewRet,NewRetirees!$L$10),0)),0) -> 0 | BI13: 0 | BJ13: =IF(BJ$10<=PARAMS!$B$3, IF(VLOOKUP($B13,INDIRECT(IF(UPPER($A13)="N",$C$2,$C$3)),BOYRetirees!$N$10)=BJ$10,-SUM(BE13:BI13),0),0) -> 0 | BK13: 0 | BL13: =IF(BL$10<=PARAMS!$B$3,IF(UPPER($A13)="B",0,IF(VLOOKUP($B13,NewRet,NewRetirees!$B$10)=BL$10,VLOOKUP($B13,NewRet,NewRetirees!$H$10),0)),0) -> 0 | BM13: =IF(BM$10<=PARAMS!$B$3,IF(VLOOKUP($B13,INDIRECT(IF(UPPER($A13)="N",$C$2,$C$3)),BOYRetirees!$N$10)=BM$10,-VLOOKUP($B13,INDIRECT(IF(UPPER($A13)="N",$C$2,$C$3)),BOYRetirees!$O$10),0),0) -> 0 | BN13: =IF(BN$10<=PARAMS!$B$3,-IF(UPPER($A13)="B",IF(OR(VLOOKUP($B13,BOYRet,BOYRetirees!$M$10)="",BN$10<=VLOOKUP($B13,BOYRet,BOYRetirees!$M$10)),VLOOKUP($B13,BOYRet,BOYRetirees!$L$10),0),IF(AND(VLOOKUP($B13,NewRet,NewRetirees!$B$10)<=BM$10,OR(VLOOKUP($B13,NewRet,NewRetirees!$M$10)="",BN$10<=(VLOOKUP($B13,NewRet,NewRetirees!$M$10)))),VLOOKUP($B13,NewRet,NewRetirees!$L$10),0)),0) -> 0 | BO13: 0 | BP13: =IF(BP$10<=PARAMS!$B$3, IF(VLOOKUP($B13,INDIRECT(IF(UPPER($A13)="N",$C$2,$C$3)),BOYRetirees!$N$10)=BP$10,-SUM(BK13:BO13),0),0) -> 0 | BQ13: 0 | BR13: =IF(BR$10<=PARAMS!$B$3,IF(UPPER($A13)="B",0,IF(VLOOKUP($B13,NewRet,NewRetirees!$B$10)=BR$10,VLOOKUP($B13,NewRet,NewRetirees!$H$10),0)),0) -> 0 | BS13: =IF(BS$10<=PARAMS!$B$3,IF(VLOOKUP($B13,INDIRECT(IF(UPPER($A13)="N",$C$2,$C$3)),BOYRetirees!$N$10)=BS$10,-VLOOKUP($B13,INDIRECT(IF(UPPER($A13)="N",$C$2,$C$3)),BOYRetirees!$O$10),0),0) -> 0 | BT13: =IF(BT$10<=PARAMS!$B$3,-IF(UPPER($A13)="B",IF(OR(VLOOKUP($B13,BOYRet,BOYRetirees!$M$10)="",BT$10<=VLOOKUP($B13,BOYRet,BOYRetirees!$M$10)),VLOOKUP($B13,BOYRet,BOYRetirees!$L$10),0),IF(AND(VLOOKUP($B13,NewRet,NewRetirees!$B$10)<=BS$10,OR(VLOOKUP($B13,NewRet,NewRetirees!$M$10)="",BT$10<=(VLOOKUP($B13,NewRet,NewRetirees!$M$10)))),VLOOKUP($B13,NewRet,NewRetirees!$L$10),0)),0) -> 0 | BU13: 0 | BV13: =IF(BV$10<=PARAMS!$B$3, IF(VLOOKUP($B13,INDIRECT(IF(UPPER($A13)="N",$C$2,$C$3)),BOYRetirees!$N$10)=BV$10,-SUM(BQ13:BU13),0),0) -> 0 | BW13: 0 | BX13: B00003 | BY13: 0 | BZ13: 0 | CA13: 0 | CB13: 0 | CC13: 0 | CD13: 0 | CE13: 0 | CF13: 0 | CG13: 0 | CH13: =IF(BW13>0,VLOOKUP(B13,INDIRECT(IF(UPPER(A13)="N",$C$2,$C$3)),BOYRetirees!$P$10),0) -> 0 | CI13: 0 | CJ13: =(C13+I13+O13+U13+AA13+AG13+AM13+AS13+AY13+BE13+BK13+BQ13+BW13)/(PARAMS!$B$2+1) -> 0 | CK13: 0 | CL13: =CC13-CL$8*CJ13 -> 0
A14: b | B14: 4 | C14: =IF(UPPER($A14)="B",VLOOKUP($B14,BOYRet,BOYRetirees!$H$10),0) -> 131973.6079 | D14: =IF(D$10<=PARAMS!$B$3,IF(UPPER($A14)="B",0,IF(VLOOKUP($B14,NewRet,NewRetirees!$B$10)=D$10,VLOOKUP($B14,NewRet,NewRetirees!$H$10),0)),0) -> 0 | E14: =IF(E$10<=PARAMS!$B$3,IF(VLOOKUP($B14,INDIRECT(IF(UPPER($A14)="N",$C$2,$C$3)),BOYRetirees!$N$10)=E$10,-VLOOKUP($B14,INDIRECT(IF(UPPER($A14)="N",$C$2,$C$3)),BOYRetirees!$O$10),0),0) -> 0 | F14: =IF(F$10<=PARAMS!$B$3,-IF(UPPER($A14)="B",IF(OR(VLOOKUP($B14,BOYRet,BOYRetirees!$M$10)="",F$10<=VLOOKUP($B14,BOYRet,BOYRetirees!$M$10)),VLOOKUP($B14,BOYRet,BOYRetirees!$L$10),0),IF(AND(VLOOKUP($B14,NewRet,NewRetirees!$B$10)<=E$10,OR(VLOOKUP($B14,NewRet,NewRetirees!$M$10)="",F$10<=(VLOOKUP($B14,NewRet,NewRetirees!$M$10)))),VLOOKUP($B14,NewRet,NewRetirees!$L$10),0)),0) -> -681.93 | G14: 463.84 | H14: =IF(H$10<=PARAMS!$B$3, IF(VLOOKUP($B14,INDIRECT(IF(UPPER($A14)="N",$C$2,$C$3)),BOYRetirees!$N$10)=H$10,-SUM(C14:G14),0),0) -> 0 | I14: 131755.5179 | J14: =IF(J$10<=PARAMS!$B$3,IF(UPPER($A14)="B",0,IF(VLOOKUP($B14,NewRet,NewRetirees!$B$10)=J$10,VLOOKUP($B14,NewRet,NewRetirees!$H$10),0)),0) -> 0 | K14: =IF(K$10<=PARAMS!$B$3,IF(VLOOKUP($B14,INDIRECT(IF(UPPER($A14)="N",$C$2,$C$3)),BOYRetirees!$N$10)=K$10,-VLOOKUP($B14,INDIRECT(IF(UPPER($A14)="N",$C$2,$C$3)),BOYRetirees!$O$10),0),0) -> 0 | L14: =IF(L$10<=PARAMS!$B$3,-IF(UPPER($A14)="B",IF(OR(VLOOKUP($B14,BOYRet,BOYRetirees!$M$10)="",L$10<=VLOOKUP($B14,BOYRet,BOYRetirees!$M$10)),VLOOKUP($B14,BOYRet,BOYRetirees!$L$10),0),IF(AND(VLOOKUP($B14,NewRet,NewRetirees!$B$10)<=K$10,OR(VLOOKUP($B14,NewRet,NewRetirees!$M$10)="",L$10<=(VLOOKUP($B14,NewRet,NewRetirees!$M$10)))),VLOOKUP($B14,NewRet,NewRetirees!$L$10),0)),0) -> -681.93 | M14: 229.59 | N14: =IF(N$10<=PARAMS!$B$3, IF(VLOOKUP($B14,INDIRECT(IF(UPPER($A14)="N",$C$2,$C$3)),BOYRetirees!$N$10)=N$10,-SUM(I14:M14),0),0) -> 0 | O14: 131303.1779 | P14: =IF(P$10<=PARAMS!$B$3,IF(UPPER($A14)="B",0,IF(VLOOKUP($B14,NewRet,NewRetirees!$B$10)=P$10,VLOOKUP($B14,NewRet,NewRetirees!$H$10),0)),0) -> 0 | Q14: =IF(Q$10<=PARAMS!$B$3,IF(VLOOKUP($B14,INDIRECT(IF(UPPER($A14)="N",$C$2,$C$3)),BOYRetirees!$N$10)=Q$10,-VLOOKUP($B14,INDIRECT(IF(UPPER($A14)="N",$C$2,$C$3)),BOYRetirees!$O$10),0),0) -> 0 | R14: =IF(R$10<=PARAMS!$B$3,-IF(UPPER($A14)="B",IF(OR(VLOOKUP($B14,BOYRet,BOYRetirees!$M$10)="",R$10<=VLOOKUP($B14,BOYRet,BOYRetirees!$M$10)),VLOOKUP($B14,BOYRet,BOYRetirees!$L$10),0),IF(AND(VLOOKUP($B14,NewRet,NewRetirees!$B$10)<=Q$10,OR(VLOOKUP($B14,NewRet,NewRetirees!$M$10)="",R$10<=(VLOOKUP($B14,NewRet,NewRetirees!$M$10)))),VLOOKUP($B14,NewRet,NewRetirees!$L$10),0)),0) -> -681.93 | S14: -113.2 | T14: =IF(T$10<=PARAMS!$B$3, IF(VLOOKUP($B14,INDIRECT(IF(UPPER($A14)="N",$C$2,$C$3)),BOYRetirees!$N$10)=T$10,-SUM(O14:S14),0),0) -> 0 | U14: 130508.0479 | V14: =IF(V$10<=PARAMS!$B$3,IF(UPPER($A14)="B",0,IF(VLOOKUP($B14,NewRet,NewRetirees!$B$10)=V$10,VLOOKUP($B14,NewRet,NewRetirees!$H$10),0)),0) -> 0 | W14: =IF(W$10<=PARAMS!$B$3,IF(VLOOKUP($B14,INDIRECT(IF(UPPER($A14)="N",$C$2,$C$3)),BOYRetirees!$N$10)=W$10,-VLOOKUP($B14,INDIRECT(IF(UPPER($A14)="N",$C$2,$C$3)),BOYRetirees!$O$10),0),0) -> 0 | X14: =IF(X$10<=PARAMS!$B$3,-IF(UPPER($A14)="B",IF(OR(VLOOKUP($B14,BOYRet,BOYRetirees!$M$10)="",X$10<=VLOOKUP($B14,BOYRet,BOYRetirees!$M$10)),VLOOKUP($B14,BOYRet,BOYRetirees!$L$10),0),IF(AND(VLOOKUP($B14,NewRet,NewRetirees!$B$10)<=W$10,OR(VLOOKUP($B14,NewRet,NewRetirees!$M$10)="",X$10<=(VLOOKUP($B14,NewRet,NewRetirees!$M$10)))),VLOOKUP($B14,NewRet,NewRetirees!$L$10),0)),0) -> -681.93 | Y14: 592.18 | Z14: =IF(Z$10<=PARAMS!$B$3, IF(VLOOKUP($B14,INDIRECT(IF(UPPER($A14)="N",$C$2,$C$3)),BOYRetirees!$N$10)=Z$10,-SUM(U14:Y14),0),0) -> 0 | AA14: 130418.2979 | AB14: =IF(AB$10<=PARAMS!$B$3,IF(UPPER($A14)="B",0,IF(VLOOKUP($B14,NewRet,NewRetirees!$B$10)=AB$10,VLOOKUP($B14,NewRet,NewRetirees!$H$10),0)),0) -> 0 | AC14: =IF(AC$10<=PARAMS!$B$3,IF(VLOOKUP($B14,INDIRECT(IF(UPPER($A14)="N",$C$2,$C$3)),BOYRetirees!$N$10)=AC$10,-VLOOKUP($B14,INDIRECT(IF(UPPER($A14)="N",$C$2,$C$3)),BOYRetirees!$O$10),0),0) -> 0 | AD14: =IF(AD$10<=PARAMS!$B$3,-IF(UPPER($A14)="B",IF(OR(VLOOKUP($B14,BOYRet,BOYRetirees!$M$10)="",AD$10<=VLOOKUP($B14,BOYRet,BOYRetirees!$M$10)),VLOOKUP($B14,BOYRet,BOYRetirees!$L$10),0),IF(AND(VLOOKUP($B14,NewRet,NewRetirees!$B$10)<=AC$10,OR(VLOOKUP($B14,NewRet,NewRetirees!$M$10)="",AD$10<=(VLOOKUP($B14,NewRet,NewRetirees!$M$10)))),VLOOKUP($B14,NewRet,NewRetirees!$L$10),0)),0) -> -681.93 | AE14: 296.35 | AF14: =IF(AF$10<=PARAMS!$B$3,IF(UPPER($A14)="B",IF(VLOOKUP($B14,BOYRet,BOYRetirees!$N$10)=AF$10,-SUM(AA14:AE14),0),IF(VLOOKUP($B14,NewRet,NewRetirees!$N$10)=AF$10,-SUM(AA14:AE14),0)),0) -> 0 | AG14: 130032.7179 | AH14: =IF(AH$10<=PARAMS!$B$3,IF(UPPER($A14)="B",0,IF(VLOOKUP($B14,NewRet,NewRetirees!$B$10)=AH$10,VLOOKUP($B14,NewRet,NewRetirees!$H$10),0)),0) -> 0 | AI14: =IF(AI$10<=PARAMS!$B$3,IF(VLOOKUP($B14,INDIRECT(IF(UPPER($A14)="N",$C$2,$C$3)),BOYRetirees!$N$10)=AI$10,-VLOOKUP($B14,INDIRECT(IF(UPPER($A14)="N",$C$2,$C$3)),BOYRetirees!$O$10),0),0) -> 0 | AJ14: =IF(AJ$10<=PARAMS!$B$3,-IF(UPPER($A14)="B",IF(OR(VLOOKUP($B14,BOYRet,BOYRetirees!$M$10)="",AJ$10<=VLOOKUP($B14,BOYRet,BOYRetirees!$M$10)),VLOOKUP($B14,BOYRet,BOYRetirees!$L$10),0),IF(AND(VLOOKUP($B14,NewRet,NewRetirees!$B$10)<=AI$10,OR(VLOOKUP($B14,NewRet,NewRetirees!$M$10)="",AJ$10<=(VLOOKUP($B14,NewRet,NewRetirees!$M$10)))),VLOOKUP($B14,NewRet,NewRetirees!$L$10),0)),0) -> -681.93 | AK14: 889.81 | AL14: =IF(AL$10<=PARAMS!$B$3, IF(VLOOKUP($B14,INDIRECT(IF(UPPER($A14)="N",$C$2,$C$3)),BOYRetirees!$N$10)=AL$10,-SUM(AG14:AK14),0),0) -> 0 | AM14: 130240.5979 | AN14: =IF(AN$10<=PARAMS!$B$3,IF(UPPER($A14)="B",0,IF(VLOOKUP($B14,NewRet,NewRetirees!$B$10)=AN$10,VLOOKUP($B14,NewRet,NewRetirees!$H$10),0)),0) -> 0 | AO14: =IF(AO$10<=PARAMS!$B$3,IF(VLOOKUP($B14,INDIRECT(IF(UPPER($A14)="N",$C$2,$C$3)),BOYRetirees!$N$10)=AO$10,-VLOOKUP($B14,INDIRECT(IF(UPPER($A14)="N",$C$2,$C$3)),BOYRetirees!$O$10),0),0) -> 0 | AP14: =IF(AP$10<=PARAMS!$B$3,-IF(UPPER($A14)="B",IF(OR(VLOOKUP($B14,BOYRet,BOYRetirees!$M$10)="",AP$10<=VLOOKUP($B14,BOYRet,BOYRetirees!$M$10)),VLOOKUP($B14,BOYRet,BOYRetirees!$L$10),0),IF(AND(VLOOKUP($B14,NewRet,NewRetirees!$B$10)<=AO$10,OR(VLOOKUP($B14,NewRet,NewRetirees!$M$10)="",AP$10<=(VLOOKUP($B14,NewRet,NewRetirees!$M$10)))),VLOOKUP($B14,NewRet,NewRetirees!$L$10),0)),0) -> -681.93 | AQ14: 427.48 | AR14: =IF(AR$10<=PARAMS!$B$3, IF(VLOOKUP($B14,INDIRECT(IF(UPPER($A14)="N",$C$2,$C$3)),BOYRetirees!$N$10)=AR$10,-SUM(AM14:AQ14),0),0) -> 0 | AS14: 129986.1479 | AT14: =IF(AT$10<=PARAMS!$B$3,IF(UPPER($A14)="B",0,IF(VLOOKUP($B14,NewRet,NewRetirees!$B$10)=AT$10,VLOOKUP($B14,NewRet,NewRetirees!$H$10),0)),0) -> 0 | AU14: =IF(AU$10<=PARAMS!$B$3,IF(VLOOKUP($B14,INDIRECT(IF(UPPER($A14)="N",$C$2,$C$3)),BOYRetirees!$N$10)=AU$10,-VLOOKUP($B14,INDIRECT(IF(UPPER($A14)="N",$C$2,$C$3)),BOYRetirees!$O$10),0),0) -> 0 | AV14: =IF(AV$10<=PARAMS!$B$3,-IF(UPPER($A14)="B",IF(OR(VLOOKUP($B14,BOYRet,BOYRetirees!$M$10)="",AV$10<=VLOOKUP($B14,BOYRet,BOYRetirees!$M$10)),VLOOKUP($B14,BOYRet,BOYRetirees!$L$10),0),IF(AND(VLOOKUP($B14,NewRet,NewRetirees!$B$10)<=AU$10,OR(VLOOKUP($B14,NewRet,NewRetirees!$M$10)="",AV$10<=(VLOOKUP($B14,NewRet,NewRetirees!$M$10)))),VLOOKUP($B14,NewRet,NewRetirees!$L$10),0)),0) -> -681.93 | AW14: 475.4 | AX14: =IF(AX$10<=PARAMS!$B$3, IF(VLOOKUP($B14,INDIRECT(IF(UPPER($A14)="N",$C$2,$C$3)),BOYRetirees!$N$10)=AX$10,-SUM(AS14:AW14),0),0) -> 0 | AY14: 129779.6179 | AZ14: =IF(AZ$10<=PARAMS!$B$3,IF(UPPER($A14)="B",0,IF(VLOOKUP($B14,NewRet,NewRetirees!$B$10)=AZ$10,VLOOKUP($B14,NewRet,NewRetirees!$H$10),0)),0) -> 0 | BA14: =IF(BA$10<=PARAMS!$B$3,IF(VLOOKUP($B14,INDIRECT(IF(UPPER($A14)="N",$C$2,$C$3)),BOYRetirees!$N$10)=BA$10,-VLOOKUP($B14,INDIRECT(IF(UPPER($A14)="N",$C$2,$C$3)),BOYRetirees!$O$10),0),0) -> 0 | BB14: =IF(BB$10<=PARAMS!$B$3,-IF(UPPER($A14)="B",IF(OR(VLOOKUP($B14,BOYRet,BOYRetirees!$M$10)="",BB$10<=VLOOKUP($B14,BOYRet,BOYRetirees!$M$10)),VLOOKUP($B14,BOYRet,BOYRetirees!$L$10),0),IF(AND(VLOOKUP($B14,NewRet,NewRetirees!$B$10)<=BA$10,OR(VLOOKUP($B14,NewRet,NewRetirees!$M$10)="",BB$10<=(VLOOKUP($B14,NewRet,NewRetirees!$M$10)))),VLOOKUP($B14,NewRet,NewRetirees!$L$10),0)),0) -> -681.93 | BC14: 297.39 | BD14: =IF(BD$10<=PARAMS!$B$3, IF(VLOOKUP($B14,INDIRECT(IF(UPPER($A14)="N",$C$2,$C$3)),BOYRetirees!$N$10)=BD$10,-SUM(AY14:BC14),0),0) -> 0 | BE14: 129395.0779 | BF14: =IF(BF$10<=PARAMS!$B$3,IF(UPPER($A14)="B",0,IF(VLOOKUP($B14,NewRet,NewRetirees!$B$10)=BF$10,VLOOKUP($B14,NewRet,NewRetirees!$H$10),0)),0) -> 0 | BG14: =IF(BG$10<=PARAMS!$B$3,IF(VLOOKUP($B14,INDIRECT(IF(UPPER($A14)="N",$C$2,$C$3)),BOYRetirees!$N$10)=BG$10,-VLOOKUP($B14,INDIRECT(IF(UPPER($A14)="N",$C$2,$C$3)),BOYRetirees!$O$10),0),0) -> 0 | BH14: =IF(BH$10<=PARAMS!$B$3,-IF(UPPER($A14)="B",IF(OR(VLOOKUP($B14,BOYRet,BOYRetirees!$M$10)="",BH$10<=VLOOKUP($B14,BOYRet,BOYRetirees!$M$10)),VLOOKUP($B14,BOYRet,BOYRetirees!$L$10),0),IF(AND(VLOOKUP($B14,NewRet,NewRetirees!$B$10)<=BG$10,OR(VLOOKUP($B14,NewRet,NewRetirees!$M$10)="",BH$10<=(VLOOKUP($B14,NewRet,NewRetirees!$M$10)))),VLOOKUP($B14,NewRet,NewRetirees!$L$10),0)),0) -> -681.93 | BI14: -119.06 | BJ14: =IF(BJ$10<=PARAMS!$B$3, IF(VLOOKUP($B14,INDIRECT(IF(UPPER($A14)="N",$C$2,$C$3)),BOYRetirees!$N$10)=BJ$10,-SUM(BE14:BI14),0),0) -> 0 | BK14: 128594.0879 | BL14: =IF(BL$10<=PARAMS!$B$3,IF(UPPER($A14)="B",0,IF(VLOOKUP($B14,NewRet,NewRetirees!$B$10)=BL$10,VLOOKUP($B14,NewRet,NewRetirees!$H$10),0)),0) -> 0 | BM14: =IF(BM$10<=PARAMS!$B$3,IF(VLOOKUP($B14,INDIRECT(IF(UPPER($A14)="N",$C$2,$C$3)),BOYRetirees!$N$10)=BM$10,-VLOOKUP($B14,INDIRECT(IF(UPPER($A14)="N",$C$2,$C$3)),BOYRetirees!$O$10),0),0) -> 0 | BN14: =IF(BN$10<=PARAMS!$B$3,-IF(UPPER($A14)="B",IF(OR(VLOOKUP($B14,BOYRet,BOYRetirees!$M$10)="",BN$10<=VLOOKUP($B14,BOYRet,BOYRetirees!$M$10)),VLOOKUP($B14,BOYRet,BOYRetirees!$L$10),0),IF(AND(VLOOKUP($B14,NewRet,NewRetirees!$B$10)<=BM$10,OR(VLOOKUP($B14,NewRet,NewRetirees!$M$10)="",BN$10<=(VLOOKUP($B14,NewRet,NewRetirees!$M$10)))),VLOOKUP($B14,NewRet,NewRetirees!$L$10),0)),0) -> -681.93 | BO14: 715.03 | BP14: =IF(BP$10<=PARAMS!$B$3, IF(VLOOKUP($B14,INDIRECT(IF(UPPER($A14)="N",$C$2,$C$3)),BOYRetirees!$N$10)=BP$10,-SUM(BK14:BO14),0),0) -> 0 | BQ14: 128627.1879 | BR14: =IF(BR$10<=PARAMS!$B$3,IF(UPPER($A14)="B",0,IF(VLOOKUP($B14,NewRet,NewRetirees!$B$10)=BR$10,VLOOKUP($B14,NewRet,NewRetirees!$H$10),0)),0) -> 0 | BS14: =IF(BS$10<=PARAMS!$B$3,IF(VLOOKUP($B14,INDIRECT(IF(UPPER($A14)="N",$C$2,$C$3)),BOYRetirees!$N$10)=BS$10,-VLOOKUP($B14,INDIRECT(IF(UPPER($A14)="N",$C$2,$C$3)),BOYRetirees!$O$10),0),0) -> 0 | BT14: =IF(BT$10<=PARAMS!$B$3,-IF(UPPER($A14)="B",IF(OR(VLOOKUP($B14,BOYRet,BOYRetirees!$M$10)="",BT$10<=VLOOKUP($B14,BOYRet,BOYRetirees!$M$10)),VLOOKUP($B14,BOYRet,BOYRetirees!$L$10),0),IF(AND(VLOOKUP($B14,NewRet,NewRetirees!$B$10)<=BS$10,OR(VLOOKUP($B14,NewRet,NewRetirees!$M$10)="",BT$10<=(VLOOKUP($B14,NewRet,NewRetirees!$M$10)))),VLOOKUP($B14,NewRet,NewRetirees!$L$10),0)),0) -> -681.93 | BU14: 286.71 | BV14: =IF(BV$10<=PARAMS!$B$3, IF(VLOOKUP($B14,INDIRECT(IF(UPPER($A14)="N",$C$2,$C$3)),BOYRetirees!$N$10)=BV$10,-SUM(BQ14:BU14),0),0) -> 0 | BW14: 128231.9679 | BX14: B00004 | BY14: 131973.6079 | BZ14: 0 | CA14: 0 | CB14: -8183.16 | CC14: 4441.52 | CD14: 0 | CE14: 128231.9679 | CF14: 2207.347481 | CG14: 130439.3154 | CH14: =IF(BW14>0,VLOOKUP(B14,INDIRECT(IF(UPPER(A14)="N",$C$2,$C$3)),BOYRetirees!$P$10),0) -> 0.002275518874 | CI14: 295.9655466 | CJ14: =(C14+I14+O14+U14+AA14+AG14+AM14+AS14+AY14+BE14+BK14+BQ14+BW14)/(PARAMS!$B$2+1) -> 130065.081 | CK14: 1911.381935 | CL14: -3362.384858
A15: b | B15: =B14+1 -> 5 | C15: =IF(UPPER($A15)="B",VLOOKUP($B15,BOYRet,BOYRetirees!$H$10),0) -> 0 | D15: =IF(D$10<=PARAMS!$B$3,IF(UPPER($A15)="B",0,IF(VLOOKUP($B15,NewRet,NewRetirees!$B$10)=D$10,VLOOKUP($B15,NewRet,NewRetirees!$H$10),0)),0) -> 0 | E15: =IF(E$10<=PARAMS!$B$3,IF(VLOOKUP($B15,INDIRECT(IF(UPPER($A15)="N",$C$2,$C$3)),BOYRetirees!$N$10)=E$10,-VLOOKUP($B15,INDIRECT(IF(UPPER($A15)="N",$C$2,$C$3)),BOYRetirees!$O$10),0),0) -> 0 | F15: =IF(F$10<=PARAMS!$B$3,-IF(UPPER($A15)="B",IF(OR(VLOOKUP($B15,BOYRet,BOYRetirees!$M$10)="",F$10<=VLOOKUP($B15,BOYRet,BOYRetirees!$M$10)),VLOOKUP($B15,BOYRet,BOYRetirees!$L$10),0),IF(AND(VLOOKUP($B15,NewRet,NewRetirees!$B$10)<=E$10,OR(VLOOKUP($B15,NewRet,NewRetirees!$M$10)="",F$10<=(VLOOKUP($B15,NewRet,NewRetirees!$M$10)))),VLOOKUP($B15,NewRet,NewRetirees!$L$10),0)),0) -> 0 | G15: 0 | H15: =IF(H$10<=PARAMS!$B$3, IF(VLOOKUP($B15,INDIRECT(IF(UPPER($A15)="N",$C$2,$C$3)),BOYRetirees!$N$10)=H$10,-SUM(C15:G15),0),0) -> 0 | I15: 0 | J15: =IF(J$10<=PARAMS!$B$3,IF(UPPER($A15)="B",0,IF(VLOOKUP($B15,NewRet,NewRetirees!$B$10)=J$10,VLOOKUP($B15,NewRet,NewRetirees!$H$10),0)),0) -> 0 | K15: =IF(K$10<=PARAMS!$B$3,IF(VLOOKUP($B15,INDIRECT(IF(UPPER($A15)="N",$C$2,$C$3)),BOYRetirees!$N$10)=K$10,-VLOOKUP($B15,INDIRECT(IF(UPPER($A15)="N",$C$2,$C$3)),BOYRetirees!$O$10),0),0) -> 0 | L15: =IF(L$10<=PARAMS!$B$3,-IF(UPPER($A15)="B",IF(OR(VLOOKUP($B15,BOYRet,BOYRetirees!$M$10)="",L$10<=VLOOKUP($B15,BOYRet,BOYRetirees!$M$10)),VLOOKUP($B15,BOYRet,BOYRetirees!$L$10),0),IF(AND(VLOOKUP($B15,NewRet,NewRetirees!$B$10)<=K$10,OR(VLOOKUP($B15,NewRet,NewRetirees!$M$10)="",L$10<=(VLOOKUP($B15,NewRet,NewRetirees!$M$10)))),VLOOKUP($B15,NewRet,NewRetirees!$L$10),0)),0) -> 0 | M15: 0 | N15: =IF(N$10<=PARAMS!$B$3, IF(VLOOKUP($B15,INDIRECT(IF(UPPER($A15)="N",$C$2,$C$3)),BOYRetirees!$N$10)=N$10,-SUM(I15:M15),0),0) -> 0 | O15: 0 | P15: =IF(P$10<=PARAMS!$B$3,IF(UPPER($A15)="B",0,IF(VLOOKUP($B15,NewRet,NewRetirees!$B$10)=P$10,VLOOKUP($B15,NewRet,NewRetirees!$H$10),0)),0) -> 0 | Q15: =IF(Q$10<=PARAMS!$B$3,IF(VLOOKUP($B15,INDIRECT(IF(UPPER($A15)="N",$C$2,$C$3)),BOYRetirees!$N$10)=Q$10,-VLOOKUP($B15,INDIRECT(IF(UPPER($A15)="N",$C$2,$C$3)),BOYRetirees!$O$10),0),0) -> 0 | R15: =IF(R$10<=PARAMS!$B$3,-IF(UPPER($A15)="B",IF(OR(VLOOKUP($B15,BOYRet,BOYRetirees!$M$10)="",R$10<=VLOOKUP($B15,BOYRet,BOYRetirees!$M$10)),VLOOKUP($B15,BOYRet,BOYRetirees!$L$10),0),IF(AND(VLOOKUP($B15,NewRet,NewRetirees!$B$10)<=Q$10,OR(VLOOKUP($B15,NewRet,NewRetirees!$M$10)="",R$10<=(VLOOKUP($B15,NewRet,NewRetirees!$M$10)))),VLOOKUP($B15,NewRet,NewRetirees!$L$10),0)),0) -> 0 | S15: 0 | T15: =IF(T$10<=PARAMS!$B$3, IF(VLOOKUP($B15,INDIRECT(IF(UPPER($A15)="N",$C$2,$C$3)),BOYRetirees!$N$10)=T$10,-SUM(O15:S15),0),0) -> 0 | U15: 0 | V15: =IF(V$10<=PARAMS!$B$3,IF(UPPER($A15)="B",0,IF(VLOOKUP($B15,NewRet,NewRetirees!$B$10)=V$10,VLOOKUP($B15,NewRet,NewRetirees!$H$10),0)),0) -> 0 | W15: =IF(W$10<=PARAMS!$B$3,IF(VLOOKUP($B15,INDIRECT(IF(UPPER($A15)="N",$C$2,$C$3)),BOYRetirees!$N$10)=W$10,-VLOOKUP($B15,INDIRECT(IF(UPPER($A15)="N",$C$2,$C$3)),BOYRetirees!$O$10),0),0) -> 0 | X15: =IF(X$10<=PARAMS!$B$3,-IF(UPPER($A15)="B",IF(OR(VLOOKUP($B15,BOYRet,BOYRetirees!$M$10)="",X$10<=VLOOKUP($B15,BOYRet,BOYRetirees!$M$10)),VLOOKUP($B15,BOYRet,BOYRetirees!$L$10),0),IF(AND(VLOOKUP($B15,NewRet,NewRetirees!$B$10)<=W$10,OR(VLOOKUP($B15,NewRet,NewRetirees!$M$10)="",X$10<=(VLOOKUP($B15,NewRet,NewRetirees!$M$10)))),VLOOKUP($B15,NewRet,NewRetirees!$L$10),0)),0) -> 0 | Y15: 0 | Z15: =IF(Z$10<=PARAMS!$B$3, IF(VLOOKUP($B15,INDIRECT(IF(UPPER($A15)="N",$C$2,$C$3)),BOYRetirees!$N$10)=Z$10,-SUM(U15:Y15),0),0) -> 0 | AA15: 0 | AB15: =IF(AB$10<=PARAMS!$B$3,IF(UPPER($A15)="B",0,IF(VLOOKUP($B15,NewRet,NewRetirees!$B$10)=AB$10,VLOOKUP($B15,NewRet,NewRetirees!$H$10),0)),0) -> 0 | AC15: =IF(AC$10<=PARAMS!$B$3,IF(VLOOKUP($B15,INDIRECT(IF(UPPER($A15)="N",$C$2,$C$3)),BOYRetirees!$N$10)=AC$10,-VLOOKUP($B15,INDIRECT(IF(UPPER($A15)="N",$C$2,$C$3)),BOYRetirees!$O$10),0),0) -> 0 | AD15: =IF(AD$10<=PARAMS!$B$3,-IF(UPPER($A15)="B",IF(OR(VLOOKUP($B15,BOYRet,BOYRetirees!$M$10)="",AD$10<=VLOOKUP($B15,BOYRet,BOYRetirees!$M$10)),VLOOKUP($B15,BOYRet,BOYRetirees!$L$10),0),IF(AND(VLOOKUP($B15,NewRet,NewRetirees!$B$10)<=AC$10,OR(VLOOKUP($B15,NewRet,NewRetirees!$M$10)="",AD$10<=(VLOOKUP($B15,NewRet,NewRetirees!$M$10)))),VLOOKUP($B15,NewRet,NewRetirees!$L$10),0)),0) -> 0 | AE15: 0 | AF15: =IF(AF$10<=PARAMS!$B$3,IF(UPPER($A15)="B",IF(VLOOKUP($B15,BOYRet,BOYRetirees!$N$10)=AF$10,-SUM(AA15:AE15),0),IF(VLOOKUP($B15,NewRet,NewRetirees!$N$10)=AF$10,-SUM(AA15:AE15),0)),0) -> 0 | AG15: 0 | AH15: =IF(AH$10<=PARAMS!$B$3,IF(UPPER($A15)="B",0,IF(VLOOKUP($B15,NewRet,NewRetirees!$B$10)=AH$10,VLOOKUP($B15,NewRet,NewRetirees!$H$10),0)),0) -> 0 | AI15: =IF(AI$10<=PARAMS!$B$3,IF(VLOOKUP($B15,INDIRECT(IF(UPPER($A15)="N",$C$2,$C$3)),BOYRetirees!$N$10)=AI$10,-VLOOKUP($B15,INDIRECT(IF(UPPER($A15)="N",$C$2,$C$3)),BOYRetirees!$O$10),0),0) -> 0 | AJ15: =IF(AJ$10<=PARAMS!$B$3,-IF(UPPER($A15)="B",IF(OR(VLOOKUP($B15,BOYRet,BOYRetirees!$M$10)="",AJ$10<=VLOOKUP($B15,BOYRet,BOYRetirees!$M$10)),VLOOKUP($B15,BOYRet,BOYRetirees!$L$10),0),IF(AND(VLOOKUP($B15,NewRet,NewRetirees!$B$10)<=AI$10,OR(VLOOKUP($B15,NewRet,NewRetirees!$M$10)="",AJ$10<=(VLOOKUP($B15,NewRet,NewRetirees!$M$10)))),VLOOKUP($B15,NewRet,NewRetirees!$L$10),0)),0) -> 0 | AK15: 0 | AL15: =IF(AL$10<=PARAMS!$B$3, IF(VLOOKUP($B15,INDIRECT(IF(UPPER($A15)="N",$C$2,$C$3)),BOYRetirees!$N$10)=AL$10,-SUM(AG15:AK15),0),0) -> 0 | AM15: 0 | AN15: =IF(AN$10<=PARAMS!$B$3,IF(UPPER($A15)="B",0,IF(VLOOKUP($B15,NewRet,NewRetirees!$B$10)=AN$10,VLOOKUP($B15,NewRet,NewRetirees!$H$10),0)),0) -> 0 | AO15: =IF(AO$10<=PARAMS!$B$3,IF(VLOOKUP($B15,INDIRECT(IF(UPPER($A15)="N",$C$2,$C$3)),BOYRetirees!$N$10)=AO$10,-VLOOKUP($B15,INDIRECT(IF(UPPER($A15)="N",$C$2,$C$3)),BOYRetirees!$O$10),0),0) -> 0 | AP15: =IF(AP$10<=PARAMS!$B$3,-IF(UPPER($A15)="B",IF(OR(VLOOKUP($B15,BOYRet,BOYRetirees!$M$10)="",AP$10<=VLOOKUP($B15,BOYRet,BOYRetirees!$M$10)),VLOOKUP($B15,BOYRet,BOYRetirees!$L$10),0),IF(AND(VLOOKUP($B15,NewRet,NewRetirees!$B$10)<=AO$10,OR(VLOOKUP($B15,NewRet,NewRetirees!$M$10)="",AP$10<=(VLOOKUP($B15,NewRet,NewRetirees!$M$10)))),VLOOKUP($B15,NewRet,NewRetirees!$L$10),0)),0) -> 0 | AQ15: 0 | AR15: =IF(AR$10<=PARAMS!$B$3, IF(VLOOKUP($B15,INDIRECT(IF(UPPER($A15)="N",$C$2,$C$3)),BOYRetirees!$N$10)=AR$10,-SUM(AM15:AQ15),0),0) -> 0 | AS15: 0 | AT15: =IF(AT$10<=PARAMS!$B$3,IF(UPPER($A15)="B",0,IF(VLOOKUP($B15,NewRet,NewRetirees!$B$10)=AT$10,VLOOKUP($B15,NewRet,NewRetirees!$H$10),0)),0) -> 0 | AU15: =IF(AU$10<=PARAMS!$B$3,IF(VLOOKUP($B15,INDIRECT(IF(UPPER($A15)="N",$C$2,$C$3)),BOYRetirees!$N$10)=AU$10,-VLOOKUP($B15,INDIRECT(IF(UPPER($A15)="N",$C$2,$C$3)),BOYRetirees!$O$10),0),0) -> 0 | AV15: =IF(AV$10<=PARAMS!$B$3,-IF(UPPER($A15)="B",IF(OR(VLOOKUP($B15,BOYRet,BOYRetirees!$M$10)="",AV$10<=VLOOKUP($B15,BOYRet,BOYRetirees!$M$10)),VLOOKUP($B15,BOYRet,BOYRetirees!$L$10),0),IF(AND(VLOOKUP($B15,NewRet,NewRetirees!$B$10)<=AU$10,OR(VLOOKUP($B15,NewRet,NewRetirees!$M$10)="",AV$10<=(VLOOKUP($B15,NewRet,NewRetirees!$M$10)))),VLOOKUP($B15,NewRet,NewRetirees!$L$10),0)),0) -> 0 | AW15: 0 | AX15: =IF(AX$10<=PARAMS!$B$3, IF(VLOOKUP($B15,INDIRECT(IF(UPPER($A15)="N",$C$2,$C$3)),BOYRetirees!$N$10)=AX$10,-SUM(AS15:AW15),0),0) -> 0 | AY15: 0 | AZ15: =IF(AZ$10<=PARAMS!$B$3,IF(UPPER($A15)="B",0,IF(VLOOKUP($B15,NewRet,NewRetirees!$B$10)=AZ$10,VLOOKUP($B15,NewRet,NewRetirees!$H$10),0)),0) -> 0 | BA15: =IF(BA$10<=PARAMS!$B$3,IF(VLOOKUP($B15,INDIRECT(IF(UPPER($A15)="N",$C$2,$C$3)),BOYRetirees!$N$10)=BA$10,-VLOOKUP($B15,INDIRECT(IF(UPPER($A15)="N",$C$2,$C$3)),BOYRetirees!$O$10),0),0) -> 0 | BB15: =IF(BB$10<=PARAMS!$B$3,-IF(UPPER($A15)="B",IF(OR(VLOOKUP($B15,BOYRet,BOYRetirees!$M$10)="",BB$10<=VLOOKUP($B15,BOYRet,BOYRetirees!$M$10)),VLOOKUP($B15,BOYRet,BOYRetirees!$L$10),0),IF(AND(VLOOKUP($B15,NewRet,NewRetirees!$B$10)<=BA$10,OR(VLOOKUP($B15,NewRet,NewRetirees!$M$10)="",BB$10<=(VLOOKUP($B15,NewRet,NewRetirees!$M$10)))),VLOOKUP($B15,NewRet,NewRetirees!$L$10),0)),0) -> 0 | BC15: 0 | BD15: =IF(BD$10<=PARAMS!$B$3, IF(VLOOKUP($B15,INDIRECT(IF(UPPER($A15)="N",$C$2,$C$3)),BOYRetirees!$N$10)=BD$10,-SUM(AY15:BC15),0),0) -> 0 | BE15: 0 | BF15: =IF(BF$10<=PARAMS!$B$3,IF(UPPER($A15)="B",0,IF(VLOOKUP($B15,NewRet,NewRetirees!$B$10)=BF$10,VLOOKUP($B15,NewRet,NewRetirees!$H$10),0)),0) -> 0 | BG15: =IF(BG$10<=PARAMS!$B$3,IF(VLOOKUP($B15,INDIRECT(IF(UPPER($A15)="N",$C$2,$C$3)),BOYRetirees!$N$10)=BG$10,-VLOOKUP($B15,INDIRECT(IF(UPPER($A15)="N",$C$2,$C$3)),BOYRetirees!$O$10),0),0) -> 0 | BH15: =IF(BH$10<=PARAMS!$B$3,-IF(UPPER($A15)="B",IF(OR(VLOOKUP($B15,BOYRet,BOYRetirees!$M$10)="",BH$10<=VLOOKUP($B15,BOYRet,BOYRetirees!$M$10)),VLOOKUP($B15,BOYRet,BOYRetirees!$L$10),0),IF(AND(VLOOKUP($B15,NewRet,NewRetirees!$B$10)<=BG$10,OR(VLOOKUP($B15,NewRet,NewRetirees!$M$10)="",BH$10<=(VLOOKUP($B15,NewRet,NewRetirees!$M$10)))),VLOOKUP($B15,NewRet,NewRetirees!$L$10),0)),0) -> 0 | BI15: 0 | BJ15: =IF(BJ$10<=PARAMS!$B$3, IF(VLOOKUP($B15,INDIRECT(IF(UPPER($A15)="N",$C$2,$C$3)),BOYRetirees!$N$10)=BJ$10,-SUM(BE15:BI15),0),0) -> 0 | BK15: 0 | BL15: =IF(BL$10<=PARAMS!$B$3,IF(UPPER($A15)="B",0,IF(VLOOKUP($B15,NewRet,NewRetirees!$B$10)=BL$10,VLOOKUP($B15,NewRet,NewRetirees!$H$10),0)),0) -> 0 | BM15: =IF(BM$10<=PARAMS!$B$3,IF(VLOOKUP($B15,INDIRECT(IF(UPPER($A15)="N",$C$2,$C$3)),BOYRetirees!$N$10)=BM$10,-VLOOKUP($B15,INDIRECT(IF(UPPER($A15)="N",$C$2,$C$3)),BOYRetirees!$O$10),0),0) -> 0 | BN15: =IF(BN$10<=PARAMS!$B$3,-IF(UPPER($A15)="B",IF(OR(VLOOKUP($B15,BOYRet,BOYRetirees!$M$10)="",BN$10<=VLOOKUP($B15,BOYRet,BOYRetirees!$M$10)),VLOOKUP($B15,BOYRet,BOYRetirees!$L$10),0),IF(AND(VLOOKUP($B15,NewRet,NewRetirees!$B$10)<=BM$10,OR(VLOOKUP($B15,NewRet,NewRetirees!$M$10)="",BN$10<=(VLOOKUP($B15,NewRet,NewRetirees!$M$10)))),VLOOKUP($B15,NewRet,NewRetirees!$L$10),0)),0) -> 0 | BO15: 0 | BP15: =IF(BP$10<=PARAMS!$B$3, IF(VLOOKUP($B15,INDIRECT(IF(UPPER($A15)="N",$C$2,$C$3)),BOYRetirees!$N$10)=BP$10,-SUM(BK15:BO15),0),0) -> 0 | BQ15: 0 | BR15: =IF(BR$10<=PARAMS!$B$3,IF(UPPER($A15)="B",0,IF(VLOOKUP($B15,NewRet,NewRetirees!$B$10)=BR$10,VLOOKUP($B15,NewRet,NewRetirees!$H$10),0)),0) -> 0 | BS15: =IF(BS$10<=PARAMS!$B$3,IF(VLOOKUP($B15,INDIRECT(IF(UPPER($A15)="N",$C$2,$C$3)),BOYRetirees!$N$10)=BS$10,-VLOOKUP($B15,INDIRECT(IF(UPPER($A15)="N",$C$2,$C$3)),BOYRetirees!$O$10),0),0) -> 0 | BT15: =IF(BT$10<=PARAMS!$B$3,-IF(UPPER($A15)="B",IF(OR(VLOOKUP($B15,BOYRet,BOYRetirees!$M$10)="",BT$10<=VLOOKUP($B15,BOYRet,BOYRetirees!$M$10)),VLOOKUP($B15,BOYRet,BOYRetirees!$L$10),0),IF(AND(VLOOKUP($B15,NewRet,NewRetirees!$B$10)<=BS$10,OR(VLOOKUP($B15,NewRet,NewRetirees!$M$10)="",BT$10<=(VLOOKUP($B15,NewRet,NewRetirees!$M$10)))),VLOOKUP($B15,NewRet,NewRetirees!$L$10),0)),0) -> 0 | BU15: 0 | BV15: =IF(BV$10<=PARAMS!$B$3, IF(VLOOKUP($B15,INDIRECT(IF(UPPER($A15)="N",$C$2,$C$3)),BOYRetirees!$N$10)=BV$10,-SUM(BQ15:BU15),0),0) -> 0 | BW15: 0 | BX15: B00005 | BY15: 0 | BZ15: 0 | CA15: 0 | CB15: 0 | CC15: 0 | CD15: 0 | CE15: 0 | CF15: 0 | CG15: 0 | CH15: =IF(BW15>0,VLOOKUP(B15,INDIRECT(IF(UPPER(A15)="N",$C$2,$C$3)),BOYRetirees!$P$10),0) -> 0 | CI15: 0 | CJ15: =(C15+I15+O15+U15+AA15+AG15+AM15+AS15+AY15+BE15+BK15+BQ15+BW15)/(PARAMS!$B$2+1) -> 0 | CK15: 0 | CL15: 0
A16: b | B16: 6 | C16: =IF(UPPER($A16)="B",VLOOKUP($B16,BOYRet,BOYRetirees!$H$10),0) -> 286720.9572 | D16: =IF(D$10<=PARAMS!$B$3,IF(UPPER($A16)="B",0,IF(VLOOKUP($B16,NewRet,NewRetirees!$B$10)=D$10,VLOOKUP($B16,NewRet,NewRetirees!$H$10),0)),0) -> 0 | E16: =IF(E$10<=PARAMS!$B$3,IF(VLOOKUP($B16,INDIRECT(IF(UPPER($A16)="N",$C$2,$C$3)),BOYRetirees!$N$10)=E$10,-VLOOKUP($B16,INDIRECT(IF(UPPER($A16)="N",$C$2,$C$3)),BOYRetirees!$O$10),0),0) -> 0 | F16: =IF(F$10<=PARAMS!$B$3,-IF(UPPER($A16)="B",IF(OR(VLOOKUP($B16,BOYRet,BOYRetirees!$M$10)="",F$10<=VLOOKUP($B16,BOYRet,BOYRetirees!$M$10)),VLOOKUP($B16,BOYRet,BOYRetirees!$L$10),0),IF(AND(VLOOKUP($B16,NewRet,NewRetirees!$B$10)<=E$10,OR(VLOOKUP($B16,NewRet,NewRetirees!$M$10)="",F$10<=(VLOOKUP($B16,NewRet,NewRetirees!$M$10)))),VLOOKUP($B16,NewRet,NewRetirees!$L$10),0)),0) -> -2203.9 | G16: 1005.16 | H16: =IF(H$10<=PARAMS!$B$3, IF(VLOOKUP($B16,INDIRECT(IF(UPPER($A16)="N",$C$2,$C$3)),BOYRetirees!$N$10)=H$10,-SUM(C16:G16),0),0) -> 0 | I16: 285522.2172 | J16: =IF(J$10<=PARAMS!$B$3,IF(UPPER($A16)="B",0,IF(VLOOKUP($B16,NewRet,NewRetirees!$B$10)=J$10,VLOOKUP($B16,NewRet,NewRetirees!$H$10),0)),0) -> 0 | K16: =IF(K$10<=PARAMS!$B$3,IF(VLOOKUP($B16,INDIRECT(IF(UPPER($A16)="N",$C$2,$C$3)),BOYRetirees!$N$10)=K$10,-VLOOKUP($B16,INDIRECT(IF(UPPER($A16)="N",$C$2,$C$3)),BOYRetirees!$O$10),0),0) -> 0 | L16: =IF(L$10<=PARAMS!$B$3,-IF(UPPER($A16)="B",IF(OR(VLOOKUP($B16,BOYRet,BOYRetirees!$M$10)="",L$10<=VLOOKUP($B16,BOYRet,BOYRetirees!$M$10)),VLOOKUP($B16,BOYRet,BOYRetirees!$L$10),0),IF(AND(VLOOKUP($B16,NewRet,NewRetirees!$B$10)<=K$10,OR(VLOOKUP($B16,NewRet,NewRetirees!$M$10)="",L$10<=(VLOOKUP($B16,NewRet,NewRetirees!$M$10)))),VLOOKUP($B16,NewRet,NewRetirees!$L$10),0)),0) -> -2203.9 | M16: 496.25 | N16: =IF(N$10<=PARAMS!$B$3, IF(VLOOKUP($B16,INDIRECT(IF(UPPER($A16)="N",$C$2,$C$3)),BOYRetirees!$N$10)=N$10,-SUM(I16:M16),0),0) -> 0 | O16: 283814.5672 | P16: =IF(P$10<=PARAMS!$B$3,IF(UPPER($A16)="B",0,IF(VLOOKUP($B16,NewRet,NewRetirees!$B$10)=P$10,VLOOKUP($B16,NewRet,NewRetirees!$H$10),0)),0) -> 0 | Q16: =IF(Q$10<=PARAMS!$B$3,IF(VLOOKUP($B16,INDIRECT(IF(UPPER($A16)="N",$C$2,$C$3)),BOYRetirees!$N$10)=Q$10,-VLOOKUP($B16,INDIRECT(IF(UPPER($A16)="N",$C$2,$C$3)),BOYRetirees!$O$10),0),0) -> 0 | R16: =IF(R$10<=PARAMS!$B$3,-IF(UPPER($A16)="B",IF(OR(VLOOKUP($B16,BOYRet,BOYRetirees!$M$10)="",R$10<=VLOOKUP($B16,BOYRet,BOYRetirees!$M$10)),VLOOKUP($B16,BOYRet,BOYRetirees!$L$10),0),IF(AND(VLOOKUP($B16,NewRet,NewRetirees!$B$10)<=Q$10,OR(VLOOKUP($B16,NewRet,NewRetirees!$M$10)="",R$10<=(VLOOKUP($B16,NewRet,NewRetirees!$M$10)))),VLOOKUP($B16,NewRet,NewRetirees!$L$10),0)),0) -> -2203.9 | S16: -244.06 | T16: =IF(T$10<=PARAMS!$B$3, IF(VLOOKUP($B16,INDIRECT(IF(UPPER($A16)="N",$C$2,$C$3)),BOYRetirees!$N$10)=T$10,-SUM(O16:S16),0),0) -> 0 | U16: 281366.6072 | V16: =IF(V$10<=PARAMS!$B$3,IF(UPPER($A16)="B",0,IF(VLOOKUP($B16,NewRet,NewRetirees!$B$10)=V$10,VLOOKUP($B16,NewRet,NewRetirees!$H$10),0)),0) -> 0 | W16: =IF(W$10<=PARAMS!$B$3,IF(VLOOKUP($B16,INDIRECT(IF(UPPER($A16)="N",$C$2,$C$3)),BOYRetirees!$N$10)=W$10,-VLOOKUP($B16,INDIRECT(IF(UPPER($A16)="N",$C$2,$C$3)),BOYRetirees!$O$10),0),0) -> 0 | X16: =IF(X$10<=PARAMS!$B$3,-IF(UPPER($A16)="B",IF(OR(VLOOKUP($B16,BOYRet,BOYRetirees!$M$10)="",X$10<=VLOOKUP($B16,BOYRet,BOYRetirees!$M$10)),VLOOKUP($B16,BOYRet,BOYRetirees!$L$10),0),IF(AND(VLOOKUP($B16,NewRet,NewRetirees!$B$10)<=W$10,OR(VLOOKUP($B16,NewRet,NewRetirees!$M$10)="",X$10<=(VLOOKUP($B16,NewRet,NewRetirees!$M$10)))),VLOOKUP($B16,NewRet,NewRetirees!$L$10),0)),0) -> -2203.9 | Y16: 1273.35 | Z16: =IF(Z$10<=PARAMS!$B$3, IF(VLOOKUP($B16,INDIRECT(IF(UPPER($A16)="N",$C$2,$C$3)),BOYRetirees!$N$10)=Z$10,-SUM(U16:Y16),0),0) -> 0 | AA16: 280436.0572 | AB16: =IF(AB$10<=PARAMS!$B$3,IF(UPPER($A16)="B",0,IF(VLOOKUP($B16,NewRet,NewRetirees!$B$10)=AB$10,VLOOKUP($B16,NewRet,NewRetirees!$H$10),0)),0) -> 0 | AC16: =IF(AC$10<=PARAMS!$B$3,IF(VLOOKUP($B16,INDIRECT(IF(UPPER($A16)="N",$C$2,$C$3)),BOYRetirees!$N$10)=AC$10,-VLOOKUP($B16,INDIRECT(IF(UPPER($A16)="N",$C$2,$C$3)),BOYRetirees!$O$10),0),0) -> 0 | AD16: =IF(AD$10<=PARAMS!$B$3,-IF(UPPER($A16)="B",IF(OR(VLOOKUP($B16,BOYRet,BOYRetirees!$M$10)="",AD$10<=VLOOKUP($B16,BOYRet,BOYRetirees!$M$10)),VLOOKUP($B16,BOYRet,BOYRetirees!$L$10),0),IF(AND(VLOOKUP($B16,NewRet,NewRetirees!$B$10)<=AC$10,OR(VLOOKUP($B16,NewRet,NewRetirees!$M$10)="",AD$10<=(VLOOKUP($B16,NewRet,NewRetirees!$M$10)))),VLOOKUP($B16,NewRet,NewRetirees!$L$10),0)),0) -> -2203.9 | AE16: 635.54 | AF16: =IF(AF$10<=PARAMS!$B$3,IF(UPPER($A16)="B",IF(VLOOKUP($B16,BOYRet,BOYRetirees!$N$10)=AF$10,-SUM(AA16:AE16),0),IF(VLOOKUP($B16,NewRet,NewRetirees!$N$10)=AF$10,-SUM(AA16:AE16),0)),0) -> 0 | AG16: 278867.6972 | AH16: =IF(AH$10<=PARAMS!$B$3,IF(UPPER($A16)="B",0,IF(VLOOKUP($B16,NewRet,NewRetirees!$B$10)=AH$10,VLOOKUP($B16,NewRet,NewRetirees!$H$10),0)),0) -> 0 | AI16: =IF(AI$10<=PARAMS!$B$3,IF(VLOOKUP($B16,INDIRECT(IF(UPPER($A16)="N",$C$2,$C$3)),BOYRetirees!$N$10)=AI$10,-VLOOKUP($B16,INDIRECT(IF(UPPER($A16)="N",$C$2,$C$3)),BOYRetirees!$O$10),0),0) -> 0 | AJ16: =IF(AJ$10<=PARAMS!$B$3,-IF(UPPER($A16)="B",IF(OR(VLOOKUP($B16,BOYRet,BOYRetirees!$M$10)="",AJ$10<=VLOOKUP($B16,BOYRet,BOYRetirees!$M$10)),VLOOKUP($B16,BOYRet,BOYRetirees!$L$10),0),IF(AND(VLOOKUP($B16,NewRet,NewRetirees!$B$10)<=AI$10,OR(VLOOKUP($B16,NewRet,NewRetirees!$M$10)="",AJ$10<=(VLOOKUP($B16,NewRet,NewRetirees!$M$10)))),VLOOKUP($B16,NewRet,NewRetirees!$L$10),0)),0) -> -2203.9 | AK16: 1903.19 | AL16: =IF(AL$10<=PARAMS!$B$3, IF(VLOOKUP($B16,INDIRECT(IF(UPPER($A16)="N",$C$2,$C$3)),BOYRetirees!$N$10)=AL$10,-SUM(AG16:AK16),0),0) -> 0 | AM16: 278566.9872 | AN16: =IF(AN$10<=PARAMS!$B$3,IF(UPPER($A16)="B",0,IF(VLOOKUP($B16,NewRet,NewRetirees!$B$10)=AN$10,VLOOKUP($B16,NewRet,NewRetirees!$H$10),0)),0) -> 0 | AO16: =IF(AO$10<=PARAMS!$B$3,IF(VLOOKUP($B16,INDIRECT(IF(UPPER($A16)="N",$C$2,$C$3)),BOYRetirees!$N$10)=AO$10,-VLOOKUP($B16,INDIRECT(IF(UPPER($A16)="N",$C$2,$C$3)),BOYRetirees!$O$10),0),0) -> 0 | AP16: =IF(AP$10<=PARAMS!$B$3,-IF(UPPER($A16)="B",IF(OR(VLOOKUP($B16,BOYRet,BOYRetirees!$M$10)="",AP$10<=VLOOKUP($B16,BOYRet,BOYRetirees!$M$10)),VLOOKUP($B16,BOYRet,BOYRetirees!$L$10),0),IF(AND(VLOOKUP($B16,NewRet,NewRetirees!$B$10)<=AO$10,OR(VLOOKUP($B16,NewRet,NewRetirees!$M$10)="",AP$10<=(VLOOKUP($B16,NewRet,NewRetirees!$M$10)))),VLOOKUP($B16,NewRet,NewRetirees!$L$10),0)),0) -> -2203.9 | AQ16: 911.87 | AR16: =IF(AR$10<=PARAMS!$B$3, IF(VLOOKUP($B16,INDIRECT(IF(UPPER($A16)="N",$C$2,$C$3)),BOYRetirees!$N$10)=AR$10,-SUM(AM16:AQ16),0),0) -> 0 | AS16: 277274.9572 | AT16: =IF(AT$10<=PARAMS!$B$3,IF(UPPER($A16)="B",0,IF(VLOOKUP($B16,NewRet,NewRetirees!$B$10)=AT$10,VLOOKUP($B16,NewRet,NewRetirees!$H$10),0)),0) -> 0 | AU16: =IF(AU$10<=PARAMS!$B$3,IF(VLOOKUP($B16,INDIRECT(IF(UPPER($A16)="N",$C$2,$C$3)),BOYRetirees!$N$10)=AU$10,-VLOOKUP($B16,INDIRECT(IF(UPPER($A16)="N",$C$2,$C$3)),BOYRetirees!$O$10),0),0) -> 0 | AV16: =IF(AV$10<=PARAMS!$B$3,-IF(UPPER($A16)="B",IF(OR(VLOOKUP($B16,BOYRet,BOYRetirees!$M$10)="",AV$10<=VLOOKUP($B16,BOYRet,BOYRetirees!$M$10)),VLOOKUP($B16,BOYRet,BOYRetirees!$L$10),0),IF(AND(VLOOKUP($B16,NewRet,NewRetirees!$B$10)<=AU$10,OR(VLOOKUP($B16,NewRet,NewRetirees!$M$10)="",AV$10<=(VLOOKUP($B16,NewRet,NewRetirees!$M$10)))),VLOOKUP($B16,NewRet,NewRetirees!$L$10),0)),0) -> -2203.9 | AW16: 1011.33 | AX16: =IF(AX$10<=PARAMS!$B$3, IF(VLOOKUP($B16,INDIRECT(IF(UPPER($A16)="N",$C$2,$C$3)),BOYRetirees!$N$10)=AX$10,-SUM(AS16:AW16),0),0) -> 0 | AY16: 276082.3872 | AZ16: =IF(AZ$10<=PARAMS!$B$3,IF(UPPER($A16)="B",0,IF(VLOOKUP($B16,NewRet,NewRetirees!$B$10)=AZ$10,VLOOKUP($B16,NewRet,NewRetirees!$H$10),0)),0) -> 0 | BA16: =IF(BA$10<=PARAMS!$B$3,IF(VLOOKUP($B16,INDIRECT(IF(UPPER($A16)="N",$C$2,$C$3)),BOYRetirees!$N$10)=BA$10,-VLOOKUP($B16,INDIRECT(IF(UPPER($A16)="N",$C$2,$C$3)),BOYRetirees!$O$10),0),0) -> 0 | BB16: =IF(BB$10<=PARAMS!$B$3,-IF(UPPER($A16)="B",IF(OR(VLOOKUP($B16,BOYRet,BOYRetirees!$M$10)="",BB$10<=VLOOKUP($B16,BOYRet,BOYRetirees!$M$10)),VLOOKUP($B16,BOYRet,BOYRetirees!$L$10),0),IF(AND(VLOOKUP($B16,NewRet,NewRetirees!$B$10)<=BA$10,OR(VLOOKUP($B16,NewRet,NewRetirees!$M$10)="",BB$10<=(VLOOKUP($B16,NewRet,NewRetirees!$M$10)))),VLOOKUP($B16,NewRet,NewRetirees!$L$10),0)),0) -> -2203.9 | BC16: 630.91 | BD16: =IF(BD$10<=PARAMS!$B$3, IF(VLOOKUP($B16,INDIRECT(IF(UPPER($A16)="N",$C$2,$C$3)),BOYRetirees!$N$10)=BD$10,-SUM(AY16:BC16),0),0) -> 0 | BE16: 274509.3972 | BF16: =IF(BF$10<=PARAMS!$B$3,IF(UPPER($A16)="B",0,IF(VLOOKUP($B16,NewRet,NewRetirees!$B$10)=BF$10,VLOOKUP($B16,NewRet,NewRetirees!$H$10),0)),0) -> 0 | BG16: =IF(BG$10<=PARAMS!$B$3,IF(VLOOKUP($B16,INDIRECT(IF(UPPER($A16)="N",$C$2,$C$3)),BOYRetirees!$N$10)=BG$10,-VLOOKUP($B16,INDIRECT(IF(UPPER($A16)="N",$C$2,$C$3)),BOYRetirees!$O$10),0),0) -> 0 | BH16: =IF(BH$10<=PARAMS!$B$3,-IF(UPPER($A16)="B",IF(OR(VLOOKUP($B16,BOYRet,BOYRetirees!$M$10)="",BH$10<=VLOOKUP($B16,BOYRet,BOYRetirees!$M$10)),VLOOKUP($B16,BOYRet,BOYRetirees!$L$10),0),IF(AND(VLOOKUP($B16,NewRet,NewRetirees!$B$10)<=BG$10,OR(VLOOKUP($B16,NewRet,NewRetirees!$M$10)="",BH$10<=(VLOOKUP($B16,NewRet,NewRetirees!$M$10)))),VLOOKUP($B16,NewRet,NewRetirees!$L$10),0)),0) -> -2203.9 | BI16: -251.89 | BJ16: =IF(BJ$10<=PARAMS!$B$3, IF(VLOOKUP($B16,INDIRECT(IF(UPPER($A16)="N",$C$2,$C$3)),BOYRetirees!$N$10)=BJ$10,-SUM(BE16:BI16),0),0) -> 0 | BK16: 272053.6072 | BL16: =IF(BL$10<=PARAMS!$B$3,IF(UPPER($A16)="B",0,IF(VLOOKUP($B16,NewRet,NewRetirees!$B$10)=BL$10,VLOOKUP($B16,NewRet,NewRetirees!$H$10),0)),0) -> 0 | BM16: =IF(BM$10<=PARAMS!$B$3,IF(VLOOKUP($B16,INDIRECT(IF(UPPER($A16)="N",$C$2,$C$3)),BOYRetirees!$N$10)=BM$10,-VLOOKUP($B16,INDIRECT(IF(UPPER($A16)="N",$C$2,$C$3)),BOYRetirees!$O$10),0),0) -> 0 | BN16: =IF(BN$10<=PARAMS!$B$3,-IF(UPPER($A16)="B",IF(OR(VLOOKUP($B16,BOYRet,BOYRetirees!$M$10)="",BN$10<=VLOOKUP($B16,BOYRet,BOYRetirees!$M$10)),VLOOKUP($B16,BOYRet,BOYRetirees!$L$10),0),IF(AND(VLOOKUP($B16,NewRet,NewRetirees!$B$10)<=BM$10,OR(VLOOKUP($B16,NewRet,NewRetirees!$M$10)="",BN$10<=(VLOOKUP($B16,NewRet,NewRetirees!$M$10)))),VLOOKUP($B16,NewRet,NewRetirees!$L$10),0)),0) -> -2203.9 | BO16: 1508.46 | BP16: =IF(BP$10<=PARAMS!$B$3, IF(VLOOKUP($B16,INDIRECT(IF(UPPER($A16)="N",$C$2,$C$3)),BOYRetirees!$N$10)=BP$10,-SUM(BK16:BO16),0),0) -> 0 | BQ16: 271358.1672 | BR16: =IF(BR$10<=PARAMS!$B$3,IF(UPPER($A16)="B",0,IF(VLOOKUP($B16,NewRet,NewRetirees!$B$10)=BR$10,VLOOKUP($B16,NewRet,NewRetirees!$H$10),0)),0) -> 0 | BS16: =IF(BS$10<=PARAMS!$B$3,IF(VLOOKUP($B16,INDIRECT(IF(UPPER($A16)="N",$C$2,$C$3)),BOYRetirees!$N$10)=BS$10,-VLOOKUP($B16,INDIRECT(IF(UPPER($A16)="N",$C$2,$C$3)),BOYRetirees!$O$10),0),0) -> 0 | BT16: =IF(BT$10<=PARAMS!$B$3,-IF(UPPER($A16)="B",IF(OR(VLOOKUP($B16,BOYRet,BOYRetirees!$M$10)="",BT$10<=VLOOKUP($B16,BOYRet,BOYRetirees!$M$10)),VLOOKUP($B16,BOYRet,BOYRetirees!$L$10),0),IF(AND(VLOOKUP($B16,NewRet,NewRetirees!$B$10)<=BS$10,OR(VLOOKUP($B16,NewRet,NewRetirees!$M$10)="",BT$10<=(VLOOKUP($B16,NewRet,NewRetirees!$M$10)))),VLOOKUP($B16,NewRet,NewRetirees!$L$10),0)),0) -> -2203.9 | BU16: 603.15 | BV16: =IF(BV$10<=PARAMS!$B$3, IF(VLOOKUP($B16,INDIRECT(IF(UPPER($A16)="N",$C$2,$C$3)),BOYRetirees!$N$10)=BV$10,-SUM(BQ16:BU16),0),0) -> 0 | BW16: 269757.4172 | BX16: B00006 | BY16: =C16 -> 286720.9572 | BZ16: =SUM(D16+J16+P16+V16+AB16+AH16+AN16+AT16+AZ16+BF16+BL16+BR16) -> 0 | CA16: =SUM(E16+K16+Q16+W16+AC16+AI16+AO16+AU16+BA16+BG16+BM16+BS16) -> 0 | CB16: =SUM(F16+L16+R16+X16+AD16+AJ16+AP16+AV16+BB16+BH16+BN16+BT16) -> -26446.8 | CC16: 9483.26 | CD16: 0 | CE16: 269757.4172 | CF16: 20945.16724 | CG16: 290702.5844 | CH16: =IF(BW16>0,VLOOKUP(B16,INDIRECT(IF(UPPER(A16)="N",$C$2,$C$3)),BOYRetirees!$P$10),0) -> 0.01009553782 | CI16: 2808.369739 | CJ16: =(C16+I16+O16+U16+AA16+AG16+AM16+AS16+AY16+BE16+BK16+BQ16+BW16)/(PARAMS!$B$2+1) -> 278179.3095 | CK16: 18136.7975 | CL16: -7207.498571
A17: b | B17: 7 | C17: =IF(UPPER($A17)="B",VLOOKUP($B17,BOYRet,BOYRetirees!$H$10),0) -> 193185.3661 | D17: =IF(D$10<=PARAMS!$B$3,IF(UPPER($A17)="B",0,IF(VLOOKUP($B17,NewRet,NewRetirees!$B$10)=D$10,VLOOKUP($B17,NewRet,NewRetirees!$H$10),0)),0) -> 0 | E17: =IF(E$10<=PARAMS!$B$3,IF(VLOOKUP($B17,INDIRECT(IF(UPPER($A17)="N",$C$2,$C$3)),BOYRetirees!$N$10)=E$10,-VLOOKUP($B17,INDIRECT(IF(UPPER($A17)="N",$C$2,$C$3)),BOYRetirees!$O$10),0),0) -> 0 | F17: =IF(F$10<=PARAMS!$B$3,-IF(UPPER($A17)="B",IF(OR(VLOOKUP($B17,BOYRet,BOYRetirees!$M$10)="",F$10<=VLOOKUP($B17,BOYRet,BOYRetirees!$M$10)),VLOOKUP($B17,BOYRet,BOYRetirees!$L$10),0),IF(AND(VLOOKUP($B17,NewRet,NewRetirees!$B$10)<=E$10,OR(VLOOKUP($B17,NewRet,NewRetirees!$M$10)="",F$10<=(VLOOKUP($B17,NewRet,NewRetirees!$M$10)))),VLOOKUP($B17,NewRet,NewRetirees!$L$10),0)),0) -> -1099.73 | G17: 678.61 | H17: =IF(H$10<=PARAMS!$B$3, IF(VLOOKUP($B17,INDIRECT(IF(UPPER($A17)="N",$C$2,$C$3)),BOYRetirees!$N$10)=H$10,-SUM(C17:G17),0),0) -> 0 | I17: 192764.2461 | J17: =IF(J$10<=PARAMS!$B$3,IF(UPPER($A17)="B",0,IF(VLOOKUP($B17,NewRet,NewRetirees!$B$10)=J$10,VLOOKUP($B17,NewRet,NewRetirees!$H$10),0)),0) -> 0 | K17: =IF(K$10<=PARAMS!$B$3,IF(VLOOKUP($B17,INDIRECT(IF(UPPER($A17)="N",$C$2,$C$3)),BOYRetirees!$N$10)=K$10,-VLOOKUP($B17,INDIRECT(IF(UPPER($A17)="N",$C$2,$C$3)),BOYRetirees!$O$10),0),0) -> 0 | L17: =IF(L$10<=PARAMS!$B$3,-IF(UPPER($A17)="B",IF(OR(VLOOKUP($B17,BOYRet,BOYRetirees!$M$10)="",L$10<=VLOOKUP($B17,BOYRet,BOYRetirees!$M$10)),VLOOKUP($B17,BOYRet,BOYRetirees!$L$10),0),IF(AND(VLOOKUP($B17,NewRet,NewRetirees!$B$10)<=K$10,OR(VLOOKUP($B17,NewRet,NewRetirees!$M$10)="",L$10<=(VLOOKUP($B17,NewRet,NewRetirees!$M$10)))),VLOOKUP($B17,NewRet,NewRetirees!$L$10),0)),0) -> -1099.73 | M17: 335.71 | N17: =IF(N$10<=PARAMS!$B$3, IF(VLOOKUP($B17,INDIRECT(IF(UPPER($A17)="N",$C$2,$C$3)),BOYRetirees!$N$10)=N$10,-SUM(I17:M17),0),0) -> 0 | O17: 192000.2261 | P17: =IF(P$10<=PARAMS!$B$3,IF(UPPER($A17)="B",0,IF(VLOOKUP($B17,NewRet,NewRetirees!$B$10)=P$10,VLOOKUP($B17,NewRet,NewRetirees!$H$10),0)),0) -> 0 | Q17: =IF(Q$10<=PARAMS!$B$3,IF(VLOOKUP($B17,INDIRECT(IF(UPPER($A17)="N",$C$2,$C$3)),BOYRetirees!$N$10)=Q$10,-VLOOKUP($B17,INDIRECT(IF(UPPER($A17)="N",$C$2,$C$3)),BOYRetirees!$O$10),0),0) -> 0 | R17: =IF(R$10<=PARAMS!$B$3,-IF(UPPER($A17)="B",IF(OR(VLOOKUP($B17,BOYRet,BOYRetirees!$M$10)="",R$10<=VLOOKUP($B17,BOYRet,BOYRetirees!$M$10)),VLOOKUP($B17,BOYRet,BOYRetirees!$L$10),0),IF(AND(VLOOKUP($B17,NewRet,NewRetirees!$B$10)<=Q$10,OR(VLOOKUP($B17,NewRet,NewRetirees!$M$10)="",R$10<=(VLOOKUP($B17,NewRet,NewRetirees!$M$10)))),VLOOKUP($B17,NewRet,NewRetirees!$L$10),0)),0) -> -1099.73 | S17: -165.44 | T17: =IF(T$10<=PARAMS!$B$3, IF(VLOOKUP($B17,INDIRECT(IF(UPPER($A17)="N",$C$2,$C$3)),BOYRetirees!$N$10)=T$10,-SUM(O17:S17),0),0) -> 0 | U17: 190735.0561 | V17: =IF(V$10<=PARAMS!$B$3,IF(UPPER($A17)="B",0,IF(VLOOKUP($B17,NewRet,NewRetirees!$B$10)=V$10,VLOOKUP($B17,NewRet,NewRetirees!$H$10),0)),0) -> 0 | W17: =IF(W$10<=PARAMS!$B$3,IF(VLOOKUP($B17,INDIRECT(IF(UPPER($A17)="N",$C$2,$C$3)),BOYRetirees!$N$10)=W$10,-VLOOKUP($B17,INDIRECT(IF(UPPER($A17)="N",$C$2,$C$3)),BOYRetirees!$O$10),0),0) -> 0 | X17: =IF(X$10<=PARAMS!$B$3,-IF(UPPER($A17)="B",IF(OR(VLOOKUP($B17,BOYRet,BOYRetirees!$M$10)="",X$10<=VLOOKUP($B17,BOYRet,BOYRetirees!$M$10)),VLOOKUP($B17,BOYRet,BOYRetirees!$L$10),0),IF(AND(VLOOKUP($B17,NewRet,NewRetirees!$B$10)<=W$10,OR(VLOOKUP($B17,NewRet,NewRetirees!$M$10)="",X$10<=(VLOOKUP($B17,NewRet,NewRetirees!$M$10)))),VLOOKUP($B17,NewRet,NewRetirees!$L$10),0)),0) -> -1099.73 | Y17: 864.99 | Z17: =IF(Z$10<=PARAMS!$B$3, IF(VLOOKUP($B17,INDIRECT(IF(UPPER($A17)="N",$C$2,$C$3)),BOYRetirees!$N$10)=Z$10,-SUM(U17:Y17),0),0) -> 0 | AA17: 190500.3161 | AB17: =IF(AB$10<=PARAMS!$B$3,IF(UPPER($A17)="B",0,IF(VLOOKUP($B17,NewRet,NewRetirees!$B$10)=AB$10,VLOOKUP($B17,NewRet,NewRetirees!$H$10),0)),0) -> 0 | AC17: =IF(AC$10<=PARAMS!$B$3,IF(VLOOKUP($B17,INDIRECT(IF(UPPER($A17)="N",$C$2,$C$3)),BOYRetirees!$N$10)=AC$10,-VLOOKUP($B17,INDIRECT(IF(UPPER($A17)="N",$C$2,$C$3)),BOYRetirees!$O$10),0),0) -> 0 | AD17: =IF(AD$10<=PARAMS!$B$3,-IF(UPPER($A17)="B",IF(OR(VLOOKUP($B17,BOYRet,BOYRetirees!$M$10)="",AD$10<=VLOOKUP($B17,BOYRet,BOYRetirees!$M$10)),VLOOKUP($B17,BOYRet,BOYRetirees!$L$10),0),IF(AND(VLOOKUP($B17,NewRet,NewRetirees!$B$10)<=AC$10,OR(VLOOKUP($B17,NewRet,NewRetirees!$M$10)="",AD$10<=(VLOOKUP($B17,NewRet,NewRetirees!$M$10)))),VLOOKUP($B17,NewRet,NewRetirees!$L$10),0)),0) -> -1099.73 | AE17: 432.63 | AF17: =IF(AF$10<=PARAMS!$B$3,IF(UPPER($A17)="B",IF(VLOOKUP($B17,BOYRet,BOYRetirees!$N$10)=AF$10,-SUM(AA17:AE17),0),IF(VLOOKUP($B17,NewRet,NewRetirees!$N$10)=AF$10,-SUM(AA17:AE17),0)),0) -> 0 | AG17: 189833.2161 | AH17: =IF(AH$10<=PARAMS!$B$3,IF(UPPER($A17)="B",0,IF(VLOOKUP($B17,NewRet,NewRetirees!$B$10)=AH$10,VLOOKUP($B17,NewRet,NewRetirees!$H$10),0)),0) -> 0 | AI17: =IF(AI$10<=PARAMS!$B$3,IF(VLOOKUP($B17,INDIRECT(IF(UPPER($A17)="N",$C$2,$C$3)),BOYRetirees!$N$10)=AI$10,-VLOOKUP($B17,INDIRECT(IF(UPPER($A17)="N",$C$2,$C$3)),BOYRetirees!$O$10),0),0) -> 0 | AJ17: =IF(AJ$10<=PARAMS!$B$3,-IF(UPPER($A17)="B",IF(OR(VLOOKUP($B17,BOYRet,BOYRetirees!$M$10)="",AJ$10<=VLOOKUP($B17,BOYRet,BOYRetirees!$M$10)),VLOOKUP($B17,BOYRet,BOYRetirees!$L$10),0),IF(AND(VLOOKUP($B17,NewRet,NewRetirees!$B$10)<=AI$10,OR(VLOOKUP($B17,NewRet,NewRetirees!$M$10)="",AJ$10<=(VLOOKUP($B17,NewRet,NewRetirees!$M$10)))),VLOOKUP($B17,NewRet,NewRetirees!$L$10),0)),0) -> -1099.73 | AK17: 1298.31 | AL17: =IF(AL$10<=PARAMS!$B$3, IF(VLOOKUP($B17,INDIRECT(IF(UPPER($A17)="N",$C$2,$C$3)),BOYRetirees!$N$10)=AL$10,-SUM(AG17:AK17),0),0) -> 0 | AM17: 190031.7961 | AN17: =IF(AN$10<=PARAMS!$B$3,IF(UPPER($A17)="B",0,IF(VLOOKUP($B17,NewRet,NewRetirees!$B$10)=AN$10,VLOOKUP($B17,NewRet,NewRetirees!$H$10),0)),0) -> 0 | AO17: =IF(AO$10<=PARAMS!$B$3,IF(VLOOKUP($B17,INDIRECT(IF(UPPER($A17)="N",$C$2,$C$3)),BOYRetirees!$N$10)=AO$10,-VLOOKUP($B17,INDIRECT(IF(UPPER($A17)="N",$C$2,$C$3)),BOYRetirees!$O$10),0),0) -> 0 | AP17: =IF(AP$10<=PARAMS!$B$3,-IF(UPPER($A17)="B",IF(OR(VLOOKUP($B17,BOYRet,BOYRetirees!$M$10)="",AP$10<=VLOOKUP($B17,BOYRet,BOYRetirees!$M$10)),VLOOKUP($B17,BOYRet,BOYRetirees!$L$10),0),IF(AND(VLOOKUP($B17,NewRet,NewRetirees!$B$10)<=AO$10,OR(VLOOKUP($B17,NewRet,NewRetirees!$M$10)="",AP$10<=(VLOOKUP($B17,NewRet,NewRetirees!$M$10)))),VLOOKUP($B17,NewRet,NewRetirees!$L$10),0)),0) -> -1099.73 | AQ17: 623.39 | AR17: =IF(AR$10<=PARAMS!$B$3, IF(VLOOKUP($B17,INDIRECT(IF(UPPER($A17)="N",$C$2,$C$3)),BOYRetirees!$N$10)=AR$10,-SUM(AM17:AQ17),0),0) -> 0 | AS17: 189555.4561 | AT17: =IF(AT$10<=PARAMS!$B$3,IF(UPPER($A17)="B",0,IF(VLOOKUP($B17,NewRet,NewRetirees!$B$10)=AT$10,VLOOKUP($B17,NewRet,NewRetirees!$H$10),0)),0) -> 0 | AU17: =IF(AU$10<=PARAMS!$B$3,IF(VLOOKUP($B17,INDIRECT(IF(UPPER($A17)="N",$C$2,$C$3)),BOYRetirees!$N$10)=AU$10,-VLOOKUP($B17,INDIRECT(IF(UPPER($A17)="N",$C$2,$C$3)),BOYRetirees!$O$10),0),0) -> 0 | AV17: =IF(AV$10<=PARAMS!$B$3,-IF(UPPER($A17)="B",IF(OR(VLOOKUP($B17,BOYRet,BOYRetirees!$M$10)="",AV$10<=VLOOKUP($B17,BOYRet,BOYRetirees!$M$10)),VLOOKUP($B17,BOYRet,BOYRetirees!$L$10),0),IF(AND(VLOOKUP($B17,NewRet,NewRetirees!$B$10)<=AU$10,OR(VLOOKUP($B17,NewRet,NewRetirees!$M$10)="",AV$10<=(VLOOKUP($B17,NewRet,NewRetirees!$M$10)))),VLOOKUP($B17,NewRet,NewRetirees!$L$10),0)),0) -> -1099.73 | AW17: 692.88 | AX17: =IF(AX$10<=PARAMS!$B$3, IF(VLOOKUP($B17,INDIRECT(IF(UPPER($A17)="N",$C$2,$C$3)),BOYRetirees!$N$10)=AX$10,-SUM(AS17:AW17),0),0) -> 0 | AY17: 189148.6061 | AZ17: =IF(AZ$10<=PARAMS!$B$3,IF(UPPER($A17)="B",0,IF(VLOOKUP($B17,NewRet,NewRetirees!$B$10)=AZ$10,VLOOKUP($B17,NewRet,NewRetirees!$H$10),0)),0) -> 0 | BA17: =IF(BA$10<=PARAMS!$B$3,IF(VLOOKUP($B17,INDIRECT(IF(UPPER($A17)="N",$C$2,$C$3)),BOYRetirees!$N$10)=BA$10,-VLOOKUP($B17,INDIRECT(IF(UPPER($A17)="N",$C$2,$C$3)),BOYRetirees!$O$10),0),0) -> 0 | BB17: =IF(BB$10<=PARAMS!$B$3,-IF(UPPER($A17)="B",IF(OR(VLOOKUP($B17,BOYRet,BOYRetirees!$M$10)="",BB$10<=VLOOKUP($B17,BOYRet,BOYRetirees!$M$10)),VLOOKUP($B17,BOYRet,BOYRetirees!$L$10),0),IF(AND(VLOOKUP($B17,NewRet,NewRetirees!$B$10)<=BA$10,OR(VLOOKUP($B17,NewRet,NewRetirees!$M$10)="",BB$10<=(VLOOKUP($B17,NewRet,NewRetirees!$M$10)))),VLOOKUP($B17,NewRet,NewRetirees!$L$10),0)),0) -> -1099.73 | BC17: 433.19 | BD17: =IF(BD$10<=PARAMS!$B$3, IF(VLOOKUP($B17,INDIRECT(IF(UPPER($A17)="N",$C$2,$C$3)),BOYRetirees!$N$10)=BD$10,-SUM(AY17:BC17),0),0) -> 0 | BE17: 188482.0661 | BF17: =IF(BF$10<=PARAMS!$B$3,IF(UPPER($A17)="B",0,IF(VLOOKUP($B17,NewRet,NewRetirees!$B$10)=BF$10,VLOOKUP($B17,NewRet,NewRetirees!$H$10),0)),0) -> 0 | BG17: =IF(BG$10<=PARAMS!$B$3,IF(VLOOKUP($B17,INDIRECT(IF(UPPER($A17)="N",$C$2,$C$3)),BOYRetirees!$N$10)=BG$10,-VLOOKUP($B17,INDIRECT(IF(UPPER($A17)="N",$C$2,$C$3)),BOYRetirees!$O$10),0),0) -> 0 | BH17: =IF(BH$10<=PARAMS!$B$3,-IF(UPPER($A17)="B",IF(OR(VLOOKUP($B17,BOYRet,BOYRetirees!$M$10)="",BH$10<=VLOOKUP($B17,BOYRet,BOYRetirees!$M$10)),VLOOKUP($B17,BOYRet,BOYRetirees!$L$10),0),IF(AND(VLOOKUP($B17,NewRet,NewRetirees!$B$10)<=BG$10,OR(VLOOKUP($B17,NewRet,NewRetirees!$M$10)="",BH$10<=(VLOOKUP($B17,NewRet,NewRetirees!$M$10)))),VLOOKUP($B17,NewRet,NewRetirees!$L$10),0)),0) -> -1099.73 | BI17: -173.33 | BJ17: =IF(BJ$10<=PARAMS!$B$3, IF(VLOOKUP($B17,INDIRECT(IF(UPPER($A17)="N",$C$2,$C$3)),BOYRetirees!$N$10)=BJ$10,-SUM(BE17:BI17),0),0) -> 0 | BK17: 187209.0061 | BL17: =IF(BL$10<=PARAMS!$B$3,IF(UPPER($A17)="B",0,IF(VLOOKUP($B17,NewRet,NewRetirees!$B$10)=BL$10,VLOOKUP($B17,NewRet,NewRetirees!$H$10),0)),0) -> 0 | BM17: =IF(BM$10<=PARAMS!$B$3,IF(VLOOKUP($B17,INDIRECT(IF(UPPER($A17)="N",$C$2,$C$3)),BOYRetirees!$N$10)=BM$10,-VLOOKUP($B17,INDIRECT(IF(UPPER($A17)="N",$C$2,$C$3)),BOYRetirees!$O$10),0),0) -> 0 | BN17: =IF(BN$10<=PARAMS!$B$3,-IF(UPPER($A17)="B",IF(OR(VLOOKUP($B17,BOYRet,BOYRetirees!$M$10)="",BN$10<=VLOOKUP($B17,BOYRet,BOYRetirees!$M$10)),VLOOKUP($B17,BOYRet,BOYRetirees!$L$10),0),IF(AND(VLOOKUP($B17,NewRet,NewRetirees!$B$10)<=BM$10,OR(VLOOKUP($B17,NewRet,NewRetirees!$M$10)="",BN$10<=(VLOOKUP($B17,NewRet,NewRetirees!$M$10)))),VLOOKUP($B17,NewRet,NewRetirees!$L$10),0)),0) -> -1099.73 | BO17: 1040.35 | BP17: =IF(BP$10<=PARAMS!$B$3, IF(VLOOKUP($B17,INDIRECT(IF(UPPER($A17)="N",$C$2,$C$3)),BOYRetirees!$N$10)=BP$10,-SUM(BK17:BO17),0),0) -> 0 | BQ17: 187149.6261 | BR17: =IF(BR$10<=PARAMS!$B$3,IF(UPPER($A17)="B",0,IF(VLOOKUP($B17,NewRet,NewRetirees!$B$10)=BR$10,VLOOKUP($B17,NewRet,NewRetirees!$H$10),0)),0) -> 0 | BS17: =IF(BS$10<=PARAMS!$B$3,IF(VLOOKUP($B17,INDIRECT(IF(UPPER($A17)="N",$C$2,$C$3)),BOYRetirees!$N$10)=BS$10,-VLOOKUP($B17,INDIRECT(IF(UPPER($A17)="N",$C$2,$C$3)),BOYRetirees!$O$10),0),0) -> 0 | BT17: =IF(BT$10<=PARAMS!$B$3,-IF(UPPER($A17)="B",IF(OR(VLOOKUP($B17,BOYRet,BOYRetirees!$M$10)="",BT$10<=VLOOKUP($B17,BOYRet,BOYRetirees!$M$10)),VLOOKUP($B17,BOYRet,BOYRetirees!$L$10),0),IF(AND(VLOOKUP($B17,NewRet,NewRetirees!$B$10)<=BS$10,OR(VLOOKUP($B17,NewRet,NewRetirees!$M$10)="",BT$10<=(VLOOKUP($B17,NewRet,NewRetirees!$M$10)))),VLOOKUP($B17,NewRet,NewRetirees!$L$10),0)),0) -> -1099.73 | BU17: 416.92 | BV17: =IF(BV$10<=PARAMS!$B$3, IF(VLOOKUP($B17,INDIRECT(IF(UPPER($A17)="N",$C$2,$C$3)),BOYRetirees!$N$10)=BV$10,-SUM(BQ17:BU17),0),0) -> 0 | BW17: 186466.8161 | BX17: B00007 | BY17: 193185.3661 | BZ17: 0 | CA17: 0 | CB17: -13196.76 | CC17: 6478.21 | CD17: 0 | CE17: 186466.8161 | CF17: 5874.265581 | CG17: 192341.0817 | CH17: =IF(BW17>0,VLOOKUP(B17,INDIRECT(IF(UPPER(A17)="N",$C$2,$C$3)),BOYRetirees!$P$10),0) -> 0.004150375144 | CI17: 787.6332287 | CJ17: =(C17+I17+O17+U17+AA17+AG17+AM17+AS17+AY17+BE17+BK17+BQ17+BW17)/(PARAMS!$B$2+1) -> 189773.9846 | CK17: 5086.632352 | CL17: -4908.229076
A18: b | B18: 8 | C18: =IF(UPPER($A18)="B",VLOOKUP($B18,BOYRet,BOYRetirees!$H$10),0) -> 0 | D18: =IF(D$10<=PARAMS!$B$3,IF(UPPER($A18)="B",0,IF(VLOOKUP($B18,NewRet,NewRetirees!$B$10)=D$10,VLOOKUP($B18,NewRet,NewRetirees!$H$10),0)),0) -> 0 | E18: =IF(E$10<=PARAMS!$B$3,IF(VLOOKUP($B18,INDIRECT(IF(UPPER($A18)="N",$C$2,$C$3)),BOYRetirees!$N$10)=E$10,-VLOOKUP($B18,INDIRECT(IF(UPPER($A18)="N",$C$2,$C$3)),BOYRetirees!$O$10),0),0) -> 0 | F18: =IF(F$10<=PARAMS!$B$3,-IF(UPPER($A18)="B",IF(OR(VLOOKUP($B18,BOYRet,BOYRetirees!$M$10)="",F$10<=VLOOKUP($B18,BOYRet,BOYRetirees!$M$10)),VLOOKUP($B18,BOYRet,BOYRetirees!$L$10),0),IF(AND(VLOOKUP($B18,NewRet,NewRetirees!$B$10)<=E$10,OR(VLOOKUP($B18,NewRet,NewRetirees!$M$10)="",F$10<=(VLOOKUP($B18,NewRet,NewRetirees!$M$10)))),VLOOKUP($B18,NewRet,NewRetirees!$L$10),0)),0) -> 0 | G18: 0 | H18: =IF(H$10<=PARAMS!$B$3, IF(VLOOKUP($B18,INDIRECT(IF(UPPER($A18)="N",$C$2,$C$3)),BOYRetirees!$N$10)=H$10,-SUM(C18:G18),0),0) -> 0 | I18: 0 | J18: =IF(J$10<=PARAMS!$B$3,IF(UPPER($A18)="B",0,IF(VLOOKUP($B18,NewRet,NewRetirees!$B$10)=J$10,VLOOKUP($B18,NewRet,NewRetirees!$H$10),0)),0) -> 0 | K18: =IF(K$10<=PARAMS!$B$3,IF(VLOOKUP($B18,INDIRECT(IF(UPPER($A18)="N",$C$2,$C$3)),BOYRetirees!$N$10)=K$10,-VLOOKUP($B18,INDIRECT(IF(UPPER($A18)="N",$C$2,$C$3)),BOYRetirees!$O$10),0),0) -> 0 | L18: =IF(L$10<=PARAMS!$B$3,-IF(UPPER($A18)="B",IF(OR(VLOOKUP($B18,BOYRet,BOYRetirees!$M$10)="",L$10<=VLOOKUP($B18,BOYRet,BOYRetirees!$M$10)),VLOOKUP($B18,BOYRet,BOYRetirees!$L$10),0),IF(AND(VLOOKUP($B18,NewRet,NewRetirees!$B$10)<=K$10,OR(VLOOKUP($B18,NewRet,NewRetirees!$M$10)="",L$10<=(VLOOKUP($B18,NewRet,NewRetirees!$M$10)))),VLOOKUP($B18,NewRet,NewRetirees!$L$10),0)),0) -> 0 | M18: 0 | N18: =IF(N$10<=PARAMS!$B$3, IF(VLOOKUP($B18,INDIRECT(IF(UPPER($A18)="N",$C$2,$C$3)),BOYRetirees!$N$10)=N$10,-SUM(I18:M18),0),0) -> 0 | O18: 0 | P18: =IF(P$10<=PARAMS!$B$3,IF(UPPER($A18)="B",0,IF(VLOOKUP($B18,NewRet,NewRetirees!$B$10)=P$10,VLOOKUP($B18,NewRet,NewRetirees!$H$10),0)),0) -> 0 | Q18: =IF(Q$10<=PARAMS!$B$3,IF(VLOOKUP($B18,INDIRECT(IF(UPPER($A18)="N",$C$2,$C$3)),BOYRetirees!$N$10)=Q$10,-VLOOKUP($B18,INDIRECT(IF(UPPER($A18)="N",$C$2,$C$3)),BOYRetirees!$O$10),0),0) -> 0 | R18: =IF(R$10<=PARAMS!$B$3,-IF(UPPER($A18)="B",IF(OR(VLOOKUP($B18,BOYRet,BOYRetirees!$M$10)="",R$10<=VLOOKUP($B18,BOYRet,BOYRetirees!$M$10)),VLOOKUP($B18,BOYRet,BOYRetirees!$L$10),0),IF(AND(VLOOKUP($B18,NewRet,NewRetirees!$B$10)<=Q$10,OR(VLOOKUP($B18,NewRet,NewRetirees!$M$10)="",R$10<=(VLOOKUP($B18,NewRet,NewRetirees!$M$10)))),VLOOKUP($B18,NewRet,NewRetirees!$L$10),0)),0) -> 0 | S18: 0 | T18: =IF(T$10<=PARAMS!$B$3, IF(VLOOKUP($B18,INDIRECT(IF(UPPER($A18)="N",$C$2,$C$3)),BOYRetirees!$N$10)=T$10,-SUM(O18:S18),0),0) -> 0 | U18: 0 | V18: =IF(V$10<=PARAMS!$B$3,IF(UPPER($A18)="B",0,IF(VLOOKUP($B18,NewRet,NewRetirees!$B$10)=V$10,VLOOKUP($B18,NewRet,NewRetirees!$H$10),0)),0) -> 0 | W18: =IF(W$10<=PARAMS!$B$3,IF(VLOOKUP($B18,INDIRECT(IF(UPPER($A18)="N",$C$2,$C$3)),BOYRetirees!$N$10)=W$10,-VLOOKUP($B18,INDIRECT(IF(UPPER($A18)="N",$C$2,$C$3)),BOYRetirees!$O$10),0),0) -> 0 | X18: =IF(X$10<=PARAMS!$B$3,-IF(UPPER($A18)="B",IF(OR(VLOOKUP($B18,BOYRet,BOYRetirees!$M$10)="",X$10<=VLOOKUP($B18,BOYRet,BOYRetirees!$M$10)),VLOOKUP($B18,BOYRet,BOYRetirees!$L$10),0),IF(AND(VLOOKUP($B18,NewRet,NewRetirees!$B$10)<=W$10,OR(VLOOKUP($B18,NewRet,NewRetirees!$M$10)="",X$10<=(VLOOKUP($B18,NewRet,NewRetirees!$M$10)))),VLOOKUP($B18,NewRet,NewRetirees!$L$10),0)),0) -> 0 | Y18: 0 | Z18: =IF(Z$10<=PARAMS!$B$3, IF(VLOOKUP($B18,INDIRECT(IF(UPPER($A18)="N",$C$2,$C$3)),BOYRetirees!$N$10)=Z$10,-SUM(U18:Y18),0),0) -> 0 | AA18: 0 | AB18: =IF(AB$10<=PARAMS!$B$3,IF(UPPER($A18)="B",0,IF(VLOOKUP($B18,NewRet,NewRetirees!$B$10)=AB$10,VLOOKUP($B18,NewRet,NewRetirees!$H$10),0)),0) -> 0 | AC18: =IF(AC$10<=PARAMS!$B$3,IF(VLOOKUP($B18,INDIRECT(IF(UPPER($A18)="N",$C$2,$C$3)),BOYRetirees!$N$10)=AC$10,-VLOOKUP($B18,INDIRECT(IF(UPPER($A18)="N",$C$2,$C$3)),BOYRetirees!$O$10),0),0) -> 0 | AD18: =IF(AD$10<=PARAMS!$B$3,-IF(UPPER($A18)="B",IF(OR(VLOOKUP($B18,BOYRet,BOYRetirees!$M$10)="",AD$10<=VLOOKUP($B18,BOYRet,BOYRetirees!$M$10)),VLOOKUP($B18,BOYRet,BOYRetirees!$L$10),0),IF(AND(VLOOKUP($B18,NewRet,NewRetirees!$B$10)<=AC$10,OR(VLOOKUP($B18,NewRet,NewRetirees!$M$10)="",AD$10<=(VLOOKUP($B18,NewRet,NewRetirees!$M$10)))),VLOOKUP($B18,NewRet,NewRetirees!$L$10),0)),0) -> 0 | AE18: 0 | AF18: =IF(AF$10<=PARAMS!$B$3,IF(UPPER($A18)="B",IF(VLOOKUP($B18,BOYRet,BOYRetirees!$N$10)=AF$10,-SUM(AA18:AE18),0),IF(VLOOKUP($B18,NewRet,NewRetirees!$N$10)=AF$10,-SUM(AA18:AE18),0)),0) -> 0 | AG18: 0 | AH18: =IF(AH$10<=PARAMS!$B$3,IF(UPPER($A18)="B",0,IF(VLOOKUP($B18,NewRet,NewRetirees!$B$10)=AH$10,VLOOKUP($B18,NewRet,NewRetirees!$H$10),0)),0) -> 0 | AI18: =IF(AI$10<=PARAMS!$B$3,IF(VLOOKUP($B18,INDIRECT(IF(UPPER($A18)="N",$C$2,$C$3)),BOYRetirees!$N$10)=AI$10,-VLOOKUP($B18,INDIRECT(IF(UPPER($A18)="N",$C$2,$C$3)),BOYRetirees!$O$10),0),0) -> 0 | AJ18: =IF(AJ$10<=PARAMS!$B$3,-IF(UPPER($A18)="B",IF(OR(VLOOKUP($B18,BOYRet,BOYRetirees!$M$10)="",AJ$10<=VLOOKUP($B18,BOYRet,BOYRetirees!$M$10)),VLOOKUP($B18,BOYRet,BOYRetirees!$L$10),0),IF(AND(VLOOKUP($B18,NewRet,NewRetirees!$B$10)<=AI$10,OR(VLOOKUP($B18,NewRet,NewRetirees!$M$10)="",AJ$10<=(VLOOKUP($B18,NewRet,NewRetirees!$M$10)))),VLOOKUP($B18,NewRet,NewRetirees!$L$10),0)),0) -> 0 | AK18: 0 | AL18: =IF(AL$10<=PARAMS!$B$3, IF(VLOOKUP($B18,INDIRECT(IF(UPPER($A18)="N",$C$2,$C$3)),BOYRetirees!$N$10)=AL$10,-SUM(AG18:AK18),0),0) -> 0 | AM18: 0 | AN18: =IF(AN$10<=PARAMS!$B$3,IF(UPPER($A18)="B",0,IF(VLOOKUP($B18,NewRet,NewRetirees!$B$10)=AN$10,VLOOKUP($B18,NewRet,NewRetirees!$H$10),0)),0) -> 0 | AO18: =IF(AO$10<=PARAMS!$B$3,IF(VLOOKUP($B18,INDIRECT(IF(UPPER($A18)="N",$C$2,$C$3)),BOYRetirees!$N$10)=AO$10,-VLOOKUP($B18,INDIRECT(IF(UPPER($A18)="N",$C$2,$C$3)),BOYRetirees!$O$10),0),0) -> 0 | AP18: =IF(AP$10<=PARAMS!$B$3,-IF(UPPER($A18)="B",IF(OR(VLOOKUP($B18,BOYRet,BOYRetirees!$M$10)="",AP$10<=VLOOKUP($B18,BOYRet,BOYRetirees!$M$10)),VLOOKUP($B18,BOYRet,BOYRetirees!$L$10),0),IF(AND(VLOOKUP($B18,NewRet,NewRetirees!$B$10)<=AO$10,OR(VLOOKUP($B18,NewRet,NewRetirees!$M$10)="",AP$10<=(VLOOKUP($B18,NewRet,NewRetirees!$M$10)))),VLOOKUP($B18,NewRet,NewRetirees!$L$10),0)),0) -> 0 | AQ18: 0 | AR18: =IF(AR$10<=PARAMS!$B$3, IF(VLOOKUP($B18,INDIRECT(IF(UPPER($A18)="N",$C$2,$C$3)),BOYRetirees!$N$10)=AR$10,-SUM(AM18:AQ18),0),0) -> 0 | AS18: 0 | AT18: =IF(AT$10<=PARAMS!$B$3,IF(UPPER($A18)="B",0,IF(VLOOKUP($B18,NewRet,NewRetirees!$B$10)=AT$10,VLOOKUP($B18,NewRet,NewRetirees!$H$10),0)),0) -> 0 | AU18: =IF(AU$10<=PARAMS!$B$3,IF(VLOOKUP($B18,INDIRECT(IF(UPPER($A18)="N",$C$2,$C$3)),BOYRetirees!$N$10)=AU$10,-VLOOKUP($B18,INDIRECT(IF(UPPER($A18)="N",$C$2,$C$3)),BOYRetirees!$O$10),0),0) -> 0 | AV18: =IF(AV$10<=PARAMS!$B$3,-IF(UPPER($A18)="B",IF(OR(VLOOKUP($B18,BOYRet,BOYRetirees!$M$10)="",AV$10<=VLOOKUP($B18,BOYRet,BOYRetirees!$M$10)),VLOOKUP($B18,BOYRet,BOYRetirees!$L$10),0),IF(AND(VLOOKUP($B18,NewRet,NewRetirees!$B$10)<=AU$10,OR(VLOOKUP($B18,NewRet,NewRetirees!$M$10)="",AV$10<=(VLOOKUP($B18,NewRet,NewRetirees!$M$10)))),VLOOKUP($B18,NewRet,NewRetirees!$L$10),0)),0) -> 0 | AW18: 0 | AX18: =IF(AX$10<=PARAMS!$B$3, IF(VLOOKUP($B18,INDIRECT(IF(UPPER($A18)="N",$C$2,$C$3)),BOYRetirees!$N$10)=AX$10,-SUM(AS18:AW18),0),0) -> 0 | AY18: 0 | AZ18: =IF(AZ$10<=PARAMS!$B$3,IF(UPPER($A18)="B",0,IF(VLOOKUP($B18,NewRet,NewRetirees!$B$10)=AZ$10,VLOOKUP($B18,NewRet,NewRetirees!$H$10),0)),0) -> 0 | BA18: =IF(BA$10<=PARAMS!$B$3,IF(VLOOKUP($B18,INDIRECT(IF(UPPER($A18)="N",$C$2,$C$3)),BOYRetirees!$N$10)=BA$10,-VLOOKUP($B18,INDIRECT(IF(UPPER($A18)="N",$C$2,$C$3)),BOYRetirees!$O$10),0),0) -> 0 | BB18: =IF(BB$10<=PARAMS!$B$3,-IF(UPPER($A18)="B",IF(OR(VLOOKUP($B18,BOYRet,BOYRetirees!$M$10)="",BB$10<=VLOOKUP($B18,BOYRet,BOYRetirees!$M$10)),VLOOKUP($B18,BOYRet,BOYRetirees!$L$10),0),IF(AND(VLOOKUP($B18,NewRet,NewRetirees!$B$10)<=BA$10,OR(VLOOKUP($B18,NewRet,NewRetirees!$M$10)="",BB$10<=(VLOOKUP($B18,NewRet,NewRetirees!$M$10)))),VLOOKUP($B18,NewRet,NewRetirees!$L$10),0)),0) -> 0 | BC18: 0 | BD18: =IF(BD$10<=PARAMS!$B$3, IF(VLOOKUP($B18,INDIRECT(IF(UPPER($A18)="N",$C$2,$C$3)),BOYRetirees!$N$10)=BD$10,-SUM(AY18:BC18),0),0) -> 0 | BE18: 0 | BF18: =IF(BF$10<=PARAMS!$B$3,IF(UPPER($A18)="B",0,IF(VLOOKUP($B18,NewRet,NewRetirees!$B$10)=BF$10,VLOOKUP($B18,NewRet,NewRetirees!$H$10),0)),0) -> 0 | BG18: =IF(BG$10<=PARAMS!$B$3,IF(VLOOKUP($B18,INDIRECT(IF(UPPER($A18)="N",$C$2,$C$3)),BOYRetirees!$N$10)=BG$10,-VLOOKUP($B18,INDIRECT(IF(UPPER($A18)="N",$C$2,$C$3)),BOYRetirees!$O$10),0),0) -> 0 | BH18: =IF(BH$10<=PARAMS!$B$3,-IF(UPPER($A18)="B",IF(OR(VLOOKUP($B18,BOYRet,BOYRetirees!$M$10)="",BH$10<=VLOOKUP($B18,BOYRet,BOYRetirees!$M$10)),VLOOKUP($B18,BOYRet,BOYRetirees!$L$10),0),IF(AND(VLOOKUP($B18,NewRet,NewRetirees!$B$10)<=BG$10,OR(VLOOKUP($B18,NewRet,NewRetirees!$M$10)="",BH$10<=(VLOOKUP($B18,NewRet,NewRetirees!$M$10)))),VLOOKUP($B18,NewRet,NewRetirees!$L$10),0)),0) -> 0 | BI18: 0 | BJ18: =IF(BJ$10<=PARAMS!$B$3, IF(VLOOKUP($B18,INDIRECT(IF(UPPER($A18)="N",$C$2,$C$3)),BOYRetirees!$N$10)=BJ$10,-SUM(BE18:BI18),0),0) -> 0 | BK18: 0 | BL18: =IF(BL$10<=PARAMS!$B$3,IF(UPPER($A18)="B",0,IF(VLOOKUP($B18,NewRet,NewRetirees!$B$10)=BL$10,VLOOKUP($B18,NewRet,NewRetirees!$H$10),0)),0) -> 0 | BM18: =IF(BM$10<=PARAMS!$B$3,IF(VLOOKUP($B18,INDIRECT(IF(UPPER($A18)="N",$C$2,$C$3)),BOYRetirees!$N$10)=BM$10,-VLOOKUP($B18,INDIRECT(IF(UPPER($A18)="N",$C$2,$C$3)),BOYRetirees!$O$10),0),0) -> 0 | BN18: =IF(BN$10<=PARAMS!$B$3,-IF(UPPER($A18)="B",IF(OR(VLOOKUP($B18,BOYRet,BOYRetirees!$M$10)="",BN$10<=VLOOKUP($B18,BOYRet,BOYRetirees!$M$10)),VLOOKUP($B18,BOYRet,BOYRetirees!$L$10),0),IF(AND(VLOOKUP($B18,NewRet,NewRetirees!$B$10)<=BM$10,OR(VLOOKUP($B18,NewRet,NewRetirees!$M$10)="",BN$10<=(VLOOKUP($B18,NewRet,NewRetirees!$M$10)))),VLOOKUP($B18,NewRet,NewRetirees!$L$10),0)),0) -> 0 | BO18: 0 | BP18: =IF(BP$10<=PARAMS!$B$3, IF(VLOOKUP($B18,INDIRECT(IF(UPPER($A18)="N",$C$2,$C$3)),BOYRetirees!$N$10)=BP$10,-SUM(BK18:BO18),0),0) -> 0 | BQ18: 0 | BR18: =IF(BR$10<=PARAMS!$B$3,IF(UPPER($A18)="B",0,IF(VLOOKUP($B18,NewRet,NewRetirees!$B$10)=BR$10,VLOOKUP($B18,NewRet,NewRetirees!$H$10),0)),0) -> 0 | BS18: =IF(BS$10<=PARAMS!$B$3,IF(VLOOKUP($B18,INDIRECT(IF(UPPER($A18)="N",$C$2,$C$3)),BOYRetirees!$N$10)=BS$10,-VLOOKUP($B18,INDIRECT(IF(UPPER($A18)="N",$C$2,$C$3)),BOYRetirees!$O$10),0),0) -> 0 | BT18: =IF(BT$10<=PARAMS!$B$3,-IF(UPPER($A18)="B",IF(OR(VLOOKUP($B18,BOYRet,BOYRetirees!$M$10)="",BT$10<=VLOOKUP($B18,BOYRet,BOYRetirees!$M$10)),VLOOKUP($B18,BOYRet,BOYRetirees!$L$10),0),IF(AND(VLOOKUP($B18,NewRet,NewRetirees!$B$10)<=BS$10,OR(VLOOKUP($B18,NewRet,NewRetirees!$M$10)="",BT$10<=(VLOOKUP($B18,NewRet,NewRetirees!$M$10)))),VLOOKUP($B18,NewRet,NewRetirees!$L$10),0)),0) -> 0 | BU18: 0 | BV18: =IF(BV$10<=PARAMS!$B$3, IF(VLOOKUP($B18,INDIRECT(IF(UPPER($A18)="N",$C$2,$C$3)),BOYRetirees!$N$10)=BV$10,-SUM(BQ18:BU18),0),0) -> 0 | BW18: 0 | BX18: B00008 | BY18: 0 | BZ18: 0 | CA18: 0 | CB18: 0 | CC18: 0 | CD18: 0 | CE18: 0 | CF18: 0 | CG18: 0 | CH18: =IF(BW18>0,VLOOKUP(B18,INDIRECT(IF(UPPER(A18)="N",$C$2,$C$3)),BOYRetirees!$P$10),0) -> 0 | CI18: 0 | CJ18: =(C18+I18+O18+U18+AA18+AG18+AM18+AS18+AY18+BE18+BK18+BQ18+BW18)/(PARAMS!$B$2+1) -> 0 | CK18: 0 | CL18: 0
A19: b | B19: 9 | C19: =IF(UPPER($A19)="B",VLOOKUP($B19,BOYRet,BOYRetirees!$H$10),0) -> 83215.9926 | D19: =IF(D$10<=PARAMS!$B$3,IF(UPPER($A19)="B",0,IF(VLOOKUP($B19,NewRet,NewRetirees!$B$10)=D$10,VLOOKUP($B19,NewRet,NewRetirees!$H$10),0)),0) -> 0 | E19: =IF(E$10<=PARAMS!$B$3,IF(VLOOKUP($B19,INDIRECT(IF(UPPER($A19)="N",$C$2,$C$3)),BOYRetirees!$N$10)=E$10,-VLOOKUP($B19,INDIRECT(IF(UPPER($A19)="N",$C$2,$C$3)),BOYRetirees!$O$10),0),0) -> 0 | F19: =IF(F$10<=PARAMS!$B$3,-IF(UPPER($A19)="B",IF(OR(VLOOKUP($B19,BOYRet,BOYRetirees!$M$10)="",F$10<=VLOOKUP($B19,BOYRet,BOYRetirees!$M$10)),VLOOKUP($B19,BOYRet,BOYRetirees!$L$10),0),IF(AND(VLOOKUP($B19,NewRet,NewRetirees!$B$10)<=E$10,OR(VLOOKUP($B19,NewRet,NewRetirees!$M$10)="",F$10<=(VLOOKUP($B19,NewRet,NewRetirees!$M$10)))),VLOOKUP($B19,NewRet,NewRetirees!$L$10),0)),0) -> -602.7 | G19: 291.86 | H19: =IF(H$10<=PARAMS!$B$3, IF(VLOOKUP($B19,INDIRECT(IF(UPPER($A19)="N",$C$2,$C$3)),BOYRetirees!$N$10)=H$10,-SUM(C19:G19),0),0) -> 0 | I19: 82905.1526 | J19: =IF(J$10<=PARAMS!$B$3,IF(UPPER($A19)="B",0,IF(VLOOKUP($B19,NewRet,NewRetirees!$B$10)=J$10,VLOOKUP($B19,NewRet,NewRetirees!$H$10),0)),0) -> 0 | K19: =IF(K$10<=PARAMS!$B$3,IF(VLOOKUP($B19,INDIRECT(IF(UPPER($A19)="N",$C$2,$C$3)),BOYRetirees!$N$10)=K$10,-VLOOKUP($B19,INDIRECT(IF(UPPER($A19)="N",$C$2,$C$3)),BOYRetirees!$O$10),0),0) -> 0 | L19: =IF(L$10<=PARAMS!$B$3,-IF(UPPER($A19)="B",IF(OR(VLOOKUP($B19,BOYRet,BOYRetirees!$M$10)="",L$10<=VLOOKUP($B19,BOYRet,BOYRetirees!$M$10)),VLOOKUP($B19,BOYRet,BOYRetirees!$L$10),0),IF(AND(VLOOKUP($B19,NewRet,NewRetirees!$B$10)<=K$10,OR(VLOOKUP($B19,NewRet,NewRetirees!$M$10)="",L$10<=(VLOOKUP($B19,NewRet,NewRetirees!$M$10)))),VLOOKUP($B19,NewRet,NewRetirees!$L$10),0)),0) -> -602.7 | M19: 144.16 | N19: =IF(N$10<=PARAMS!$B$3, IF(VLOOKUP($B19,INDIRECT(IF(UPPER($A19)="N",$C$2,$C$3)),BOYRetirees!$N$10)=N$10,-SUM(I19:M19),0),0) -> 0 | O19: 82446.6126 | P19: =IF(P$10<=PARAMS!$B$3,IF(UPPER($A19)="B",0,IF(VLOOKUP($B19,NewRet,NewRetirees!$B$10)=P$10,VLOOKUP($B19,NewRet,NewRetirees!$H$10),0)),0) -> 0 | Q19: =IF(Q$10<=PARAMS!$B$3,IF(VLOOKUP($B19,INDIRECT(IF(UPPER($A19)="N",$C$2,$C$3)),BOYRetirees!$N$10)=Q$10,-VLOOKUP($B19,INDIRECT(IF(UPPER($A19)="N",$C$2,$C$3)),BOYRetirees!$O$10),0),0) -> 0 | R19: =IF(R$10<=PARAMS!$B$3,-IF(UPPER($A19)="B",IF(OR(VLOOKUP($B19,BOYRet,BOYRetirees!$M$10)="",R$10<=VLOOKUP($B19,BOYRet,BOYRetirees!$M$10)),VLOOKUP($B19,BOYRet,BOYRetirees!$L$10),0),IF(AND(VLOOKUP($B19,NewRet,NewRetirees!$B$10)<=Q$10,OR(VLOOKUP($B19,NewRet,NewRetirees!$M$10)="",R$10<=(VLOOKUP($B19,NewRet,NewRetirees!$M$10)))),VLOOKUP($B19,NewRet,NewRetirees!$L$10),0)),0) -> -602.7 | S19: -70.93 | T19: =IF(T$10<=PARAMS!$B$3, IF(VLOOKUP($B19,INDIRECT(IF(UPPER($A19)="N",$C$2,$C$3)),BOYRetirees!$N$10)=T$10,-SUM(O19:S19),0),0) -> 0 | U19: 81772.9826 | V19: =IF(V$10<=PARAMS!$B$3,IF(UPPER($A19)="B",0,IF(VLOOKUP($B19,NewRet,NewRetirees!$B$10)=V$10,VLOOKUP($B19,NewRet,NewRetirees!$H$10),0)),0) -> 0 | W19: =IF(W$10<=PARAMS!$B$3,IF(VLOOKUP($B19,INDIRECT(IF(UPPER($A19)="N",$C$2,$C$3)),BOYRetirees!$N$10)=W$10,-VLOOKUP($B19,INDIRECT(IF(UPPER($A19)="N",$C$2,$C$3)),BOYRetirees!$O$10),0),0) -> 0 | X19: =IF(X$10<=PARAMS!$B$3,-IF(UPPER($A19)="B",IF(OR(VLOOKUP($B19,BOYRet,BOYRetirees!$M$10)="",X$10<=VLOOKUP($B19,BOYRet,BOYRetirees!$M$10)),VLOOKUP($B19,BOYRet,BOYRetirees!$L$10),0),IF(AND(VLOOKUP($B19,NewRet,NewRetirees!$B$10)<=W$10,OR(VLOOKUP($B19,NewRet,NewRetirees!$M$10)="",X$10<=(VLOOKUP($B19,NewRet,NewRetirees!$M$10)))),VLOOKUP($B19,NewRet,NewRetirees!$L$10),0)),0) -> -602.7 | Y19: 370.24 | Z19: =IF(Z$10<=PARAMS!$B$3, IF(VLOOKUP($B19,INDIRECT(IF(UPPER($A19)="N",$C$2,$C$3)),BOYRetirees!$N$10)=Z$10,-SUM(U19:Y19),0),0) -> 0 | AA19: 81540.5226 | AB19: =IF(AB$10<=PARAMS!$B$3,IF(UPPER($A19)="B",0,IF(VLOOKUP($B19,NewRet,NewRetirees!$B$10)=AB$10,VLOOKUP($B19,NewRet,NewRetirees!$H$10),0)),0) -> 0 | AC19: =IF(AC$10<=PARAMS!$B$3,IF(VLOOKUP($B19,INDIRECT(IF(UPPER($A19)="N",$C$2,$C$3)),BOYRetirees!$N$10)=AC$10,-VLOOKUP($B19,INDIRECT(IF(UPPER($A19)="N",$C$2,$C$3)),BOYRetirees!$O$10),0),0) -> 0 | AD19: =IF(AD$10<=PARAMS!$B$3,-IF(UPPER($A19)="B",IF(OR(VLOOKUP($B19,BOYRet,BOYRetirees!$M$10)="",AD$10<=VLOOKUP($B19,BOYRet,BOYRetirees!$M$10)),VLOOKUP($B19,BOYRet,BOYRetirees!$L$10),0),IF(AND(VLOOKUP($B19,NewRet,NewRetirees!$B$10)<=AC$10,OR(VLOOKUP($B19,NewRet,NewRetirees!$M$10)="",AD$10<=(VLOOKUP($B19,NewRet,NewRetirees!$M$10)))),VLOOKUP($B19,NewRet,NewRetirees!$L$10),0)),0) -> -602.7 | AE19: 184.88 | AF19: =IF(AF$10<=PARAMS!$B$3,IF(UPPER($A19)="B",IF(VLOOKUP($B19,BOYRet,BOYRetirees!$N$10)=AF$10,-SUM(AA19:AE19),0),IF(VLOOKUP($B19,NewRet,NewRetirees!$N$10)=AF$10,-SUM(AA19:AE19),0)),0) -> 0 | AG19: 81122.7026 | AH19: =IF(AH$10<=PARAMS!$B$3,IF(UPPER($A19)="B",0,IF(VLOOKUP($B19,NewRet,NewRetirees!$B$10)=AH$10,VLOOKUP($B19,NewRet,NewRetirees!$H$10),0)),0) -> 0 | AI19: =IF(AI$10<=PARAMS!$B$3,IF(VLOOKUP($B19,INDIRECT(IF(UPPER($A19)="N",$C$2,$C$3)),BOYRetirees!$N$10)=AI$10,-VLOOKUP($B19,INDIRECT(IF(UPPER($A19)="N",$C$2,$C$3)),BOYRetirees!$O$10),0),0) -> 0 | AJ19: =IF(AJ$10<=PARAMS!$B$3,-IF(UPPER($A19)="B",IF(OR(VLOOKUP($B19,BOYRet,BOYRetirees!$M$10)="",AJ$10<=VLOOKUP($B19,BOYRet,BOYRetirees!$M$10)),VLOOKUP($B19,BOYRet,BOYRetirees!$L$10),0),IF(AND(VLOOKUP($B19,NewRet,NewRetirees!$B$10)<=AI$10,OR(VLOOKUP($B19,NewRet,NewRetirees!$M$10)="",AJ$10<=(VLOOKUP($B19,NewRet,NewRetirees!$M$10)))),VLOOKUP($B19,NewRet,NewRetirees!$L$10),0)),0) -> -602.7 | AK19: 553.9 | AL19: =IF(AL$10<=PARAMS!$B$3, IF(VLOOKUP($B19,INDIRECT(IF(UPPER($A19)="N",$C$2,$C$3)),BOYRetirees!$N$10)=AL$10,-SUM(AG19:AK19),0),0) -> 0 | AM19: 81073.9026 | AN19: =IF(AN$10<=PARAMS!$B$3,IF(UPPER($A19)="B",0,IF(VLOOKUP($B19,NewRet,NewRetirees!$B$10)=AN$10,VLOOKUP($B19,NewRet,NewRetirees!$H$10),0)),0) -> 0 | AO19: =IF(AO$10<=PARAMS!$B$3,IF(VLOOKUP($B19,INDIRECT(IF(UPPER($A19)="N",$C$2,$C$3)),BOYRetirees!$N$10)=AO$10,-VLOOKUP($B19,INDIRECT(IF(UPPER($A19)="N",$C$2,$C$3)),BOYRetirees!$O$10),0),0) -> 0 | AP19: =IF(AP$10<=PARAMS!$B$3,-IF(UPPER($A19)="B",IF(OR(VLOOKUP($B19,BOYRet,BOYRetirees!$M$10)="",AP$10<=VLOOKUP($B19,BOYRet,BOYRetirees!$M$10)),VLOOKUP($B19,BOYRet,BOYRetirees!$L$10),0),IF(AND(VLOOKUP($B19,NewRet,NewRetirees!$B$10)<=AO$10,OR(VLOOKUP($B19,NewRet,NewRetirees!$M$10)="",AP$10<=(VLOOKUP($B19,NewRet,NewRetirees!$M$10)))),VLOOKUP($B19,NewRet,NewRetirees!$L$10),0)),0) -> -602.7 | AQ19: 265.52 | AR19: =IF(AR$10<=PARAMS!$B$3, IF(VLOOKUP($B19,INDIRECT(IF(UPPER($A19)="N",$C$2,$C$3)),BOYRetirees!$N$10)=AR$10,-SUM(AM19:AQ19),0),0) -> 0 | AS19: 80736.7226 | AT19: =IF(AT$10<=PARAMS!$B$3,IF(UPPER($A19)="B",0,IF(VLOOKUP($B19,NewRet,NewRetirees!$B$10)=AT$10,VLOOKUP($B19,NewRet,NewRetirees!$H$10),0)),0) -> 0 | AU19: =IF(AU$10<=PARAMS!$B$3,IF(VLOOKUP($B19,INDIRECT(IF(UPPER($A19)="N",$C$2,$C$3)),BOYRetirees!$N$10)=AU$10,-VLOOKUP($B19,INDIRECT(IF(UPPER($A19)="N",$C$2,$C$3)),BOYRetirees!$O$10),0),0) -> 0 | AV19: =IF(AV$10<=PARAMS!$B$3,-IF(UPPER($A19)="B",IF(OR(VLOOKUP($B19,BOYRet,BOYRetirees!$M$10)="",AV$10<=VLOOKUP($B19,BOYRet,BOYRetirees!$M$10)),VLOOKUP($B19,BOYRet,BOYRetirees!$L$10),0),IF(AND(VLOOKUP($B19,NewRet,NewRetirees!$B$10)<=AU$10,OR(VLOOKUP($B19,NewRet,NewRetirees!$M$10)="",AV$10<=(VLOOKUP($B19,NewRet,NewRetirees!$M$10)))),VLOOKUP($B19,NewRet,NewRetirees!$L$10),0)),0) -> -602.7 | AW19: 294.62 | AX19: =IF(AX$10<=PARAMS!$B$3, IF(VLOOKUP($B19,INDIRECT(IF(UPPER($A19)="N",$C$2,$C$3)),BOYRetirees!$N$10)=AX$10,-SUM(AS19:AW19),0),0) -> 0 | AY19: 80428.6426 | AZ19: =IF(AZ$10<=PARAMS!$B$3,IF(UPPER($A19)="B",0,IF(VLOOKUP($B19,NewRet,NewRetirees!$B$10)=AZ$10,VLOOKUP($B19,NewRet,NewRetirees!$H$10),0)),0) -> 0 | BA19: =IF(BA$10<=PARAMS!$B$3,IF(VLOOKUP($B19,INDIRECT(IF(UPPER($A19)="N",$C$2,$C$3)),BOYRetirees!$N$10)=BA$10,-VLOOKUP($B19,INDIRECT(IF(UPPER($A19)="N",$C$2,$C$3)),BOYRetirees!$O$10),0),0) -> 0 | BB19: =IF(BB$10<=PARAMS!$B$3,-IF(UPPER($A19)="B",IF(OR(VLOOKUP($B19,BOYRet,BOYRetirees!$M$10)="",BB$10<=VLOOKUP($B19,BOYRet,BOYRetirees!$M$10)),VLOOKUP($B19,BOYRet,BOYRetirees!$L$10),0),IF(AND(VLOOKUP($B19,NewRet,NewRetirees!$B$10)<=BA$10,OR(VLOOKUP($B19,NewRet,NewRetirees!$M$10)="",BB$10<=(VLOOKUP($B19,NewRet,NewRetirees!$M$10)))),VLOOKUP($B19,NewRet,NewRetirees!$L$10),0)),0) -> -602.7 | BC19: 183.89 | BD19: =IF(BD$10<=PARAMS!$B$3, IF(VLOOKUP($B19,INDIRECT(IF(UPPER($A19)="N",$C$2,$C$3)),BOYRetirees!$N$10)=BD$10,-SUM(AY19:BC19),0),0) -> 0 | BE19: 80009.8326 | BF19: =IF(BF$10<=PARAMS!$B$3,IF(UPPER($A19)="B",0,IF(VLOOKUP($B19,NewRet,NewRetirees!$B$10)=BF$10,VLOOKUP($B19,NewRet,NewRetirees!$H$10),0)),0) -> 0 | BG19: =IF(BG$10<=PARAMS!$B$3,IF(VLOOKUP($B19,INDIRECT(IF(UPPER($A19)="N",$C$2,$C$3)),BOYRetirees!$N$10)=BG$10,-VLOOKUP($B19,INDIRECT(IF(UPPER($A19)="N",$C$2,$C$3)),BOYRetirees!$O$10),0),0) -> 0 | BH19: =IF(BH$10<=PARAMS!$B$3,-IF(UPPER($A19)="B",IF(OR(VLOOKUP($B19,BOYRet,BOYRetirees!$M$10)="",BH$10<=VLOOKUP($B19,BOYRet,BOYRetirees!$M$10)),VLOOKUP($B19,BOYRet,BOYRetirees!$L$10),0),IF(AND(VLOOKUP($B19,NewRet,NewRetirees!$B$10)<=BG$10,OR(VLOOKUP($B19,NewRet,NewRetirees!$M$10)="",BH$10<=(VLOOKUP($B19,NewRet,NewRetirees!$M$10)))),VLOOKUP($B19,NewRet,NewRetirees!$L$10),0)),0) -> -602.7 | BI19: -73.45 | BJ19: =IF(BJ$10<=PARAMS!$B$3, IF(VLOOKUP($B19,INDIRECT(IF(UPPER($A19)="N",$C$2,$C$3)),BOYRetirees!$N$10)=BJ$10,-SUM(BE19:BI19),0),0) -> 0 | BK19: 79333.6826 | BL19: =IF(BL$10<=PARAMS!$B$3,IF(UPPER($A19)="B",0,IF(VLOOKUP($B19,NewRet,NewRetirees!$B$10)=BL$10,VLOOKUP($B19,NewRet,NewRetirees!$H$10),0)),0) -> 0 | BM19: =IF(BM$10<=PARAMS!$B$3,IF(VLOOKUP($B19,INDIRECT(IF(UPPER($A19)="N",$C$2,$C$3)),BOYRetirees!$N$10)=BM$10,-VLOOKUP($B19,INDIRECT(IF(UPPER($A19)="N",$C$2,$C$3)),BOYRetirees!$O$10),0),0) -> 0 | BN19: =IF(BN$10<=PARAMS!$B$3,-IF(UPPER($A19)="B",IF(OR(VLOOKUP($B19,BOYRet,BOYRetirees!$M$10)="",BN$10<=VLOOKUP($B19,BOYRet,BOYRetirees!$M$10)),VLOOKUP($B19,BOYRet,BOYRetirees!$L$10),0),IF(AND(VLOOKUP($B19,NewRet,NewRetirees!$B$10)<=BM$10,OR(VLOOKUP($B19,NewRet,NewRetirees!$M$10)="",BN$10<=(VLOOKUP($B19,NewRet,NewRetirees!$M$10)))),VLOOKUP($B19,NewRet,NewRetirees!$L$10),0)),0) -> -602.7 | BO19: 440.11 | BP19: =IF(BP$10<=PARAMS!$B$3, IF(VLOOKUP($B19,INDIRECT(IF(UPPER($A19)="N",$C$2,$C$3)),BOYRetirees!$N$10)=BP$10,-SUM(BK19:BO19),0),0) -> 0 | BQ19: 79171.0926 | BR19: =IF(BR$10<=PARAMS!$B$3,IF(UPPER($A19)="B",0,IF(VLOOKUP($B19,NewRet,NewRetirees!$B$10)=BR$10,VLOOKUP($B19,NewRet,NewRetirees!$H$10),0)),0) -> 0 | BS19: =IF(BS$10<=PARAMS!$B$3,IF(VLOOKUP($B19,INDIRECT(IF(UPPER($A19)="N",$C$2,$C$3)),BOYRetirees!$N$10)=BS$10,-VLOOKUP($B19,INDIRECT(IF(UPPER($A19)="N",$C$2,$C$3)),BOYRetirees!$O$10),0),0) -> 0 | BT19: =IF(BT$10<=PARAMS!$B$3,-IF(UPPER($A19)="B",IF(OR(VLOOKUP($B19,BOYRet,BOYRetirees!$M$10)="",BT$10<=VLOOKUP($B19,BOYRet,BOYRetirees!$M$10)),VLOOKUP($B19,BOYRet,BOYRetirees!$L$10),0),IF(AND(VLOOKUP($B19,NewRet,NewRetirees!$B$10)<=BS$10,OR(VLOOKUP($B19,NewRet,NewRetirees!$M$10)="",BT$10<=(VLOOKUP($B19,NewRet,NewRetirees!$M$10)))),VLOOKUP($B19,NewRet,NewRetirees!$L$10),0)),0) -> -602.7 | BU19: 176.06 | BV19: =IF(BV$10<=PARAMS!$B$3, IF(VLOOKUP($B19,INDIRECT(IF(UPPER($A19)="N",$C$2,$C$3)),BOYRetirees!$N$10)=BV$10,-SUM(BQ19:BU19),0),0) -> 0 | BW19: 78744.4526 | BX19: B00009 | BY19: 83215.9926 | BZ19: 0 | CA19: 0 | CB19: -7232.4 | CC19: 2760.86 | CD19: 0 | CE19: 78744.4526 | CF19: 7501.422029 | CG19: 86245.87463 | CH19: =IF(BW19>0,VLOOKUP(B19,INDIRECT(IF(UPPER(A19)="N",$C$2,$C$3)),BOYRetirees!$P$10),0) -> 0.01242322507 | CI19: 1005.805606 | CJ19: =(C19+I19+O19+U19+AA19+AG19+AM19+AS19+AY19+BE19+BK19+BQ19+BW19)/(PARAMS!$B$2+1) -> 80961.71491 | CK19: 6495.616423 | CL19: -2096.842895
A20: b | B20: 10 | C20: =IF(UPPER($A20)="B",VLOOKUP($B20,BOYRet,BOYRetirees!$H$10),0) -> 54895.49104 | D20: =IF(D$10<=PARAMS!$B$3,IF(UPPER($A20)="B",0,IF(VLOOKUP($B20,NewRet,NewRetirees!$B$10)=D$10,VLOOKUP($B20,NewRet,NewRetirees!$H$10),0)),0) -> 0 | E20: =IF(E$10<=PARAMS!$B$3,IF(VLOOKUP($B20,INDIRECT(IF(UPPER($A20)="N",$C$2,$C$3)),BOYRetirees!$N$10)=E$10,-VLOOKUP($B20,INDIRECT(IF(UPPER($A20)="N",$C$2,$C$3)),BOYRetirees!$O$10),0),0) -> 0 | F20: =IF(F$10<=PARAMS!$B$3,-IF(UPPER($A20)="B",IF(OR(VLOOKUP($B20,BOYRet,BOYRetirees!$M$10)="",F$10<=VLOOKUP($B20,BOYRet,BOYRetirees!$M$10)),VLOOKUP($B20,BOYRet,BOYRetirees!$L$10),0),IF(AND(VLOOKUP($B20,NewRet,NewRetirees!$B$10)<=E$10,OR(VLOOKUP($B20,NewRet,NewRetirees!$M$10)="",F$10<=(VLOOKUP($B20,NewRet,NewRetirees!$M$10)))),VLOOKUP($B20,NewRet,NewRetirees!$L$10),0)),0) -> -316.5 | G20: 192.82 | H20: =IF(H$10<=PARAMS!$B$3, IF(VLOOKUP($B20,INDIRECT(IF(UPPER($A20)="N",$C$2,$C$3)),BOYRetirees!$N$10)=H$10,-SUM(C20:G20),0),0) -> 0 | I20: =SUM(C20:H20) -> 54771.81104 | J20: =IF(J$10<=PARAMS!$B$3,IF(UPPER($A20)="B",0,IF(VLOOKUP($B20,NewRet,NewRetirees!$B$10)=J$10,VLOOKUP($B20,NewRet,NewRetirees!$H$10),0)),0) -> 0 | K20: =IF(K$10<=PARAMS!$B$3,IF(VLOOKUP($B20,INDIRECT(IF(UPPER($A20)="N",$C$2,$C$3)),BOYRetirees!$N$10)=K$10,-VLOOKUP($B20,INDIRECT(IF(UPPER($A20)="N",$C$2,$C$3)),BOYRetirees!$O$10),0),0) -> 0 | L20: =IF(L$10<=PARAMS!$B$3,-IF(UPPER($A20)="B",IF(OR(VLOOKUP($B20,BOYRet,BOYRetirees!$M$10)="",L$10<=VLOOKUP($B20,BOYRet,BOYRetirees!$M$10)),VLOOKUP($B20,BOYRet,BOYRetirees!$L$10),0),IF(AND(VLOOKUP($B20,NewRet,NewRetirees!$B$10)<=K$10,OR(VLOOKUP($B20,NewRet,NewRetirees!$M$10)="",L$10<=(VLOOKUP($B20,NewRet,NewRetirees!$M$10)))),VLOOKUP($B20,NewRet,NewRetirees!$L$10),0)),0) -> -316.5 | M20: 95.38 | N20: =IF(N$10<=PARAMS!$B$3, IF(VLOOKUP($B20,INDIRECT(IF(UPPER($A20)="N",$C$2,$C$3)),BOYRetirees!$N$10)=N$10,-SUM(I20:M20),0),0) -> 0 | O20: =SUM(I20:N20) -> 54550.69104 | P20: =IF(P$10<=PARAMS!$B$3,IF(UPPER($A20)="B",0,IF(VLOOKUP($B20,NewRet,NewRetirees!$B$10)=P$10,VLOOKUP($B20,NewRet,NewRetirees!$H$10),0)),0) -> 0 | Q20: =IF(Q$10<=PARAMS!$B$3,IF(VLOOKUP($B20,INDIRECT(IF(UPPER($A20)="N",$C$2,$C$3)),BOYRetirees!$N$10)=Q$10,-VLOOKUP($B20,INDIRECT(IF(UPPER($A20)="N",$C$2,$C$3)),BOYRetirees!$O$10),0),0) -> 0 | R20: =IF(R$10<=PARAMS!$B$3,-IF(UPPER($A20)="B",IF(OR(VLOOKUP($B20,BOYRet,BOYRetirees!$M$10)="",R$10<=VLOOKUP($B20,BOYRet,BOYRetirees!$M$10)),VLOOKUP($B20,BOYRet,BOYRetirees!$L$10),0),IF(AND(VLOOKUP($B20,NewRet,NewRetirees!$B$10)<=Q$10,OR(VLOOKUP($B20,NewRet,NewRetirees!$M$10)="",R$10<=(VLOOKUP($B20,NewRet,NewRetirees!$M$10)))),VLOOKUP($B20,NewRet,NewRetirees!$L$10),0)),0) -> -316.5 | S20: -47 | T20: =IF(T$10<=PARAMS!$B$3, IF(VLOOKUP($B20,INDIRECT(IF(UPPER($A20)="N",$C$2,$C$3)),BOYRetirees!$N$10)=T$10,-SUM(O20:S20),0),0) -> 0 | U20: =SUM(O20:T20) -> 54187.19104 | V20: =IF(V$10<=PARAMS!$B$3,IF(UPPER($A20)="B",0,IF(VLOOKUP($B20,NewRet,NewRetirees!$B$10)=V$10,VLOOKUP($B20,NewRet,NewRetirees!$H$10),0)),0) -> 0 | W20: =IF(W$10<=PARAMS!$B$3,IF(VLOOKUP($B20,INDIRECT(IF(UPPER($A20)="N",$C$2,$C$3)),BOYRetirees!$N$10)=W$10,-VLOOKUP($B20,INDIRECT(IF(UPPER($A20)="N",$C$2,$C$3)),BOYRetirees!$O$10),0),0) -> 0 | X20: =IF(X$10<=PARAMS!$B$3,-IF(UPPER($A20)="B",IF(OR(VLOOKUP($B20,BOYRet,BOYRetirees!$M$10)="",X$10<=VLOOKUP($B20,BOYRet,BOYRetirees!$M$10)),VLOOKUP($B20,BOYRet,BOYRetirees!$L$10),0),IF(AND(VLOOKUP($B20,NewRet,NewRetirees!$B$10)<=W$10,OR(VLOOKUP($B20,NewRet,NewRetirees!$M$10)="",X$10<=(VLOOKUP($B20,NewRet,NewRetirees!$M$10)))),VLOOKUP($B20,NewRet,NewRetirees!$L$10),0)),0) -> -316.5 | Y20: 245.72 | Z20: =IF(Z$10<=PARAMS!$B$3, IF(VLOOKUP($B20,INDIRECT(IF(UPPER($A20)="N",$C$2,$C$3)),BOYRetirees!$N$10)=Z$10,-SUM(U20:Y20),0),0) -> 0 | AA20: =SUM(U20:Z20) -> 54116.41104 | AB20: =IF(AB$10<=PARAMS!$B$3,IF(UPPER($A20)="B",0,IF(VLOOKUP($B20,NewRet,NewRetirees!$B$10)=AB$10,VLOOKUP($B20,NewRet,NewRetirees!$H$10),0)),0) -> 0 | AC20: =IF(AC$10<=PARAMS!$B$3,IF(VLOOKUP($B20,INDIRECT(IF(UPPER($A20)="N",$C$2,$C$3)),BOYRetirees!$N$10)=AC$10,-VLOOKUP($B20,INDIRECT(IF(UPPER($A20)="N",$C$2,$C$3)),BOYRetirees!$O$10),0),0) -> 0 | AD20: =IF(AD$10<=PARAMS!$B$3,-IF(UPPER($A20)="B",IF(OR(VLOOKUP($B20,BOYRet,BOYRetirees!$M$10)="",AD$10<=VLOOKUP($B20,BOYRet,BOYRetirees!$M$10)),VLOOKUP($B20,BOYRet,BOYRetirees!$L$10),0),IF(AND(VLOOKUP($B20,NewRet,NewRetirees!$B$10)<=AC$10,OR(VLOOKUP($B20,NewRet,NewRetirees!$M$10)="",AD$10<=(VLOOKUP($B20,NewRet,NewRetirees!$M$10)))),VLOOKUP($B20,NewRet,NewRetirees!$L$10),0)),0) -> -316.5 | AE20: 122.89 | AF20: =IF(AF$10<=PARAMS!$B$3,IF(UPPER($A20)="B",IF(VLOOKUP($B20,BOYRet,BOYRetirees!$N$10)=AF$10,-SUM(AA20:AE20),0),IF(VLOOKUP($B20,NewRet,NewRetirees!$N$10)=AF$10,-SUM(AA20:AE20),0)),0) -> 0 | AG20: =SUM(AA20:AF20) -> 53922.80104 | AH20: =IF(AH$10<=PARAMS!$B$3,IF(UPPER($A20)="B",0,IF(VLOOKUP($B20,NewRet,NewRetirees!$B$10)=AH$10,VLOOKUP($B20,NewRet,NewRetirees!$H$10),0)),0) -> 0 | AI20: =IF(AI$10<=PARAMS!$B$3,IF(VLOOKUP($B20,INDIRECT(IF(UPPER($A20)="N",$C$2,$C$3)),BOYRetirees!$N$10)=AI$10,-VLOOKUP($B20,INDIRECT(IF(UPPER($A20)="N",$C$2,$C$3)),BOYRetirees!$O$10),0),0) -> 0 | AJ20: =IF(AJ$10<=PARAMS!$B$3,-IF(UPPER($A20)="B",IF(OR(VLOOKUP($B20,BOYRet,BOYRetirees!$M$10)="",AJ$10<=VLOOKUP($B20,BOYRet,BOYRetirees!$M$10)),VLOOKUP($B20,BOYRet,BOYRetirees!$L$10),0),IF(AND(VLOOKUP($B20,NewRet,NewRetirees!$B$10)<=AI$10,OR(VLOOKUP($B20,NewRet,NewRetirees!$M$10)="",AJ$10<=(VLOOKUP($B20,NewRet,NewRetirees!$M$10)))),VLOOKUP($B20,NewRet,NewRetirees!$L$10),0)),0) -> -316.5 | AK20: 368.76 | AL20: =IF(AL$10<=PARAMS!$B$3, IF(VLOOKUP($B20,INDIRECT(IF(UPPER($A20)="N",$C$2,$C$3)),BOYRetirees!$N$10)=AL$10,-SUM(AG20:AK20),0),0) -> 0 | AM20: =SUM(AG20:AL20) -> 53975.06104 | AN20: =IF(AN$10<=PARAMS!$B$3,IF(UPPER($A20)="B",0,IF(VLOOKUP($B20,NewRet,NewRetirees!$B$10)=AN$10,VLOOKUP($B20,NewRet,NewRetirees!$H$10),0)),0) -> 0 | AO20: =IF(AO$10<=PARAMS!$B$3,IF(VLOOKUP($B20,INDIRECT(IF(UPPER($A20)="N",$C$2,$C$3)),BOYRetirees!$N$10)=AO$10,-VLOOKUP($B20,INDIRECT(IF(UPPER($A20)="N",$C$2,$C$3)),BOYRetirees!$O$10),0),0) -> 0 | AP20: =IF(AP$10<=PARAMS!$B$3,-IF(UPPER($A20)="B",IF(OR(VLOOKUP($B20,BOYRet,BOYRetirees!$M$10)="",AP$10<=VLOOKUP($B20,BOYRet,BOYRetirees!$M$10)),VLOOKUP($B20,BOYRet,BOYRetirees!$L$10),0),IF(AND(VLOOKUP($B20,NewRet,NewRetirees!$B$10)<=AO$10,OR(VLOOKUP($B20,NewRet,NewRetirees!$M$10)="",AP$10<=(VLOOKUP($B20,NewRet,NewRetirees!$M$10)))),VLOOKUP($B20,NewRet,NewRetirees!$L$10),0)),0) -> -316.5 | AQ20: 177.05 | AR20: =IF(AR$10<=PARAMS!$B$3, IF(VLOOKUP($B20,INDIRECT(IF(UPPER($A20)="N",$C$2,$C$3)),BOYRetirees!$N$10)=AR$10,-SUM(AM20:AQ20),0),0) -> 0 | AS20: =SUM(AM20:AR20) -> 53835.61104 | AT20: =IF(AT$10<=PARAMS!$B$3,IF(UPPER($A20)="B",0,IF(VLOOKUP($B20,NewRet,NewRetirees!$B$10)=AT$10,VLOOKUP($B20,NewRet,NewRetirees!$H$10),0)),0) -> 0 | AU20: =IF(AU$10<=PARAMS!$B$3,IF(VLOOKUP($B20,INDIRECT(IF(UPPER($A20)="N",$C$2,$C$3)),BOYRetirees!$N$10)=AU$10,-VLOOKUP($B20,INDIRECT(IF(UPPER($A20)="N",$C$2,$C$3)),BOYRetirees!$O$10),0),0) -> 0 | AV20: =IF(AV$10<=PARAMS!$B$3,-IF(UPPER($A20)="B",IF(OR(VLOOKUP($B20,BOYRet,BOYRetirees!$M$10)="",AV$10<=VLOOKUP($B20,BOYRet,BOYRetirees!$M$10)),VLOOKUP($B20,BOYRet,BOYRetirees!$L$10),0),IF(AND(VLOOKUP($B20,NewRet,NewRetirees!$B$10)<=AU$10,OR(VLOOKUP($B20,NewRet,NewRetirees!$M$10)="",AV$10<=(VLOOKUP($B20,NewRet,NewRetirees!$M$10)))),VLOOKUP($B20,NewRet,NewRetirees!$L$10),0)),0) -> -316.5 | AW20: 196.77 | AX20: =IF(AX$10<=PARAMS!$B$3, IF(VLOOKUP($B20,INDIRECT(IF(UPPER($A20)="N",$C$2,$C$3)),BOYRetirees!$N$10)=AX$10,-SUM(AS20:AW20),0),0) -> 0 | AY20: =SUM(AS20:AX20) -> 53715.88104 | AZ20: =IF(AZ$10<=PARAMS!$B$3,IF(UPPER($A20)="B",0,IF(VLOOKUP($B20,NewRet,NewRetirees!$B$10)=AZ$10,VLOOKUP($B20,NewRet,NewRetirees!$H$10),0)),0) -> 0 | BA20: =IF(BA$10<=PARAMS!$B$3,IF(VLOOKUP($B20,INDIRECT(IF(UPPER($A20)="N",$C$2,$C$3)),BOYRetirees!$N$10)=BA$10,-VLOOKUP($B20,INDIRECT(IF(UPPER($A20)="N",$C$2,$C$3)),BOYRetirees!$O$10),0),0) -> 0 | BB20: =IF(BB$10<=PARAMS!$B$3,-IF(UPPER($A20)="B",IF(OR(VLOOKUP($B20,BOYRet,BOYRetirees!$M$10)="",BB$10<=VLOOKUP($B20,BOYRet,BOYRetirees!$M$10)),VLOOKUP($B20,BOYRet,BOYRetirees!$L$10),0),IF(AND(VLOOKUP($B20,NewRet,NewRetirees!$B$10)<=BA$10,OR(VLOOKUP($B20,NewRet,NewRetirees!$M$10)="",BB$10<=(VLOOKUP($B20,NewRet,NewRetirees!$M$10)))),VLOOKUP($B20,NewRet,NewRetirees!$L$10),0)),0) -> -316.5 | BC20: 123.01 | BD20: =IF(BD$10<=PARAMS!$B$3, IF(VLOOKUP($B20,INDIRECT(IF(UPPER($A20)="N",$C$2,$C$3)),BOYRetirees!$N$10)=BD$10,-SUM(AY20:BC20),0),0) -> 0 | BE20: =SUM(AY20:BD20) -> 53522.39104 | BF20: =IF(BF$10<=PARAMS!$B$3,IF(UPPER($A20)="B",0,IF(VLOOKUP($B20,NewRet,NewRetirees!$B$10)=BF$10,VLOOKUP($B20,NewRet,NewRetirees!$H$10),0)),0) -> 0 | BG20: =IF(BG$10<=PARAMS!$B$3,IF(VLOOKUP($B20,INDIRECT(IF(UPPER($A20)="N",$C$2,$C$3)),BOYRetirees!$N$10)=BG$10,-VLOOKUP($B20,INDIRECT(IF(UPPER($A20)="N",$C$2,$C$3)),BOYRetirees!$O$10),0),0) -> 0 | BH20: =IF(BH$10<=PARAMS!$B$3,-IF(UPPER($A20)="B",IF(OR(VLOOKUP($B20,BOYRet,BOYRetirees!$M$10)="",BH$10<=VLOOKUP($B20,BOYRet,BOYRetirees!$M$10)),VLOOKUP($B20,BOYRet,BOYRetirees!$L$10),0),IF(AND(VLOOKUP($B20,NewRet,NewRetirees!$B$10)<=BG$10,OR(VLOOKUP($B20,NewRet,NewRetirees!$M$10)="",BH$10<=(VLOOKUP($B20,NewRet,NewRetirees!$M$10)))),VLOOKUP($B20,NewRet,NewRetirees!$L$10),0)),0) -> -316.5 | BI20: -49.22 | BJ20: =IF(BJ$10<=PARAMS!$B$3, IF(VLOOKUP($B20,INDIRECT(IF(UPPER($A20)="N",$C$2,$C$3)),BOYRetirees!$N$10)=BJ$10,-SUM(BE20:BI20),0),0) -> 0 | BK20: =SUM(BE20:BJ20) -> 53156.67104 | BL20: =IF(BL$10<=PARAMS!$B$3,IF(UPPER($A20)="B",0,IF(VLOOKUP($B20,NewRet,NewRetirees!$B$10)=BL$10,VLOOKUP($B20,NewRet,NewRetirees!$H$10),0)),0) -> 0 | BM20: =IF(BM$10<=PARAMS!$B$3,IF(VLOOKUP($B20,INDIRECT(IF(UPPER($A20)="N",$C$2,$C$3)),BOYRetirees!$N$10)=BM$10,-VLOOKUP($B20,INDIRECT(IF(UPPER($A20)="N",$C$2,$C$3)),BOYRetirees!$O$10),0),0) -> 0 | BN20: =IF(BN$10<=PARAMS!$B$3,-IF(UPPER($A20)="B",IF(OR(VLOOKUP($B20,BOYRet,BOYRetirees!$M$10)="",BN$10<=VLOOKUP($B20,BOYRet,BOYRetirees!$M$10)),VLOOKUP($B20,BOYRet,BOYRetirees!$L$10),0),IF(AND(VLOOKUP($B20,NewRet,NewRetirees!$B$10)<=BM$10,OR(VLOOKUP($B20,NewRet,NewRetirees!$M$10)="",BN$10<=(VLOOKUP($B20,NewRet,NewRetirees!$M$10)))),VLOOKUP($B20,NewRet,NewRetirees!$L$10),0)),0) -> -316.5 | BO20: 295.38 | BP20: =IF(BP$10<=PARAMS!$B$3, IF(VLOOKUP($B20,INDIRECT(IF(UPPER($A20)="N",$C$2,$C$3)),BOYRetirees!$N$10)=BP$10,-SUM(BK20:BO20),0),0) -> 0 | BQ20: =SUM(BK20:BP20) -> 53135.55104 | BR20: =IF(BR$10<=PARAMS!$B$3,IF(UPPER($A20)="B",0,IF(VLOOKUP($B20,NewRet,NewRetirees!$B$10)=BR$10,VLOOKUP($B20,NewRet,NewRetirees!$H$10),0)),0) -> 0 | BS20: =IF(BS$10<=PARAMS!$B$3,IF(VLOOKUP($B20,INDIRECT(IF(UPPER($A20)="N",$C$2,$C$3)),BOYRetirees!$N$10)=BS$10,-VLOOKUP($B20,INDIRECT(IF(UPPER($A20)="N",$C$2,$C$3)),BOYRetirees!$O$10),0),0) -> -40000 | BT20: =IF(BT$10<=PARAMS!$B$3,-IF(UPPER($A20)="B",IF(OR(VLOOKUP($B20,BOYRet,BOYRetirees!$M$10)="",BT$10<=VLOOKUP($B20,BOYRet,BOYRetirees!$M$10)),VLOOKUP($B20,BOYRet,BOYRetirees!$L$10),0),IF(AND(VLOOKUP($B20,NewRet,NewRetirees!$B$10)<=BS$10,OR(VLOOKUP($B20,NewRet,NewRetirees!$M$10)="",BT$10<=(VLOOKUP($B20,NewRet,NewRetirees!$M$10)))),VLOOKUP($B20,NewRet,NewRetirees!$L$10),0)),0) -> -316.5 | BU20: 28.73 | BV20: =IF(BV$10<=PARAMS!$B$3, IF(VLOOKUP($B20,INDIRECT(IF(UPPER($A20)="N",$C$2,$C$3)),BOYRetirees!$N$10)=BV$10,-SUM(BQ20:BU20),0),0) -> -12847.78104 | BW20: =SUM(BQ20:BV20) -> 0 | BX20: B00010 | BY20: =C20 -> 54895.49104 | BZ20: =SUM(D20+J20+P20+V20+AB20+AH20+AN20+AT20+AZ20+BF20+BL20+BR20) -> 0 | CA20: =SUM(E20+K20+Q20+W20+AC20+AI20+AO20+AU20+BA20+BG20+BM20+BS20) -> -40000 | CB20: =SUM(F20+L20+R20+X20+AD20+AJ20+AP20+AV20+BB20+BH20+BN20+BT20) -> -3798 | CC20: =SUM(G20+M20+S20+Y20+AE20+AK20+AQ20+AW20+BC20+BI20+BO20+BU20) -> 1750.29 | CD20: =SUM(H20+N20+T20+Z20+AF20+AL20+AR20+AX20+BD20+BJ20+BP20+BV20) -> -12847.78104 | CE20: 0 | CF20: 0 | CG20: 0 | CH20: =IF(BW20>0,VLOOKUP(B20,INDIRECT(IF(UPPER(A20)="N",$C$2,$C$3)),BOYRetirees!$P$10),0) -> 0 | CI20: 0 | CJ20: =(C20+I20+O20+U20+AA20+AG20+AM20+AS20+AY20+BE20+BK20+BQ20+BW20)/(PARAMS!$B$2+1) -> 49829.65865 | CK20: 0 | CL20: -1239.489519
A21: b | B21: 11 | C21: =IF(UPPER($A21)="B",VLOOKUP($B21,BOYRet,BOYRetirees!$H$10),0) -> 38003.68435 | D21: =IF(D$10<=PARAMS!$B$3,IF(UPPER($A21)="B",0,IF(VLOOKUP($B21,NewRet,NewRetirees!$B$10)=D$10,VLOOKUP($B21,NewRet,NewRetirees!$H$10),0)),0) -> 0 | E21: =IF(E$10<=PARAMS!$B$3,IF(VLOOKUP($B21,INDIRECT(IF(UPPER($A21)="N",$C$2,$C$3)),BOYRetirees!$N$10)=E$10,-VLOOKUP($B21,INDIRECT(IF(UPPER($A21)="N",$C$2,$C$3)),BOYRetirees!$O$10),0),0) -> 0 | F21: =IF(F$10<=PARAMS!$B$3,-IF(UPPER($A21)="B",IF(OR(VLOOKUP($B21,BOYRet,BOYRetirees!$M$10)="",F$10<=VLOOKUP($B21,BOYRet,BOYRetirees!$M$10)),VLOOKUP($B21,BOYRet,BOYRetirees!$L$10),0),IF(AND(VLOOKUP($B21,NewRet,NewRetirees!$B$10)<=E$10,OR(VLOOKUP($B21,NewRet,NewRetirees!$M$10)="",F$10<=(VLOOKUP($B21,NewRet,NewRetirees!$M$10)))),VLOOKUP($B21,NewRet,NewRetirees!$L$10),0)),0) -> -209.76 | G21: 133.52 | H21: =IF(H$10<=PARAMS!$B$3, IF(VLOOKUP($B21,INDIRECT(IF(UPPER($A21)="N",$C$2,$C$3)),BOYRetirees!$N$10)=H$10,-SUM(C21:G21),0),0) -> 0 | I21: 37927.44435 | J21: =IF(J$10<=PARAMS!$B$3,IF(UPPER($A21)="B",0,IF(VLOOKUP($B21,NewRet,NewRetirees!$B$10)=J$10,VLOOKUP($B21,NewRet,NewRetirees!$H$10),0)),0) -> 0 | K21: =IF(K$10<=PARAMS!$B$3,IF(VLOOKUP($B21,INDIRECT(IF(UPPER($A21)="N",$C$2,$C$3)),BOYRetirees!$N$10)=K$10,-VLOOKUP($B21,INDIRECT(IF(UPPER($A21)="N",$C$2,$C$3)),BOYRetirees!$O$10),0),0) -> 0 | L21: =IF(L$10<=PARAMS!$B$3,-IF(UPPER($A21)="B",IF(OR(VLOOKUP($B21,BOYRet,BOYRetirees!$M$10)="",L$10<=VLOOKUP($B21,BOYRet,BOYRetirees!$M$10)),VLOOKUP($B21,BOYRet,BOYRetirees!$L$10),0),IF(AND(VLOOKUP($B21,NewRet,NewRetirees!$B$10)<=K$10,OR(VLOOKUP($B21,NewRet,NewRetirees!$M$10)="",L$10<=(VLOOKUP($B21,NewRet,NewRetirees!$M$10)))),VLOOKUP($B21,NewRet,NewRetirees!$L$10),0)),0) -> -209.76 | M21: 66.07 | N21: =IF(N$10<=PARAMS!$B$3, IF(VLOOKUP($B21,INDIRECT(IF(UPPER($A21)="N",$C$2,$C$3)),BOYRetirees!$N$10)=N$10,-SUM(I21:M21),0),0) -> 0 | O21: 37783.75435 | P21: =IF(P$10<=PARAMS!$B$3,IF(UPPER($A21)="B",0,IF(VLOOKUP($B21,NewRet,NewRetirees!$B$10)=P$10,VLOOKUP($B21,NewRet,NewRetirees!$H$10),0)),0) -> 0 | Q21: =IF(Q$10<=PARAMS!$B$3,IF(VLOOKUP($B21,INDIRECT(IF(UPPER($A21)="N",$C$2,$C$3)),BOYRetirees!$N$10)=Q$10,-VLOOKUP($B21,INDIRECT(IF(UPPER($A21)="N",$C$2,$C$3)),BOYRetirees!$O$10),0),0) -> 0 | R21: =IF(R$10<=PARAMS!$B$3,-IF(UPPER($A21)="B",IF(OR(VLOOKUP($B21,BOYRet,BOYRetirees!$M$10)="",R$10<=VLOOKUP($B21,BOYRet,BOYRetirees!$M$10)),VLOOKUP($B21,BOYRet,BOYRetirees!$L$10),0),IF(AND(VLOOKUP($B21,NewRet,NewRetirees!$B$10)<=Q$10,OR(VLOOKUP($B21,NewRet,NewRetirees!$M$10)="",R$10<=(VLOOKUP($B21,NewRet,NewRetirees!$M$10)))),VLOOKUP($B21,NewRet,NewRetirees!$L$10),0)),0) -> -209.76 | S21: -32.56 | T21: =IF(T$10<=PARAMS!$B$3, IF(VLOOKUP($B21,INDIRECT(IF(UPPER($A21)="N",$C$2,$C$3)),BOYRetirees!$N$10)=T$10,-SUM(O21:S21),0),0) -> 0 | U21: 37541.43435 | V21: =IF(V$10<=PARAMS!$B$3,IF(UPPER($A21)="B",0,IF(VLOOKUP($B21,NewRet,NewRetirees!$B$10)=V$10,VLOOKUP($B21,NewRet,NewRetirees!$H$10),0)),0) -> 0 | W21: =IF(W$10<=PARAMS!$B$3,IF(VLOOKUP($B21,INDIRECT(IF(UPPER($A21)="N",$C$2,$C$3)),BOYRetirees!$N$10)=W$10,-VLOOKUP($B21,INDIRECT(IF(UPPER($A21)="N",$C$2,$C$3)),BOYRetirees!$O$10),0),0) -> 0 | X21: =IF(X$10<=PARAMS!$B$3,-IF(UPPER($A21)="B",IF(OR(VLOOKUP($B21,BOYRet,BOYRetirees!$M$10)="",X$10<=VLOOKUP($B21,BOYRet,BOYRetirees!$M$10)),VLOOKUP($B21,BOYRet,BOYRetirees!$L$10),0),IF(AND(VLOOKUP($B21,NewRet,NewRetirees!$B$10)<=W$10,OR(VLOOKUP($B21,NewRet,NewRetirees!$M$10)="",X$10<=(VLOOKUP($B21,NewRet,NewRetirees!$M$10)))),VLOOKUP($B21,NewRet,NewRetirees!$L$10),0)),0) -> -209.76 | Y21: 170.28 | Z21: =IF(Z$10<=PARAMS!$B$3, IF(VLOOKUP($B21,INDIRECT(IF(UPPER($A21)="N",$C$2,$C$3)),BOYRetirees!$N$10)=Z$10,-SUM(U21:Y21),0),0) -> 0 | AA21: 37501.95435 | AB21: =IF(AB$10<=PARAMS!$B$3,IF(UPPER($A21)="B",0,IF(VLOOKUP($B21,NewRet,NewRetirees!$B$10)=AB$10,VLOOKUP($B21,NewRet,NewRetirees!$H$10),0)),0) -> 0 | AC21: =IF(AC$10<=PARAMS!$B$3,IF(VLOOKUP($B21,INDIRECT(IF(UPPER($A21)="N",$C$2,$C$3)),BOYRetirees!$N$10)=AC$10,-VLOOKUP($B21,INDIRECT(IF(UPPER($A21)="N",$C$2,$C$3)),BOYRetirees!$O$10),0),0) -> 0 | AD21: =IF(AD$10<=PARAMS!$B$3,-IF(UPPER($A21)="B",IF(OR(VLOOKUP($B21,BOYRet,BOYRetirees!$M$10)="",AD$10<=VLOOKUP($B21,BOYRet,BOYRetirees!$M$10)),VLOOKUP($B21,BOYRet,BOYRetirees!$L$10),0),IF(AND(VLOOKUP($B21,NewRet,NewRetirees!$B$10)<=AC$10,OR(VLOOKUP($B21,NewRet,NewRetirees!$M$10)="",AD$10<=(VLOOKUP($B21,NewRet,NewRetirees!$M$10)))),VLOOKUP($B21,NewRet,NewRetirees!$L$10),0)),0) -> -209.76 | AE21: 85.18 | AF21: =IF(AF$10<=PARAMS!$B$3,IF(UPPER($A21)="B",IF(VLOOKUP($B21,BOYRet,BOYRetirees!$N$10)=AF$10,-SUM(AA21:AE21),0),IF(VLOOKUP($B21,NewRet,NewRetirees!$N$10)=AF$10,-SUM(AA21:AE21),0)),0) -> 0 | AG21: 37377.37435 | AH21: =IF(AH$10<=PARAMS!$B$3,IF(UPPER($A21)="B",0,IF(VLOOKUP($B21,NewRet,NewRetirees!$B$10)=AH$10,VLOOKUP($B21,NewRet,NewRetirees!$H$10),0)),0) -> 0 | AI21: =IF(AI$10<=PARAMS!$B$3,IF(VLOOKUP($B21,INDIRECT(IF(UPPER($A21)="N",$C$2,$C$3)),BOYRetirees!$N$10)=AI$10,-VLOOKUP($B21,INDIRECT(IF(UPPER($A21)="N",$C$2,$C$3)),BOYRetirees!$O$10),0),0) -> 0 | AJ21: =IF(AJ$10<=PARAMS!$B$3,-IF(UPPER($A21)="B",IF(OR(VLOOKUP($B21,BOYRet,BOYRetirees!$M$10)="",AJ$10<=VLOOKUP($B21,BOYRet,BOYRetirees!$M$10)),VLOOKUP($B21,BOYRet,BOYRetirees!$L$10),0),IF(AND(VLOOKUP($B21,NewRet,NewRetirees!$B$10)<=AI$10,OR(VLOOKUP($B21,NewRet,NewRetirees!$M$10)="",AJ$10<=(VLOOKUP($B21,NewRet,NewRetirees!$M$10)))),VLOOKUP($B21,NewRet,NewRetirees!$L$10),0)),0) -> -209.76 | AK21: 255.68 | AL21: =IF(AL$10<=PARAMS!$B$3, IF(VLOOKUP($B21,INDIRECT(IF(UPPER($A21)="N",$C$2,$C$3)),BOYRetirees!$N$10)=AL$10,-SUM(AG21:AK21),0),0) -> 0 | AM21: 37423.29435 | AN21: =IF(AN$10<=PARAMS!$B$3,IF(UPPER($A21)="B",0,IF(VLOOKUP($B21,NewRet,NewRetirees!$B$10)=AN$10,VLOOKUP($B21,NewRet,NewRetirees!$H$10),0)),0) -> 0 | AO21: =IF(AO$10<=PARAMS!$B$3,IF(VLOOKUP($B21,INDIRECT(IF(UPPER($A21)="N",$C$2,$C$3)),BOYRetirees!$N$10)=AO$10,-VLOOKUP($B21,INDIRECT(IF(UPPER($A21)="N",$C$2,$C$3)),BOYRetirees!$O$10),0),0) -> 0 | AP21: =IF(AP$10<=PARAMS!$B$3,-IF(UPPER($A21)="B",IF(OR(VLOOKUP($B21,BOYRet,BOYRetirees!$M$10)="",AP$10<=VLOOKUP($B21,BOYRet,BOYRetirees!$M$10)),VLOOKUP($B21,BOYRet,BOYRetirees!$L$10),0),IF(AND(VLOOKUP($B21,NewRet,NewRetirees!$B$10)<=AO$10,OR(VLOOKUP($B21,NewRet,NewRetirees!$M$10)="",AP$10<=(VLOOKUP($B21,NewRet,NewRetirees!$M$10)))),VLOOKUP($B21,NewRet,NewRetirees!$L$10),0)),0) -> -209.76 | AQ21: 122.79 | AR21: =IF(AR$10<=PARAMS!$B$3, IF(VLOOKUP($B21,INDIRECT(IF(UPPER($A21)="N",$C$2,$C$3)),BOYRetirees!$N$10)=AR$10,-SUM(AM21:AQ21),0),0) -> 0 | AS21: 37336.32435 | AT21: =IF(AT$10<=PARAMS!$B$3,IF(UPPER($A21)="B",0,IF(VLOOKUP($B21,NewRet,NewRetirees!$B$10)=AT$10,VLOOKUP($B21,NewRet,NewRetirees!$H$10),0)),0) -> 0 | AU21: =IF(AU$10<=PARAMS!$B$3,IF(VLOOKUP($B21,INDIRECT(IF(UPPER($A21)="N",$C$2,$C$3)),BOYRetirees!$N$10)=AU$10,-VLOOKUP($B21,INDIRECT(IF(UPPER($A21)="N",$C$2,$C$3)),BOYRetirees!$O$10),0),0) -> 0 | AV21: =IF(AV$10<=PARAMS!$B$3,-IF(UPPER($A21)="B",IF(OR(VLOOKUP($B21,BOYRet,BOYRetirees!$M$10)="",AV$10<=VLOOKUP($B21,BOYRet,BOYRetirees!$M$10)),VLOOKUP($B21,BOYRet,BOYRetirees!$L$10),0),IF(AND(VLOOKUP($B21,NewRet,NewRetirees!$B$10)<=AU$10,OR(VLOOKUP($B21,NewRet,NewRetirees!$M$10)="",AV$10<=(VLOOKUP($B21,NewRet,NewRetirees!$M$10)))),VLOOKUP($B21,NewRet,NewRetirees!$L$10),0)),0) -> -209.76 | AW21: 136.5 | AX21: =IF(AX$10<=PARAMS!$B$3, IF(VLOOKUP($B21,INDIRECT(IF(UPPER($A21)="N",$C$2,$C$3)),BOYRetirees!$N$10)=AX$10,-SUM(AS21:AW21),0),0) -> 0 | AY21: 37263.06435 | AZ21: =IF(AZ$10<=PARAMS!$B$3,IF(UPPER($A21)="B",0,IF(VLOOKUP($B21,NewRet,NewRetirees!$B$10)=AZ$10,VLOOKUP($B21,NewRet,NewRetirees!$H$10),0)),0) -> 0 | BA21: =IF(BA$10<=PARAMS!$B$3,IF(VLOOKUP($B21,INDIRECT(IF(UPPER($A21)="N",$C$2,$C$3)),BOYRetirees!$N$10)=BA$10,-VLOOKUP($B21,INDIRECT(IF(UPPER($A21)="N",$C$2,$C$3)),BOYRetirees!$O$10),0),0) -> 0 | BB21: =IF(BB$10<=PARAMS!$B$3,-IF(UPPER($A21)="B",IF(OR(VLOOKUP($B21,BOYRet,BOYRetirees!$M$10)="",BB$10<=VLOOKUP($B21,BOYRet,BOYRetirees!$M$10)),VLOOKUP($B21,BOYRet,BOYRetirees!$L$10),0),IF(AND(VLOOKUP($B21,NewRet,NewRetirees!$B$10)<=BA$10,OR(VLOOKUP($B21,NewRet,NewRetirees!$M$10)="",BB$10<=(VLOOKUP($B21,NewRet,NewRetirees!$M$10)))),VLOOKUP($B21,NewRet,NewRetirees!$L$10),0)),0) -> -209.76 | BC21: 85.36 | BD21: =IF(BD$10<=PARAMS!$B$3, IF(VLOOKUP($B21,INDIRECT(IF(UPPER($A21)="N",$C$2,$C$3)),BOYRetirees!$N$10)=BD$10,-SUM(AY21:BC21),0),0) -> 0 | BE21: 37138.66435 | BF21: =IF(BF$10<=PARAMS!$B$3,IF(UPPER($A21)="B",0,IF(VLOOKUP($B21,NewRet,NewRetirees!$B$10)=BF$10,VLOOKUP($B21,NewRet,NewRetirees!$H$10),0)),0) -> 0 | BG21: =IF(BG$10<=PARAMS!$B$3,IF(VLOOKUP($B21,INDIRECT(IF(UPPER($A21)="N",$C$2,$C$3)),BOYRetirees!$N$10)=BG$10,-VLOOKUP($B21,INDIRECT(IF(UPPER($A21)="N",$C$2,$C$3)),BOYRetirees!$O$10),0),0) -> 0 | BH21: =IF(BH$10<=PARAMS!$B$3,-IF(UPPER($A21)="B",IF(OR(VLOOKUP($B21,BOYRet,BOYRetirees!$M$10)="",BH$10<=VLOOKUP($B21,BOYRet,BOYRetirees!$M$10)),VLOOKUP($B21,BOYRet,BOYRetirees!$L$10),0),IF(AND(VLOOKUP($B21,NewRet,NewRetirees!$B$10)<=BG$10,OR(VLOOKUP($B21,NewRet,NewRetirees!$M$10)="",BH$10<=(VLOOKUP($B21,NewRet,NewRetirees!$M$10)))),VLOOKUP($B21,NewRet,NewRetirees!$L$10),0)),0) -> -209.76 | BI21: -34.16 | BJ21: =IF(BJ$10<=PARAMS!$B$3, IF(VLOOKUP($B21,INDIRECT(IF(UPPER($A21)="N",$C$2,$C$3)),BOYRetirees!$N$10)=BJ$10,-SUM(BE21:BI21),0),0) -> 0 | BK21: 36894.74435 | BL21: =IF(BL$10<=PARAMS!$B$3,IF(UPPER($A21)="B",0,IF(VLOOKUP($B21,NewRet,NewRetirees!$B$10)=BL$10,VLOOKUP($B21,NewRet,NewRetirees!$H$10),0)),0) -> 0 | BM21: =IF(BM$10<=PARAMS!$B$3,IF(VLOOKUP($B21,INDIRECT(IF(UPPER($A21)="N",$C$2,$C$3)),BOYRetirees!$N$10)=BM$10,-VLOOKUP($B21,INDIRECT(IF(UPPER($A21)="N",$C$2,$C$3)),BOYRetirees!$O$10),0),0) -> 0 | BN21: =IF(BN$10<=PARAMS!$B$3,-IF(UPPER($A21)="B",IF(OR(VLOOKUP($B21,BOYRet,BOYRetirees!$M$10)="",BN$10<=VLOOKUP($B21,BOYRet,BOYRetirees!$M$10)),VLOOKUP($B21,BOYRet,BOYRetirees!$L$10),0),IF(AND(VLOOKUP($B21,NewRet,NewRetirees!$B$10)<=BM$10,OR(VLOOKUP($B21,NewRet,NewRetirees!$M$10)="",BN$10<=(VLOOKUP($B21,NewRet,NewRetirees!$M$10)))),VLOOKUP($B21,NewRet,NewRetirees!$L$10),0)),0) -> -209.76 | BO21: 205.07 | BP21: =IF(BP$10<=PARAMS!$B$3, IF(VLOOKUP($B21,INDIRECT(IF(UPPER($A21)="N",$C$2,$C$3)),BOYRetirees!$N$10)=BP$10,-SUM(BK21:BO21),0),0) -> 0 | BQ21: 36890.05435 | BR21: =IF(BR$10<=PARAMS!$B$3,IF(UPPER($A21)="B",0,IF(VLOOKUP($B21,NewRet,NewRetirees!$B$10)=BR$10,VLOOKUP($B21,NewRet,NewRetirees!$H$10),0)),0) -> 0 | BS21: =IF(BS$10<=PARAMS!$B$3,IF(VLOOKUP($B21,INDIRECT(IF(UPPER($A21)="N",$C$2,$C$3)),BOYRetirees!$N$10)=BS$10,-VLOOKUP($B21,INDIRECT(IF(UPPER($A21)="N",$C$2,$C$3)),BOYRetirees!$O$10),0),0) -> 0 | BT21: =IF(BT$10<=PARAMS!$B$3,-IF(UPPER($A21)="B",IF(OR(VLOOKUP($B21,BOYRet,BOYRetirees!$M$10)="",BT$10<=VLOOKUP($B21,BOYRet,BOYRetirees!$M$10)),VLOOKUP($B21,BOYRet,BOYRetirees!$L$10),0),IF(AND(VLOOKUP($B21,NewRet,NewRetirees!$B$10)<=BS$10,OR(VLOOKUP($B21,NewRet,NewRetirees!$M$10)="",BT$10<=(VLOOKUP($B21,NewRet,NewRetirees!$M$10)))),VLOOKUP($B21,NewRet,NewRetirees!$L$10),0)),0) -> -209.76 | BU21: 82.2 | BV21: =IF(BV$10<=PARAMS!$B$3, IF(VLOOKUP($B21,INDIRECT(IF(UPPER($A21)="N",$C$2,$C$3)),BOYRetirees!$N$10)=BV$10,-SUM(BQ21:BU21),0),0) -> 0 | BW21: 36762.49435 | BX21: B00011 | BY21: 38003.68435 | BZ21: 0 | CA21: 0 | CB21: -2517.12 | CC21: 1275.93 | CD21: 0 | CE21: 36762.49435 | CF21: 1042.026843 | CG21: 37804.5212 | CH21: =IF(BW21>0,VLOOKUP(B21,INDIRECT(IF(UPPER(A21)="N",$C$2,$C$3)),BOYRetirees!$P$10),0) -> 0.003738484733 | CI21: 139.7170345 | CJ21: =(C21+I21+O21+U21+AA21+AG21+AM21+AS21+AY21+BE21+BK21+BQ21+BW21)/(PARAMS!$B$2+1) -> 37372.63743 | CK21: 902.3098083 | CL21: -966.4282458
A22: b | B22: 12 | C22: =IF(UPPER($A22)="B",VLOOKUP($B22,BOYRet,BOYRetirees!$H$10),0) -> 95260.25 | D22: =IF(D$10<=PARAMS!$B$3,IF(UPPER($A22)="B",0,IF(VLOOKUP($B22,NewRet,NewRetirees!$B$10)=D$10,VLOOKUP($B22,NewRet,NewRetirees!$H$10),0)),0) -> 0 | E22: =IF(E$10<=PARAMS!$B$3,IF(VLOOKUP($B22,INDIRECT(IF(UPPER($A22)="N",$C$2,$C$3)),BOYRetirees!$N$10)=E$10,-VLOOKUP($B22,INDIRECT(IF(UPPER($A22)="N",$C$2,$C$3)),BOYRetirees!$O$10),0),0) -> 0 | F22: =IF(F$10<=PARAMS!$B$3,-IF(UPPER($A22)="B",IF(OR(VLOOKUP($B22,BOYRet,BOYRetirees!$M$10)="",F$10<=VLOOKUP($B22,BOYRet,BOYRetirees!$M$10)),VLOOKUP($B22,BOYRet,BOYRetirees!$L$10),0),IF(AND(VLOOKUP($B22,NewRet,NewRetirees!$B$10)<=E$10,OR(VLOOKUP($B22,NewRet,NewRetirees!$M$10)="",F$10<=(VLOOKUP($B22,NewRet,NewRetirees!$M$10)))),VLOOKUP($B22,NewRet,NewRetirees!$L$10),0)),0) -> -395.37 | G22: 335.14 | H22: =IF(H$10<=PARAMS!$B$3, IF(VLOOKUP($B22,INDIRECT(IF(UPPER($A22)="N",$C$2,$C$3)),BOYRetirees!$N$10)=H$10,-SUM(C22:G22),0),0) -> 0 | I22: =SUM(C22:H22) -> 95200.02 | J22: =IF(J$10<=PARAMS!$B$3,IF(UPPER($A22)="B",0,IF(VLOOKUP($B22,NewRet,NewRetirees!$B$10)=J$10,VLOOKUP($B22,NewRet,NewRetirees!$H$10),0)),0) -> 0 | K22: =IF(K$10<=PARAMS!$B$3,IF(VLOOKUP($B22,INDIRECT(IF(UPPER($A22)="N",$C$2,$C$3)),BOYRetirees!$N$10)=K$10,-VLOOKUP($B22,INDIRECT(IF(UPPER($A22)="N",$C$2,$C$3)),BOYRetirees!$O$10),0),0) -> 0 | L22: =IF(L$10<=PARAMS!$B$3,-IF(UPPER($A22)="B",IF(OR(VLOOKUP($B22,BOYRet,BOYRetirees!$M$10)="",L$10<=VLOOKUP($B22,BOYRet,BOYRetirees!$M$10)),VLOOKUP($B22,BOYRet,BOYRetirees!$L$10),0),IF(AND(VLOOKUP($B22,NewRet,NewRetirees!$B$10)<=K$10,OR(VLOOKUP($B22,NewRet,NewRetirees!$M$10)="",L$10<=(VLOOKUP($B22,NewRet,NewRetirees!$M$10)))),VLOOKUP($B22,NewRet,NewRetirees!$L$10),0)),0) -> -395.37 | M22: 166.06 | N22: =IF(N$10<=PARAMS!$B$3, IF(VLOOKUP($B22,INDIRECT(IF(UPPER($A22)="N",$C$2,$C$3)),BOYRetirees!$N$10)=N$10,-SUM(I22:M22),0),0) -> 0 | O22: =SUM(I22:N22) -> 94970.71 | P22: =IF(P$10<=PARAMS!$B$3,IF(UPPER($A22)="B",0,IF(VLOOKUP($B22,NewRet,NewRetirees!$B$10)=P$10,VLOOKUP($B22,NewRet,NewRetirees!$H$10),0)),0) -> 0 | Q22: =IF(Q$10<=PARAMS!$B$3,IF(VLOOKUP($B22,INDIRECT(IF(UPPER($A22)="N",$C$2,$C$3)),BOYRetirees!$N$10)=Q$10,-VLOOKUP($B22,INDIRECT(IF(UPPER($A22)="N",$C$2,$C$3)),BOYRetirees!$O$10),0),0) -> 0 | R22: =IF(R$10<=PARAMS!$B$3,-IF(UPPER($A22)="B",IF(OR(VLOOKUP($B22,BOYRet,BOYRetirees!$M$10)="",R$10<=VLOOKUP($B22,BOYRet,BOYRetirees!$M$10)),VLOOKUP($B22,BOYRet,BOYRetirees!$L$10),0),IF(AND(VLOOKUP($B22,NewRet,NewRetirees!$B$10)<=Q$10,OR(VLOOKUP($B22,NewRet,NewRetirees!$M$10)="",R$10<=(VLOOKUP($B22,NewRet,NewRetirees!$M$10)))),VLOOKUP($B22,NewRet,NewRetirees!$L$10),0)),0) -> -395.37 | S22: -81.96 | T22: =IF(T$10<=PARAMS!$B$3, IF(VLOOKUP($B22,INDIRECT(IF(UPPER($A22)="N",$C$2,$C$3)),BOYRetirees!$N$10)=T$10,-SUM(O22:S22),0),0) -> 0 | U22: =SUM(O22:T22) -> 94493.38 | V22: =IF(V$10<=PARAMS!$B$3,IF(UPPER($A22)="B",0,IF(VLOOKUP($B22,NewRet,NewRetirees!$B$10)=V$10,VLOOKUP($B22,NewRet,NewRetirees!$H$10),0)),0) -> 0 | W22: =IF(W$10<=PARAMS!$B$3,IF(VLOOKUP($B22,INDIRECT(IF(UPPER($A22)="N",$C$2,$C$3)),BOYRetirees!$N$10)=W$10,-VLOOKUP($B22,INDIRECT(IF(UPPER($A22)="N",$C$2,$C$3)),BOYRetirees!$O$10),0),0) -> 0 | X22: =IF(X$10<=PARAMS!$B$3,-IF(UPPER($A22)="B",IF(OR(VLOOKUP($B22,BOYRet,BOYRetirees!$M$10)="",X$10<=VLOOKUP($B22,BOYRet,BOYRetirees!$M$10)),VLOOKUP($B22,BOYRet,BOYRetirees!$L$10),0),IF(AND(VLOOKUP($B22,NewRet,NewRetirees!$B$10)<=W$10,OR(VLOOKUP($B22,NewRet,NewRetirees!$M$10)="",X$10<=(VLOOKUP($B22,NewRet,NewRetirees!$M$10)))),VLOOKUP($B22,NewRet,NewRetirees!$L$10),0)),0) -> -395.37 | Y22: 429.21 | Z22: =IF(Z$10<=PARAMS!$B$3, IF(VLOOKUP($B22,INDIRECT(IF(UPPER($A22)="N",$C$2,$C$3)),BOYRetirees!$N$10)=Z$10,-SUM(U22:Y22),0),0) -> 0 | AA22: =SUM(U22:Z22) -> 94527.22 | AB22: =IF(AB$10<=PARAMS!$B$3,IF(UPPER($A22)="B",0,IF(VLOOKUP($B22,NewRet,NewRetirees!$B$10)=AB$10,VLOOKUP($B22,NewRet,NewRetirees!$H$10),0)),0) -> 0 | AC22: =IF(AC$10<=PARAMS!$B$3,IF(VLOOKUP($B22,INDIRECT(IF(UPPER($A22)="N",$C$2,$C$3)),BOYRetirees!$N$10)=AC$10,-VLOOKUP($B22,INDIRECT(IF(UPPER($A22)="N",$C$2,$C$3)),BOYRetirees!$O$10),0),0) -> 0 | AD22: =IF(AD$10<=PARAMS!$B$3,-IF(UPPER($A22)="B",IF(OR(VLOOKUP($B22,BOYRet,BOYRetirees!$M$10)="",AD$10<=VLOOKUP($B22,BOYRet,BOYRetirees!$M$10)),VLOOKUP($B22,BOYRet,BOYRetirees!$L$10),0),IF(AND(VLOOKUP($B22,NewRet,NewRetirees!$B$10)<=AC$10,OR(VLOOKUP($B22,NewRet,NewRetirees!$M$10)="",AD$10<=(VLOOKUP($B22,NewRet,NewRetirees!$M$10)))),VLOOKUP($B22,NewRet,NewRetirees!$L$10),0)),0) -> -395.37 | AE22: 215.02 | AF22: =IF(AF$10<=PARAMS!$B$3,IF(UPPER($A22)="B",IF(VLOOKUP($B22,BOYRet,BOYRetirees!$N$10)=AF$10,-SUM(AA22:AE22),0),IF(VLOOKUP($B22,NewRet,NewRetirees!$N$10)=AF$10,-SUM(AA22:AE22),0)),0) -> 0 | AG22: =SUM(AA22:AF22) -> 94346.87 | AH22: =IF(AH$10<=PARAMS!$B$3,IF(UPPER($A22)="B",0,IF(VLOOKUP($B22,NewRet,NewRetirees!$B$10)=AH$10,VLOOKUP($B22,NewRet,NewRetirees!$H$10),0)),0) -> 0 | AI22: =IF(AI$10<=PARAMS!$B$3,IF(VLOOKUP($B22,INDIRECT(IF(UPPER($A22)="N",$C$2,$C$3)),BOYRetirees!$N$10)=AI$10,-VLOOKUP($B22,INDIRECT(IF(UPPER($A22)="N",$C$2,$C$3)),BOYRetirees!$O$10),0),0) -> 0 | AJ22: =IF(AJ$10<=PARAMS!$B$3,-IF(UPPER($A22)="B",IF(OR(VLOOKUP($B22,BOYRet,BOYRetirees!$M$10)="",AJ$10<=VLOOKUP($B22,BOYRet,BOYRetirees!$M$10)),VLOOKUP($B22,BOYRet,BOYRetirees!$L$10),0),IF(AND(VLOOKUP($B22,NewRet,NewRetirees!$B$10)<=AI$10,OR(VLOOKUP($B22,NewRet,NewRetirees!$M$10)="",AJ$10<=(VLOOKUP($B22,NewRet,NewRetirees!$M$10)))),VLOOKUP($B22,NewRet,NewRetirees!$L$10),0)),0) -> -395.37 | AK22: 646.3 | AL22: =IF(AL$10<=PARAMS!$B$3, IF(VLOOKUP($B22,INDIRECT(IF(UPPER($A22)="N",$C$2,$C$3)),BOYRetirees!$N$10)=AL$10,-SUM(AG22:AK22),0),0) -> 0 | AM22: =SUM(AG22:AL22) -> 94597.8 | AN22: =IF(AN$10<=PARAMS!$B$3,IF(UPPER($A22)="B",0,IF(VLOOKUP($B22,NewRet,NewRetirees!$B$10)=AN$10,VLOOKUP($B22,NewRet,NewRetirees!$H$10),0)),0) -> 0 | AO22: =IF(AO$10<=PARAMS!$B$3,IF(VLOOKUP($B22,INDIRECT(IF(UPPER($A22)="N",$C$2,$C$3)),BOYRetirees!$N$10)=AO$10,-VLOOKUP($B22,INDIRECT(IF(UPPER($A22)="N",$C$2,$C$3)),BOYRetirees!$O$10),0),0) -> 0 | AP22: =IF(AP$10<=PARAMS!$B$3,-IF(UPPER($A22)="B",IF(OR(VLOOKUP($B22,BOYRet,BOYRetirees!$M$10)="",AP$10<=VLOOKUP($B22,BOYRet,BOYRetirees!$M$10)),VLOOKUP($B22,BOYRet,BOYRetirees!$L$10),0),IF(AND(VLOOKUP($B22,NewRet,NewRetirees!$B$10)<=AO$10,OR(VLOOKUP($B22,NewRet,NewRetirees!$M$10)="",AP$10<=(VLOOKUP($B22,NewRet,NewRetirees!$M$10)))),VLOOKUP($B22,NewRet,NewRetirees!$L$10),0)),0) -> -395.37 | AQ22: 310.82 | AR22: =IF(AR$10<=PARAMS!$B$3, IF(VLOOKUP($B22,INDIRECT(IF(UPPER($A22)="N",$C$2,$C$3)),BOYRetirees!$N$10)=AR$10,-SUM(AM22:AQ22),0),0) -> 0 | AS22: =SUM(AM22:AR22) -> 94513.25 | AT22: =IF(AT$10<=PARAMS!$B$3,IF(UPPER($A22)="B",0,IF(VLOOKUP($B22,NewRet,NewRetirees!$B$10)=AT$10,VLOOKUP($B22,NewRet,NewRetirees!$H$10),0)),0) -> 0 | AU22: =IF(AU$10<=PARAMS!$B$3,IF(VLOOKUP($B22,INDIRECT(IF(UPPER($A22)="N",$C$2,$C$3)),BOYRetirees!$N$10)=AU$10,-VLOOKUP($B22,INDIRECT(IF(UPPER($A22)="N",$C$2,$C$3)),BOYRetirees!$O$10),0),0) -> 0 | AV22: =IF(AV$10<=PARAMS!$B$3,-IF(UPPER($A22)="B",IF(OR(VLOOKUP($B22,BOYRet,BOYRetirees!$M$10)="",AV$10<=VLOOKUP($B22,BOYRet,BOYRetirees!$M$10)),VLOOKUP($B22,BOYRet,BOYRetirees!$L$10),0),IF(AND(VLOOKUP($B22,NewRet,NewRetirees!$B$10)<=AU$10,OR(VLOOKUP($B22,NewRet,NewRetirees!$M$10)="",AV$10<=(VLOOKUP($B22,NewRet,NewRetirees!$M$10)))),VLOOKUP($B22,NewRet,NewRetirees!$L$10),0)),0) -> -395.37 | AW22: 346.04 | AX22: =IF(AX$10<=PARAMS!$B$3, IF(VLOOKUP($B22,INDIRECT(IF(UPPER($A22)="N",$C$2,$C$3)),BOYRetirees!$N$10)=AX$10,-SUM(AS22:AW22),0),0) -> 0 | AY22: =SUM(AS22:AX22) -> 94463.92 | AZ22: =IF(AZ$10<=PARAMS!$B$3,IF(UPPER($A22)="B",0,IF(VLOOKUP($B22,NewRet,NewRetirees!$B$10)=AZ$10,VLOOKUP($B22,NewRet,NewRetirees!$H$10),0)),0) -> 0 | BA22: =IF(BA$10<=PARAMS!$B$3,IF(VLOOKUP($B22,INDIRECT(IF(UPPER($A22)="N",$C$2,$C$3)),BOYRetirees!$N$10)=BA$10,-VLOOKUP($B22,INDIRECT(IF(UPPER($A22)="N",$C$2,$C$3)),BOYRetirees!$O$10),0),0) -> 0 | BB22: =IF(BB$10<=PARAMS!$B$3,-IF(UPPER($A22)="B",IF(OR(VLOOKUP($B22,BOYRet,BOYRetirees!$M$10)="",BB$10<=VLOOKUP($B22,BOYRet,BOYRetirees!$M$10)),VLOOKUP($B22,BOYRet,BOYRetirees!$L$10),0),IF(AND(VLOOKUP($B22,NewRet,NewRetirees!$B$10)<=BA$10,OR(VLOOKUP($B22,NewRet,NewRetirees!$M$10)="",BB$10<=(VLOOKUP($B22,NewRet,NewRetirees!$M$10)))),VLOOKUP($B22,NewRet,NewRetirees!$L$10),0)),0) -> -395.37 | BC22: 216.7 | BD22: =IF(BD$10<=PARAMS!$B$3, IF(VLOOKUP($B22,INDIRECT(IF(UPPER($A22)="N",$C$2,$C$3)),BOYRetirees!$N$10)=BD$10,-SUM(AY22:BC22),0),0) -> 0 | BE22: =SUM(AY22:BD22) -> 94285.25 | BF22: =IF(BF$10<=PARAMS!$B$3,IF(UPPER($A22)="B",0,IF(VLOOKUP($B22,NewRet,NewRetirees!$B$10)=BF$10,VLOOKUP($B22,NewRet,NewRetirees!$H$10),0)),0) -> 0 | BG22: =IF(BG$10<=PARAMS!$B$3,IF(VLOOKUP($B22,INDIRECT(IF(UPPER($A22)="N",$C$2,$C$3)),BOYRetirees!$N$10)=BG$10,-VLOOKUP($B22,INDIRECT(IF(UPPER($A22)="N",$C$2,$C$3)),BOYRetirees!$O$10),0),0) -> 0 | BH22: =IF(BH$10<=PARAMS!$B$3,-IF(UPPER($A22)="B",IF(OR(VLOOKUP($B22,BOYRet,BOYRetirees!$M$10)="",BH$10<=VLOOKUP($B22,BOYRet,BOYRetirees!$M$10)),VLOOKUP($B22,BOYRet,BOYRetirees!$L$10),0),IF(AND(VLOOKUP($B22,NewRet,NewRetirees!$B$10)<=BG$10,OR(VLOOKUP($B22,NewRet,NewRetirees!$M$10)="",BH$10<=(VLOOKUP($B22,NewRet,NewRetirees!$M$10)))),VLOOKUP($B22,NewRet,NewRetirees!$L$10),0)),0) -> -395.37 | BI22: -86.85 | BJ22: =IF(BJ$10<=PARAMS!$B$3, IF(VLOOKUP($B22,INDIRECT(IF(UPPER($A22)="N",$C$2,$C$3)),BOYRetirees!$N$10)=BJ$10,-SUM(BE22:BI22),0),0) -> 0 | BK22: =SUM(BE22:BJ22) -> 93803.03 | BL22: =IF(BL$10<=PARAMS!$B$3,IF(UPPER($A22)="B",0,IF(VLOOKUP($B22,NewRet,NewRetirees!$B$10)=BL$10,VLOOKUP($B22,NewRet,NewRetirees!$H$10),0)),0) -> 0 | BM22: =IF(BM$10<=PARAMS!$B$3,IF(VLOOKUP($B22,INDIRECT(IF(UPPER($A22)="N",$C$2,$C$3)),BOYRetirees!$N$10)=BM$10,-VLOOKUP($B22,INDIRECT(IF(UPPER($A22)="N",$C$2,$C$3)),BOYRetirees!$O$10),0),0) -> 0 | BN22: =IF(BN$10<=PARAMS!$B$3,-IF(UPPER($A22)="B",IF(OR(VLOOKUP($B22,BOYRet,BOYRetirees!$M$10)="",BN$10<=VLOOKUP($B22,BOYRet,BOYRetirees!$M$10)),VLOOKUP($B22,BOYRet,BOYRetirees!$L$10),0),IF(AND(VLOOKUP($B22,NewRet,NewRetirees!$B$10)<=BM$10,OR(VLOOKUP($B22,NewRet,NewRetirees!$M$10)="",BN$10<=(VLOOKUP($B22,NewRet,NewRetirees!$M$10)))),VLOOKUP($B22,NewRet,NewRetirees!$L$10),0)),0) -> -395.37 | BO22: 522.15 | BP22: =IF(BP$10<=PARAMS!$B$3, IF(VLOOKUP($B22,INDIRECT(IF(UPPER($A22)="N",$C$2,$C$3)),BOYRetirees!$N$10)=BP$10,-SUM(BK22:BO22),0),0) -> 0 | BQ22: =SUM(BK22:BP22) -> 93929.81 | BR22: =IF(BR$10<=PARAMS!$B$3,IF(UPPER($A22)="B",0,IF(VLOOKUP($B22,NewRet,NewRetirees!$B$10)=BR$10,VLOOKUP($B22,NewRet,NewRetirees!$H$10),0)),0) -> 0 | BS22: =IF(BS$10<=PARAMS!$B$3,IF(VLOOKUP($B22,INDIRECT(IF(UPPER($A22)="N",$C$2,$C$3)),BOYRetirees!$N$10)=BS$10,-VLOOKUP($B22,INDIRECT(IF(UPPER($A22)="N",$C$2,$C$3)),BOYRetirees!$O$10),0),0) -> 0 | BT22: =IF(BT$10<=PARAMS!$B$3,-IF(UPPER($A22)="B",IF(OR(VLOOKUP($B22,BOYRet,BOYRetirees!$M$10)="",BT$10<=VLOOKUP($B22,BOYRet,BOYRetirees!$M$10)),VLOOKUP($B22,BOYRet,BOYRetirees!$L$10),0),IF(AND(VLOOKUP($B22,NewRet,NewRetirees!$B$10)<=BS$10,OR(VLOOKUP($B22,NewRet,NewRetirees!$M$10)="",BT$10<=(VLOOKUP($B22,NewRet,NewRetirees!$M$10)))),VLOOKUP($B22,NewRet,NewRetirees!$L$10),0)),0) -> -395.37 | BU22: 209.6 | BV22: =IF(BV$10<=PARAMS!$B$3, IF(VLOOKUP($B22,INDIRECT(IF(UPPER($A22)="N",$C$2,$C$3)),BOYRetirees!$N$10)=BV$10,-SUM(BQ22:BU22),0),0) -> 0 | BW22: =SUM(BQ22:BV22) -> 93744.04 | BX22: B00012 | BY22: =C22 -> 95260.25 | BZ22: =SUM(D22+J22+P22+V22+AB22+AH22+AN22+AT22+AZ22+BF22+BL22+BR22) -> 0 | CA22: =SUM(E22+K22+Q22+W22+AC22+AI22+AO22+AU22+BA22+BG22+BM22+BS22) -> 0 | CB22: =SUM(F22+L22+R22+X22+AD22+AJ22+AP22+AV22+BB22+BH22+BN22+BT22) -> -4744.44 | CC22: =SUM(G22+M22+S22+Y22+AE22+AK22+AQ22+AW22+BC22+BI22+BO22+BU22) -> 3228.23 | CD22: =SUM(H22+N22+T22+Z22+AF22+AL22+AR22+AX22+BD22+BJ22+BP22+BV22) -> 0 | CE22: 93744.04 | CF22: 15.88511742 | CG22: 93759.92512 | CH22: =IF(BW22>0,VLOOKUP(B22,INDIRECT(IF(UPPER(A22)="N",$C$2,$C$3)),BOYRetirees!$P$10),0) -> 2.254539929e-05 | CI22: 2.129908181 | CJ22: =(C22+I22+O22+U22+AA22+AG22+AM22+AS22+AY22+BE22+BK22+BQ22+BW22)/(PARAMS!$B$2+1) -> 94471.96538 | CK22: 13.75520924 | CL22: -2440.087923
A23: b | B23: 13 | C23: =IF(UPPER($A23)="B",VLOOKUP($B23,BOYRet,BOYRetirees!$H$10),0) -> 141860.0528 | D23: =IF(D$10<=PARAMS!$B$3,IF(UPPER($A23)="B",0,IF(VLOOKUP($B23,NewRet,NewRetirees!$B$10)=D$10,VLOOKUP($B23,NewRet,NewRetirees!$H$10),0)),0) -> 0 | E23: =IF(E$10<=PARAMS!$B$3,IF(VLOOKUP($B23,INDIRECT(IF(UPPER($A23)="N",$C$2,$C$3)),BOYRetirees!$N$10)=E$10,-VLOOKUP($B23,INDIRECT(IF(UPPER($A23)="N",$C$2,$C$3)),BOYRetirees!$O$10),0),0) -> 0 | F23: =IF(F$10<=PARAMS!$B$3,-IF(UPPER($A23)="B",IF(OR(VLOOKUP($B23,BOYRet,BOYRetirees!$M$10)="",F$10<=VLOOKUP($B23,BOYRet,BOYRetirees!$M$10)),VLOOKUP($B23,BOYRet,BOYRetirees!$L$10),0),IF(AND(VLOOKUP($B23,NewRet,NewRetirees!$B$10)<=E$10,OR(VLOOKUP($B23,NewRet,NewRetirees!$M$10)="",F$10<=(VLOOKUP($B23,NewRet,NewRetirees!$M$10)))),VLOOKUP($B23,NewRet,NewRetirees!$L$10),0)),0) -> -928.06 | G23: 497.89 | H23: =IF(H$10<=PARAMS!$B$3, IF(VLOOKUP($B23,INDIRECT(IF(UPPER($A23)="N",$C$2,$C$3)),BOYRetirees!$N$10)=H$10,-SUM(C23:G23),0),0) -> 0 | I23: =SUM(C23:H23) -> 141429.8828 | J23: =IF(J$10<=PARAMS!$B$3,IF(UPPER($A23)="B",0,IF(VLOOKUP($B23,NewRet,NewRetirees!$B$10)=J$10,VLOOKUP($B23,NewRet,NewRetirees!$H$10),0)),0) -> 0 | K23: =IF(K$10<=PARAMS!$B$3,IF(VLOOKUP($B23,INDIRECT(IF(UPPER($A23)="N",$C$2,$C$3)),BOYRetirees!$N$10)=K$10,-VLOOKUP($B23,INDIRECT(IF(UPPER($A23)="N",$C$2,$C$3)),BOYRetirees!$O$10),0),0) -> 0 | L23: =IF(L$10<=PARAMS!$B$3,-IF(UPPER($A23)="B",IF(OR(VLOOKUP($B23,BOYRet,BOYRetirees!$M$10)="",L$10<=VLOOKUP($B23,BOYRet,BOYRetirees!$M$10)),VLOOKUP($B23,BOYRet,BOYRetirees!$L$10),0),IF(AND(VLOOKUP($B23,NewRet,NewRetirees!$B$10)<=K$10,OR(VLOOKUP($B23,NewRet,NewRetirees!$M$10)="",L$10<=(VLOOKUP($B23,NewRet,NewRetirees!$M$10)))),VLOOKUP($B23,NewRet,NewRetirees!$L$10),0)),0) -> -928.06 | M23: 246.1 | N23: =IF(N$10<=PARAMS!$B$3, IF(VLOOKUP($B23,INDIRECT(IF(UPPER($A23)="N",$C$2,$C$3)),BOYRetirees!$N$10)=N$10,-SUM(I23:M23),0),0) -> 0 | O23: =SUM(I23:N23) -> 140747.9228 | P23: =IF(P$10<=PARAMS!$B$3,IF(UPPER($A23)="B",0,IF(VLOOKUP($B23,NewRet,NewRetirees!$B$10)=P$10,VLOOKUP($B23,NewRet,NewRetirees!$H$10),0)),0) -> 0 | Q23: =IF(Q$10<=PARAMS!$B$3,IF(VLOOKUP($B23,INDIRECT(IF(UPPER($A23)="N",$C$2,$C$3)),BOYRetirees!$N$10)=Q$10,-VLOOKUP($B23,INDIRECT(IF(UPPER($A23)="N",$C$2,$C$3)),BOYRetirees!$O$10),0),0) -> 0 | R23: =IF(R$10<=PARAMS!$B$3,-IF(UPPER($A23)="B",IF(OR(VLOOKUP($B23,BOYRet,BOYRetirees!$M$10)="",R$10<=VLOOKUP($B23,BOYRet,BOYRetirees!$M$10)),VLOOKUP($B23,BOYRet,BOYRetirees!$L$10),0),IF(AND(VLOOKUP($B23,NewRet,NewRetirees!$B$10)<=Q$10,OR(VLOOKUP($B23,NewRet,NewRetirees!$M$10)="",R$10<=(VLOOKUP($B23,NewRet,NewRetirees!$M$10)))),VLOOKUP($B23,NewRet,NewRetirees!$L$10),0)),0) -> -928.06 | S23: -121.17 | T23: =IF(T$10<=PARAMS!$B$3, IF(VLOOKUP($B23,INDIRECT(IF(UPPER($A23)="N",$C$2,$C$3)),BOYRetirees!$N$10)=T$10,-SUM(O23:S23),0),0) -> 0 | U23: =SUM(O23:T23) -> 139698.6928 | V23: =IF(V$10<=PARAMS!$B$3,IF(UPPER($A23)="B",0,IF(VLOOKUP($B23,NewRet,NewRetirees!$B$10)=V$10,VLOOKUP($B23,NewRet,NewRetirees!$H$10),0)),0) -> 0 | W23: =IF(W$10<=PARAMS!$B$3,IF(VLOOKUP($B23,INDIRECT(IF(UPPER($A23)="N",$C$2,$C$3)),BOYRetirees!$N$10)=W$10,-VLOOKUP($B23,INDIRECT(IF(UPPER($A23)="N",$C$2,$C$3)),BOYRetirees!$O$10),0),0) -> 0 | X23: =IF(X$10<=PARAMS!$B$3,-IF(UPPER($A23)="B",IF(OR(VLOOKUP($B23,BOYRet,BOYRetirees!$M$10)="",X$10<=VLOOKUP($B23,BOYRet,BOYRetirees!$M$10)),VLOOKUP($B23,BOYRet,BOYRetirees!$L$10),0),IF(AND(VLOOKUP($B23,NewRet,NewRetirees!$B$10)<=W$10,OR(VLOOKUP($B23,NewRet,NewRetirees!$M$10)="",X$10<=(VLOOKUP($B23,NewRet,NewRetirees!$M$10)))),VLOOKUP($B23,NewRet,NewRetirees!$L$10),0)),0) -> -928.06 | Y23: 632.98 | Z23: =IF(Z$10<=PARAMS!$B$3, IF(VLOOKUP($B23,INDIRECT(IF(UPPER($A23)="N",$C$2,$C$3)),BOYRetirees!$N$10)=Z$10,-SUM(U23:Y23),0),0) -> 0 | AA23: =SUM(U23:Z23) -> 139403.6128 | AB23: =IF(AB$10<=PARAMS!$B$3,IF(UPPER($A23)="B",0,IF(VLOOKUP($B23,NewRet,NewRetirees!$B$10)=AB$10,VLOOKUP($B23,NewRet,NewRetirees!$H$10),0)),0) -> 0 | AC23: =IF(AC$10<=PARAMS!$B$3,IF(VLOOKUP($B23,INDIRECT(IF(UPPER($A23)="N",$C$2,$C$3)),BOYRetirees!$N$10)=AC$10,-VLOOKUP($B23,INDIRECT(IF(UPPER($A23)="N",$C$2,$C$3)),BOYRetirees!$O$10),0),0) -> 0 | AD23: =IF(AD$10<=PARAMS!$B$3,-IF(UPPER($A23)="B",IF(OR(VLOOKUP($B23,BOYRet,BOYRetirees!$M$10)="",AD$10<=VLOOKUP($B23,BOYRet,BOYRetirees!$M$10)),VLOOKUP($B23,BOYRet,BOYRetirees!$L$10),0),IF(AND(VLOOKUP($B23,NewRet,NewRetirees!$B$10)<=AC$10,OR(VLOOKUP($B23,NewRet,NewRetirees!$M$10)="",AD$10<=(VLOOKUP($B23,NewRet,NewRetirees!$M$10)))),VLOOKUP($B23,NewRet,NewRetirees!$L$10),0)),0) -> -928.06 | AE23: 316.31 | AF23: =IF(AF$10<=PARAMS!$B$3,IF(UPPER($A23)="B",IF(VLOOKUP($B23,BOYRet,BOYRetirees!$N$10)=AF$10,-SUM(AA23:AE23),0),IF(VLOOKUP($B23,NewRet,NewRetirees!$N$10)=AF$10,-SUM(AA23:AE23),0)),0) -> 0 | AG23: =SUM(AA23:AF23) -> 138791.8628 | AH23: =IF(AH$10<=PARAMS!$B$3,IF(UPPER($A23)="B",0,IF(VLOOKUP($B23,NewRet,NewRetirees!$B$10)=AH$10,VLOOKUP($B23,NewRet,NewRetirees!$H$10),0)),0) -> 0 | AI23: =IF(AI$10<=PARAMS!$B$3,IF(VLOOKUP($B23,INDIRECT(IF(UPPER($A23)="N",$C$2,$C$3)),BOYRetirees!$N$10)=AI$10,-VLOOKUP($B23,INDIRECT(IF(UPPER($A23)="N",$C$2,$C$3)),BOYRetirees!$O$10),0),0) -> 0 | AJ23: =IF(AJ$10<=PARAMS!$B$3,-IF(UPPER($A23)="B",IF(OR(VLOOKUP($B23,BOYRet,BOYRetirees!$M$10)="",AJ$10<=VLOOKUP($B23,BOYRet,BOYRetirees!$M$10)),VLOOKUP($B23,BOYRet,BOYRetirees!$L$10),0),IF(AND(VLOOKUP($B23,NewRet,NewRetirees!$B$10)<=AI$10,OR(VLOOKUP($B23,NewRet,NewRetirees!$M$10)="",AJ$10<=(VLOOKUP($B23,NewRet,NewRetirees!$M$10)))),VLOOKUP($B23,NewRet,NewRetirees!$L$10),0)),0) -> -928.06 | AK23: 948.37 | AL23: =IF(AL$10<=PARAMS!$B$3, IF(VLOOKUP($B23,INDIRECT(IF(UPPER($A23)="N",$C$2,$C$3)),BOYRetirees!$N$10)=AL$10,-SUM(AG23:AK23),0),0) -> 0 | AM23: =SUM(AG23:AL23) -> 138812.1728 | AN23: =IF(AN$10<=PARAMS!$B$3,IF(UPPER($A23)="B",0,IF(VLOOKUP($B23,NewRet,NewRetirees!$B$10)=AN$10,VLOOKUP($B23,NewRet,NewRetirees!$H$10),0)),0) -> 0 | AO23: =IF(AO$10<=PARAMS!$B$3,IF(VLOOKUP($B23,INDIRECT(IF(UPPER($A23)="N",$C$2,$C$3)),BOYRetirees!$N$10)=AO$10,-VLOOKUP($B23,INDIRECT(IF(UPPER($A23)="N",$C$2,$C$3)),BOYRetirees!$O$10),0),0) -> 0 | AP23: =IF(AP$10<=PARAMS!$B$3,-IF(UPPER($A23)="B",IF(OR(VLOOKUP($B23,BOYRet,BOYRetirees!$M$10)="",AP$10<=VLOOKUP($B23,BOYRet,BOYRetirees!$M$10)),VLOOKUP($B23,BOYRet,BOYRetirees!$L$10),0),IF(AND(VLOOKUP($B23,NewRet,NewRetirees!$B$10)<=AO$10,OR(VLOOKUP($B23,NewRet,NewRetirees!$M$10)="",AP$10<=(VLOOKUP($B23,NewRet,NewRetirees!$M$10)))),VLOOKUP($B23,NewRet,NewRetirees!$L$10),0)),0) -> -928.06 | AQ23: 454.95 | AR23: =IF(AR$10<=PARAMS!$B$3, IF(VLOOKUP($B23,INDIRECT(IF(UPPER($A23)="N",$C$2,$C$3)),BOYRetirees!$N$10)=AR$10,-SUM(AM23:AQ23),0),0) -> 0 | AS23: =SUM(AM23:AR23) -> 138339.0628 | AT23: =IF(AT$10<=PARAMS!$B$3,IF(UPPER($A23)="B",0,IF(VLOOKUP($B23,NewRet,NewRetirees!$B$10)=AT$10,VLOOKUP($B23,NewRet,NewRetirees!$H$10),0)),0) -> 0 | AU23: =IF(AU$10<=PARAMS!$B$3,IF(VLOOKUP($B23,INDIRECT(IF(UPPER($A23)="N",$C$2,$C$3)),BOYRetirees!$N$10)=AU$10,-VLOOKUP($B23,INDIRECT(IF(UPPER($A23)="N",$C$2,$C$3)),BOYRetirees!$O$10),0),0) -> 0 | AV23: =IF(AV$10<=PARAMS!$B$3,-IF(UPPER($A23)="B",IF(OR(VLOOKUP($B23,BOYRet,BOYRetirees!$M$10)="",AV$10<=VLOOKUP($B23,BOYRet,BOYRetirees!$M$10)),VLOOKUP($B23,BOYRet,BOYRetirees!$L$10),0),IF(AND(VLOOKUP($B23,NewRet,NewRetirees!$B$10)<=AU$10,OR(VLOOKUP($B23,NewRet,NewRetirees!$M$10)="",AV$10<=(VLOOKUP($B23,NewRet,NewRetirees!$M$10)))),VLOOKUP($B23,NewRet,NewRetirees!$L$10),0)),0) -> -928.06 | AW23: 505.21 | AX23: =IF(AX$10<=PARAMS!$B$3, IF(VLOOKUP($B23,INDIRECT(IF(UPPER($A23)="N",$C$2,$C$3)),BOYRetirees!$N$10)=AX$10,-SUM(AS23:AW23),0),0) -> 0 | AY23: =SUM(AS23:AX23) -> 137916.2128 | AZ23: =IF(AZ$10<=PARAMS!$B$3,IF(UPPER($A23)="B",0,IF(VLOOKUP($B23,NewRet,NewRetirees!$B$10)=AZ$10,VLOOKUP($B23,NewRet,NewRetirees!$H$10),0)),0) -> 0 | BA23: =IF(BA$10<=PARAMS!$B$3,IF(VLOOKUP($B23,INDIRECT(IF(UPPER($A23)="N",$C$2,$C$3)),BOYRetirees!$N$10)=BA$10,-VLOOKUP($B23,INDIRECT(IF(UPPER($A23)="N",$C$2,$C$3)),BOYRetirees!$O$10),0),0) -> 0 | BB23: =IF(BB$10<=PARAMS!$B$3,-IF(UPPER($A23)="B",IF(OR(VLOOKUP($B23,BOYRet,BOYRetirees!$M$10)="",BB$10<=VLOOKUP($B23,BOYRet,BOYRetirees!$M$10)),VLOOKUP($B23,BOYRet,BOYRetirees!$L$10),0),IF(AND(VLOOKUP($B23,NewRet,NewRetirees!$B$10)<=BA$10,OR(VLOOKUP($B23,NewRet,NewRetirees!$M$10)="",BB$10<=(VLOOKUP($B23,NewRet,NewRetirees!$M$10)))),VLOOKUP($B23,NewRet,NewRetirees!$L$10),0)),0) -> -928.06 | BC23: 315.57 | BD23: =IF(BD$10<=PARAMS!$B$3, IF(VLOOKUP($B23,INDIRECT(IF(UPPER($A23)="N",$C$2,$C$3)),BOYRetirees!$N$10)=BD$10,-SUM(AY23:BC23),0),0) -> 0 | BE23: =SUM(AY23:BD23) -> 137303.7228 | BF23: =IF(BF$10<=PARAMS!$B$3,IF(UPPER($A23)="B",0,IF(VLOOKUP($B23,NewRet,NewRetirees!$B$10)=BF$10,VLOOKUP($B23,NewRet,NewRetirees!$H$10),0)),0) -> 0 | BG23: =IF(BG$10<=PARAMS!$B$3,IF(VLOOKUP($B23,INDIRECT(IF(UPPER($A23)="N",$C$2,$C$3)),BOYRetirees!$N$10)=BG$10,-VLOOKUP($B23,INDIRECT(IF(UPPER($A23)="N",$C$2,$C$3)),BOYRetirees!$O$10),0),0) -> 0 | BH23: =IF(BH$10<=PARAMS!$B$3,-IF(UPPER($A23)="B",IF(OR(VLOOKUP($B23,BOYRet,BOYRetirees!$M$10)="",BH$10<=VLOOKUP($B23,BOYRet,BOYRetirees!$M$10)),VLOOKUP($B23,BOYRet,BOYRetirees!$L$10),0),IF(AND(VLOOKUP($B23,NewRet,NewRetirees!$B$10)<=BG$10,OR(VLOOKUP($B23,NewRet,NewRetirees!$M$10)="",BH$10<=(VLOOKUP($B23,NewRet,NewRetirees!$M$10)))),VLOOKUP($B23,NewRet,NewRetirees!$L$10),0)),0) -> -928.06 | BI23: -126.15 | BJ23: =IF(BJ$10<=PARAMS!$B$3, IF(VLOOKUP($B23,INDIRECT(IF(UPPER($A23)="N",$C$2,$C$3)),BOYRetirees!$N$10)=BJ$10,-SUM(BE23:BI23),0),0) -> 0 | BK23: =SUM(BE23:BJ23) -> 136249.5128 | BL23: =IF(BL$10<=PARAMS!$B$3,IF(UPPER($A23)="B",0,IF(VLOOKUP($B23,NewRet,NewRetirees!$B$10)=BL$10,VLOOKUP($B23,NewRet,NewRetirees!$H$10),0)),0) -> 0 | BM23: =IF(BM$10<=PARAMS!$B$3,IF(VLOOKUP($B23,INDIRECT(IF(UPPER($A23)="N",$C$2,$C$3)),BOYRetirees!$N$10)=BM$10,-VLOOKUP($B23,INDIRECT(IF(UPPER($A23)="N",$C$2,$C$3)),BOYRetirees!$O$10),0),0) -> 0 | BN23: =IF(BN$10<=PARAMS!$B$3,-IF(UPPER($A23)="B",IF(OR(VLOOKUP($B23,BOYRet,BOYRetirees!$M$10)="",BN$10<=VLOOKUP($B23,BOYRet,BOYRetirees!$M$10)),VLOOKUP($B23,BOYRet,BOYRetirees!$L$10),0),IF(AND(VLOOKUP($B23,NewRet,NewRetirees!$B$10)<=BM$10,OR(VLOOKUP($B23,NewRet,NewRetirees!$M$10)="",BN$10<=(VLOOKUP($B23,NewRet,NewRetirees!$M$10)))),VLOOKUP($B23,NewRet,NewRetirees!$L$10),0)),0) -> -928.06 | BO23: 756.45 | BP23: =IF(BP$10<=PARAMS!$B$3, IF(VLOOKUP($B23,INDIRECT(IF(UPPER($A23)="N",$C$2,$C$3)),BOYRetirees!$N$10)=BP$10,-SUM(BK23:BO23),0),0) -> 0 | BQ23: =SUM(BK23:BP23) -> 136077.9028 | BR23: =IF(BR$10<=PARAMS!$B$3,IF(UPPER($A23)="B",0,IF(VLOOKUP($B23,NewRet,NewRetirees!$B$10)=BR$10,VLOOKUP($B23,NewRet,NewRetirees!$H$10),0)),0) -> 0 | BS23: =IF(BS$10<=PARAMS!$B$3,IF(VLOOKUP($B23,INDIRECT(IF(UPPER($A23)="N",$C$2,$C$3)),BOYRetirees!$N$10)=BS$10,-VLOOKUP($B23,INDIRECT(IF(UPPER($A23)="N",$C$2,$C$3)),BOYRetirees!$O$10),0),0) -> 0 | BT23: =IF(BT$10<=PARAMS!$B$3,-IF(UPPER($A23)="B",IF(OR(VLOOKUP($B23,BOYRet,BOYRetirees!$M$10)="",BT$10<=VLOOKUP($B23,BOYRet,BOYRetirees!$M$10)),VLOOKUP($B23,BOYRet,BOYRetirees!$L$10),0),IF(AND(VLOOKUP($B23,NewRet,NewRetirees!$B$10)<=BS$10,OR(VLOOKUP($B23,NewRet,NewRetirees!$M$10)="",BT$10<=(VLOOKUP($B23,NewRet,NewRetirees!$M$10)))),VLOOKUP($B23,NewRet,NewRetirees!$L$10),0)),0) -> -928.06 | BU23: 302.86 | BV23: =IF(BV$10<=PARAMS!$B$3, IF(VLOOKUP($B23,INDIRECT(IF(UPPER($A23)="N",$C$2,$C$3)),BOYRetirees!$N$10)=BV$10,-SUM(BQ23:BU23),0),0) -> 0 | BW23: =SUM(BQ23:BV23) -> 135452.7028 | BX23: B00013 | BY23: =C23 -> 141860.0528 | BZ23: =SUM(D23+J23+P23+V23+AB23+AH23+AN23+AT23+AZ23+BF23+BL23+BR23) -> 0 | CA23: =SUM(E23+K23+Q23+W23+AC23+AI23+AO23+AU23+BA23+BG23+BM23+BS23) -> 0 | CB23: =SUM(F23+L23+R23+X23+AD23+AJ23+AP23+AV23+BB23+BH23+BN23+BT23) -> -11136.72 | CC23: =SUM(G23+M23+S23+Y23+AE23+AK23+AQ23+AW23+BC23+BI23+BO23+BU23) -> 4729.37 | CD23: =SUM(H23+N23+T23+Z23+AF23+AL23+AR23+AX23+BD23+BJ23+BP23+BV23) -> 0 | CE23: 135452.7028 | CF23: 9054.303723 | CG23: 144507.0065 | CH23: =IF(BW23>0,VLOOKUP(B23,INDIRECT(IF(UPPER(A23)="N",$C$2,$C$3)),BOYRetirees!$P$10),0) -> 0.008757779315 | CI23: 1214.019076 | CJ23: =(C23+I23+O23+U23+AA23+AG23+AM23+AS23+AY23+BE23+BK23+BQ23+BW23)/(PARAMS!$B$2+1) -> 138621.7936 | CK23: 7840.284647 | CL23: -3587.937615
A24: b | B24: 14 | C24: =IF(UPPER($A24)="B",VLOOKUP($B24,BOYRet,BOYRetirees!$H$10),0) -> 100904.5704 | D24: =IF(D$10<=PARAMS!$B$3,IF(UPPER($A24)="B",0,IF(VLOOKUP($B24,NewRet,NewRetirees!$B$10)=D$10,VLOOKUP($B24,NewRet,NewRetirees!$H$10),0)),0) -> 0 | E24: =IF(E$10<=PARAMS!$B$3,IF(VLOOKUP($B24,INDIRECT(IF(UPPER($A24)="N",$C$2,$C$3)),BOYRetirees!$N$10)=E$10,-VLOOKUP($B24,INDIRECT(IF(UPPER($A24)="N",$C$2,$C$3)),BOYRetirees!$O$10),0),0) -> 0 | F24: =IF(F$10<=PARAMS!$B$3,-IF(UPPER($A24)="B",IF(OR(VLOOKUP($B24,BOYRet,BOYRetirees!$M$10)="",F$10<=VLOOKUP($B24,BOYRet,BOYRetirees!$M$10)),VLOOKUP($B24,BOYRet,BOYRetirees!$L$10),0),IF(AND(VLOOKUP($B24,NewRet,NewRetirees!$B$10)<=E$10,OR(VLOOKUP($B24,NewRet,NewRetirees!$M$10)="",F$10<=(VLOOKUP($B24,NewRet,NewRetirees!$M$10)))),VLOOKUP($B24,NewRet,NewRetirees!$L$10),0)),0) -> -602.91 | G24: =ROUND(VLOOKUP(G$10,InvRetMonth,3)*(C24+D24+E24+F24),2) -> 354.35 | H24: =IF(H$10<=PARAMS!$B$3, IF(VLOOKUP($B24,INDIRECT(IF(UPPER($A24)="N",$C$2,$C$3)),BOYRetirees!$N$10)=H$10,-SUM(C24:G24),0),0) -> 0 | I24: =SUM(C24:H24) -> 100656.0104 | J24: =IF(J$10<=PARAMS!$B$3,IF(UPPER($A24)="B",0,IF(VLOOKUP($B24,NewRet,NewRetirees!$B$10)=J$10,VLOOKUP($B24,NewRet,NewRetirees!$H$10),0)),0) -> 0 | K24: =IF(K$10<=PARAMS!$B$3,IF(VLOOKUP($B24,INDIRECT(IF(UPPER($A24)="N",$C$2,$C$3)),BOYRetirees!$N$10)=K$10,-VLOOKUP($B24,INDIRECT(IF(UPPER($A24)="N",$C$2,$C$3)),BOYRetirees!$O$10),0),0) -> 0 | L24: =IF(L$10<=PARAMS!$B$3,-IF(UPPER($A24)="B",IF(OR(VLOOKUP($B24,BOYRet,BOYRetirees!$M$10)="",L$10<=VLOOKUP($B24,BOYRet,BOYRetirees!$M$10)),VLOOKUP($B24,BOYRet,BOYRetirees!$L$10),0),IF(AND(VLOOKUP($B24,NewRet,NewRetirees!$B$10)<=K$10,OR(VLOOKUP($B24,NewRet,NewRetirees!$M$10)="",L$10<=(VLOOKUP($B24,NewRet,NewRetirees!$M$10)))),VLOOKUP($B24,NewRet,NewRetirees!$L$10),0)),0) -> -602.91 | M24: 175.25 | N24: =IF(N$10<=PARAMS!$B$3, IF(VLOOKUP($B24,INDIRECT(IF(UPPER($A24)="N",$C$2,$C$3)),BOYRetirees!$N$10)=N$10,-SUM(I24:M24),0),0) -> 0 | O24: =SUM(I24:N24) -> 100228.3504 | P24: =IF(P$10<=PARAMS!$B$3,IF(UPPER($A24)="B",0,IF(VLOOKUP($B24,NewRet,NewRetirees!$B$10)=P$10,VLOOKUP($B24,NewRet,NewRetirees!$H$10),0)),0) -> 0 | Q24: =IF(Q$10<=PARAMS!$B$3,IF(VLOOKUP($B24,INDIRECT(IF(UPPER($A24)="N",$C$2,$C$3)),BOYRetirees!$N$10)=Q$10,-VLOOKUP($B24,INDIRECT(IF(UPPER($A24)="N",$C$2,$C$3)),BOYRetirees!$O$10),0),0) -> 0 | R24: =IF(R$10<=PARAMS!$B$3,-IF(UPPER($A24)="B",IF(OR(VLOOKUP($B24,BOYRet,BOYRetirees!$M$10)="",R$10<=VLOOKUP($B24,BOYRet,BOYRetirees!$M$10)),VLOOKUP($B24,BOYRet,BOYRetirees!$L$10),0),IF(AND(VLOOKUP($B24,NewRet,NewRetirees!$B$10)<=Q$10,OR(VLOOKUP($B24,NewRet,NewRetirees!$M$10)="",R$10<=(VLOOKUP($B24,NewRet,NewRetirees!$M$10)))),VLOOKUP($B24,NewRet,NewRetirees!$L$10),0)),0) -> -602.91 | S24: -86.34 | T24: =IF(T$10<=PARAMS!$B$3, IF(VLOOKUP($B24,INDIRECT(IF(UPPER($A24)="N",$C$2,$C$3)),BOYRetirees!$N$10)=T$10,-SUM(O24:S24),0),0) -> 0 | U24: =SUM(O24:T24) -> 99539.10039 | V24: =IF(V$10<=PARAMS!$B$3,IF(UPPER($A24)="B",0,IF(VLOOKUP($B24,NewRet,NewRetirees!$B$10)=V$10,VLOOKUP($B24,NewRet,NewRetirees!$H$10),0)),0) -> 0 | W24: =IF(W$10<=PARAMS!$B$3,IF(VLOOKUP($B24,INDIRECT(IF(UPPER($A24)="N",$C$2,$C$3)),BOYRetirees!$N$10)=W$10,-VLOOKUP($B24,INDIRECT(IF(UPPER($A24)="N",$C$2,$C$3)),BOYRetirees!$O$10),0),0) -> 0 | X24: =IF(X$10<=PARAMS!$B$3,-IF(UPPER($A24)="B",IF(OR(VLOOKUP($B24,BOYRet,BOYRetirees!$M$10)="",X$10<=VLOOKUP($B24,BOYRet,BOYRetirees!$M$10)),VLOOKUP($B24,BOYRet,BOYRetirees!$L$10),0),IF(AND(VLOOKUP($B24,NewRet,NewRetirees!$B$10)<=W$10,OR(VLOOKUP($B24,NewRet,NewRetirees!$M$10)="",X$10<=(VLOOKUP($B24,NewRet,NewRetirees!$M$10)))),VLOOKUP($B24,NewRet,NewRetirees!$L$10),0)),0) -> -602.91 | Y24: 451.28 | Z24: =IF(Z$10<=PARAMS!$B$3, IF(VLOOKUP($B24,INDIRECT(IF(UPPER($A24)="N",$C$2,$C$3)),BOYRetirees!$N$10)=Z$10,-SUM(U24:Y24),0),0) -> 0 | AA24: =SUM(U24:Z24) -> 99387.47039 | AB24: =IF(AB$10<=PARAMS!$B$3,IF(UPPER($A24)="B",0,IF(VLOOKUP($B24,NewRet,NewRetirees!$B$10)=AB$10,VLOOKUP($B24,NewRet,NewRetirees!$H$10),0)),0) -> 0 | AC24: =IF(AC$10<=PARAMS!$B$3,IF(VLOOKUP($B24,INDIRECT(IF(UPPER($A24)="N",$C$2,$C$3)),BOYRetirees!$N$10)=AC$10,-VLOOKUP($B24,INDIRECT(IF(UPPER($A24)="N",$C$2,$C$3)),BOYRetirees!$O$10),0),0) -> 0 | AD24: =IF(AD$10<=PARAMS!$B$3,-IF(UPPER($A24)="B",IF(OR(VLOOKUP($B24,BOYRet,BOYRetirees!$M$10)="",AD$10<=VLOOKUP($B24,BOYRet,BOYRetirees!$M$10)),VLOOKUP($B24,BOYRet,BOYRetirees!$L$10),0),IF(AND(VLOOKUP($B24,NewRet,NewRetirees!$B$10)<=AC$10,OR(VLOOKUP($B24,NewRet,NewRetirees!$M$10)="",AD$10<=(VLOOKUP($B24,NewRet,NewRetirees!$M$10)))),VLOOKUP($B24,NewRet,NewRetirees!$L$10),0)),0) -> -602.91 | AE24: 225.64 | AF24: =IF(AF$10<=PARAMS!$B$3,IF(UPPER($A24)="B",IF(VLOOKUP($B24,BOYRet,BOYRetirees!$N$10)=AF$10,-SUM(AA24:AE24),0),IF(VLOOKUP($B24,NewRet,NewRetirees!$N$10)=AF$10,-SUM(AA24:AE24),0)),0) -> 0 | AG24: =SUM(AA24:AF24) -> 99010.20039 | AH24: =IF(AH$10<=PARAMS!$B$3,IF(UPPER($A24)="B",0,IF(VLOOKUP($B24,NewRet,NewRetirees!$B$10)=AH$10,VLOOKUP($B24,NewRet,NewRetirees!$H$10),0)),0) -> 0 | AI24: =IF(AI$10<=PARAMS!$B$3,IF(VLOOKUP($B24,INDIRECT(IF(UPPER($A24)="N",$C$2,$C$3)),BOYRetirees!$N$10)=AI$10,-VLOOKUP($B24,INDIRECT(IF(UPPER($A24)="N",$C$2,$C$3)),BOYRetirees!$O$10),0),0) -> 0 | AJ24: =IF(AJ$10<=PARAMS!$B$3,-IF(UPPER($A24)="B",IF(OR(VLOOKUP($B24,BOYRet,BOYRetirees!$M$10)="",AJ$10<=VLOOKUP($B24,BOYRet,BOYRetirees!$M$10)),VLOOKUP($B24,BOYRet,BOYRetirees!$L$10),0),IF(AND(VLOOKUP($B24,NewRet,NewRetirees!$B$10)<=AI$10,OR(VLOOKUP($B24,NewRet,NewRetirees!$M$10)="",AJ$10<=(VLOOKUP($B24,NewRet,NewRetirees!$M$10)))),VLOOKUP($B24,NewRet,NewRetirees!$L$10),0)),0) -> -602.91 | AK24: 676.95 | AL24: =IF(AL$10<=PARAMS!$B$3, IF(VLOOKUP($B24,INDIRECT(IF(UPPER($A24)="N",$C$2,$C$3)),BOYRetirees!$N$10)=AL$10,-SUM(AG24:AK24),0),0) -> 0 | AM24: =SUM(AG24:AL24) -> 99084.24039 | AN24: =IF(AN$10<=PARAMS!$B$3,IF(UPPER($A24)="B",0,IF(VLOOKUP($B24,NewRet,NewRetirees!$B$10)=AN$10,VLOOKUP($B24,NewRet,NewRetirees!$H$10),0)),0) -> 0 | AO24: =IF(AO$10<=PARAMS!$B$3,IF(VLOOKUP($B24,INDIRECT(IF(UPPER($A24)="N",$C$2,$C$3)),BOYRetirees!$N$10)=AO$10,-VLOOKUP($B24,INDIRECT(IF(UPPER($A24)="N",$C$2,$C$3)),BOYRetirees!$O$10),0),0) -> 0 | AP24: =IF(AP$10<=PARAMS!$B$3,-IF(UPPER($A24)="B",IF(OR(VLOOKUP($B24,BOYRet,BOYRetirees!$M$10)="",AP$10<=VLOOKUP($B24,BOYRet,BOYRetirees!$M$10)),VLOOKUP($B24,BOYRet,BOYRetirees!$L$10),0),IF(AND(VLOOKUP($B24,NewRet,NewRetirees!$B$10)<=AO$10,OR(VLOOKUP($B24,NewRet,NewRetirees!$M$10)="",AP$10<=(VLOOKUP($B24,NewRet,NewRetirees!$M$10)))),VLOOKUP($B24,NewRet,NewRetirees!$L$10),0)),0) -> -602.91 | AQ24: 324.94 | AR24: =IF(AR$10<=PARAMS!$B$3, IF(VLOOKUP($B24,INDIRECT(IF(UPPER($A24)="N",$C$2,$C$3)),BOYRetirees!$N$10)=AR$10,-SUM(AM24:AQ24),0),0) -> 0 | AS24: =SUM(AM24:AR24) -> 98806.27039 | AT24: =IF(AT$10<=PARAMS!$B$3,IF(UPPER($A24)="B",0,IF(VLOOKUP($B24,NewRet,NewRetirees!$B$10)=AT$10,VLOOKUP($B24,NewRet,NewRetirees!$H$10),0)),0) -> 0 | AU24: =IF(AU$10<=PARAMS!$B$3,IF(VLOOKUP($B24,INDIRECT(IF(UPPER($A24)="N",$C$2,$C$3)),BOYRetirees!$N$10)=AU$10,-VLOOKUP($B24,INDIRECT(IF(UPPER($A24)="N",$C$2,$C$3)),BOYRetirees!$O$10),0),0) -> 0 | AV24: =IF(AV$10<=PARAMS!$B$3,-IF(UPPER($A24)="B",IF(OR(VLOOKUP($B24,BOYRet,BOYRetirees!$M$10)="",AV$10<=VLOOKUP($B24,BOYRet,BOYRetirees!$M$10)),VLOOKUP($B24,BOYRet,BOYRetirees!$L$10),0),IF(AND(VLOOKUP($B24,NewRet,NewRetirees!$B$10)<=AU$10,OR(VLOOKUP($B24,NewRet,NewRetirees!$M$10)="",AV$10<=(VLOOKUP($B24,NewRet,NewRetirees!$M$10)))),VLOOKUP($B24,NewRet,NewRetirees!$L$10),0)),0) -> -602.91 | AW24: 361.06 | AX24: =IF(AX$10<=PARAMS!$B$3, IF(VLOOKUP($B24,INDIRECT(IF(UPPER($A24)="N",$C$2,$C$3)),BOYRetirees!$N$10)=AX$10,-SUM(AS24:AW24),0),0) -> 0 | AY24: =SUM(AS24:AX24) -> 98564.42039 | AZ24: =IF(AZ$10<=PARAMS!$B$3,IF(UPPER($A24)="B",0,IF(VLOOKUP($B24,NewRet,NewRetirees!$B$10)=AZ$10,VLOOKUP($B24,NewRet,NewRetirees!$H$10),0)),0) -> 0 | BA24: =IF(BA$10<=PARAMS!$B$3,IF(VLOOKUP($B24,INDIRECT(IF(UPPER($A24)="N",$C$2,$C$3)),BOYRetirees!$N$10)=BA$10,-VLOOKUP($B24,INDIRECT(IF(UPPER($A24)="N",$C$2,$C$3)),BOYRetirees!$O$10),0),0) -> 0 | BB24: =IF(BB$10<=PARAMS!$B$3,-IF(UPPER($A24)="B",IF(OR(VLOOKUP($B24,BOYRet,BOYRetirees!$M$10)="",BB$10<=VLOOKUP($B24,BOYRet,BOYRetirees!$M$10)),VLOOKUP($B24,BOYRet,BOYRetirees!$L$10),0),IF(AND(VLOOKUP($B24,NewRet,NewRetirees!$B$10)<=BA$10,OR(VLOOKUP($B24,NewRet,NewRetirees!$M$10)="",BB$10<=(VLOOKUP($B24,NewRet,NewRetirees!$M$10)))),VLOOKUP($B24,NewRet,NewRetirees!$L$10),0)),0) -> -602.91 | BC24: 225.66 | BD24: =IF(BD$10<=PARAMS!$B$3, IF(VLOOKUP($B24,INDIRECT(IF(UPPER($A24)="N",$C$2,$C$3)),BOYRetirees!$N$10)=BD$10,-SUM(AY24:BC24),0),0) -> 0 | BE24: =SUM(AY24:BD24) -> 98187.17039 | BF24: =IF(BF$10<=PARAMS!$B$3,IF(UPPER($A24)="B",0,IF(VLOOKUP($B24,NewRet,NewRetirees!$B$10)=BF$10,VLOOKUP($B24,NewRet,NewRetirees!$H$10),0)),0) -> 0 | BG24: =IF(BG$10<=PARAMS!$B$3,IF(VLOOKUP($B24,INDIRECT(IF(UPPER($A24)="N",$C$2,$C$3)),BOYRetirees!$N$10)=BG$10,-VLOOKUP($B24,INDIRECT(IF(UPPER($A24)="N",$C$2,$C$3)),BOYRetirees!$O$10),0),0) -> 0 | BH24: =IF(BH$10<=PARAMS!$B$3,-IF(UPPER($A24)="B",IF(OR(VLOOKUP($B24,BOYRet,BOYRetirees!$M$10)="",BH$10<=VLOOKUP($B24,BOYRet,BOYRetirees!$M$10)),VLOOKUP($B24,BOYRet,BOYRetirees!$L$10),0),IF(AND(VLOOKUP($B24,NewRet,NewRetirees!$B$10)<=BG$10,OR(VLOOKUP($B24,NewRet,NewRetirees!$M$10)="",BH$10<=(VLOOKUP($B24,NewRet,NewRetirees!$M$10)))),VLOOKUP($B24,NewRet,NewRetirees!$L$10),0)),0) -> -602.91 | BI24: -90.27 | BJ24: =IF(BJ$10<=PARAMS!$B$3, IF(VLOOKUP($B24,INDIRECT(IF(UPPER($A24)="N",$C$2,$C$3)),BOYRetirees!$N$10)=BJ$10,-SUM(BE24:BI24),0),0) -> 0 | BK24: =SUM(BE24:BJ24) -> 97493.99039 | BL24: =IF(BL$10<=PARAMS!$B$3,IF(UPPER($A24)="B",0,IF(VLOOKUP($B24,NewRet,NewRetirees!$B$10)=BL$10,VLOOKUP($B24,NewRet,NewRetirees!$H$10),0)),0) -> 0 | BM24: =IF(BM$10<=PARAMS!$B$3,IF(VLOOKUP($B24,INDIRECT(IF(UPPER($A24)="N",$C$2,$C$3)),BOYRetirees!$N$10)=BM$10,-VLOOKUP($B24,INDIRECT(IF(UPPER($A24)="N",$C$2,$C$3)),BOYRetirees!$O$10),0),0) -> 0 | BN24: =IF(BN$10<=PARAMS!$B$3,-IF(UPPER($A24)="B",IF(OR(VLOOKUP($B24,BOYRet,BOYRetirees!$M$10)="",BN$10<=VLOOKUP($B24,BOYRet,BOYRetirees!$M$10)),VLOOKUP($B24,BOYRet,BOYRetirees!$L$10),0),IF(AND(VLOOKUP($B24,NewRet,NewRetirees!$B$10)<=BM$10,OR(VLOOKUP($B24,NewRet,NewRetirees!$M$10)="",BN$10<=(VLOOKUP($B24,NewRet,NewRetirees!$M$10)))),VLOOKUP($B24,NewRet,NewRetirees!$L$10),0)),0) -> -602.91 | BO24: 541.62 | BP24: =IF(BP$10<=PARAMS!$B$3, IF(VLOOKUP($B24,INDIRECT(IF(UPPER($A24)="N",$C$2,$C$3)),BOYRetirees!$N$10)=BP$10,-SUM(BK24:BO24),0),0) -> 0 | BQ24: =SUM(BK24:BP24) -> 97432.70039 | BR24: =IF(BR$10<=PARAMS!$B$3,IF(UPPER($A24)="B",0,IF(VLOOKUP($B24,NewRet,NewRetirees!$B$10)=BR$10,VLOOKUP($B24,NewRet,NewRetirees!$H$10),0)),0) -> 0 | BS24: =IF(BS$10<=PARAMS!$B$3,IF(VLOOKUP($B24,INDIRECT(IF(UPPER($A24)="N",$C$2,$C$3)),BOYRetirees!$N$10)=BS$10,-VLOOKUP($B24,INDIRECT(IF(UPPER($A24)="N",$C$2,$C$3)),BOYRetirees!$O$10),0),0) -> 0 | BT24: =IF(BT$10<=PARAMS!$B$3,-IF(UPPER($A24)="B",IF(OR(VLOOKUP($B24,BOYRet,BOYRetirees!$M$10)="",BT$10<=VLOOKUP($B24,BOYRet,BOYRetirees!$M$10)),VLOOKUP($B24,BOYRet,BOYRetirees!$L$10),0),IF(AND(VLOOKUP($B24,NewRet,NewRetirees!$B$10)<=BS$10,OR(VLOOKUP($B24,NewRet,NewRetirees!$M$10)="",BT$10<=(VLOOKUP($B24,NewRet,NewRetirees!$M$10)))),VLOOKUP($B24,NewRet,NewRetirees!$L$10),0)),0) -> -602.91 | BU24: 216.99 | BV24: =IF(BV$10<=PARAMS!$B$3, IF(VLOOKUP($B24,INDIRECT(IF(UPPER($A24)="N",$C$2,$C$3)),BOYRetirees!$N$10)=BV$10,-SUM(BQ24:BU24),0),0) -> 0 | BW24: =SUM(BQ24:BV24) -> 97046.78039 | BX24: B00014 | BY24: =C24 -> 100904.5704 | BZ24: =SUM(D24+J24+P24+V24+AB24+AH24+AN24+AT24+AZ24+BF24+BL24+BR24) -> 0 | CA24: =SUM(E24+K24+Q24+W24+AC24+AI24+AO24+AU24+BA24+BG24+BM24+BS24) -> 0 | CB24: =SUM(F24+L24+R24+X24+AD24+AJ24+AP24+AV24+BB24+BH24+BN24+BT24) -> -7234.92 | CC24: =SUM(G24+M24+S24+Y24+AE24+AK24+AQ24+AW24+BC24+BI24+BO24+BU24) -> 3377.13 | CD24: =SUM(H24+N24+T24+Z24+AF24+AL24+AR24+AX24+BD24+BJ24+BP24+BV24) -> 0 | CE24: 97046.78039 | CF24: 4578.588779 | CG24: 101625.3692 | CH24: =IF(BW24>0,VLOOKUP(B24,INDIRECT(IF(UPPER(A24)="N",$C$2,$C$3)),BOYRetirees!$P$10),0) -> 0.006204249282 | CI24: =CH24*CJ24 -> 613.9063025 | CJ24: =(C24+I24+O24+U24+AA24+AG24+AM24+AS24+AY24+BE24+BK24+BQ24+BW24)/(PARAMS!$B$2+1) -> 98949.32885 | CK24: 3964.682476 | CL24: -2559.829731
A25: b | B25: 15 | C25: =IF(UPPER($A25)="B",VLOOKUP($B25,BOYRet,BOYRetirees!$H$10),0) -> 91214.35 | D25: =IF(D$10<=PARAMS!$B$3,IF(UPPER($A25)="B",0,IF(VLOOKUP($B25,NewRet,NewRetirees!$B$10)=D$10,VLOOKUP($B25,NewRet,NewRetirees!$H$10),0)),0) -> 0 | E25: =IF(E$10<=PARAMS!$B$3,IF(VLOOKUP($B25,INDIRECT(IF(UPPER($A25)="N",$C$2,$C$3)),BOYRetirees!$N$10)=E$10,-VLOOKUP($B25,INDIRECT(IF(UPPER($A25)="N",$C$2,$C$3)),BOYRetirees!$O$10),0),0) -> 0 | F25: =IF(F$10<=PARAMS!$B$3,-IF(UPPER($A25)="B",IF(OR(VLOOKUP($B25,BOYRet,BOYRetirees!$M$10)="",F$10<=VLOOKUP($B25,BOYRet,BOYRetirees!$M$10)),VLOOKUP($B25,BOYRet,BOYRetirees!$L$10),0),IF(AND(VLOOKUP($B25,NewRet,NewRetirees!$B$10)<=E$10,OR(VLOOKUP($B25,NewRet,NewRetirees!$M$10)="",F$10<=(VLOOKUP($B25,NewRet,NewRetirees!$M$10)))),VLOOKUP($B25,NewRet,NewRetirees!$L$10),0)),0) -> -444.54 | G25: 320.68 | H25: =IF(H$10<=PARAMS!$B$3, IF(VLOOKUP($B25,INDIRECT(IF(UPPER($A25)="N",$C$2,$C$3)),BOYRetirees!$N$10)=H$10,-SUM(C25:G25),0),0) -> 0 | I25: =SUM(C25:H25) -> 91090.49 | J25: =IF(J$10<=PARAMS!$B$3,IF(UPPER($A25)="B",0,IF(VLOOKUP($B25,NewRet,NewRetirees!$B$10)=J$10,VLOOKUP($B25,NewRet,NewRetirees!$H$10),0)),0) -> 0 | K25: =IF(K$10<=PARAMS!$B$3,IF(VLOOKUP($B25,INDIRECT(IF(UPPER($A25)="N",$C$2,$C$3)),BOYRetirees!$N$10)=K$10,-VLOOKUP($B25,INDIRECT(IF(UPPER($A25)="N",$C$2,$C$3)),BOYRetirees!$O$10),0),0) -> 0 | L25: =IF(L$10<=PARAMS!$B$3,-IF(UPPER($A25)="B",IF(OR(VLOOKUP($B25,BOYRet,BOYRetirees!$M$10)="",L$10<=VLOOKUP($B25,BOYRet,BOYRetirees!$M$10)),VLOOKUP($B25,BOYRet,BOYRetirees!$L$10),0),IF(AND(VLOOKUP($B25,NewRet,NewRetirees!$B$10)<=K$10,OR(VLOOKUP($B25,NewRet,NewRetirees!$M$10)="",L$10<=(VLOOKUP($B25,NewRet,NewRetirees!$M$10)))),VLOOKUP($B25,NewRet,NewRetirees!$L$10),0)),0) -> -444.54 | M25: 158.77 | N25: =IF(N$10<=PARAMS!$B$3, IF(VLOOKUP($B25,INDIRECT(IF(UPPER($A25)="N",$C$2,$C$3)),BOYRetirees!$N$10)=N$10,-SUM(I25:M25),0),0) -> 0 | O25: =SUM(I25:N25) -> 90804.72 | P25: =IF(P$10<=PARAMS!$B$3,IF(UPPER($A25)="B",0,IF(VLOOKUP($B25,NewRet,NewRetirees!$B$10)=P$10,VLOOKUP($B25,NewRet,NewRetirees!$H$10),0)),0) -> 0 | Q25: =IF(Q$10<=PARAMS!$B$3,IF(VLOOKUP($B25,INDIRECT(IF(UPPER($A25)="N",$C$2,$C$3)),BOYRetirees!$N$10)=Q$10,-VLOOKUP($B25,INDIRECT(IF(UPPER($A25)="N",$C$2,$C$3)),BOYRetirees!$O$10),0),0) -> 0 | R25: =IF(R$10<=PARAMS!$B$3,-IF(UPPER($A25)="B",IF(OR(VLOOKUP($B25,BOYRet,BOYRetirees!$M$10)="",R$10<=VLOOKUP($B25,BOYRet,BOYRetirees!$M$10)),VLOOKUP($B25,BOYRet,BOYRetirees!$L$10),0),IF(AND(VLOOKUP($B25,NewRet,NewRetirees!$B$10)<=Q$10,OR(VLOOKUP($B25,NewRet,NewRetirees!$M$10)="",R$10<=(VLOOKUP($B25,NewRet,NewRetirees!$M$10)))),VLOOKUP($B25,NewRet,NewRetirees!$L$10),0)),0) -> -444.54 | S25: -78.31 | T25: =IF(T$10<=PARAMS!$B$3, IF(VLOOKUP($B25,INDIRECT(IF(UPPER($A25)="N",$C$2,$C$3)),BOYRetirees!$N$10)=T$10,-SUM(O25:S25),0),0) -> 0 | U25: =SUM(O25:T25) -> 90281.87 | V25: =IF(V$10<=PARAMS!$B$3,IF(UPPER($A25)="B",0,IF(VLOOKUP($B25,NewRet,NewRetirees!$B$10)=V$10,VLOOKUP($B25,NewRet,NewRetirees!$H$10),0)),0) -> 0 | W25: =IF(W$10<=PARAMS!$B$3,IF(VLOOKUP($B25,INDIRECT(IF(UPPER($A25)="N",$C$2,$C$3)),BOYRetirees!$N$10)=W$10,-VLOOKUP($B25,INDIRECT(IF(UPPER($A25)="N",$C$2,$C$3)),BOYRetirees!$O$10),0),0) -> 0 | X25: =IF(X$10<=PARAMS!$B$3,-IF(UPPER($A25)="B",IF(OR(VLOOKUP($B25,BOYRet,BOYRetirees!$M$10)="",X$10<=VLOOKUP($B25,BOYRet,BOYRetirees!$M$10)),VLOOKUP($B25,BOYRet,BOYRetirees!$L$10),0),IF(AND(VLOOKUP($B25,NewRet,NewRetirees!$B$10)<=W$10,OR(VLOOKUP($B25,NewRet,NewRetirees!$M$10)="",X$10<=(VLOOKUP($B25,NewRet,NewRetirees!$M$10)))),VLOOKUP($B25,NewRet,NewRetirees!$L$10),0)),0) -> -444.54 | Y25: 409.78 | Z25: =IF(Z$10<=PARAMS!$B$3, IF(VLOOKUP($B25,INDIRECT(IF(UPPER($A25)="N",$C$2,$C$3)),BOYRetirees!$N$10)=Z$10,-SUM(U25:Y25),0),0) -> 0 | AA25: =SUM(U25:Z25) -> 90247.11 | AB25: =IF(AB$10<=PARAMS!$B$3,IF(UPPER($A25)="B",0,IF(VLOOKUP($B25,NewRet,NewRetirees!$B$10)=AB$10,VLOOKUP($B25,NewRet,NewRetirees!$H$10),0)),0) -> 0 | AC25: =IF(AC$10<=PARAMS!$B$3,IF(VLOOKUP($B25,INDIRECT(IF(UPPER($A25)="N",$C$2,$C$3)),BOYRetirees!$N$10)=AC$10,-VLOOKUP($B25,INDIRECT(IF(UPPER($A25)="N",$C$2,$C$3)),BOYRetirees!$O$10),0),0) -> 0 | AD25: =IF(AD$10<=PARAMS!$B$3,-IF(UPPER($A25)="B",IF(OR(VLOOKUP($B25,BOYRet,BOYRetirees!$M$10)="",AD$10<=VLOOKUP($B25,BOYRet,BOYRetirees!$M$10)),VLOOKUP($B25,BOYRet,BOYRetirees!$L$10),0),IF(AND(VLOOKUP($B25,NewRet,NewRetirees!$B$10)<=AC$10,OR(VLOOKUP($B25,NewRet,NewRetirees!$M$10)="",AD$10<=(VLOOKUP($B25,NewRet,NewRetirees!$M$10)))),VLOOKUP($B25,NewRet,NewRetirees!$L$10),0)),0) -> -444.54 | AE25: 205.13 | AF25: =IF(AF$10<=PARAMS!$B$3,IF(UPPER($A25)="B",IF(VLOOKUP($B25,BOYRet,BOYRetirees!$N$10)=AF$10,-SUM(AA25:AE25),0),IF(VLOOKUP($B25,NewRet,NewRetirees!$N$10)=AF$10,-SUM(AA25:AE25),0)),0) -> 0 | AG25: =SUM(AA25:AF25) -> 90007.7 | AH25: =IF(AH$10<=PARAMS!$B$3,IF(UPPER($A25)="B",0,IF(VLOOKUP($B25,NewRet,NewRetirees!$B$10)=AH$10,VLOOKUP($B25,NewRet,NewRetirees!$H$10),0)),0) -> 0 | AI25: =IF(AI$10<=PARAMS!$B$3,IF(VLOOKUP($B25,INDIRECT(IF(UPPER($A25)="N",$C$2,$C$3)),BOYRetirees!$N$10)=AI$10,-VLOOKUP($B25,INDIRECT(IF(UPPER($A25)="N",$C$2,$C$3)),BOYRetirees!$O$10),0),0) -> 0 | AJ25: =IF(AJ$10<=PARAMS!$B$3,-IF(UPPER($A25)="B",IF(OR(VLOOKUP($B25,BOYRet,BOYRetirees!$M$10)="",AJ$10<=VLOOKUP($B25,BOYRet,BOYRetirees!$M$10)),VLOOKUP($B25,BOYRet,BOYRetirees!$L$10),0),IF(AND(VLOOKUP($B25,NewRet,NewRetirees!$B$10)<=AI$10,OR(VLOOKUP($B25,NewRet,NewRetirees!$M$10)="",AJ$10<=(VLOOKUP($B25,NewRet,NewRetirees!$M$10)))),VLOOKUP($B25,NewRet,NewRetirees!$L$10),0)),0) -> -444.54 | AK25: 616.11 | AL25: =IF(AL$10<=PARAMS!$B$3, IF(VLOOKUP($B25,INDIRECT(IF(UPPER($A25)="N",$C$2,$C$3)),BOYRetirees!$N$10)=AL$10,-SUM(AG25:AK25),0),0) -> 0 | AM25: =SUM(AG25:AL25) -> 90179.27 | AN25: =IF(AN$10<=PARAMS!$B$3,IF(UPPER($A25)="B",0,IF(VLOOKUP($B25,NewRet,NewRetirees!$B$10)=AN$10,VLOOKUP($B25,NewRet,NewRetirees!$H$10),0)),0) -> 0 | AO25: =IF(AO$10<=PARAMS!$B$3,IF(VLOOKUP($B25,INDIRECT(IF(UPPER($A25)="N",$C$2,$C$3)),BOYRetirees!$N$10)=AO$10,-VLOOKUP($B25,INDIRECT(IF(UPPER($A25)="N",$C$2,$C$3)),BOYRetirees!$O$10),0),0) -> 0 | AP25: =IF(AP$10<=PARAMS!$B$3,-IF(UPPER($A25)="B",IF(OR(VLOOKUP($B25,BOYRet,BOYRetirees!$M$10)="",AP$10<=VLOOKUP($B25,BOYRet,BOYRetirees!$M$10)),VLOOKUP($B25,BOYRet,BOYRetirees!$L$10),0),IF(AND(VLOOKUP($B25,NewRet,NewRetirees!$B$10)<=AO$10,OR(VLOOKUP($B25,NewRet,NewRetirees!$M$10)="",AP$10<=(VLOOKUP($B25,NewRet,NewRetirees!$M$10)))),VLOOKUP($B25,NewRet,NewRetirees!$L$10),0)),0) -> -444.54 | AQ25: 296.08 | AR25: =IF(AR$10<=PARAMS!$B$3, IF(VLOOKUP($B25,INDIRECT(IF(UPPER($A25)="N",$C$2,$C$3)),BOYRetirees!$N$10)=AR$10,-SUM(AM25:AQ25),0),0) -> 0 | AS25: =SUM(AM25:AR25) -> 90030.81 | AT25: =IF(AT$10<=PARAMS!$B$3,IF(UPPER($A25)="B",0,IF(VLOOKUP($B25,NewRet,NewRetirees!$B$10)=AT$10,VLOOKUP($B25,NewRet,NewRetirees!$H$10),0)),0) -> 0 | AU25: =IF(AU$10<=PARAMS!$B$3,IF(VLOOKUP($B25,INDIRECT(IF(UPPER($A25)="N",$C$2,$C$3)),BOYRetirees!$N$10)=AU$10,-VLOOKUP($B25,INDIRECT(IF(UPPER($A25)="N",$C$2,$C$3)),BOYRetirees!$O$10),0),0) -> 0 | AV25: =IF(AV$10<=PARAMS!$B$3,-IF(UPPER($A25)="B",IF(OR(VLOOKUP($B25,BOYRet,BOYRetirees!$M$10)="",AV$10<=VLOOKUP($B25,BOYRet,BOYRetirees!$M$10)),VLOOKUP($B25,BOYRet,BOYRetirees!$L$10),0),IF(AND(VLOOKUP($B25,NewRet,NewRetirees!$B$10)<=AU$10,OR(VLOOKUP($B25,NewRet,NewRetirees!$M$10)="",AV$10<=(VLOOKUP($B25,NewRet,NewRetirees!$M$10)))),VLOOKUP($B25,NewRet,NewRetirees!$L$10),0)),0) -> -444.54 | AW25: 329.37 | AX25: =IF(AX$10<=PARAMS!$B$3, IF(VLOOKUP($B25,INDIRECT(IF(UPPER($A25)="N",$C$2,$C$3)),BOYRetirees!$N$10)=AX$10,-SUM(AS25:AW25),0),0) -> 0 | AY25: =SUM(AS25:AX25) -> 89915.64 | AZ25: =IF(AZ$10<=PARAMS!$B$3,IF(UPPER($A25)="B",0,IF(VLOOKUP($B25,NewRet,NewRetirees!$B$10)=AZ$10,VLOOKUP($B25,NewRet,NewRetirees!$H$10),0)),0) -> 0 | BA25: =IF(BA$10<=PARAMS!$B$3,IF(VLOOKUP($B25,INDIRECT(IF(UPPER($A25)="N",$C$2,$C$3)),BOYRetirees!$N$10)=BA$10,-VLOOKUP($B25,INDIRECT(IF(UPPER($A25)="N",$C$2,$C$3)),BOYRetirees!$O$10),0),0) -> 0 | BB25: =IF(BB$10<=PARAMS!$B$3,-IF(UPPER($A25)="B",IF(OR(VLOOKUP($B25,BOYRet,BOYRetirees!$M$10)="",BB$10<=VLOOKUP($B25,BOYRet,BOYRetirees!$M$10)),VLOOKUP($B25,BOYRet,BOYRetirees!$L$10),0),IF(AND(VLOOKUP($B25,NewRet,NewRetirees!$B$10)<=BA$10,OR(VLOOKUP($B25,NewRet,NewRetirees!$M$10)="",BB$10<=(VLOOKUP($B25,NewRet,NewRetirees!$M$10)))),VLOOKUP($B25,NewRet,NewRetirees!$L$10),0)),0) -> -444.54 | BC25: 206.11 | BD25: =IF(BD$10<=PARAMS!$B$3, IF(VLOOKUP($B25,INDIRECT(IF(UPPER($A25)="N",$C$2,$C$3)),BOYRetirees!$N$10)=BD$10,-SUM(AY25:BC25),0),0) -> 0 | BE25: =SUM(AY25:BD25) -> 89677.21 | BF25: =IF(BF$10<=PARAMS!$B$3,IF(UPPER($A25)="B",0,IF(VLOOKUP($B25,NewRet,NewRetirees!$B$10)=BF$10,VLOOKUP($B25,NewRet,NewRetirees!$H$10),0)),0) -> 0 | BG25: =IF(BG$10<=PARAMS!$B$3,IF(VLOOKUP($B25,INDIRECT(IF(UPPER($A25)="N",$C$2,$C$3)),BOYRetirees!$N$10)=BG$10,-VLOOKUP($B25,INDIRECT(IF(UPPER($A25)="N",$C$2,$C$3)),BOYRetirees!$O$10),0),0) -> 0 | BH25: =IF(BH$10<=PARAMS!$B$3,-IF(UPPER($A25)="B",IF(OR(VLOOKUP($B25,BOYRet,BOYRetirees!$M$10)="",BH$10<=VLOOKUP($B25,BOYRet,BOYRetirees!$M$10)),VLOOKUP($B25,BOYRet,BOYRetirees!$L$10),0),IF(AND(VLOOKUP($B25,NewRet,NewRetirees!$B$10)<=BG$10,OR(VLOOKUP($B25,NewRet,NewRetirees!$M$10)="",BH$10<=(VLOOKUP($B25,NewRet,NewRetirees!$M$10)))),VLOOKUP($B25,NewRet,NewRetirees!$L$10),0)),0) -> -444.54 | BI25: -82.54 | BJ25: =IF(BJ$10<=PARAMS!$B$3, IF(VLOOKUP($B25,INDIRECT(IF(UPPER($A25)="N",$C$2,$C$3)),BOYRetirees!$N$10)=BJ$10,-SUM(BE25:BI25),0),0) -> 0 | BK25: =SUM(BE25:BJ25) -> 89150.13 | BL25: =IF(BL$10<=PARAMS!$B$3,IF(UPPER($A25)="B",0,IF(VLOOKUP($B25,NewRet,NewRetirees!$B$10)=BL$10,VLOOKUP($B25,NewRet,NewRetirees!$H$10),0)),0) -> 0 | BM25: =IF(BM$10<=PARAMS!$B$3,IF(VLOOKUP($B25,INDIRECT(IF(UPPER($A25)="N",$C$2,$C$3)),BOYRetirees!$N$10)=BM$10,-VLOOKUP($B25,INDIRECT(IF(UPPER($A25)="N",$C$2,$C$3)),BOYRetirees!$O$10),0),0) -> 0 | BN25: =IF(BN$10<=PARAMS!$B$3,-IF(UPPER($A25)="B",IF(OR(VLOOKUP($B25,BOYRet,BOYRetirees!$M$10)="",BN$10<=VLOOKUP($B25,BOYRet,BOYRetirees!$M$10)),VLOOKUP($B25,BOYRet,BOYRetirees!$L$10),0),IF(AND(VLOOKUP($B25,NewRet,NewRetirees!$B$10)<=BM$10,OR(VLOOKUP($B25,NewRet,NewRetirees!$M$10)="",BN$10<=(VLOOKUP($B25,NewRet,NewRetirees!$M$10)))),VLOOKUP($B25,NewRet,NewRetirees!$L$10),0)),0) -> -444.54 | BO25: 495.86 | BP25: =IF(BP$10<=PARAMS!$B$3, IF(VLOOKUP($B25,INDIRECT(IF(UPPER($A25)="N",$C$2,$C$3)),BOYRetirees!$N$10)=BP$10,-SUM(BK25:BO25),0),0) -> 0 | BQ25: =SUM(BK25:BP25) -> 89201.45 | BR25: =IF(BR$10<=PARAMS!$B$3,IF(UPPER($A25)="B",0,IF(VLOOKUP($B25,NewRet,NewRetirees!$B$10)=BR$10,VLOOKUP($B25,NewRet,NewRetirees!$H$10),0)),0) -> 0 | BS25: =IF(BS$10<=PARAMS!$B$3,IF(VLOOKUP($B25,INDIRECT(IF(UPPER($A25)="N",$C$2,$C$3)),BOYRetirees!$N$10)=BS$10,-VLOOKUP($B25,INDIRECT(IF(UPPER($A25)="N",$C$2,$C$3)),BOYRetirees!$O$10),0),0) -> 0 | BT25: =IF(BT$10<=PARAMS!$B$3,-IF(UPPER($A25)="B",IF(OR(VLOOKUP($B25,BOYRet,BOYRetirees!$M$10)="",BT$10<=VLOOKUP($B25,BOYRet,BOYRetirees!$M$10)),VLOOKUP($B25,BOYRet,BOYRetirees!$L$10),0),IF(AND(VLOOKUP($B25,NewRet,NewRetirees!$B$10)<=BS$10,OR(VLOOKUP($B25,NewRet,NewRetirees!$M$10)="",BT$10<=(VLOOKUP($B25,NewRet,NewRetirees!$M$10)))),VLOOKUP($B25,NewRet,NewRetirees!$L$10),0)),0) -> -444.54 | BU25: 198.9 | BV25: =IF(BV$10<=PARAMS!$B$3, IF(VLOOKUP($B25,INDIRECT(IF(UPPER($A25)="N",$C$2,$C$3)),BOYRetirees!$N$10)=BV$10,-SUM(BQ25:BU25),0),0) -> 0 | BW25: =SUM(BQ25:BV25) -> 88955.81 | BX25: B00015 | BY25: =C25 -> 91214.35 | BZ25: =SUM(D25+J25+P25+V25+AB25+AH25+AN25+AT25+AZ25+BF25+BL25+BR25) -> 0 | CA25: =SUM(E25+K25+Q25+W25+AC25+AI25+AO25+AU25+BA25+BG25+BM25+BS25) -> 0 | CB25: =SUM(F25+L25+R25+X25+AD25+AJ25+AP25+AV25+BB25+BH25+BN25+BT25) -> -5334.48 | CC25: =SUM(G25+M25+S25+Y25+AE25+AK25+AQ25+AW25+BC25+BI25+BO25+BU25) -> 3075.94 | CD25: =SUM(H25+N25+T25+Z25+AF25+AL25+AR25+AX25+BD25+BJ25+BP25+BV25) -> 0 | CE25: 88955.81 | CF25: -118.9188609 | CG25: 88836.89114 | CH25: =IF(BW25>0,VLOOKUP(B25,INDIRECT(IF(UPPER(A25)="N",$C$2,$C$3)),BOYRetirees!$P$10),0) -> -0.0001770508212 | CI25: -15.94487772 | CJ25: =(C25+I25+O25+U25+AA25+AG25+AM25+AS25+AY25+BE25+BK25+BQ25+BW25)/(PARAMS!$B$2+1) -> 90058.19692 | CK25: -102.9739832 | CL25: -2327.551815
A26: n | B26: 1 | C26: =IF(UPPER($A26)="B",VLOOKUP($B26,BOYRet,BOYRetirees!$H$10),0) -> 0 | D26: =IF(D$10<=PARAMS!$B$3,IF(UPPER($A26)="B",0,IF(VLOOKUP($B26,NewRet,NewRetirees!$B$10)=D$10,VLOOKUP($B26,NewRet,NewRetirees!$H$10),0)),0) -> 175000 | E26: =IF(E$10<=PARAMS!$B$3,IF(VLOOKUP($B26,INDIRECT(IF(UPPER($A26)="N",$C$2,$C$3)),BOYRetirees!$N$10)=E$10,-VLOOKUP($B26,INDIRECT(IF(UPPER($A26)="N",$C$2,$C$3)),BOYRetirees!$O$10),0),0) -> 0 | F26: =IF(F$10<=PARAMS!$B$3,-IF(UPPER($A26)="B",IF(OR(VLOOKUP($B26,BOYRet,BOYRetirees!$M$10)="",F$10<=VLOOKUP($B26,BOYRet,BOYRetirees!$M$10)),VLOOKUP($B26,BOYRet,BOYRetirees!$L$10),0),IF(AND(VLOOKUP($B26,NewRet,NewRetirees!$B$10)<=E$10,OR(VLOOKUP($B26,NewRet,NewRetirees!$M$10)="",F$10<=(VLOOKUP($B26,NewRet,NewRetirees!$M$10)))),VLOOKUP($B26,NewRet,NewRetirees!$L$10),0)),0) -> -1191.82 | G26: =ROUND(VLOOKUP(G$10,InvRetMonth,3)*(C26+D26+E26+F26),2) -> 614.04 | H26: =IF(H$10<=PARAMS!$B$3, IF(VLOOKUP($B26,INDIRECT(IF(UPPER($A26)="N",$C$2,$C$3)),BOYRetirees!$N$10)=H$10,-SUM(C26:G26),0),0) -> 0 | I26: =SUM(C26:H26) -> 174422.22 | J26: =IF(J$10<=PARAMS!$B$3,IF(UPPER($A26)="B",0,IF(VLOOKUP($B26,NewRet,NewRetirees!$B$10)=J$10,VLOOKUP($B26,NewRet,NewRetirees!$H$10),0)),0) -> 0 | K26: =IF(K$10<=PARAMS!$B$3,IF(VLOOKUP($B26,INDIRECT(IF(UPPER($A26)="N",$C$2,$C$3)),BOYRetirees!$N$10)=K$10,-VLOOKUP($B26,INDIRECT(IF(UPPER($A26)="N",$C$2,$C$3)),BOYRetirees!$O$10),0),0) -> 0 | L26: =IF(L$10<=PARAMS!$B$3,-IF(UPPER($A26)="B",IF(OR(VLOOKUP($B26,BOYRet,BOYRetirees!$M$10)="",L$10<=VLOOKUP($B26,BOYRet,BOYRetirees!$M$10)),VLOOKUP($B26,BOYRet,BOYRetirees!$L$10),0),IF(AND(VLOOKUP($B26,NewRet,NewRetirees!$B$10)<=K$10,OR(VLOOKUP($B26,NewRet,NewRetirees!$M$10)="",L$10<=(VLOOKUP($B26,NewRet,NewRetirees!$M$10)))),VLOOKUP($B26,NewRet,NewRetirees!$L$10),0)),0) -> -1191.82 | M26: =ROUND(VLOOKUP(M$10,InvRetMonth,3)*(I26+J26+K26+L26),2) -> 303.43 | N26: =IF(N$10<=PARAMS!$B$3, IF(VLOOKUP($B26,INDIRECT(IF(UPPER($A26)="N",$C$2,$C$3)),BOYRetirees!$N$10)=N$10,-SUM(I26:M26),0),0) -> 0 | O26: =SUM(I26:N26) -> 173533.83 | P26: =IF(P$10<=PARAMS!$B$3,IF(UPPER($A26)="B",0,IF(VLOOKUP($B26,NewRet,NewRetirees!$B$10)=P$10,VLOOKUP($B26,NewRet,NewRetirees!$H$10),0)),0) -> 0 | Q26: =IF(Q$10<=PARAMS!$B$3,IF(VLOOKUP($B26,INDIRECT(IF(UPPER($A26)="N",$C$2,$C$3)),BOYRetirees!$N$10)=Q$10,-VLOOKUP($B26,INDIRECT(IF(UPPER($A26)="N",$C$2,$C$3)),BOYRetirees!$O$10),0),0) -> 0 | R26: =IF(R$10<=PARAMS!$B$3,-IF(UPPER($A26)="B",IF(OR(VLOOKUP($B26,BOYRet,BOYRetirees!$M$10)="",R$10<=VLOOKUP($B26,BOYRet,BOYRetirees!$M$10)),VLOOKUP($B26,BOYRet,BOYRetirees!$L$10),0),IF(AND(VLOOKUP($B26,NewRet,NewRetirees!$B$10)<=Q$10,OR(VLOOKUP($B26,NewRet,NewRetirees!$M$10)="",R$10<=(VLOOKUP($B26,NewRet,NewRetirees!$M$10)))),VLOOKUP($B26,NewRet,NewRetirees!$L$10),0)),0) -> -1191.82 | S26: =ROUND(VLOOKUP(S$10,InvRetMonth,3)*(O26+P26+Q26+R26),2) -> -149.36 | T26: =IF(T$10<=PARAMS!$B$3, IF(VLOOKUP($B26,INDIRECT(IF(UPPER($A26)="N",$C$2,$C$3)),BOYRetirees!$N$10)=T$10,-SUM(O26:S26),0),0) -> 0 | U26: =SUM(O26:T26) -> 172192.65 | V26: =IF(V$10<=PARAMS!$B$3,IF(UPPER($A26)="B",0,IF(VLOOKUP($B26,NewRet,NewRetirees!$B$10)=V$10,VLOOKUP($B26,NewRet,NewRetirees!$H$10),0)),0) -> 0 | W26: =IF(W$10<=PARAMS!$B$3,IF(VLOOKUP($B26,INDIRECT(IF(UPPER($A26)="N",$C$2,$C$3)),BOYRetirees!$N$10)=W$10,-VLOOKUP($B26,INDIRECT(IF(UPPER($A26)="N",$C$2,$C$3)),BOYRetirees!$O$10),0),0) -> 0 | X26: =IF(X$10<=PARAMS!$B$3,-IF(UPPER($A26)="B",IF(OR(VLOOKUP($B26,BOYRet,BOYRetirees!$M$10)="",X$10<=VLOOKUP($B26,BOYRet,BOYRetirees!$M$10)),VLOOKUP($B26,BOYRet,BOYRetirees!$L$10),0),IF(AND(VLOOKUP($B26,NewRet,NewRetirees!$B$10)<=W$10,OR(VLOOKUP($B26,NewRet,NewRetirees!$M$10)="",X$10<=(VLOOKUP($B26,NewRet,NewRetirees!$M$10)))),VLOOKUP($B26,NewRet,NewRetirees!$L$10),0)),0) -> -1191.82 | Y26: =ROUND(VLOOKUP(Y$10,InvRetMonth,3)*(U26+V26+W26+X26),2) -> 779.99 | Z26: =IF(Z$10<=PARAMS!$B$3, IF(VLOOKUP($B26,INDIRECT(IF(UPPER($A26)="N",$C$2,$C$3)),BOYRetirees!$N$10)=Z$10,-SUM(U26:Y26),0),0) -> 0 | AA26: =SUM(U26:Z26) -> 171780.82 | AB26: =IF(AB$10<=PARAMS!$B$3,IF(UPPER($A26)="B",0,IF(VLOOKUP($B26,NewRet,NewRetirees!$B$10)=AB$10,VLOOKUP($B26,NewRet,NewRetirees!$H$10),0)),0) -> 0 | AC26: =IF(AC$10<=PARAMS!$B$3,IF(VLOOKUP($B26,INDIRECT(IF(UPPER($A26)="N",$C$2,$C$3)),BOYRetirees!$N$10)=AC$10,-VLOOKUP($B26,INDIRECT(IF(UPPER($A26)="N",$C$2,$C$3)),BOYRetirees!$O$10),0),0) -> 0 | AD26: =IF(AD$10<=PARAMS!$B$3,-IF(UPPER($A26)="B",IF(OR(VLOOKUP($B26,BOYRet,BOYRetirees!$M$10)="",AD$10<=VLOOKUP($B26,BOYRet,BOYRetirees!$M$10)),VLOOKUP($B26,BOYRet,BOYRetirees!$L$10),0),IF(AND(VLOOKUP($B26,NewRet,NewRetirees!$B$10)<=AC$10,OR(VLOOKUP($B26,NewRet,NewRetirees!$M$10)="",AD$10<=(VLOOKUP($B26,NewRet,NewRetirees!$M$10)))),VLOOKUP($B26,NewRet,NewRetirees!$L$10),0)),0) -> -1191.82 | AE26: =ROUND(VLOOKUP(AE$10,InvRetMonth,3)*(AA26+AB26+AC26+AD26),2) -> 389.66 | AF26: =IF(AF$10<=PARAMS!$B$3,IF(UPPER($A26)="B",IF(VLOOKUP($B26,BOYRet,BOYRetirees!$N$10)=AF$10,-SUM(AA26:AE26),0),IF(VLOOKUP($B26,NewRet,NewRetirees!$N$10)=AF$10,-SUM(AA26:AE26),0)),0) -> 0 | AG26: =SUM(AA26:AF26) -> 170978.66 | AH26: =IF(AH$10<=PARAMS!$B$3,IF(UPPER($A26)="B",0,IF(VLOOKUP($B26,NewRet,NewRetirees!$B$10)=AH$10,VLOOKUP($B26,NewRet,NewRetirees!$H$10),0)),0) -> 0 | AI26: =IF(AI$10<=PARAMS!$B$3,IF(VLOOKUP($B26,INDIRECT(IF(UPPER($A26)="N",$C$2,$C$3)),BOYRetirees!$N$10)=AI$10,-VLOOKUP($B26,INDIRECT(IF(UPPER($A26)="N",$C$2,$C$3)),BOYRetirees!$O$10),0),0) -> 0 | AJ26: =IF(AJ$10<=PARAMS!$B$3,-IF(UPPER($A26)="B",IF(OR(VLOOKUP($B26,BOYRet,BOYRetirees!$M$10)="",AJ$10<=VLOOKUP($B26,BOYRet,BOYRetirees!$M$10)),VLOOKUP($B26,BOYRet,BOYRetirees!$L$10),0),IF(AND(VLOOKUP($B26,NewRet,NewRetirees!$B$10)<=AI$10,OR(VLOOKUP($B26,NewRet,NewRetirees!$M$10)="",AJ$10<=(VLOOKUP($B26,NewRet,NewRetirees!$M$10)))),VLOOKUP($B26,NewRet,NewRetirees!$L$10),0)),0) -> -1191.82 | AK26: =ROUND(VLOOKUP(AK$10,InvRetMonth,3)*(AG26+AH26+AI26+AJ26),2) -> 1167.97 | AL26: =IF(AL$10<=PARAMS!$B$3, IF(VLOOKUP($B26,INDIRECT(IF(UPPER($A26)="N",$C$2,$C$3)),BOYRetirees!$N$10)=AL$10,-SUM(AG26:AK26),0),0) -> 0 | AM26: =SUM(AG26:AL26) -> 170954.81 | AN26: =IF(AN$10<=PARAMS!$B$3,IF(UPPER($A26)="B",0,IF(VLOOKUP($B26,NewRet,NewRetirees!$B$10)=AN$10,VLOOKUP($B26,NewRet,NewRetirees!$H$10),0)),0) -> 0 | AO26: =IF(AO$10<=PARAMS!$B$3,IF(VLOOKUP($B26,INDIRECT(IF(UPPER($A26)="N",$C$2,$C$3)),BOYRetirees!$N$10)=AO$10,-VLOOKUP($B26,INDIRECT(IF(UPPER($A26)="N",$C$2,$C$3)),BOYRetirees!$O$10),0),0) -> 0 | AP26: =IF(AP$10<=PARAMS!$B$3,-IF(UPPER($A26)="B",IF(OR(VLOOKUP($B26,BOYRet,BOYRetirees!$M$10)="",AP$10<=VLOOKUP($B26,BOYRet,BOYRetirees!$M$10)),VLOOKUP($B26,BOYRet,BOYRetirees!$L$10),0),IF(AND(VLOOKUP($B26,NewRet,NewRetirees!$B$10)<=AO$10,OR(VLOOKUP($B26,NewRet,NewRetirees!$M$10)="",AP$10<=(VLOOKUP($B26,NewRet,NewRetirees!$M$10)))),VLOOKUP($B26,NewRet,NewRetirees!$L$10),0)),0) -> -1191.82 | AQ26: =ROUND(VLOOKUP(AQ$10,InvRetMonth,3)*(AM26+AN26+AO26+AP26),2) -> 560.14 | AR26: =IF(AR$10<=PARAMS!$B$3, IF(VLOOKUP($B26,INDIRECT(IF(UPPER($A26)="N",$C$2,$C$3)),BOYRetirees!$N$10)=AR$10,-SUM(AM26:AQ26),0),0) -> 0 | AS26: =SUM(AM26:AR26) -> 170323.13 | AT26: =IF(AT$10<=PARAMS!$B$3,IF(UPPER($A26)="B",0,IF(VLOOKUP($B26,NewRet,NewRetirees!$B$10)=AT$10,VLOOKUP($B26,NewRet,NewRetirees!$H$10),0)),0) -> 0 | AU26: =IF(AU$10<=PARAMS!$B$3,IF(VLOOKUP($B26,INDIRECT(IF(UPPER($A26)="N",$C$2,$C$3)),BOYRetirees!$N$10)=AU$10,-VLOOKUP($B26,INDIRECT(IF(UPPER($A26)="N",$C$2,$C$3)),BOYRetirees!$O$10),0),0) -> 0 | AV26: =IF(AV$10<=PARAMS!$B$3,-IF(UPPER($A26)="B",IF(OR(VLOOKUP($B26,BOYRet,BOYRetirees!$M$10)="",AV$10<=VLOOKUP($B26,BOYRet,BOYRetirees!$M$10)),VLOOKUP($B26,BOYRet,BOYRetirees!$L$10),0),IF(AND(VLOOKUP($B26,NewRet,NewRetirees!$B$10)<=AU$10,OR(VLOOKUP($B26,NewRet,NewRetirees!$M$10)="",AV$10<=(VLOOKUP($B26,NewRet,NewRetirees!$M$10)))),VLOOKUP($B26,NewRet,NewRetirees!$L$10),0)),0) -> -1191.82 | AW26: =ROUND(VLOOKUP(AW$10,InvRetMonth,3)*(AS26+AT26+AU26+AV26),2) -> 621.83 | AX26: =IF(AX$10<=PARAMS!$B$3, IF(VLOOKUP($B26,INDIRECT(IF(UPPER($A26)="N",$C$2,$C$3)),BOYRetirees!$N$10)=AX$10,-SUM(AS26:AW26),0),0) -> 0 | AY26: =SUM(AS26:AX26) -> 169753.14 | AZ26: =IF(AZ$10<=PARAMS!$B$3,IF(UPPER($A26)="B",0,IF(VLOOKUP($B26,NewRet,NewRetirees!$B$10)=AZ$10,VLOOKUP($B26,NewRet,NewRetirees!$H$10),0)),0) -> 0 | BA26: =IF(BA$10<=PARAMS!$B$3,IF(VLOOKUP($B26,INDIRECT(IF(UPPER($A26)="N",$C$2,$C$3)),BOYRetirees!$N$10)=BA$10,-VLOOKUP($B26,INDIRECT(IF(UPPER($A26)="N",$C$2,$C$3)),BOYRetirees!$O$10),0),0) -> 0 | BB26: =IF(BB$10<=PARAMS!$B$3,-IF(UPPER($A26)="B",IF(OR(VLOOKUP($B26,BOYRet,BOYRetirees!$M$10)="",BB$10<=VLOOKUP($B26,BOYRet,BOYRetirees!$M$10)),VLOOKUP($B26,BOYRet,BOYRetirees!$L$10),0),IF(AND(VLOOKUP($B26,NewRet,NewRetirees!$B$10)<=BA$10,OR(VLOOKUP($B26,NewRet,NewRetirees!$M$10)="",BB$10<=(VLOOKUP($B26,NewRet,NewRetirees!$M$10)))),VLOOKUP($B26,NewRet,NewRetirees!$L$10),0)),0) -> -1191.82 | BC26: =ROUND(VLOOKUP(BC$10,InvRetMonth,3)*(AY26+AZ26+BA26+BB26),2) -> 388.3 | BD26: =IF(BD$10<=PARAMS!$B$3, IF(VLOOKUP($B26,INDIRECT(IF(UPPER($A26)="N",$C$2,$C$3)),BOYRetirees!$N$10)=BD$10,-SUM(AY26:BC26),0),0) -> 0 | BE26: =SUM(AY26:BD26) -> 168949.62 | BF26: =IF(BF$10<=PARAMS!$B$3,IF(UPPER($A26)="B",0,IF(VLOOKUP($B26,NewRet,NewRetirees!$B$10)=BF$10,VLOOKUP($B26,NewRet,NewRetirees!$H$10),0)),0) -> 0 | BG26: =IF(BG$10<=PARAMS!$B$3,IF(VLOOKUP($B26,INDIRECT(IF(UPPER($A26)="N",$C$2,$C$3)),BOYRetirees!$N$10)=BG$10,-VLOOKUP($B26,INDIRECT(IF(UPPER($A26)="N",$C$2,$C$3)),BOYRetirees!$O$10),0),0) -> 0 | BH26: =IF(BH$10<=PARAMS!$B$3,-IF(UPPER($A26)="B",IF(OR(VLOOKUP($B26,BOYRet,BOYRetirees!$M$10)="",BH$10<=VLOOKUP($B26,BOYRet,BOYRetirees!$M$10)),VLOOKUP($B26,BOYRet,BOYRetirees!$L$10),0),IF(AND(VLOOKUP($B26,NewRet,NewRetirees!$B$10)<=BG$10,OR(VLOOKUP($B26,NewRet,NewRetirees!$M$10)="",BH$10<=(VLOOKUP($B26,NewRet,NewRetirees!$M$10)))),VLOOKUP($B26,NewRet,NewRetirees!$L$10),0)),0) -> -1191.82 | BI26: =ROUND(VLOOKUP(BI$10,InvRetMonth,3)*(BE26+BF26+BG26+BH26),2) -> -155.18 | BJ26: =IF(BJ$10<=PARAMS!$B$3, IF(VLOOKUP($B26,INDIRECT(IF(UPPER($A26)="N",$C$2,$C$3)),BOYRetirees!$N$10)=BJ$10,-SUM(BE26:BI26),0),0) -> 0 | BK26: =SUM(BE26:BJ26) -> 167602.62 | BL26: =IF(BL$10<=PARAMS!$B$3,IF(UPPER($A26)="B",0,IF(VLOOKUP($B26,NewRet,NewRetirees!$B$10)=BL$10,VLOOKUP($B26,NewRet,NewRetirees!$H$10),0)),0) -> 0 | BM26: =IF(BM$10<=PARAMS!$B$3,IF(VLOOKUP($B26,INDIRECT(IF(UPPER($A26)="N",$C$2,$C$3)),BOYRetirees!$N$10)=BM$10,-VLOOKUP($B26,INDIRECT(IF(UPPER($A26)="N",$C$2,$C$3)),BOYRetirees!$O$10),0),0) -> 0 | BN26: =IF(BN$10<=PARAMS!$B$3,-IF(UPPER($A26)="B",IF(OR(VLOOKUP($B26,BOYRet,BOYRetirees!$M$10)="",BN$10<=VLOOKUP($B26,BOYRet,BOYRetirees!$M$10)),VLOOKUP($B26,BOYRet,BOYRetirees!$L$10),0),IF(AND(VLOOKUP($B26,NewRet,NewRetirees!$B$10)<=BM$10,OR(VLOOKUP($B26,NewRet,NewRetirees!$M$10)="",BN$10<=(VLOOKUP($B26,NewRet,NewRetirees!$M$10)))),VLOOKUP($B26,NewRet,NewRetirees!$L$10),0)),0) -> -1191.82 | BO26: =ROUND(VLOOKUP(BO$10,InvRetMonth,3)*(BK26+BL26+BM26+BN26),2) -> 930.24 | BP26: =IF(BP$10<=PARAMS!$B$3, IF(VLOOKUP($B26,INDIRECT(IF(UPPER($A26)="N",$C$2,$C$3)),BOYRetirees!$N$10)=BP$10,-SUM(BK26:BO26),0),0) -> 0 | BQ26: =SUM(BK26:BP26) -> 167341.04 | BR26: =IF(BR$10<=PARAMS!$B$3,IF(UPPER($A26)="B",0,IF(VLOOKUP($B26,NewRet,NewRetirees!$B$10)=BR$10,VLOOKUP($B26,NewRet,NewRetirees!$H$10),0)),0) -> 0 | BS26: =IF(BS$10<=PARAMS!$B$3,IF(VLOOKUP($B26,INDIRECT(IF(UPPER($A26)="N",$C$2,$C$3)),BOYRetirees!$N$10)=BS$10,-VLOOKUP($B26,INDIRECT(IF(UPPER($A26)="N",$C$2,$C$3)),BOYRetirees!$O$10),0),0) -> 0 | BT26: =IF(BT$10<=PARAMS!$B$3,-IF(UPPER($A26)="B",IF(OR(VLOOKUP($B26,BOYRet,BOYRetirees!$M$10)="",BT$10<=VLOOKUP($B26,BOYRet,BOYRetirees!$M$10)),VLOOKUP($B26,BOYRet,BOYRetirees!$L$10),0),IF(AND(VLOOKUP($B26,NewRet,NewRetirees!$B$10)<=BS$10,OR(VLOOKUP($B26,NewRet,NewRetirees!$M$10)="",BT$10<=(VLOOKUP($B26,NewRet,NewRetirees!$M$10)))),VLOOKUP($B26,NewRet,NewRetirees!$L$10),0)),0) -> -1191.82 | BU26: =ROUND(VLOOKUP(BU$10,InvRetMonth,3)*(BQ26+BR26+BS26+BT26),2) -> 372.32 | BV26: =IF(BV$10<=PARAMS!$B$3, IF(VLOOKUP($B26,INDIRECT(IF(UPPER($A26)="N",$C$2,$C$3)),BOYRetirees!$N$10)=BV$10,-SUM(BQ26:BU26),0),0) -> 0 | BW26: =SUM(BQ26:BV26) -> 166521.54 | BX26: =UPPER(A26)&TEXT(B26,"00000") -> N00001 | BY26: =C26 -> 0 | BZ26: =SUM(D26+J26+P26+V26+AB26+AH26+AN26+AT26+AZ26+BF26+BL26+BR26) -> 175000 | CA26: =SUM(E26+K26+Q26+W26+AC26+AI26+AO26+AU26+BA26+BG26+BM26+BS26) -> 0 | CB26: =SUM(F26+L26+R26+X26+AD26+AJ26+AP26+AV26+BB26+BH26+BN26+BT26) -> -14301.84 | CC26: =SUM(G26+M26+S26+Y26+AE26+AK26+AQ26+AW26+BC26+BI26+BO26+BU26) -> 5823.38 | CD26: =SUM(H26+N26+T26+Z26+AF26+AL26+AR26+AX26+BD26+BJ26+BP26+BV26) -> 0 | CE26: =SUM(BY26:CD26) -> 166521.54 | CF26: =CI26/CI$10*BW$9 -> 12947.11428 | CG26: =CE26+CF26 -> 179468.6543 | CH26: =IF(BW26>0,VLOOKUP(B26,INDIRECT(IF(UPPER(A26)="N",$C$2,$C$3)),BOYRetirees!$P$10),0) -> 0.01103902378 | CI26: =CH26*CJ26 -> 1735.97487 | CJ26: =(C26+I26+O26+U26+AA26+AG26+AM26+AS26+AY26+BE26+BK26+BQ26+BW26)/(PARAMS!$B$2+1) -> 157258.0062 | CK26: =CF26-CI26 -> 11211.13941 | CL26: =CC26-CL$8*CJ26 -> -3612.100369
A27: n | B27: 2 | C27: =IF(UPPER($A27)="B",VLOOKUP($B27,BOYRet,BOYRetirees!$H$10),0) -> 0 | D27: =IF(D$10<=PARAMS!$B$3,IF(UPPER($A27)="B",0,IF(VLOOKUP($B27,NewRet,NewRetirees!$B$10)=D$10,VLOOKUP($B27,NewRet,NewRetirees!$H$10),0)),0) -> 105000 | E27: =IF(E$10<=PARAMS!$B$3,IF(VLOOKUP($B27,INDIRECT(IF(UPPER($A27)="N",$C$2,$C$3)),BOYRetirees!$N$10)=E$10,-VLOOKUP($B27,INDIRECT(IF(UPPER($A27)="N",$C$2,$C$3)),BOYRetirees!$O$10),0),0) -> 0 | F27: =IF(F$10<=PARAMS!$B$3,-IF(UPPER($A27)="B",IF(OR(VLOOKUP($B27,BOYRet,BOYRetirees!$M$10)="",F$10<=VLOOKUP($B27,BOYRet,BOYRetirees!$M$10)),VLOOKUP($B27,BOYRet,BOYRetirees!$L$10),0),IF(AND(VLOOKUP($B27,NewRet,NewRetirees!$B$10)<=E$10,OR(VLOOKUP($B27,NewRet,NewRetirees!$M$10)="",F$10<=(VLOOKUP($B27,NewRet,NewRetirees!$M$10)))),VLOOKUP($B27,NewRet,NewRetirees!$L$10),0)),0) -> -764.62 | G27: =ROUND(VLOOKUP(G$10,InvRetMonth,3)*(C27+D27+E27+F27),2) -> 368.25 | H27: =IF(H$10<=PARAMS!$B$3, IF(VLOOKUP($B27,INDIRECT(IF(UPPER($A27)="N",$C$2,$C$3)),BOYRetirees!$N$10)=H$10,-SUM(C27:G27),0),0) -> 0 | I27: =SUM(C27:H27) -> 104603.63 | J27: =IF(J$10<=PARAMS!$B$3,IF(UPPER($A27)="B",0,IF(VLOOKUP($B27,NewRet,NewRetirees!$B$10)=J$10,VLOOKUP($B27,NewRet,NewRetirees!$H$10),0)),0) -> 0 | K27: =IF(K$10<=PARAMS!$B$3,IF(VLOOKUP($B27,INDIRECT(IF(UPPER($A27)="N",$C$2,$C$3)),BOYRetirees!$N$10)=K$10,-VLOOKUP($B27,INDIRECT(IF(UPPER($A27)="N",$C$2,$C$3)),BOYRetirees!$O$10),0),0) -> 0 | L27: =IF(L$10<=PARAMS!$B$3,-IF(UPPER($A27)="B",IF(OR(VLOOKUP($B27,BOYRet,BOYRetirees!$M$10)="",L$10<=VLOOKUP($B27,BOYRet,BOYRetirees!$M$10)),VLOOKUP($B27,BOYRet,BOYRetirees!$L$10),0),IF(AND(VLOOKUP($B27,NewRet,NewRetirees!$B$10)<=K$10,OR(VLOOKUP($B27,NewRet,NewRetirees!$M$10)="",L$10<=(VLOOKUP($B27,NewRet,NewRetirees!$M$10)))),VLOOKUP($B27,NewRet,NewRetirees!$L$10),0)),0) -> -764.62 | M27: =ROUND(VLOOKUP(M$10,InvRetMonth,3)*(I27+J27+K27+L27),2) -> 181.88 | N27: =IF(N$10<=PARAMS!$B$3, IF(VLOOKUP($B27,INDIRECT(IF(UPPER($A27)="N",$C$2,$C$3)),BOYRetirees!$N$10)=N$10,-SUM(I27:M27),0),0) -> 0 | O27: =SUM(I27:N27) -> 104020.89 | P27: =IF(P$10<=PARAMS!$B$3,IF(UPPER($A27)="B",0,IF(VLOOKUP($B27,NewRet,NewRetirees!$B$10)=P$10,VLOOKUP($B27,NewRet,NewRetirees!$H$10),0)),0) -> 0 | Q27: =IF(Q$10<=PARAMS!$B$3,IF(VLOOKUP($B27,INDIRECT(IF(UPPER($A27)="N",$C$2,$C$3)),BOYRetirees!$N$10)=Q$10,-VLOOKUP($B27,INDIRECT(IF(UPPER($A27)="N",$C$2,$C$3)),BOYRetirees!$O$10),0),0) -> 0 | R27: =IF(R$10<=PARAMS!$B$3,-IF(UPPER($A27)="B",IF(OR(VLOOKUP($B27,BOYRet,BOYRetirees!$M$10)="",R$10<=VLOOKUP($B27,BOYRet,BOYRetirees!$M$10)),VLOOKUP($B27,BOYRet,BOYRetirees!$L$10),0),IF(AND(VLOOKUP($B27,NewRet,NewRetirees!$B$10)<=Q$10,OR(VLOOKUP($B27,NewRet,NewRetirees!$M$10)="",R$10<=(VLOOKUP($B27,NewRet,NewRetirees!$M$10)))),VLOOKUP($B27,NewRet,NewRetirees!$L$10),0)),0) -> -764.62 | S27: =ROUND(VLOOKUP(S$10,InvRetMonth,3)*(O27+P27+Q27+R27),2) -> -89.49 | T27: =IF(T$10<=PARAMS!$B$3, IF(VLOOKUP($B27,INDIRECT(IF(UPPER($A27)="N",$C$2,$C$3)),BOYRetirees!$N$10)=T$10,-SUM(O27:S27),0),0) -> 0 | U27: =SUM(O27:T27) -> 103166.78 | V27: =IF(V$10<=PARAMS!$B$3,IF(UPPER($A27)="B",0,IF(VLOOKUP($B27,NewRet,NewRetirees!$B$10)=V$10,VLOOKUP($B27,NewRet,NewRetirees!$H$10),0)),0) -> 0 | W27: =IF(W$10<=PARAMS!$B$3,IF(VLOOKUP($B27,INDIRECT(IF(UPPER($A27)="N",$C$2,$C$3)),BOYRetirees!$N$10)=W$10,-VLOOKUP($B27,INDIRECT(IF(UPPER($A27)="N",$C$2,$C$3)),BOYRetirees!$O$10),0),0) -> 0 | X27: =IF(X$10<=PARAMS!$B$3,-IF(UPPER($A27)="B",IF(OR(VLOOKUP($B27,BOYRet,BOYRetirees!$M$10)="",X$10<=VLOOKUP($B27,BOYRet,BOYRetirees!$M$10)),VLOOKUP($B27,BOYRet,BOYRetirees!$L$10),0),IF(AND(VLOOKUP($B27,NewRet,NewRetirees!$B$10)<=W$10,OR(VLOOKUP($B27,NewRet,NewRetirees!$M$10)="",X$10<=(VLOOKUP($B27,NewRet,NewRetirees!$M$10)))),VLOOKUP($B27,NewRet,NewRetirees!$L$10),0)),0) -> -764.62 | Y27: =ROUND(VLOOKUP(Y$10,InvRetMonth,3)*(U27+V27+W27+X27),2) -> 467.09 | Z27: =IF(Z$10<=PARAMS!$B$3, IF(VLOOKUP($B27,INDIRECT(IF(UPPER($A27)="N",$C$2,$C$3)),BOYRetirees!$N$10)=Z$10,-SUM(U27:Y27),0),0) -> 0 | AA27: =SUM(U27:Z27) -> 102869.25 | AB27: =IF(AB$10<=PARAMS!$B$3,IF(UPPER($A27)="B",0,IF(VLOOKUP($B27,NewRet,NewRetirees!$B$10)=AB$10,VLOOKUP($B27,NewRet,NewRetirees!$H$10),0)),0) -> 0 | AC27: =IF(AC$10<=PARAMS!$B$3,IF(VLOOKUP($B27,INDIRECT(IF(UPPER($A27)="N",$C$2,$C$3)),BOYRetirees!$N$10)=AC$10,-VLOOKUP($B27,INDIRECT(IF(UPPER($A27)="N",$C$2,$C$3)),BOYRetirees!$O$10),0),0) -> 0 | AD27: =IF(AD$10<=PARAMS!$B$3,-IF(UPPER($A27)="B",IF(OR(VLOOKUP($B27,BOYRet,BOYRetirees!$M$10)="",AD$10<=VLOOKUP($B27,BOYRet,BOYRetirees!$M$10)),VLOOKUP($B27,BOYRet,BOYRetirees!$L$10),0),IF(AND(VLOOKUP($B27,NewRet,NewRetirees!$B$10)<=AC$10,OR(VLOOKUP($B27,NewRet,NewRetirees!$M$10)="",AD$10<=(VLOOKUP($B27,NewRet,NewRetirees!$M$10)))),VLOOKUP($B27,NewRet,NewRetirees!$L$10),0)),0) -> -764.62 | AE27: =ROUND(VLOOKUP(AE$10,InvRetMonth,3)*(AA27+AB27+AC27+AD27),2) -> 233.23 | AF27: =IF(AF$10<=PARAMS!$B$3,IF(UPPER($A27)="B",IF(VLOOKUP($B27,BOYRet,BOYRetirees!$N$10)=AF$10,-SUM(AA27:AE27),0),IF(VLOOKUP($B27,NewRet,NewRetirees!$N$10)=AF$10,-SUM(AA27:AE27),0)),0) -> 0 | AG27: =SUM(AA27:AF27) -> 102337.86 | AH27: =IF(AH$10<=PARAMS!$B$3,IF(UPPER($A27)="B",0,IF(VLOOKUP($B27,NewRet,NewRetirees!$B$10)=AH$10,VLOOKUP($B27,NewRet,NewRetirees!$H$10),0)),0) -> 0 | AI27: =IF(AI$10<=PARAMS!$B$3,IF(VLOOKUP($B27,INDIRECT(IF(UPPER($A27)="N",$C$2,$C$3)),BOYRetirees!$N$10)=AI$10,-VLOOKUP($B27,INDIRECT(IF(UPPER($A27)="N",$C$2,$C$3)),BOYRetirees!$O$10),0),0) -> 0 | AJ27: =IF(AJ$10<=PARAMS!$B$3,-IF(UPPER($A27)="B",IF(OR(VLOOKUP($B27,BOYRet,BOYRetirees!$M$10)="",AJ$10<=VLOOKUP($B27,BOYRet,BOYRetirees!$M$10)),VLOOKUP($B27,BOYRet,BOYRetirees!$L$10),0),IF(AND(VLOOKUP($B27,NewRet,NewRetirees!$B$10)<=AI$10,OR(VLOOKUP($B27,NewRet,NewRetirees!$M$10)="",AJ$10<=(VLOOKUP($B27,NewRet,NewRetirees!$M$10)))),VLOOKUP($B27,NewRet,NewRetirees!$L$10),0)),0) -> -764.62 | AK27: =ROUND(VLOOKUP(AK$10,InvRetMonth,3)*(AG27+AH27+AI27+AJ27),2) -> 698.73 | AL27: =IF(AL$10<=PARAMS!$B$3, IF(VLOOKUP($B27,INDIRECT(IF(UPPER($A27)="N",$C$2,$C$3)),BOYRetirees!$N$10)=AL$10,-SUM(AG27:AK27),0),0) -> 0 | AM27: =SUM(AG27:AL27) -> 102271.97 | AN27: =IF(AN$10<=PARAMS!$B$3,IF(UPPER($A27)="B",0,IF(VLOOKUP($B27,NewRet,NewRetirees!$B$10)=AN$10,VLOOKUP($B27,NewRet,NewRetirees!$H$10),0)),0) -> 0 | AO27: =IF(AO$10<=PARAMS!$B$3,IF(VLOOKUP($B27,INDIRECT(IF(UPPER($A27)="N",$C$2,$C$3)),BOYRetirees!$N$10)=AO$10,-VLOOKUP($B27,INDIRECT(IF(UPPER($A27)="N",$C$2,$C$3)),BOYRetirees!$O$10),0),0) -> 0 | AP27: =IF(AP$10<=PARAMS!$B$3,-IF(UPPER($A27)="B",IF(OR(VLOOKUP($B27,BOYRet,BOYRetirees!$M$10)="",AP$10<=VLOOKUP($B27,BOYRet,BOYRetirees!$M$10)),VLOOKUP($B27,BOYRet,BOYRetirees!$L$10),0),IF(AND(VLOOKUP($B27,NewRet,NewRetirees!$B$10)<=AO$10,OR(VLOOKUP($B27,NewRet,NewRetirees!$M$10)="",AP$10<=(VLOOKUP($B27,NewRet,NewRetirees!$M$10)))),VLOOKUP($B27,NewRet,NewRetirees!$L$10),0)),0) -> -764.62 | AQ27: =ROUND(VLOOKUP(AQ$10,InvRetMonth,3)*(AM27+AN27+AO27+AP27),2) -> 334.93 | AR27: =IF(AR$10<=PARAMS!$B$3, IF(VLOOKUP($B27,INDIRECT(IF(UPPER($A27)="N",$C$2,$C$3)),BOYRetirees!$N$10)=AR$10,-SUM(AM27:AQ27),0),0) -> 0 | AS27: =SUM(AM27:AR27) -> 101842.28 | AT27: =IF(AT$10<=PARAMS!$B$3,IF(UPPER($A27)="B",0,IF(VLOOKUP($B27,NewRet,NewRetirees!$B$10)=AT$10,VLOOKUP($B27,NewRet,NewRetirees!$H$10),0)),0) -> 0 | AU27: =IF(AU$10<=PARAMS!$B$3,IF(VLOOKUP($B27,INDIRECT(IF(UPPER($A27)="N",$C$2,$C$3)),BOYRetirees!$N$10)=AU$10,-VLOOKUP($B27,INDIRECT(IF(UPPER($A27)="N",$C$2,$C$3)),BOYRetirees!$O$10),0),0) -> 0 | AV27: =IF(AV$10<=PARAMS!$B$3,-IF(UPPER($A27)="B",IF(OR(VLOOKUP($B27,BOYRet,BOYRetirees!$M$10)="",AV$10<=VLOOKUP($B27,BOYRet,BOYRetirees!$M$10)),VLOOKUP($B27,BOYRet,BOYRetirees!$L$10),0),IF(AND(VLOOKUP($B27,NewRet,NewRetirees!$B$10)<=AU$10,OR(VLOOKUP($B27,NewRet,NewRetirees!$M$10)="",AV$10<=(VLOOKUP($B27,NewRet,NewRetirees!$M$10)))),VLOOKUP($B27,NewRet,NewRetirees!$L$10),0)),0) -> -764.62 | AW27: =ROUND(VLOOKUP(AW$10,InvRetMonth,3)*(AS27+AT27+AU27+AV27),2) -> 371.62 | AX27: =IF(AX$10<=PARAMS!$B$3, IF(VLOOKUP($B27,INDIRECT(IF(UPPER($A27)="N",$C$2,$C$3)),BOYRetirees!$N$10)=AX$10,-SUM(AS27:AW27),0),0) -> 0 | AY27: =SUM(AS27:AX27) -> 101449.28 | AZ27: =IF(AZ$10<=PARAMS!$B$3,IF(UPPER($A27)="B",0,IF(VLOOKUP($B27,NewRet,NewRetirees!$B$10)=AZ$10,VLOOKUP($B27,NewRet,NewRetirees!$H$10),0)),0) -> 0 | BA27: =IF(BA$10<=PARAMS!$B$3,IF(VLOOKUP($B27,INDIRECT(IF(UPPER($A27)="N",$C$2,$C$3)),BOYRetirees!$N$10)=BA$10,-VLOOKUP($B27,INDIRECT(IF(UPPER($A27)="N",$C$2,$C$3)),BOYRetirees!$O$10),0),0) -> 0 | BB27: =IF(BB$10<=PARAMS!$B$3,-IF(UPPER($A27)="B",IF(OR(VLOOKUP($B27,BOYRet,BOYRetirees!$M$10)="",BB$10<=VLOOKUP($B27,BOYRet,BOYRetirees!$M$10)),VLOOKUP($B27,BOYRet,BOYRetirees!$L$10),0),IF(AND(VLOOKUP($B27,NewRet,NewRetirees!$B$10)<=BA$10,OR(VLOOKUP($B27,NewRet,NewRetirees!$M$10)="",BB$10<=(VLOOKUP($B27,NewRet,NewRetirees!$M$10)))),VLOOKUP($B27,NewRet,NewRetirees!$L$10),0)),0) -> -764.62 | BC27: =ROUND(VLOOKUP(BC$10,InvRetMonth,3)*(AY27+AZ27+BA27+BB27),2) -> 231.94 | BD27: =IF(BD$10<=PARAMS!$B$3, IF(VLOOKUP($B27,INDIRECT(IF(UPPER($A27)="N",$C$2,$C$3)),BOYRetirees!$N$10)=BD$10,-SUM(AY27:BC27),0),0) -> 0 | BE27: =SUM(AY27:BD27) -> 100916.6 | BF27: =IF(BF$10<=PARAMS!$B$3,IF(UPPER($A27)="B",0,IF(VLOOKUP($B27,NewRet,NewRetirees!$B$10)=BF$10,VLOOKUP($B27,NewRet,NewRetirees!$H$10),0)),0) -> 0 | BG27: =IF(BG$10<=PARAMS!$B$3,IF(VLOOKUP($B27,INDIRECT(IF(UPPER($A27)="N",$C$2,$C$3)),BOYRetirees!$N$10)=BG$10,-VLOOKUP($B27,INDIRECT(IF(UPPER($A27)="N",$C$2,$C$3)),BOYRetirees!$O$10),0),0) -> 0 | BH27: =IF(BH$10<=PARAMS!$B$3,-IF(UPPER($A27)="B",IF(OR(VLOOKUP($B27,BOYRet,BOYRetirees!$M$10)="",BH$10<=VLOOKUP($B27,BOYRet,BOYRetirees!$M$10)),VLOOKUP($B27,BOYRet,BOYRetirees!$L$10),0),IF(AND(VLOOKUP($B27,NewRet,NewRetirees!$B$10)<=BG$10,OR(VLOOKUP($B27,NewRet,NewRetirees!$M$10)="",BH$10<=(VLOOKUP($B27,NewRet,NewRetirees!$M$10)))),VLOOKUP($B27,NewRet,NewRetirees!$L$10),0)),0) -> -764.62 | BI27: =ROUND(VLOOKUP(BI$10,InvRetMonth,3)*(BE27+BF27+BG27+BH27),2) -> -92.64 | BJ27: =IF(BJ$10<=PARAMS!$B$3, IF(VLOOKUP($B27,INDIRECT(IF(UPPER($A27)="N",$C$2,$C$3)),BOYRetirees!$N$10)=BJ$10,-SUM(BE27:BI27),0),0) -> 0 | BK27: =SUM(BE27:BJ27) -> 100059.34 | BL27: =IF(BL$10<=PARAMS!$B$3,IF(UPPER($A27)="B",0,IF(VLOOKUP($B27,NewRet,NewRetirees!$B$10)=BL$10,VLOOKUP($B27,NewRet,NewRetirees!$H$10),0)),0) -> 0 | BM27: =IF(BM$10<=PARAMS!$B$3,IF(VLOOKUP($B27,INDIRECT(IF(UPPER($A27)="N",$C$2,$C$3)),BOYRetirees!$N$10)=BM$10,-VLOOKUP($B27,INDIRECT(IF(UPPER($A27)="N",$C$2,$C$3)),BOYRetirees!$O$10),0),0) -> 0 | BN27: =IF(BN$10<=PARAMS!$B$3,-IF(UPPER($A27)="B",IF(OR(VLOOKUP($B27,BOYRet,BOYRetirees!$M$10)="",BN$10<=VLOOKUP($B27,BOYRet,BOYRetirees!$M$10)),VLOOKUP($B27,BOYRet,BOYRetirees!$L$10),0),IF(AND(VLOOKUP($B27,NewRet,NewRetirees!$B$10)<=BM$10,OR(VLOOKUP($B27,NewRet,NewRetirees!$M$10)="",BN$10<=(VLOOKUP($B27,NewRet,NewRetirees!$M$10)))),VLOOKUP($B27,NewRet,NewRetirees!$L$10),0)),0) -> -764.62 | BO27: =ROUND(VLOOKUP(BO$10,InvRetMonth,3)*(BK27+BL27+BM27+BN27),2) -> 555.06 | BP27: =IF(BP$10<=PARAMS!$B$3, IF(VLOOKUP($B27,INDIRECT(IF(UPPER($A27)="N",$C$2,$C$3)),BOYRetirees!$N$10)=BP$10,-SUM(BK27:BO27),0),0) -> 0 | BQ27: =SUM(BK27:BP27) -> 99849.78 | BR27: =IF(BR$10<=PARAMS!$B$3,IF(UPPER($A27)="B",0,IF(VLOOKUP($B27,NewRet,NewRetirees!$B$10)=BR$10,VLOOKUP($B27,NewRet,NewRetirees!$H$10),0)),0) -> 0 | BS27: =IF(BS$10<=PARAMS!$B$3,IF(VLOOKUP($B27,INDIRECT(IF(UPPER($A27)="N",$C$2,$C$3)),BOYRetirees!$N$10)=BS$10,-VLOOKUP($B27,INDIRECT(IF(UPPER($A27)="N",$C$2,$C$3)),BOYRetirees!$O$10),0),0) -> 0 | BT27: =IF(BT$10<=PARAMS!$B$3,-IF(UPPER($A27)="B",IF(OR(VLOOKUP($B27,BOYRet,BOYRetirees!$M$10)="",BT$10<=VLOOKUP($B27,BOYRet,BOYRetirees!$M$10)),VLOOKUP($B27,BOYRet,BOYRetirees!$L$10),0),IF(AND(VLOOKUP($B27,NewRet,NewRetirees!$B$10)<=BS$10,OR(VLOOKUP($B27,NewRet,NewRetirees!$M$10)="",BT$10<=(VLOOKUP($B27,NewRet,NewRetirees!$M$10)))),VLOOKUP($B27,NewRet,NewRetirees!$L$10),0)),0) -> -764.62 | BU27: =ROUND(VLOOKUP(BU$10,InvRetMonth,3)*(BQ27+BR27+BS27+BT27),2) -> 222.04 | BV27: =IF(BV$10<=PARAMS!$B$3, IF(VLOOKUP($B27,INDIRECT(IF(UPPER($A27)="N",$C$2,$C$3)),BOYRetirees!$N$10)=BV$10,-SUM(BQ27:BU27),0),0) -> 0 | BW27: =SUM(BQ27:BV27) -> 99307.2 | BX27: =UPPER(A27)&TEXT(B27,"00000") -> N00002 | BY27: =C27 -> 0 | BZ27: =SUM(D27+J27+P27+V27+AB27+AH27+AN27+AT27+AZ27+BF27+BL27+BR27) -> 105000 | CA27: =SUM(E27+K27+Q27+W27+AC27+AI27+AO27+AU27+BA27+BG27+BM27+BS27) -> 0 | CB27: =SUM(F27+L27+R27+X27+AD27+AJ27+AP27+AV27+BB27+BH27+BN27+BT27) -> -9175.44 | CC27: =SUM(G27+M27+S27+Y27+AE27+AK27+AQ27+AW27+BC27+BI27+BO27+BU27) -> 3482.64 | CD27: =SUM(H27+N27+T27+Z27+AF27+AL27+AR27+AX27+BD27+BJ27+BP27+BV27) -> 0 | CE27: =SUM(BY27:CD27) -> 99307.2 | CF27: =CI27/CI$10*BW$9 -> 7446.187736 | CG27: =CE27+CF27 -> 106753.3877 | CH27: =IF(BW27>0,VLOOKUP(B27,INDIRECT(IF(UPPER(A27)="N",$C$2,$C$3)),BOYRetirees!$P$10),0) -> 0.01061523712 | CI27: =CH27*CJ27 -> 998.399682 | CJ27: =(C27+I27+O27+U27+AA27+AG27+AM27+AS27+AY27+BE27+BK27+BQ27+BW27)/(PARAMS!$B$2+1) -> 94053.45077 | CK27: =CF27-CI27 -> 6447.788054 | CL27: =CC27-CL$8*CJ27 -> -2160.567046
A28: n | B28: 3 | C28: =IF(UPPER($A28)="B",VLOOKUP($B28,BOYRet,BOYRetirees!$H$10),0) -> 0 | D28: =IF(D$10<=PARAMS!$B$3,IF(UPPER($A28)="B",0,IF(VLOOKUP($B28,NewRet,NewRetirees!$B$10)=D$10,VLOOKUP($B28,NewRet,NewRetirees!$H$10),0)),0) -> 0 | E28: =IF(E$10<=PARAMS!$B$3,IF(VLOOKUP($B28,INDIRECT(IF(UPPER($A28)="N",$C$2,$C$3)),BOYRetirees!$N$10)=E$10,-VLOOKUP($B28,INDIRECT(IF(UPPER($A28)="N",$C$2,$C$3)),BOYRetirees!$O$10),0),0) -> 0 | F28: =IF(F$10<=PARAMS!$B$3,-IF(UPPER($A28)="B",IF(OR(VLOOKUP($B28,BOYRet,BOYRetirees!$M$10)="",F$10<=VLOOKUP($B28,BOYRet,BOYRetirees!$M$10)),VLOOKUP($B28,BOYRet,BOYRetirees!$L$10),0),IF(AND(VLOOKUP($B28,NewRet,NewRetirees!$B$10)<=E$10,OR(VLOOKUP($B28,NewRet,NewRetirees!$M$10)="",F$10<=(VLOOKUP($B28,NewRet,NewRetirees!$M$10)))),VLOOKUP($B28,NewRet,NewRetirees!$L$10),0)),0) -> 0 | G28: =ROUND(VLOOKUP(G$10,InvRetMonth,3)*(C28+D28+E28+F28),2) -> 0 | H28: =IF(H$10<=PARAMS!$B$3, IF(VLOOKUP($B28,INDIRECT(IF(UPPER($A28)="N",$C$2,$C$3)),BOYRetirees!$N$10)=H$10,-SUM(C28:G28),0),0) -> 0 | I28: =SUM(C28:H28) -> 0 | J28: =IF(J$10<=PARAMS!$B$3,IF(UPPER($A28)="B",0,IF(VLOOKUP($B28,NewRet,NewRetirees!$B$10)=J$10,VLOOKUP($B28,NewRet,NewRetirees!$H$10),0)),0) -> 310000 | K28: =IF(K$10<=PARAMS!$B$3,IF(VLOOKUP($B28,INDIRECT(IF(UPPER($A28)="N",$C$2,$C$3)),BOYRetirees!$N$10)=K$10,-VLOOKUP($B28,INDIRECT(IF(UPPER($A28)="N",$C$2,$C$3)),BOYRetirees!$O$10),0),0) -> 0 | L28: =IF(L$10<=PARAMS!$B$3,-IF(UPPER($A28)="B",IF(OR(VLOOKUP($B28,BOYRet,BOYRetirees!$M$10)="",L$10<=VLOOKUP($B28,BOYRet,BOYRetirees!$M$10)),VLOOKUP($B28,BOYRet,BOYRetirees!$L$10),0),IF(AND(VLOOKUP($B28,NewRet,NewRetirees!$B$10)<=K$10,OR(VLOOKUP($B28,NewRet,NewRetirees!$M$10)="",L$10<=(VLOOKUP($B28,NewRet,NewRetirees!$M$10)))),VLOOKUP($B28,NewRet,NewRetirees!$L$10),0)),0) -> -2123.55 | M28: =ROUND(VLOOKUP(M$10,InvRetMonth,3)*(I28+J28+K28+L28),2) -> 539.27 | N28: =IF(N$10<=PARAMS!$B$3, IF(VLOOKUP($B28,INDIRECT(IF(UPPER($A28)="N",$C$2,$C$3)),BOYRetirees!$N$10)=N$10,-SUM(I28:M28),0),0) -> 0 | O28: =SUM(I28:N28) -> 308415.72 | P28: =IF(P$10<=PARAMS!$B$3,IF(UPPER($A28)="B",0,IF(VLOOKUP($B28,NewRet,NewRetirees!$B$10)=P$10,VLOOKUP($B28,NewRet,NewRetirees!$H$10),0)),0) -> 0 | Q28: =IF(Q$10<=PARAMS!$B$3,IF(VLOOKUP($B28,INDIRECT(IF(UPPER($A28)="N",$C$2,$C$3)),BOYRetirees!$N$10)=Q$10,-VLOOKUP($B28,INDIRECT(IF(UPPER($A28)="N",$C$2,$C$3)),BOYRetirees!$O$10),0),0) -> 0 | R28: =IF(R$10<=PARAMS!$B$3,-IF(UPPER($A28)="B",IF(OR(VLOOKUP($B28,BOYRet,BOYRetirees!$M$10)="",R$10<=VLOOKUP($B28,BOYRet,BOYRetirees!$M$10)),VLOOKUP($B28,BOYRet,BOYRetirees!$L$10),0),IF(AND(VLOOKUP($B28,NewRet,NewRetirees!$B$10)<=Q$10,OR(VLOOKUP($B28,NewRet,NewRetirees!$M$10)="",R$10<=(VLOOKUP($B28,NewRet,NewRetirees!$M$10)))),VLOOKUP($B28,NewRet,NewRetirees!$L$10),0)),0) -> -2123.55 | S28: =ROUND(VLOOKUP(S$10,InvRetMonth,3)*(O28+P28+Q28+R28),2) -> -265.45 | T28: =IF(T$10<=PARAMS!$B$3, IF(VLOOKUP($B28,INDIRECT(IF(UPPER($A28)="N",$C$2,$C$3)),BOYRetirees!$N$10)=T$10,-SUM(O28:S28),0),0) -> 0 | U28: =SUM(O28:T28) -> 306026.72 | V28: =IF(V$10<=PARAMS!$B$3,IF(UPPER($A28)="B",0,IF(VLOOKUP($B28,NewRet,NewRetirees!$B$10)=V$10,VLOOKUP($B28,NewRet,NewRetirees!$H$10),0)),0) -> 0 | W28: =IF(W$10<=PARAMS!$B$3,IF(VLOOKUP($B28,INDIRECT(IF(UPPER($A28)="N",$C$2,$C$3)),BOYRetirees!$N$10)=W$10,-VLOOKUP($B28,INDIRECT(IF(UPPER($A28)="N",$C$2,$C$3)),BOYRetirees!$O$10),0),0) -> 0 | X28: =IF(X$10<=PARAMS!$B$3,-IF(UPPER($A28)="B",IF(OR(VLOOKUP($B28,BOYRet,BOYRetirees!$M$10)="",X$10<=VLOOKUP($B28,BOYRet,BOYRetirees!$M$10)),VLOOKUP($B28,BOYRet,BOYRetirees!$L$10),0),IF(AND(VLOOKUP($B28,NewRet,NewRetirees!$B$10)<=W$10,OR(VLOOKUP($B28,NewRet,NewRetirees!$M$10)="",X$10<=(VLOOKUP($B28,NewRet,NewRetirees!$M$10)))),VLOOKUP($B28,NewRet,NewRetirees!$L$10),0)),0) -> -2123.55 | Y28: =ROUND(VLOOKUP(Y$10,InvRetMonth,3)*(U28+V28+W28+X28),2) -> 1386.2 | Z28: =IF(Z$10<=PARAMS!$B$3, IF(VLOOKUP($B28,INDIRECT(IF(UPPER($A28)="N",$C$2,$C$3)),BOYRetirees!$N$10)=Z$10,-SUM(U28:Y28),0),0) -> 0 | AA28: =SUM(U28:Z28) -> 305289.37 | AB28: =IF(AB$10<=PARAMS!$B$3,IF(UPPER($A28)="B",0,IF(VLOOKUP($B28,NewRet,NewRetirees!$B$10)=AB$10,VLOOKUP($B28,NewRet,NewRetirees!$H$10),0)),0) -> 0 | AC28: =IF(AC$10<=PARAMS!$B$3,IF(VLOOKUP($B28,INDIRECT(IF(UPPER($A28)="N",$C$2,$C$3)),BOYRetirees!$N$10)=AC$10,-VLOOKUP($B28,INDIRECT(IF(UPPER($A28)="N",$C$2,$C$3)),BOYRetirees!$O$10),0),0) -> 0 | AD28: =IF(AD$10<=PARAMS!$B$3,-IF(UPPER($A28)="B",IF(OR(VLOOKUP($B28,BOYRet,BOYRetirees!$M$10)="",AD$10<=VLOOKUP($B28,BOYRet,BOYRetirees!$M$10)),VLOOKUP($B28,BOYRet,BOYRetirees!$L$10),0),IF(AND(VLOOKUP($B28,NewRet,NewRetirees!$B$10)<=AC$10,OR(VLOOKUP($B28,NewRet,NewRetirees!$M$10)="",AD$10<=(VLOOKUP($B28,NewRet,NewRetirees!$M$10)))),VLOOKUP($B28,NewRet,NewRetirees!$L$10),0)),0) -> -2123.55 | AE28: =ROUND(VLOOKUP(AE$10,InvRetMonth,3)*(AA28+AB28+AC28+AD28),2) -> 692.5 | AF28: =IF(AF$10<=PARAMS!$B$3,IF(UPPER($A28)="B",IF(VLOOKUP($B28,BOYRet,BOYRetirees!$N$10)=AF$10,-SUM(AA28:AE28),0),IF(VLOOKUP($B28,NewRet,NewRetirees!$N$10)=AF$10,-SUM(AA28:AE28),0)),0) -> 0 | AG28: =SUM(AA28:AF28) -> 303858.32 | AH28: =IF(AH$10<=PARAMS!$B$3,IF(UPPER($A28)="B",0,IF(VLOOKUP($B28,NewRet,NewRetirees!$B$10)=AH$10,VLOOKUP($B28,NewRet,NewRetirees!$H$10),0)),0) -> 0 | AI28: =IF(AI$10<=PARAMS!$B$3,IF(VLOOKUP($B28,INDIRECT(IF(UPPER($A28)="N",$C$2,$C$3)),BOYRetirees!$N$10)=AI$10,-VLOOKUP($B28,INDIRECT(IF(UPPER($A28)="N",$C$2,$C$3)),BOYRetirees!$O$10),0),0) -> 0 | AJ28: =IF(AJ$10<=PARAMS!$B$3,-IF(UPPER($A28)="B",IF(OR(VLOOKUP($B28,BOYRet,BOYRetirees!$M$10)="",AJ$10<=VLOOKUP($B28,BOYRet,BOYRetirees!$M$10)),VLOOKUP($B28,BOYRet,BOYRetirees!$L$10),0),IF(AND(VLOOKUP($B28,NewRet,NewRetirees!$B$10)<=AI$10,OR(VLOOKUP($B28,NewRet,NewRetirees!$M$10)="",AJ$10<=(VLOOKUP($B28,NewRet,NewRetirees!$M$10)))),VLOOKUP($B28,NewRet,NewRetirees!$L$10),0)),0) -> -2123.55 | AK28: =ROUND(VLOOKUP(AK$10,InvRetMonth,3)*(AG28+AH28+AI28+AJ28),2) -> 2075.65 | AL28: =IF(AL$10<=PARAMS!$B$3, IF(VLOOKUP($B28,INDIRECT(IF(UPPER($A28)="N",$C$2,$C$3)),BOYRetirees!$N$10)=AL$10,-SUM(AG28:AK28),0),0) -> 0 | AM28: =SUM(AG28:AL28) -> 303810.42 | AN28: =IF(AN$10<=PARAMS!$B$3,IF(UPPER($A28)="B",0,IF(VLOOKUP($B28,NewRet,NewRetirees!$B$10)=AN$10,VLOOKUP($B28,NewRet,NewRetirees!$H$10),0)),0) -> 0 | AO28: =IF(AO$10<=PARAMS!$B$3,IF(VLOOKUP($B28,INDIRECT(IF(UPPER($A28)="N",$C$2,$C$3)),BOYRetirees!$N$10)=AO$10,-VLOOKUP($B28,INDIRECT(IF(UPPER($A28)="N",$C$2,$C$3)),BOYRetirees!$O$10),0),0) -> 0 | AP28: =IF(AP$10<=PARAMS!$B$3,-IF(UPPER($A28)="B",IF(OR(VLOOKUP($B28,BOYRet,BOYRetirees!$M$10)="",AP$10<=VLOOKUP($B28,BOYRet,BOYRetirees!$M$10)),VLOOKUP($B28,BOYRet,BOYRetirees!$L$10),0),IF(AND(VLOOKUP($B28,NewRet,NewRetirees!$B$10)<=AO$10,OR(VLOOKUP($B28,NewRet,NewRetirees!$M$10)="",AP$10<=(VLOOKUP($B28,NewRet,NewRetirees!$M$10)))),VLOOKUP($B28,NewRet,NewRetirees!$L$10),0)),0) -> -2123.55 | AQ28: =ROUND(VLOOKUP(AQ$10,InvRetMonth,3)*(AM28+AN28+AO28+AP28),2) -> 995.43 | AR28: =IF(AR$10<=PARAMS!$B$3, IF(VLOOKUP($B28,INDIRECT(IF(UPPER($A28)="N",$C$2,$C$3)),BOYRetirees!$N$10)=AR$10,-SUM(AM28:AQ28),0),0) -> 0 | AS28: =SUM(AM28:AR28) -> 302682.3 | AT28: =IF(AT$10<=PARAMS!$B$3,IF(UPPER($A28)="B",0,IF(VLOOKUP($B28,NewRet,NewRetirees!$B$10)=AT$10,VLOOKUP($B28,NewRet,NewRetirees!$H$10),0)),0) -> 0 | AU28: =IF(AU$10<=PARAMS!$B$3,IF(VLOOKUP($B28,INDIRECT(IF(UPPER($A28)="N",$C$2,$C$3)),BOYRetirees!$N$10)=AU$10,-VLOOKUP($B28,INDIRECT(IF(UPPER($A28)="N",$C$2,$C$3)),BOYRetirees!$O$10),0),0) -> 0 | AV28: =IF(AV$10<=PARAMS!$B$3,-IF(UPPER($A28)="B",IF(OR(VLOOKUP($B28,BOYRet,BOYRetirees!$M$10)="",AV$10<=VLOOKUP($B28,BOYRet,BOYRetirees!$M$10)),VLOOKUP($B28,BOYRet,BOYRetirees!$L$10),0),IF(AND(VLOOKUP($B28,NewRet,NewRetirees!$B$10)<=AU$10,OR(VLOOKUP($B28,NewRet,NewRetirees!$M$10)="",AV$10<=(VLOOKUP($B28,NewRet,NewRetirees!$M$10)))),VLOOKUP($B28,NewRet,NewRetirees!$L$10),0)),0) -> -2123.55 | AW28: =ROUND(VLOOKUP(AW$10,InvRetMonth,3)*(AS28+AT28+AU28+AV28),2) -> 1105.04 | AX28: =IF(AX$10<=PARAMS!$B$3, IF(VLOOKUP($B28,INDIRECT(IF(UPPER($A28)="N",$C$2,$C$3)),BOYRetirees!$N$10)=AX$10,-SUM(AS28:AW28),0),0) -> 0 | AY28: =SUM(AS28:AX28) -> 301663.79 | AZ28: =IF(AZ$10<=PARAMS!$B$3,IF(UPPER($A28)="B",0,IF(VLOOKUP($B28,NewRet,NewRetirees!$B$10)=AZ$10,VLOOKUP($B28,NewRet,NewRetirees!$H$10),0)),0) -> 0 | BA28: =IF(BA$10<=PARAMS!$B$3,IF(VLOOKUP($B28,INDIRECT(IF(UPPER($A28)="N",$C$2,$C$3)),BOYRetirees!$N$10)=BA$10,-VLOOKUP($B28,INDIRECT(IF(UPPER($A28)="N",$C$2,$C$3)),BOYRetirees!$O$10),0),0) -> 0 | BB28: =IF(BB$10<=PARAMS!$B$3,-IF(UPPER($A28)="B",IF(OR(VLOOKUP($B28,BOYRet,BOYRetirees!$M$10)="",BB$10<=VLOOKUP($B28,BOYRet,BOYRetirees!$M$10)),VLOOKUP($B28,BOYRet,BOYRetirees!$L$10),0),IF(AND(VLOOKUP($B28,NewRet,NewRetirees!$B$10)<=BA$10,OR(VLOOKUP($B28,NewRet,NewRetirees!$M$10)="",BB$10<=(VLOOKUP($B28,NewRet,NewRetirees!$M$10)))),VLOOKUP($B28,NewRet,NewRetirees!$L$10),0)),0) -> -2123.55 | BC28: =ROUND(VLOOKUP(BC$10,InvRetMonth,3)*(AY28+AZ28+BA28+BB28),2) -> 690.02 | BD28: =IF(BD$10<=PARAMS!$B$3, IF(VLOOKUP($B28,INDIRECT(IF(UPPER($A28)="N",$C$2,$C$3)),BOYRetirees!$N$10)=BD$10,-SUM(AY28:BC28),0),0) -> 0 | BE28: =SUM(AY28:BD28) -> 300230.26 | BF28: =IF(BF$10<=PARAMS!$B$3,IF(UPPER($A28)="B",0,IF(VLOOKUP($B28,NewRet,NewRetirees!$B$10)=BF$10,VLOOKUP($B28,NewRet,NewRetirees!$H$10),0)),0) -> 0 | BG28: =IF(BG$10<=PARAMS!$B$3,IF(VLOOKUP($B28,INDIRECT(IF(UPPER($A28)="N",$C$2,$C$3)),BOYRetirees!$N$10)=BG$10,-VLOOKUP($B28,INDIRECT(IF(UPPER($A28)="N",$C$2,$C$3)),BOYRetirees!$O$10),0),0) -> 0 | BH28: =IF(BH$10<=PARAMS!$B$3,-IF(UPPER($A28)="B",IF(OR(VLOOKUP($B28,BOYRet,BOYRetirees!$M$10)="",BH$10<=VLOOKUP($B28,BOYRet,BOYRetirees!$M$10)),VLOOKUP($B28,BOYRet,BOYRetirees!$L$10),0),IF(AND(VLOOKUP($B28,NewRet,NewRetirees!$B$10)<=BG$10,OR(VLOOKUP($B28,NewRet,NewRetirees!$M$10)="",BH$10<=(VLOOKUP($B28,NewRet,NewRetirees!$M$10)))),VLOOKUP($B28,NewRet,NewRetirees!$L$10),0)),0) -> -2123.55 | BI28: =ROUND(VLOOKUP(BI$10,InvRetMonth,3)*(BE28+BF28+BG28+BH28),2) -> -275.76 | BJ28: =IF(BJ$10<=PARAMS!$B$3, IF(VLOOKUP($B28,INDIRECT(IF(UPPER($A28)="N",$C$2,$C$3)),BOYRetirees!$N$10)=BJ$10,-SUM(BE28:BI28),0),0) -> 0 | BK28: =SUM(BE28:BJ28) -> 297830.95 | BL28: =IF(BL$10<=PARAMS!$B$3,IF(UPPER($A28)="B",0,IF(VLOOKUP($B28,NewRet,NewRetirees!$B$10)=BL$10,VLOOKUP($B28,NewRet,NewRetirees!$H$10),0)),0) -> 0 | BM28: =IF(BM$10<=PARAMS!$B$3,IF(VLOOKUP($B28,INDIRECT(IF(UPPER($A28)="N",$C$2,$C$3)),BOYRetirees!$N$10)=BM$10,-VLOOKUP($B28,INDIRECT(IF(UPPER($A28)="N",$C$2,$C$3)),BOYRetirees!$O$10),0),0) -> 0 | BN28: =IF(BN$10<=PARAMS!$B$3,-IF(UPPER($A28)="B",IF(OR(VLOOKUP($B28,BOYRet,BOYRetirees!$M$10)="",BN$10<=VLOOKUP($B28,BOYRet,BOYRetirees!$M$10)),VLOOKUP($B28,BOYRet,BOYRetirees!$L$10),0),IF(AND(VLOOKUP($B28,NewRet,NewRetirees!$B$10)<=BM$10,OR(VLOOKUP($B28,NewRet,NewRetirees!$M$10)="",BN$10<=(VLOOKUP($B28,NewRet,NewRetirees!$M$10)))),VLOOKUP($B28,NewRet,NewRetirees!$L$10),0)),0) -> -2123.55 | BO28: =ROUND(VLOOKUP(BO$10,InvRetMonth,3)*(BK28+BL28+BM28+BN28),2) -> 1653 | BP28: =IF(BP$10<=PARAMS!$B$3, IF(VLOOKUP($B28,INDIRECT(IF(UPPER($A28)="N",$C$2,$C$3)),BOYRetirees!$N$10)=BP$10,-SUM(BK28:BO28),0),0) -> 0 | BQ28: =SUM(BK28:BP28) -> 297360.4 | BR28: =IF(BR$10<=PARAMS!$B$3,IF(UPPER($A28)="B",0,IF(VLOOKUP($B28,NewRet,NewRetirees!$B$10)=BR$10,VLOOKUP($B28,NewRet,NewRetirees!$H$10),0)),0) -> 0 | BS28: =IF(BS$10<=PARAMS!$B$3,IF(VLOOKUP($B28,INDIRECT(IF(UPPER($A28)="N",$C$2,$C$3)),BOYRetirees!$N$10)=BS$10,-VLOOKUP($B28,INDIRECT(IF(UPPER($A28)="N",$C$2,$C$3)),BOYRetirees!$O$10),0),0) -> 0 | BT28: =IF(BT$10<=PARAMS!$B$3,-IF(UPPER($A28)="B",IF(OR(VLOOKUP($B28,BOYRet,BOYRetirees!$M$10)="",BT$10<=VLOOKUP($B28,BOYRet,BOYRetirees!$M$10)),VLOOKUP($B28,BOYRet,BOYRetirees!$L$10),0),IF(AND(VLOOKUP($B28,NewRet,NewRetirees!$B$10)<=BS$10,OR(VLOOKUP($B28,NewRet,NewRetirees!$M$10)="",BT$10<=(VLOOKUP($B28,NewRet,NewRetirees!$M$10)))),VLOOKUP($B28,NewRet,NewRetirees!$L$10),0)),0) -> -2123.55 | BU28: =ROUND(VLOOKUP(BU$10,InvRetMonth,3)*(BQ28+BR28+BS28+BT28),2) -> 661.6 | BV28: =IF(BV$10<=PARAMS!$B$3, IF(VLOOKUP($B28,INDIRECT(IF(UPPER($A28)="N",$C$2,$C$3)),BOYRetirees!$N$10)=BV$10,-SUM(BQ28:BU28),0),0) -> 0 | BW28: =SUM(BQ28:BV28) -> 295898.45 | BX28: =UPPER(A28)&TEXT(B28,"00000") -> N00003 | BY28: =C28 -> 0 | BZ28: =SUM(D28+J28+P28+V28+AB28+AH28+AN28+AT28+AZ28+BF28+BL28+BR28) -> 310000 | CA28: =SUM(E28+K28+Q28+W28+AC28+AI28+AO28+AU28+BA28+BG28+BM28+BS28) -> 0 | CB28: =SUM(F28+L28+R28+X28+AD28+AJ28+AP28+AV28+BB28+BH28+BN28+BT28) -> -23359.05 | CC28: =SUM(G28+M28+S28+Y28+AE28+AK28+AQ28+AW28+BC28+BI28+BO28+BU28) -> 9257.5 | CD28: =SUM(H28+N28+T28+Z28+AF28+AL28+AR28+AX28+BD28+BJ28+BP28+BV28) -> 0 | CE28: =SUM(BY28:CD28) -> 295898.45 | CF28: =CI28/CI$10*BW$9 -> 19250.41601 | CG28: =CE28+CF28 -> 315148.866 | CH28: =IF(BW28>0,VLOOKUP(B28,INDIRECT(IF(UPPER(A28)="N",$C$2,$C$3)),BOYRetirees!$P$10),0) -> 0.01009752333 | CI28: =CH28*CJ28 -> 2581.134119 | CJ28: =(C28+I28+O28+U28+AA28+AG28+AM28+AS28+AY28+BE28+BK28+BQ28+BW28)/(PARAMS!$B$2+1) -> 255620.5154 | CK28: =CF28-CI28 -> 16669.28189 | CL28: =CC28-CL$8*CJ28 -> -6079.730923
